Workbook

Sheet Formulaire
A1: 65 | B1: 90 ans et + | C1: Total | D1: 2021 | E1: 2041 | G1: =D2&"de la population"&C2&"des Laurentides et ses RLS pour l'année "&D1&" chez les "&A1&A3 -> Projections de la population des Laurentides et ses RLS pour l'année 2021 chez les 65 ans et plus | Q1: =D1&" - "&C3&" - "&A1&A3 -> 2021 - Sexes réunis - 65 ans et plus
A2: =IF(AND(A1<2,B2=" ans et plus")," an et plus",B2) -> ans et plus | B2: =VLOOKUP(B1,Correspondance!A1:C91,3) -> ans et plus | C2: =VLOOKUP(C1,Correspondance!K1:L3,2,0) ->  | D2: =VLOOKUP(D1,Correspondance!P1:Q41,2) -> Projections | E2: =VLOOKUP(E1,Correspondance!P1:Q41,2) -> Projections | G2: ="Variation (%) "&D3&"de la population"&C2&"des Laurentides et ses RLS, entre les années "&D1&" et "&E1&", chez les "&A1&A3 -> Variation (%) projetée de la population des Laurentides et ses RLS, entre les années 2021 et 2041, chez les 65 ans et plus | Q2: =D1&" et "&E1&" - "&C3&" - "&A1&A3 -> 2021 et 2041 - Sexes réunis - 65 ans et plus
A3: =IF(AND(A1=B1,A1<2)," an",IF(AND(A1=B1,A1>1)," ans",A2)) -> ans et plus | C3: =IF(C1="Total","Sexes réunis",C1) -> Sexes réunis | D3: =IF(OR(D2="Projections ", E2="Projections "),"projetée ","estimée ") -> projetée | E3: =IF(D2="Projections ","projetée ","estimée ") -> projetée | G3: ="Proportion (%) "&E3&"de la population"&C2&"des "&A1&A3&" des Laurentides et ses RLS pour l'année "&D1&" sur l'ensemble de la population" -> Proportion (%) projetée de la population des 65 ans et plus des Laurentides et ses RLS pour l'année 2021 sur l'ensemble de la population
B12: >> Important : L'apport probable de la migration interrégionale dans le contexte de la pandémie n'est pas pris en compte dans les estimations actuelles <<
A44: Version Mars 2021
A45: * Pour vous assurer d'avoir toujours les données les plus à jour, utilisez la dernière version de cet outil qui se retrouve sur le site santelaurentides.gouv.qc.ca/sante-publique/donnees-sur-la-population

Sheet Carte1Periode
A1: =Formulaire!G1 -> Projections de la population des Laurentides et ses RLS pour l'année 2021 chez les 65 ans et plus
I14: Population | J14: Répartition
F15: Province du Québec | I15: ='Résultats bruts'!B5 -> 1750510 | J15: selon les RLS
F16: Région des Laurentides | I16: ='Résultats bruts'!B6 -> 128770 | J16: %
F17: RLS Antoine-Labelle | I17: ='Résultats bruts'!B7 -> 10750 | J17: =(I17/$I$16)*100 -> 8.348217753
F18: RLS Laurentides | I18: ='Résultats bruts'!B8 -> 13470 | J18: =(I18/$I$16)*100 -> 10.46051099
F19: RLS Pays-d'en-Haut | I19: ='Résultats bruts'!B9 -> 13830 | J19: 10.74007921
F20: RLS Argenteuil | I20: ='Résultats bruts'!B10 -> 8700 | J20: 6.756232042
F21: RLS Deux-Montagnes - Mirabel-Sud | I21: ='Résultats bruts'!B11 -> 21800 | J21: 16.92940902
F22: RLS Rivière-du-Nord - Mirabel-Nord | I22: ='Résultats bruts'!B12 -> 31960 | J22: 24.81944552
F23: RLS Thérèse-De Blainville | I23: ='Résultats bruts'!B13 -> 28270 | J23: 21.95387124
I24: =Formulaire!Q1 -> 2021 - Sexes réunis - 65 ans et plus
A47: Source : | B47: ISQ, estimations (1996-2000 : série produite en janvier 2010, 2001-2010 : série produite en avril 2014) et projections (2011-2036 : série produite en novembre 2014) de population, pour le découpage géographique en vigueur en avril 2017.
A48: Référence : | B48: Équipe de surveillance, recherche et évaluation (SRÉ) de la Direction de santé publique, CISSS des Laurentides, Mars 2019

Sheet Carte2Periodes
A1: =Formulaire!G2 -> Variation (%) projetée de la population des Laurentides et ses RLS, entre les années 2021 et 2041, chez les 65 ans et plus
I6: Variation (%)
G7: Province du Québec | I7: ='Résultats bruts'!C33 -> 40.91150579
G8: Région des Laurentides | I8: ='Résultats bruts'!C34 -> 61.87776656
I13: Population (nombre) | L13: %
I14: =Formulaire!D1 -> 2021 | J14: =Formulaire!E1 -> 2041 | K14: Variation | L14: Variation
F15: Province du Québec | I15: ='Résultats bruts'!B5 -> 1750510 | J15: ='Résultats bruts'!B19 -> 2466670 | K15: =J15-I15 -> 716160 | L15: ='Résultats bruts'!C33 -> 40.91150579
F16: Région des Laurentides | I16: ='Résultats bruts'!B6 -> 128770 | J16: ='Résultats bruts'!B20 -> 208450 | K16: =J16-I16 -> 79680 | L16: ='Résultats bruts'!C34 -> 61.87776656
F17: RLS Antoine-Labelle | I17: ='Résultats bruts'!B7 -> 10750 | J17: ='Résultats bruts'!B21 -> 13620 | K17: =J17-I17 -> 2870 | L17: ='Résultats bruts'!C35 -> 26.69767442
F18: RLS Laurentides | I18: ='Résultats bruts'!B8 -> 13470 | J18: ='Résultats bruts'!B22 -> 19210 | K18: =J18-I18 -> 5740 | L18: ='Résultats bruts'!C36 -> 42.61321455
F19: RLS Pays-d'en-Haut | I19: ='Résultats bruts'!B9 -> 13830 | J19: ='Résultats bruts'!B23 -> 20240 | K19: 6410 | L19: ='Résultats bruts'!C37 -> 46.34851772
F20: RLS Argenteuil | I20: ='Résultats bruts'!B10 -> 8700 | J20: ='Résultats bruts'!B24 -> 12640 | K20: 3940 | L20: ='Résultats bruts'!C38 -> 45.28735632
F21: RLS Deux-Montagnes - Mirabel-Sud | I21: ='Résultats bruts'!B11 -> 21800 | J21: ='Résultats bruts'!B25 -> 35890 | K21: 14090 | L21: ='Résultats bruts'!C39 -> 64.63302752
F22: RLS Rivière-du-Nord - Mirabel-Nord | I22: ='Résultats bruts'!B12 -> 31960 | J22: ='Résultats bruts'!B26 -> 57760 | K22: 25800 | L22: ='Résultats bruts'!C40 -> 80.72590738
F23: RLS Thérèse-De Blainville | I23: ='Résultats bruts'!B13 -> 28270 | J23: ='Résultats bruts'!B27 -> 49080 | K23: 20810 | L23: ='Résultats bruts'!C41 -> 73.61160241
K24: =Formulaire!Q2 -> 2021 et 2041 - Sexes réunis - 65 ans et plus
A47: Source : | B47: ISQ, estimations (1996-2000 : série produite en janvier 2010, 2001-2010 : série produite en avril 2014) et projections (2011-2036 : série produite en novembre 2014) de population, pour le découpage géographique en vigueur en avril 2017.
A48: Référence : | B48: Équipe de surveillance, recherche et évaluation (SRÉ) de la Direction de santé publique, CISSS des Laurentides, Mars 2019

Sheet CarteProportionAge
A1: =Formulaire!G3 -> Proportion (%) projetée de la population des 65 ans et plus des Laurentides et ses RLS pour l'année 2021 sur l'ensemble de la population
H10: Proportion (%)
F11: Province du Québec | H11: ='Résultats bruts'!M47 -> 20.37403749
F12: Région des Laurentides | H12: ='Résultats bruts'!M48 -> 20.32649943
I14: Population | J14: Proportion
F15: Province du Québec | I15: ='Résultats bruts'!B5 -> 1750510 | J15: ='Résultats bruts'!M47 -> 20.37403749
F16: Région des Laurentides | I16: ='Résultats bruts'!B6 -> 128770 | J16: ='Résultats bruts'!M48 -> 20.32649943
F17: RLS Antoine-Labelle | I17: ='Résultats bruts'!B7 -> 10750 | J17: ='Résultats bruts'!M49 -> 30.2119049
F18: RLS Laurentides | I18: ='Résultats bruts'!B8 -> 13470 | J18: ='Résultats bruts'!M50 -> 27.85705423
F19: RLS Pays-d'en-Haut | I19: ='Résultats bruts'!B9 -> 13830 | J19: ='Résultats bruts'!M51 -> 30.85263017
F20: RLS Argenteuil | I20: ='Résultats bruts'!B10 -> 8700 | J20: ='Résultats bruts'!M52 -> 25.85745705
F21: RLS Deux-Montagnes - Mirabel-Sud | I21: ='Résultats bruts'!B11 -> 21800 | J21: ='Résultats bruts'!M53 -> 17.31106717
F22: RLS Rivière-du-Nord - Mirabel-Nord | I22: ='Résultats bruts'!B12 -> 31960 | J22: ='Résultats bruts'!M54 -> 17.68393562
F23: RLS Thérèse-De Blainville | I23: ='Résultats bruts'!B13 -> 28270 | J23: ='Résultats bruts'!M55 -> 17.19168086
I24: =Formulaire!Q1 -> 2021 - Sexes réunis - 65 ans et plus
A47: Source : | B47: ISQ, estimations (1996-2000 : série produite en janvier 2010, 2001-2010 : série produite en avril 2014) et projections (2011-2036 : série produite en novembre 2014) de population, pour le découpage géographique en vigueur en avril 2017.
A48: Référence : | B48: Équipe de surveillance, recherche et évaluation (SRÉ) de la Direction de santé publique, CISSS des Laurentides, Mars 2019

Sheet Données
A1: Niveau géographique | B1: Code du territoire | C1: Territoire | D1: Année | E1: Statut | F1: Sexe | G1: Tous les âges | H1: Moins un an | I1: 1 | J1: 2 | K1: 3 | L1: 4 | M1: 5 | N1: 6 | O1: 7 | P1: 8 | Q1: 9 | R1: 10 | S1: 11 | T1: 12 | U1: 13 | V1: 14 | W1: 15 | X1: 16 | Y1: 17 | Z1: 18 | AA1: 19 | AB1: 20 | AC1: 21 | AD1: 22 | AE1: 23 | AF1: 24 | AG1: 25 | AH1: 26 | AI1: 27 | AJ1: 28 | AK1: 29 | AL1: 30 | AM1: 31 | AN1: 32 | AO1: 33 | AP1: 34 | AQ1: 35 | AR1: 36 | AS1: 37 | AT1: 38 | AU1: 39 | AV1: 40 | AW1: 41 | AX1: 42 | AY1: 43 | AZ1: 44 | BA1: 45 | BB1: 46 | BC1: 47 | BD1: 48 | BE1: 49 | BF1: 50 | BG1: 51 | BH1: 52 | BI1: 53 | BJ1: 54 | BK1: 55 | BL1: 56 | BM1: 57 | BN1: 58 | BO1: 59 | BP1: 60 | BQ1: 61 | BR1: 62 | BS1: 63 | BT1: 64 | BU1: 65 | BV1: 66 | BW1: 67 | BX1: 68 | BY1: 69 | BZ1: 70 | CA1: 71 | CB1: 72 | CC1: 73 | CD1: 74 | CE1: 75 | CF1: 76 | CG1: 77 | CH1: 78 | CI1: 79 | CJ1: 80 | CK1: 81 | CL1: 82 | CM1: 83 | CN1: 84 | CO1: 85 | CP1: 86 | CQ1: 87 | CR1: 88 | CS1: 89 | CT1: 90 ans ou plus
A2: Québec | B2: 99 | C2: Ensemble du Québec | D2: 1996 | E2: Estimation | F2: Masculin | G2: 3568418 | H2: 44290 | I2: 45243 | J2: 46591 | K2: 48299 | L2: 49754 | M2: 50651 | N2: 49471 | O2: 46470 | P2: 44581 | Q2: 44469 | R2: 45707 | S2: 46523 | T2: 47237 | U2: 47359 | V2: 49533 | W2: 51669 | X2: 52513 | Y2: 51205 | Z2: 50234 | AA2: 50272 | AB2: 49995 | AC2: 49606 | AD2: 46977 | AE2: 46300 | AF2: 46950 | AG2: 48943 | AH2: 50142 | AI2: 50093 | AJ2: 50705 | AK2: 53861 | AL2: 58003 | AM2: 63072 | AN2: 64879 | AO2: 66048 | AP2: 65507 | AQ2: 66935 | AR2: 66579 | AS2: 66121 | AT2: 66591 | AU2: 65250 | AV2: 62768 | AW2: 62652 | AX2: 60574 | AY2: 57677 | AZ2: 56482 | BA2: 55738 | BB2: 54184 | BC2: 53527 | BD2: 52693 | BE2: 52290 | BF2: 48923 | BG2: 46038 | BH2: 44017 | BI2: 42728 | BJ2: 39825 | BK2: 38023 | BL2: 35149 | BM2: 34066 | BN2: 32231 | BO2: 30505 | BP2: 30593 | BQ2: 29868 | BR2: 29117 | BS2: 29939 | BT2: 30236 | BU2: 28619 | BV2: 27759 | BW2: 26136 | BX2: 25472 | BY2: 23969 | BZ2: 22937 | CA2: 21821 | CB2: 20183 | CC2: 18830 | CD2: 17764 | CE2: 15890 | CF2: 14117 | CG2: 12162 | CH2: 11239 | CI2: 9862 | CJ2: 9043 | CK2: 8219 | CL2: 7344 | CM2: 6369 | CN2: 5184 | CO2: 4424 | CP2: 3717 | CQ2: 2956 | CR2: 2420 | CS2: 1926 | CT2: 5585
A3: Québec | B3: 99 | C3: Ensemble du Québec | D3: 1996 | E3: Estimation | F3: Féminin | G3: 3678479 | H3: 42826 | I3: 43660 | J3: 44420 | K3: 46063 | L3: 48015 | M3: 48506 | N3: 47454 | O3: 44460 | P3: 42374 | Q3: 42643 | R3: 43633 | S3: 44051 | T3: 44675 | U3: 45198 | V3: 46640 | W3: 48997 | X3: 49359 | Y3: 48615 | Z3: 47785 | AA3: 48319 | AB3: 47541 | AC3: 47746 | AD3: 45545 | AE3: 44510 | AF3: 45287 | AG3: 47148 | AH3: 47995 | AI3: 48165 | AJ3: 49420 | AK3: 52178 | AL3: 55581 | AM3: 60788 | AN3: 62324 | AO3: 64328 | AP3: 63339 | AQ3: 65626 | AR3: 66080 | AS3: 65949 | AT3: 65488 | AU3: 64740 | AV3: 62068 | AW3: 62459 | AX3: 60769 | AY3: 58084 | AZ3: 56523 | BA3: 56058 | BB3: 54695 | BC3: 54598 | BD3: 53500 | BE3: 52887 | BF3: 49601 | BG3: 47086 | BH3: 45190 | BI3: 43374 | BJ3: 40658 | BK3: 38814 | BL3: 36541 | BM3: 35220 | BN3: 33515 | BO3: 32301 | BP3: 32745 | BQ3: 32137 | BR3: 31697 | BS3: 32496 | BT3: 32955 | BU3: 32574 | BV3: 31948 | BW3: 30756 | BX3: 30519 | BY3: 29307 | BZ3: 28984 | CA3: 28221 | CB3: 27177 | CC3: 25942 | CD3: 25157 | CE3: 23408 | CF3: 21453 | CG3: 19325 | CH3: 18297 | CI3: 17043 | CJ3: 16081 | CK3: 15189 | CL3: 13839 | CM3: 12487 | CN3: 11177 | CO3: 9869 | CP3: 8586 | CQ3: 7449 | CR3: 6268 | CS3: 5378 | CT3: 18603
A4: Québec | B4: 99 | C4: Ensemble du Québec | D4: 1996 | E4: Estimation | F4: Total | G4: 7246897 | H4: 87116 | I4: 88903 | J4: 91011 | K4: 94362 | L4: 97769 | M4: 99157 | N4: 96925 | O4: 90930 | P4: 86955 | Q4: 87112 | R4: 89340 | S4: 90574 | T4: 91912 | U4: 92557 | V4: 96173 | W4: 100666 | X4: 101872 | Y4: 99820 | Z4: 98019 | AA4: 98591 | AB4: 97536 | AC4: 97352 | AD4: 92522 | AE4: 90810 | AF4: 92237 | AG4: 96091 | AH4: 98137 | AI4: 98258 | AJ4: 100125 | AK4: 106039 | AL4: 113584 | AM4: 123860 | AN4: 127203 | AO4: 130376 | AP4: 128846 | AQ4: 132561 | AR4: 132659 | AS4: 132070 | AT4: 132079 | AU4: 129990 | AV4: 124836 | AW4: 125111 | AX4: 121343 | AY4: 115761 | AZ4: 113005 | BA4: 111796 | BB4: 108879 | BC4: 108125 | BD4: 106193 | BE4: 105177 | BF4: 98524 | BG4: 93124 | BH4: 89207 | BI4: 86102 | BJ4: 80483 | BK4: 76837 | BL4: 71690 | BM4: 69286 | BN4: 65746 | BO4: 62806 | BP4: 63338 | BQ4: 62005 | BR4: 60814 | BS4: 62435 | BT4: 63191 | BU4: 61193 | BV4: 59707 | BW4: 56892 | BX4: 55991 | BY4: 53276 | BZ4: 51921 | CA4: 50042 | CB4: 47360 | CC4: 44772 | CD4: 42921 | CE4: 39298 | CF4: 35570 | CG4: 31487 | CH4: 29536 | CI4: 26905 | CJ4: 25124 | CK4: 23408 | CL4: 21183 | CM4: 18856 | CN4: 16361 | CO4: 14293 | CP4: 12303 | CQ4: 10405 | CR4: 8688 | CS4: 7304 | CT4: 24188
A5: Québec | B5: 99 | C5: Ensemble du Québec | D5: 1997 | E5: Estimation | F5: Masculin | G5: 3585375 | H5: 42571 | I5: 44358 | J5: 45254 | K5: 46551 | L5: 48199 | M5: 49648 | N5: 50579 | O5: 49370 | P5: 46351 | Q5: 44378 | R5: 44392 | S5: 45731 | T5: 46554 | U5: 47342 | V5: 47343 | W5: 49523 | X5: 51874 | Y5: 52776 | Z5: 51384 | AA5: 50582 | AB5: 50603 | AC5: 50133 | AD5: 49718 | AE5: 46991 | AF5: 46394 | AG5: 47007 | AH5: 49142 | AI5: 50414 | AJ5: 50253 | AK5: 50917 | AL5: 53948 | AM5: 58020 | AN5: 63239 | AO5: 64921 | AP5: 66118 | AQ5: 65458 | AR5: 66973 | AS5: 66466 | AT5: 65990 | AU5: 66423 | AV5: 65083 | AW5: 62453 | AX5: 62386 | AY5: 60310 | AZ5: 57414 | BA5: 56233 | BB5: 55502 | BC5: 53967 | BD5: 53315 | BE5: 52434 | BF5: 52074 | BG5: 48608 | BH5: 45853 | BI5: 43824 | BJ5: 42500 | BK5: 39542 | BL5: 37803 | BM5: 34835 | BN5: 33759 | BO5: 31917 | BP5: 30139 | BQ5: 30229 | BR5: 29433 | BS5: 28618 | BT5: 29440 | BU5: 29727 | BV5: 28014 | BW5: 27078 | BX5: 25462 | BY5: 24783 | BZ5: 23178 | CA5: 22158 | CB5: 20979 | CC5: 19285 | CD5: 17894 | CE5: 16875 | CF5: 14958 | CG5: 13266 | CH5: 11354 | CI5: 10399 | CJ5: 9015 | CK5: 8233 | CL5: 7402 | CM5: 6542 | CN5: 5574 | CO5: 4490 | CP5: 3751 | CQ5: 3139 | CR5: 2445 | CS5: 2032 | CT5: 5783
A6: Québec | B6: 99 | C6: Ensemble du Québec | D6: 1997 | E6: Estimation | F6: Féminin | G6: 3689236 | H6: 39802 | I6: 43085 | J6: 43556 | K6: 44271 | L6: 45932 | M6: 47898 | N6: 48383 | O6: 47375 | P6: 44305 | Q6: 42283 | R6: 42536 | S6: 43587 | T6: 43993 | U6: 44672 | V6: 45080 | W6: 46577 | X6: 49179 | Y6: 49580 | Z6: 48818 | AA6: 47886 | AB6: 48465 | AC6: 47446 | AD6: 47655 | AE6: 45407 | AF6: 44356 | AG6: 45159 | AH6: 47021 | AI6: 47767 | AJ6: 47915 | AK6: 49240 | AL6: 51938 | AM6: 55392 | AN6: 60747 | AO6: 62179 | AP6: 64294 | AQ6: 63141 | AR6: 65474 | AS6: 65854 | AT6: 65763 | AU6: 65299 | AV6: 64601 | AW6: 61845 | AX6: 62374 | AY6: 60695 | AZ6: 57959 | BA6: 56421 | BB6: 56005 | BC6: 54497 | BD6: 54463 | BE6: 53297 | BF6: 52749 | BG6: 49379 | BH6: 46903 | BI6: 45009 | BJ6: 43218 | BK6: 40501 | BL6: 38711 | BM6: 36368 | BN6: 35041 | BO6: 33354 | BP6: 32080 | BQ6: 32578 | BR6: 31972 | BS6: 31406 | BT6: 32200 | BU6: 32661 | BV6: 32236 | BW6: 31598 | BX6: 30282 | BY6: 30106 | BZ6: 28788 | CA6: 28456 | CB6: 27660 | CC6: 26587 | CD6: 25262 | CE6: 24523 | CF6: 22720 | CG6: 20714 | CH6: 18564 | CI6: 17508 | CJ6: 16217 | CK6: 15191 | CL6: 14256 | CM6: 12940 | CN6: 11575 | CO6: 10274 | CP6: 8940 | CQ6: 7700 | CR6: 6556 | CS6: 5480 | CT6: 19506
A7: Québec | B7: 99 | C7: Ensemble du Québec | D7: 1997 | E7: Estimation | F7: Total | G7: 7274611 | H7: 82373 | I7: 87443 | J7: 88810 | K7: 90822 | L7: 94131 | M7: 97546 | N7: 98962 | O7: 96745 | P7: 90656 | Q7: 86661 | R7: 86928 | S7: 89318 | T7: 90547 | U7: 92014 | V7: 92423 | W7: 96100 | X7: 101053 | Y7: 102356 | Z7: 100202 | AA7: 98468 | AB7: 99068 | AC7: 97579 | AD7: 97373 | AE7: 92398 | AF7: 90750 | AG7: 92166 | AH7: 96163 | AI7: 98181 | AJ7: 98168 | AK7: 100157 | AL7: 105886 | AM7: 113412 | AN7: 123986 | AO7: 127100 | AP7: 130412 | AQ7: 128599 | AR7: 132447 | AS7: 132320 | AT7: 131753 | AU7: 131722 | AV7: 129684 | AW7: 124298 | AX7: 124760 | AY7: 121005 | AZ7: 115373 | BA7: 112654 | BB7: 111507 | BC7: 108464 | BD7: 107778 | BE7: 105731 | BF7: 104823 | BG7: 97987 | BH7: 92756 | BI7: 88833 | BJ7: 85718 | BK7: 80043 | BL7: 76514 | BM7: 71203 | BN7: 68800 | BO7: 65271 | BP7: 62219 | BQ7: 62807 | BR7: 61405 | BS7: 60024 | BT7: 61640 | BU7: 62388 | BV7: 60250 | BW7: 58676 | BX7: 55744 | BY7: 54889 | BZ7: 51966 | CA7: 50614 | CB7: 48639 | CC7: 45872 | CD7: 43156 | CE7: 41398 | CF7: 37678 | CG7: 33980 | CH7: 29918 | CI7: 27907 | CJ7: 25232 | CK7: 23424 | CL7: 21658 | CM7: 19482 | CN7: 17149 | CO7: 14764 | CP7: 12691 | CQ7: 10839 | CR7: 9001 | CS7: 7512 | CT7: 25289
A8: Québec | B8: 99 | C8: Ensemble du Québec | D8: 1998 | E8: Estimation | F8: Masculin | G8: 3593481 | H8: 39528 | I8: 42699 | J8: 44387 | K8: 45262 | L8: 46577 | M8: 48203 | N8: 49715 | O8: 50685 | P8: 49421 | Q8: 46392 | R8: 44352 | S8: 44492 | T8: 45901 | U8: 46703 | V8: 47573 | W8: 47412 | X8: 49649 | Y8: 52047 | Z8: 53145 | AA8: 51692 | AB8: 50805 | AC8: 50769 | AD8: 50104 | AE8: 49620 | AF8: 46774 | AG8: 46168 | AH8: 46698 | AI8: 48962 | AJ8: 50267 | AK8: 49938 | AL8: 50600 | AM8: 53628 | AN8: 57653 | AO8: 62961 | AP8: 64627 | AQ8: 65820 | AR8: 65185 | AS8: 66771 | AT8: 66102 | AU8: 65671 | AV8: 66089 | AW8: 64728 | AX8: 61984 | AY8: 62043 | AZ8: 59927 | BA8: 57025 | BB8: 55898 | BC8: 55189 | BD8: 53669 | BE8: 53054 | BF8: 52117 | BG8: 51862 | BH8: 48245 | BI8: 45614 | BJ8: 43546 | BK8: 42228 | BL8: 39252 | BM8: 37523 | BN8: 34461 | BO8: 33396 | BP8: 31564 | BQ8: 29705 | BR8: 29824 | BS8: 28939 | BT8: 28098 | BU8: 28968 | BV8: 29151 | BW8: 27333 | BX8: 26403 | BY8: 24734 | BZ8: 24060 | CA8: 22355 | CB8: 21348 | CC8: 20085 | CD8: 18398 | CE8: 16964 | CF8: 15947 | CG8: 14018 | CH8: 12379 | CI8: 10527 | CJ8: 9564 | CK8: 8145 | CL8: 7395 | CM8: 6561 | CN8: 5745 | CO8: 4861 | CP8: 3885 | CQ8: 3151 | CR8: 2605 | CS8: 1994 | CT8: 5967
A9: Québec | B9: 99 | C9: Ensemble du Québec | D9: 1998 | E9: Estimation | F9: Féminin | G9: 3702454 | H9: 37457 | I9: 40015 | J9: 43080 | K9: 43530 | L9: 44274 | M9: 45949 | N9: 47953 | O9: 48464 | P9: 47466 | Q9: 44334 | R9: 42329 | S9: 42591 | T9: 43671 | U9: 44062 | V9: 44760 | W9: 45103 | X9: 46680 | Y9: 49511 | Z9: 49957 | AA9: 49173 | AB9: 48015 | AC9: 48603 | AD9: 47394 | AE9: 47530 | AF9: 45263 | AG9: 44272 | AH9: 45064 | AI9: 46994 | AJ9: 47749 | AK9: 47874 | AL9: 49209 | AM9: 51897 | AN9: 55391 | AO9: 60865 | AP9: 62162 | AQ9: 64305 | AR9: 63022 | AS9: 65413 | AT9: 65772 | AU9: 65610 | AV9: 65172 | AW9: 64539 | AX9: 61685 | AY9: 62304 | AZ9: 60631 | BA9: 57855 | BB9: 56323 | BC9: 55939 | BD9: 54357 | BE9: 54345 | BF9: 53134 | BG9: 52640 | BH9: 49171 | BI9: 46731 | BJ9: 44835 | BK9: 43052 | BL9: 40353 | BM9: 38612 | BN9: 36185 | BO9: 34855 | BP9: 33133 | BQ9: 31877 | BR9: 32376 | BS9: 31763 | BT9: 31134 | BU9: 31930 | BV9: 32346 | BW9: 31858 | BX9: 31234 | BY9: 29794 | BZ9: 29638 | CA9: 28301 | CB9: 27918 | CC9: 27050 | CD9: 26004 | CE9: 24583 | CF9: 23846 | CG9: 21981 | CH9: 19929 | CI9: 17788 | CJ9: 16717 | CK9: 15359 | CL9: 14289 | CM9: 13312 | CN9: 11986 | CO9: 10600 | CP9: 9336 | CQ9: 7996 | CR9: 6801 | CS9: 5713 | CT9: 20381
A10: Québec | B10: 99 | C10: Ensemble du Québec | D10: 1998 | E10: Estimation | F10: Total | G10: 7295935 | H10: 76985 | I10: 82714 | J10: 87467 | K10: 88792 | L10: 90851 | M10: 94152 | N10: 97668 | O10: 99149 | P10: 96887 | Q10: 90726 | R10: 86681 | S10: 87083 | T10: 89572 | U10: 90765 | V10: 92333 | W10: 92515 | X10: 96329 | Y10: 101558 | Z10: 103102 | AA10: 100865 | AB10: 98820 | AC10: 99372 | AD10: 97498 | AE10: 97150 | AF10: 92037 | AG10: 90440 | AH10: 91762 | AI10: 95956 | AJ10: 98016 | AK10: 97812 | AL10: 99809 | AM10: 105525 | AN10: 113044 | AO10: 123826 | AP10: 126789 | AQ10: 130125 | AR10: 128207 | AS10: 132184 | AT10: 131874 | AU10: 131281 | AV10: 131261 | AW10: 129267 | AX10: 123669 | AY10: 124347 | AZ10: 120558 | BA10: 114880 | BB10: 112221 | BC10: 111128 | BD10: 108026 | BE10: 107399 | BF10: 105251 | BG10: 104502 | BH10: 97416 | BI10: 92345 | BJ10: 88381 | BK10: 85280 | BL10: 79605 | BM10: 76135 | BN10: 70646 | BO10: 68251 | BP10: 64697 | BQ10: 61582 | BR10: 62200 | BS10: 60702 | BT10: 59232 | BU10: 60898 | BV10: 61497 | BW10: 59191 | BX10: 57637 | BY10: 54528 | BZ10: 53698 | CA10: 50656 | CB10: 49266 | CC10: 47135 | CD10: 44402 | CE10: 41547 | CF10: 39793 | CG10: 35999 | CH10: 32308 | CI10: 28315 | CJ10: 26281 | CK10: 23504 | CL10: 21684 | CM10: 19873 | CN10: 17731 | CO10: 15461 | CP10: 13221 | CQ10: 11147 | CR10: 9406 | CS10: 7707 | CT10: 26348
A11: Québec | B11: 99 | C11: Ensemble du Québec | D11: 1999 | E11: Estimation | F11: Masculin | G11: 3607814 | H11: 37810 | I11: 39681 | J11: 42793 | K11: 44393 | L11: 45303 | M11: 46624 | N11: 48226 | O11: 49809 | P11: 50810 | Q11: 49495 | R11: 46432 | S11: 44340 | T11: 44582 | U11: 46041 | V11: 46812 | W11: 47787 | X11: 47482 | Y11: 49720 | Z11: 52367 | AA11: 53653 | AB11: 51981 | AC11: 51097 | AD11: 51061 | AE11: 50322 | AF11: 49819 | AG11: 46850 | AH11: 46241 | AI11: 46826 | AJ11: 49132 | AK11: 50491 | AL11: 50052 | AM11: 50693 | AN11: 53687 | AO11: 57699 | AP11: 63059 | AQ11: 64672 | AR11: 65843 | AS11: 65101 | AT11: 66764 | AU11: 65958 | AV11: 65517 | AW11: 65976 | AX11: 64525 | AY11: 61594 | AZ11: 61750 | BA11: 59621 | BB11: 56720 | BC11: 55580 | BD11: 54976 | BE11: 53418 | BF11: 52836 | BG11: 51838 | BH11: 51625 | BI11: 47950 | BJ11: 45381 | BK11: 43258 | BL11: 41952 | BM11: 38955 | BN11: 37242 | BO11: 34111 | BP11: 33045 | BQ11: 31173 | BR11: 29281 | BS11: 29428 | BT11: 28476 | BU11: 27568 | BV11: 28420 | BW11: 28555 | BX11: 26647 | BY11: 25699 | BZ11: 23973 | CA11: 23272 | CB11: 21553 | CC11: 20560 | CD11: 19183 | CE11: 17511 | CF11: 16042 | CG11: 15007 | CH11: 13142 | CI11: 11513 | CJ11: 9652 | CK11: 8700 | CL11: 7369 | CM11: 6601 | CN11: 5793 | CO11: 4991 | CP11: 4204 | CQ11: 3323 | CR11: 2591 | CS11: 2125 | CT11: 6084
A12: Québec | B12: 99 | C12: Ensemble du Québec | D12: 1999 | E12: Estimation | F12: Féminin | G12: 3715436 | H12: 36010 | I12: 37746 | J12: 40053 | K12: 43006 | L12: 43512 | M12: 44293 | N12: 45987 | O12: 48008 | P12: 48524 | Q12: 47551 | R12: 44306 | S12: 42343 | T12: 42648 | U12: 43776 | V12: 44078 | W12: 44881 | X12: 45124 | Y12: 46847 | Z12: 49906 | AA12: 50429 | AB12: 49517 | AC12: 48275 | AD12: 48837 | AE12: 47323 | AF12: 47483 | AG12: 45184 | AH12: 44207 | AI12: 45043 | AJ12: 47049 | AK12: 47817 | AL12: 47887 | AM12: 49232 | AN12: 51896 | AO12: 55370 | AP12: 61004 | AQ12: 62115 | AR12: 64374 | AS12: 62917 | AT12: 65407 | AU12: 65712 | AV12: 65521 | AW12: 65067 | AX12: 64474 | AY12: 61526 | AZ12: 62246 | BA12: 60511 | BB12: 57768 | BC12: 56204 | BD12: 55890 | BE12: 54180 | BF12: 54193 | BG12: 52955 | BH12: 52538 | BI12: 48963 | BJ12: 46566 | BK12: 44664 | BL12: 42880 | BM12: 40180 | BN12: 38503 | BO12: 35969 | BP12: 34678 | BQ12: 32897 | BR12: 31617 | BS12: 32189 | BT12: 31521 | BU12: 30851 | BV12: 31597 | BW12: 32011 | BX12: 31468 | BY12: 30871 | BZ12: 29329 | CA12: 29164 | CB12: 27771 | CC12: 27342 | CD12: 26376 | CE12: 25379 | CF12: 23894 | CG12: 23111 | CH12: 21212 | CI12: 19179 | CJ12: 16977 | CK12: 15928 | CL12: 14486 | CM12: 13380 | CN12: 12319 | CO12: 11062 | CP12: 9628 | CQ12: 8443 | CR12: 7084 | CS12: 5921 | CT12: 21276
A13: Québec | B13: 99 | C13: Ensemble du Québec | D13: 1999 | E13: Estimation | F13: Total | G13: 7323250 | H13: 73820 | I13: 77427 | J13: 82846 | K13: 87399 | L13: 88815 | M13: 90917 | N13: 94213 | O13: 97817 | P13: 99334 | Q13: 97046 | R13: 90738 | S13: 86683 | T13: 87230 | U13: 89817 | V13: 90890 | W13: 92668 | X13: 92606 | Y13: 96567 | Z13: 102273 | AA13: 104082 | AB13: 101498 | AC13: 99372 | AD13: 99898 | AE13: 97645 | AF13: 97302 | AG13: 92034 | AH13: 90448 | AI13: 91869 | AJ13: 96181 | AK13: 98308 | AL13: 97939 | AM13: 99925 | AN13: 105583 | AO13: 113069 | AP13: 124063 | AQ13: 126787 | AR13: 130217 | AS13: 128018 | AT13: 132171 | AU13: 131670 | AV13: 131038 | AW13: 131043 | AX13: 128999 | AY13: 123120 | AZ13: 123996 | BA13: 120132 | BB13: 114488 | BC13: 111784 | BD13: 110866 | BE13: 107598 | BF13: 107029 | BG13: 104793 | BH13: 104163 | BI13: 96913 | BJ13: 91947 | BK13: 87922 | BL13: 84832 | BM13: 79135 | BN13: 75745 | BO13: 70080 | BP13: 67723 | BQ13: 64070 | BR13: 60898 | BS13: 61617 | BT13: 59997 | BU13: 58419 | BV13: 60017 | BW13: 60566 | BX13: 58115 | BY13: 56570 | BZ13: 53302 | CA13: 52436 | CB13: 49324 | CC13: 47902 | CD13: 45559 | CE13: 42890 | CF13: 39936 | CG13: 38118 | CH13: 34354 | CI13: 30692 | CJ13: 26629 | CK13: 24628 | CL13: 21855 | CM13: 19981 | CN13: 18112 | CO13: 16053 | CP13: 13832 | CQ13: 11766 | CR13: 9675 | CS13: 8046 | CT13: 27360
A14: Québec | B14: 99 | C14: Ensemble du Québec | D14: 2000 | E14: Estimation | F14: Masculin | G14: 3626115 | H14: 37977 | I14: 37991 | J14: 39824 | K14: 42898 | L14: 44463 | M14: 45396 | N14: 46740 | O14: 48299 | P14: 49910 | Q14: 50921 | R14: 49634 | S14: 46507 | T14: 44353 | U14: 44680 | V14: 46168 | W14: 46958 | X14: 48014 | Y14: 47613 | Z14: 50007 | AA14: 52898 | AB14: 54161 | AC14: 52406 | AD14: 51649 | AE14: 51657 | AF14: 50639 | AG14: 50049 | AH14: 46917 | AI14: 46400 | AJ14: 46880 | AK14: 49474 | AL14: 50737 | AM14: 50293 | AN14: 50907 | AO14: 53752 | AP14: 57756 | AQ14: 63185 | AR14: 64715 | AS14: 65906 | AT14: 65085 | AU14: 66774 | AV14: 65872 | AW14: 65376 | AX14: 65819 | AY14: 64313 | AZ14: 61270 | BA14: 61449 | BB14: 59318 | BC14: 56437 | BD14: 55289 | BE14: 54721 | BF14: 53200 | BG14: 52628 | BH14: 51559 | BI14: 51399 | BJ14: 47652 | BK14: 45116 | BL14: 42991 | BM14: 41675 | BN14: 38603 | BO14: 36952 | BP14: 33718 | BQ14: 32670 | BR14: 30774 | BS14: 28832 | BT14: 28984 | BU14: 27970 | BV14: 27017 | BW14: 27863 | BX14: 27950 | BY14: 25935 | BZ14: 24981 | CA14: 23212 | CB14: 22534 | CC14: 20707 | CD14: 19760 | CE14: 18369 | CF14: 16598 | CG14: 15203 | CH14: 14145 | CI14: 12261 | CJ14: 10689 | CK14: 8900 | CL14: 7952 | CM14: 6681 | CN14: 5897 | CO14: 5107 | CP14: 4365 | CQ14: 3627 | CR14: 2797 | CS14: 2096 | CT14: 6289
A15: Québec | B15: 99 | C15: Ensemble du Québec | D15: 2000 | E15: Estimation | F15: Féminin | G15: 3730836 | H15: 35667 | I15: 36136 | J15: 37815 | K15: 40083 | L15: 42955 | M15: 43613 | N15: 44347 | O15: 46059 | P15: 48028 | Q15: 48620 | R15: 47587 | S15: 44312 | T15: 42363 | U15: 42717 | V15: 43885 | W15: 44114 | X15: 45009 | Y15: 45236 | Z15: 47106 | AA15: 50486 | AB15: 50922 | AC15: 49995 | AD15: 48633 | AE15: 49178 | AF15: 47407 | AG15: 47481 | AH15: 45197 | AI15: 44215 | AJ15: 45123 | AK15: 47172 | AL15: 47960 | AM15: 47980 | AN15: 49389 | AO15: 51897 | AP15: 55354 | AQ15: 61117 | AR15: 62154 | AS15: 64386 | AT15: 62867 | AU15: 65431 | AV15: 65721 | AW15: 65457 | AX15: 65024 | AY15: 64447 | AZ15: 61306 | BA15: 62185 | BB15: 60381 | BC15: 57664 | BD15: 56092 | BE15: 55819 | BF15: 54018 | BG15: 54084 | BH15: 52772 | BI15: 52434 | BJ15: 48746 | BK15: 46412 | BL15: 44475 | BM15: 42715 | BN15: 40016 | BO15: 38351 | BP15: 35769 | BQ15: 34459 | BR15: 32686 | BS15: 31382 | BT15: 31948 | BU15: 31273 | BV15: 30566 | BW15: 31269 | BX15: 31691 | BY15: 31080 | BZ15: 30520 | CA15: 28807 | CB15: 28696 | CC15: 27258 | CD15: 26766 | CE15: 25690 | CF15: 24657 | CG15: 23148 | CH15: 22394 | CI15: 20381 | CJ15: 18359 | CK15: 16167 | CL15: 15052 | CM15: 13631 | CN15: 12488 | CO15: 11390 | CP15: 10139 | CQ15: 8788 | CR15: 7573 | CS15: 6244 | CT15: 22450
A16: Québec | B16: 99 | C16: Ensemble du Québec | D16: 2000 | E16: Estimation | F16: Total | G16: 7356951 | H16: 73644 | I16: 74127 | J16: 77639 | K16: 82981 | L16: 87418 | M16: 89009 | N16: 91087 | O16: 94358 | P16: 97938 | Q16: 99541 | R16: 97221 | S16: 90819 | T16: 86716 | U16: 87397 | V16: 90053 | W16: 91072 | X16: 93023 | Y16: 92849 | Z16: 97113 | AA16: 103384 | AB16: 105083 | AC16: 102401 | AD16: 100282 | AE16: 100835 | AF16: 98046 | AG16: 97530 | AH16: 92114 | AI16: 90615 | AJ16: 92003 | AK16: 96646 | AL16: 98697 | AM16: 98273 | AN16: 100296 | AO16: 105649 | AP16: 113110 | AQ16: 124302 | AR16: 126869 | AS16: 130292 | AT16: 127952 | AU16: 132205 | AV16: 131593 | AW16: 130833 | AX16: 130843 | AY16: 128760 | AZ16: 122576 | BA16: 123634 | BB16: 119699 | BC16: 114101 | BD16: 111381 | BE16: 110540 | BF16: 107218 | BG16: 106712 | BH16: 104331 | BI16: 103833 | BJ16: 96398 | BK16: 91528 | BL16: 87466 | BM16: 84390 | BN16: 78619 | BO16: 75303 | BP16: 69487 | BQ16: 67129 | BR16: 63460 | BS16: 60214 | BT16: 60932 | BU16: 59243 | BV16: 57583 | BW16: 59132 | BX16: 59641 | BY16: 57015 | BZ16: 55501 | CA16: 52019 | CB16: 51230 | CC16: 47965 | CD16: 46526 | CE16: 44059 | CF16: 41255 | CG16: 38351 | CH16: 36539 | CI16: 32642 | CJ16: 29048 | CK16: 25067 | CL16: 23004 | CM16: 20312 | CN16: 18385 | CO16: 16497 | CP16: 14504 | CQ16: 12415 | CR16: 10370 | CS16: 8340 | CT16: 28739
A17: Québec | B17: 99 | C17: Ensemble du Québec | D17: 2001 | E17: Estimation | F17: Masculin | G17: 3647738 | H17: 37080 | I17: 38108 | J17: 38407 | K17: 40123 | L17: 42880 | M17: 44464 | N17: 45583 | O17: 46939 | P17: 48441 | Q17: 50008 | R17: 50888 | S17: 49619 | T17: 46800 | U17: 44589 | V17: 44930 | W17: 46309 | X17: 47164 | Y17: 48235 | Z17: 48129 | AA17: 50491 | AB17: 53321 | AC17: 54481 | AD17: 52836 | AE17: 52132 | AF17: 51969 | AG17: 50873 | AH17: 50169 | AI17: 47438 | AJ17: 46931 | AK17: 47509 | AL17: 49914 | AM17: 51058 | AN17: 50700 | AO17: 51480 | AP17: 54028 | AQ17: 58087 | AR17: 63079 | AS17: 64795 | AT17: 65887 | AU17: 65371 | AV17: 66700 | AW17: 65884 | AX17: 65428 | AY17: 65556 | AZ17: 64090 | BA17: 61249 | BB17: 60993 | BC17: 59024 | BD17: 56389 | BE17: 55129 | BF17: 54511 | BG17: 53108 | BH17: 52390 | BI17: 51355 | BJ17: 50810 | BK17: 47354 | BL17: 44927 | BM17: 42776 | BN17: 41192 | BO17: 38377 | BP17: 36569 | BQ17: 33498 | BR17: 32213 | BS17: 30400 | BT17: 28562 | BU17: 28485 | BV17: 27478 | BW17: 26620 | BX17: 27205 | BY17: 27126 | BZ17: 25309 | CA17: 24193 | CB17: 22518 | CC17: 21675 | CD17: 19905 | CE17: 18938 | CF17: 17483 | CG17: 15772 | CH17: 14344 | CI17: 13164 | CJ17: 11393 | CK17: 9822 | CL17: 8119 | CM17: 7167 | CN17: 6009 | CO17: 5194 | CP17: 4463 | CQ17: 3745 | CR17: 3062 | CS17: 2349 | CT17: 6471
A18: Québec | B18: 99 | C18: Ensemble du Québec | D18: 2001 | E18: Estimation | F18: Féminin | G18: 3748718 | H18: 34928 | I18: 35899 | J18: 36237 | K18: 38004 | L18: 40253 | M18: 42708 | N18: 43802 | O18: 44572 | P18: 46268 | Q18: 47987 | R18: 48567 | S18: 47509 | T18: 44513 | U18: 42697 | V18: 42927 | W18: 44035 | X18: 44360 | Y18: 45337 | Z18: 45679 | AA18: 47776 | AB18: 50901 | AC18: 51283 | AD18: 50393 | AE18: 49024 | AF18: 49316 | AG18: 47592 | AH18: 47356 | AI18: 45470 | AJ18: 44699 | AK18: 45509 | AL18: 47396 | AM18: 48243 | AN18: 48404 | AO18: 49757 | AP18: 52089 | AQ18: 55574 | AR18: 60906 | AS18: 62252 | AT18: 64181 | AU18: 63220 | AV18: 65337 | AW18: 65700 | AX18: 65436 | AY18: 64954 | AZ18: 64233 | BA18: 61487 | BB18: 61931 | BC18: 60224 | BD18: 57690 | BE18: 56101 | BF18: 55681 | BG18: 54014 | BH18: 53834 | BI18: 52673 | BJ18: 52046 | BK18: 48660 | BL18: 46369 | BM18: 44337 | BN18: 42439 | BO18: 39937 | BP18: 38172 | BQ18: 35622 | BR18: 34205 | BS18: 32502 | BT18: 31269 | BU18: 31565 | BV18: 31003 | BW18: 30313 | BX18: 30892 | BY18: 31238 | BZ18: 30636 | CA18: 30024 | CB18: 28357 | CC18: 28094 | CD18: 26733 | CE18: 26088 | CF18: 24990 | CG18: 23912 | CH18: 22441 | CI18: 21451 | CJ18: 19539 | CK18: 17521 | CL18: 15364 | CM18: 14171 | CN18: 12708 | CO18: 11561 | CP18: 10414 | CQ18: 9189 | CR18: 7835 | CS18: 6674 | CT18: 23529
A19: Québec | B19: 99 | C19: Ensemble du Québec | D19: 2001 | E19: Estimation | F19: Total | G19: 7396456 | H19: 72008 | I19: 74007 | J19: 74644 | K19: 78127 | L19: 83133 | M19: 87172 | N19: 89385 | O19: 91511 | P19: 94709 | Q19: 97995 | R19: 99455 | S19: 97128 | T19: 91313 | U19: 87286 | V19: 87857 | W19: 90344 | X19: 91524 | Y19: 93572 | Z19: 93808 | AA19: 98267 | AB19: 104222 | AC19: 105764 | AD19: 103229 | AE19: 101156 | AF19: 101285 | AG19: 98465 | AH19: 97525 | AI19: 92908 | AJ19: 91630 | AK19: 93018 | AL19: 97310 | AM19: 99301 | AN19: 99104 | AO19: 101237 | AP19: 106117 | AQ19: 113661 | AR19: 123985 | AS19: 127047 | AT19: 130068 | AU19: 128591 | AV19: 132037 | AW19: 131584 | AX19: 130864 | AY19: 130510 | AZ19: 128323 | BA19: 122736 | BB19: 122924 | BC19: 119248 | BD19: 114079 | BE19: 111230 | BF19: 110192 | BG19: 107122 | BH19: 106224 | BI19: 104028 | BJ19: 102856 | BK19: 96014 | BL19: 91296 | BM19: 87113 | BN19: 83631 | BO19: 78314 | BP19: 74741 | BQ19: 69120 | BR19: 66418 | BS19: 62902 | BT19: 59831 | BU19: 60050 | BV19: 58481 | BW19: 56933 | BX19: 58097 | BY19: 58364 | BZ19: 55945 | CA19: 54217 | CB19: 50875 | CC19: 49769 | CD19: 46638 | CE19: 45026 | CF19: 42473 | CG19: 39684 | CH19: 36785 | CI19: 34615 | CJ19: 30932 | CK19: 27343 | CL19: 23483 | CM19: 21338 | CN19: 18717 | CO19: 16755 | CP19: 14877 | CQ19: 12934 | CR19: 10897 | CS19: 9023 | CT19: 30000
A20: Québec | B20: 99 | C20: Ensemble du Québec | D20: 2002 | E20: Estimation | F20: Masculin | G20: 3673342 | H20: 37148 | I20: 37504 | J20: 38512 | K20: 38703 | L20: 40336 | M20: 43171 | N20: 44811 | O20: 45981 | P20: 47353 | Q20: 48787 | R20: 50368 | S20: 51274 | T20: 50071 | U20: 47159 | V20: 44636 | W20: 44881 | X20: 46676 | Y20: 47736 | Z20: 48790 | AA20: 48912 | AB20: 51171 | AC20: 53861 | AD20: 54872 | AE20: 53010 | AF20: 52198 | AG20: 51931 | AH20: 50993 | AI20: 50466 | AJ20: 47834 | AK20: 47356 | AL20: 47859 | AM20: 50392 | AN20: 51522 | AO20: 51216 | AP20: 51716 | AQ20: 54368 | AR20: 58411 | AS20: 63629 | AT20: 65203 | AU20: 66187 | AV20: 65465 | AW20: 66647 | AX20: 65800 | AY20: 65257 | AZ20: 65374 | BA20: 64081 | BB20: 61101 | BC20: 61037 | BD20: 58988 | BE20: 56248 | BF20: 54882 | BG20: 54265 | BH20: 52783 | BI20: 52073 | BJ20: 50926 | BK20: 50551 | BL20: 47022 | BM20: 44651 | BN20: 42544 | BO20: 40906 | BP20: 38096 | BQ20: 36306 | BR20: 33138 | BS20: 31839 | BT20: 29931 | BU20: 28057 | BV20: 28016 | BW20: 26991 | BX20: 26082 | BY20: 26527 | BZ20: 26341 | CA20: 24504 | CB20: 23464 | CC20: 21721 | CD20: 20858 | CE20: 19049 | CF20: 18103 | CG20: 16663 | CH20: 14898 | CI20: 13429 | CJ20: 12303 | CK20: 10559 | CL20: 8989 | CM20: 7400 | CN20: 6410 | CO20: 5270 | CP20: 4482 | CQ20: 3857 | CR20: 3140 | CS20: 2529 | CT20: 6785
A21: Québec | B21: 99 | C21: Ensemble du Québec | D21: 2002 | E21: Estimation | F21: Féminin | G21: 3768314 | H21: 35364 | I21: 35398 | J21: 36270 | K21: 36523 | L21: 38257 | M21: 40496 | N21: 43069 | O21: 44196 | P21: 44886 | Q21: 46586 | R21: 48226 | S21: 48950 | T21: 47834 | U21: 44753 | V21: 42793 | W21: 43031 | X21: 44338 | Y21: 44905 | Z21: 45900 | AA21: 46453 | AB21: 48387 | AC21: 51492 | AD21: 51607 | AE21: 50431 | AF21: 49226 | AG21: 49499 | AH21: 47766 | AI21: 47681 | AJ21: 45797 | AK21: 45002 | AL21: 45819 | AM21: 47741 | AN21: 48625 | AO21: 48789 | AP21: 50009 | AQ21: 52301 | AR21: 55834 | AS21: 61331 | AT21: 62568 | AU21: 64475 | AV21: 63302 | AW21: 65483 | AX21: 65667 | AY21: 65304 | AZ21: 64908 | BA21: 64153 | BB21: 61531 | BC21: 62044 | BD21: 60195 | BE21: 57517 | BF21: 55904 | BG21: 55529 | BH21: 53870 | BI21: 53636 | BJ21: 52365 | BK21: 51907 | BL21: 48557 | BM21: 46312 | BN21: 44246 | BO21: 42280 | BP21: 39747 | BQ21: 37942 | BR21: 35280 | BS21: 33859 | BT21: 32112 | BU21: 30811 | BV21: 31164 | BW21: 30617 | BX21: 29852 | BY21: 30333 | BZ21: 30684 | CA21: 30010 | CB21: 29362 | CC21: 27669 | CD21: 27338 | CE21: 25922 | CF21: 25307 | CG21: 24154 | CH21: 23032 | CI21: 21506 | CJ21: 20405 | CK21: 18554 | CL21: 16493 | CM21: 14422 | CN21: 13200 | CO21: 11724 | CP21: 10531 | CQ21: 9331 | CR21: 8091 | CS21: 6839 | CT21: 24705
A22: Québec | B22: 99 | C22: Ensemble du Québec | D22: 2002 | E22: Estimation | F22: Total | G22: 7441656 | H22: 72512 | I22: 72902 | J22: 74782 | K22: 75226 | L22: 78593 | M22: 83667 | N22: 87880 | O22: 90177 | P22: 92239 | Q22: 95373 | R22: 98594 | S22: 100224 | T22: 97905 | U22: 91912 | V22: 87429 | W22: 87912 | X22: 91014 | Y22: 92641 | Z22: 94690 | AA22: 95365 | AB22: 99558 | AC22: 105353 | AD22: 106479 | AE22: 103441 | AF22: 101424 | AG22: 101430 | AH22: 98759 | AI22: 98147 | AJ22: 93631 | AK22: 92358 | AL22: 93678 | AM22: 98133 | AN22: 100147 | AO22: 100005 | AP22: 101725 | AQ22: 106669 | AR22: 114245 | AS22: 124960 | AT22: 127771 | AU22: 130662 | AV22: 128767 | AW22: 132130 | AX22: 131467 | AY22: 130561 | AZ22: 130282 | BA22: 128234 | BB22: 122632 | BC22: 123081 | BD22: 119183 | BE22: 113765 | BF22: 110786 | BG22: 109794 | BH22: 106653 | BI22: 105709 | BJ22: 103291 | BK22: 102458 | BL22: 95579 | BM22: 90963 | BN22: 86790 | BO22: 83186 | BP22: 77843 | BQ22: 74248 | BR22: 68418 | BS22: 65698 | BT22: 62043 | BU22: 58868 | BV22: 59180 | BW22: 57608 | BX22: 55934 | BY22: 56860 | BZ22: 57025 | CA22: 54514 | CB22: 52826 | CC22: 49390 | CD22: 48196 | CE22: 44971 | CF22: 43410 | CG22: 40817 | CH22: 37930 | CI22: 34935 | CJ22: 32708 | CK22: 29113 | CL22: 25482 | CM22: 21822 | CN22: 19610 | CO22: 16994 | CP22: 15013 | CQ22: 13188 | CR22: 11231 | CS22: 9368 | CT22: 31490
A23: Québec | B23: 99 | C23: Ensemble du Québec | D23: 2003 | E23: Estimation | F23: Masculin | G23: 3697932 | H23: 37072 | I23: 37579 | J23: 37899 | K23: 38890 | L23: 38985 | M23: 40522 | N23: 43473 | O23: 45047 | P23: 46310 | Q23: 47682 | R23: 49091 | S23: 50651 | T23: 51621 | U23: 50458 | V23: 47463 | W23: 44673 | X23: 44826 | Y23: 47071 | Z23: 48411 | AA23: 49555 | AB23: 49587 | AC23: 51843 | AD23: 54351 | AE23: 55161 | AF23: 52942 | AG23: 52216 | AH23: 52025 | AI23: 51170 | AJ23: 50833 | AK23: 48291 | AL23: 47846 | AM23: 48253 | AN23: 50806 | AO23: 51968 | AP23: 51587 | AQ23: 51939 | AR23: 54642 | AS23: 58741 | AT23: 64055 | AU23: 65571 | AV23: 66454 | AW23: 65511 | AX23: 66545 | AY23: 65664 | AZ23: 65112 | BA23: 65186 | BB23: 63970 | BC23: 60862 | BD23: 60999 | BE23: 58920 | BF23: 56083 | BG23: 54615 | BH23: 53989 | BI23: 52432 | BJ23: 51758 | BK23: 50477 | BL23: 50259 | BM23: 46662 | BN23: 44413 | BO23: 42316 | BP23: 40578 | BQ23: 37747 | BR23: 36062 | BS23: 32723 | BT23: 31411 | BU23: 29443 | BV23: 27533 | BW23: 27497 | BX23: 26492 | BY23: 25461 | BZ23: 25828 | CA23: 25551 | CB23: 23729 | CC23: 22669 | CD23: 20908 | CE23: 20017 | CF23: 18160 | CG23: 17170 | CH23: 15836 | CI23: 14043 | CJ23: 12554 | CK23: 11423 | CL23: 9749 | CM23: 8132 | CN23: 6693 | CO23: 5705 | CP23: 4576 | CQ23: 3863 | CR23: 3223 | CS23: 2596 | CT23: 7227
A24: Québec | B24: 99 | C24: Ensemble du Québec | D24: 2003 | E24: Estimation | F24: Féminin | G24: 3787821 | H24: 35014 | I24: 35921 | J24: 35748 | K24: 36680 | L24: 36839 | M24: 38543 | N24: 40786 | O24: 43383 | P24: 44514 | Q24: 45151 | R24: 46850 | S24: 48469 | T24: 49295 | U24: 48131 | V24: 44961 | W24: 42876 | X24: 43156 | Y24: 44776 | Z24: 45587 | AA24: 46686 | AB24: 47099 | AC24: 48998 | AD24: 51813 | AE24: 51626 | AF24: 50561 | AG24: 49421 | AH24: 49864 | AI24: 47995 | AJ24: 48067 | AK24: 46147 | AL24: 45234 | AM24: 46104 | AN24: 48133 | AO24: 48990 | AP24: 49152 | AQ24: 50225 | AR24: 52466 | AS24: 56077 | AT24: 61760 | AU24: 62832 | AV24: 64675 | AW24: 63389 | AX24: 65600 | AY24: 65579 | AZ24: 65158 | BA24: 64795 | BB24: 64103 | BC24: 61507 | BD24: 62104 | BE24: 60172 | BF24: 57357 | BG24: 55706 | BH24: 55401 | BI24: 53714 | BJ24: 53428 | BK24: 52036 | BL24: 51723 | BM24: 48420 | BN24: 46274 | BO24: 44131 | BP24: 42098 | BQ24: 39536 | BR24: 37664 | BS24: 34953 | BT24: 33483 | BU24: 31689 | BV24: 30382 | BW24: 30733 | BX24: 30226 | BY24: 29363 | BZ24: 29760 | CA24: 30119 | CB24: 29388 | CC24: 28657 | CD24: 27041 | CE24: 26531 | CF24: 25082 | CG24: 24509 | CH24: 23345 | CI24: 22091 | CJ24: 20624 | CK24: 19402 | CL24: 17504 | CM24: 15474 | CN24: 13467 | CO24: 12211 | CP24: 10733 | CQ24: 9471 | CR24: 8237 | CS24: 7046 | CT24: 25800
A25: Québec | B25: 99 | C25: Ensemble du Québec | D25: 2003 | E25: Estimation | F25: Total | G25: 7485753 | H25: 72086 | I25: 73500 | J25: 73647 | K25: 75570 | L25: 75824 | M25: 79065 | N25: 84259 | O25: 88430 | P25: 90824 | Q25: 92833 | R25: 95941 | S25: 99120 | T25: 100916 | U25: 98589 | V25: 92424 | W25: 87549 | X25: 87982 | Y25: 91847 | Z25: 93998 | AA25: 96241 | AB25: 96686 | AC25: 100841 | AD25: 106164 | AE25: 106787 | AF25: 103503 | AG25: 101637 | AH25: 101889 | AI25: 99165 | AJ25: 98900 | AK25: 94438 | AL25: 93080 | AM25: 94357 | AN25: 98939 | AO25: 100958 | AP25: 100739 | AQ25: 102164 | AR25: 107108 | AS25: 114818 | AT25: 125815 | AU25: 128403 | AV25: 131129 | AW25: 128900 | AX25: 132145 | AY25: 131243 | AZ25: 130270 | BA25: 129981 | BB25: 128073 | BC25: 122369 | BD25: 123103 | BE25: 119092 | BF25: 113440 | BG25: 110321 | BH25: 109390 | BI25: 106146 | BJ25: 105186 | BK25: 102513 | BL25: 101982 | BM25: 95082 | BN25: 90687 | BO25: 86447 | BP25: 82676 | BQ25: 77283 | BR25: 73726 | BS25: 67676 | BT25: 64894 | BU25: 61132 | BV25: 57915 | BW25: 58230 | BX25: 56718 | BY25: 54824 | BZ25: 55588 | CA25: 55670 | CB25: 53117 | CC25: 51326 | CD25: 47949 | CE25: 46548 | CF25: 43242 | CG25: 41679 | CH25: 39181 | CI25: 36134 | CJ25: 33178 | CK25: 30825 | CL25: 27253 | CM25: 23606 | CN25: 20160 | CO25: 17916 | CP25: 15309 | CQ25: 13334 | CR25: 11460 | CS25: 9642 | CT25: 33027
A26: Québec | B26: 99 | C26: Ensemble du Québec | D26: 2004 | E26: Estimation | F26: Masculin | G26: 3725129 | H26: 38065 | I26: 37389 | J26: 37986 | K26: 38295 | L26: 39266 | M26: 39264 | N26: 40772 | O26: 43767 | P26: 45337 | Q26: 46636 | R26: 48052 | S26: 49462 | T26: 50967 | U26: 52032 | V26: 50900 | W26: 47763 | X26: 44829 | Y26: 44853 | Z26: 47610 | AA26: 49377 | AB26: 50261 | AC26: 50103 | AD26: 52359 | AE26: 54761 | AF26: 55306 | AG26: 52982 | AH26: 52351 | AI26: 52261 | AJ26: 51497 | AK26: 51340 | AL26: 48780 | AM26: 48292 | AN26: 48592 | AO26: 51215 | AP26: 52456 | AQ26: 51957 | AR26: 52308 | AS26: 54996 | AT26: 59026 | AU26: 64510 | AV26: 65995 | AW26: 66674 | AX26: 65562 | AY26: 66480 | AZ26: 65525 | BA26: 64945 | BB26: 64960 | BC26: 63867 | BD26: 60666 | BE26: 60959 | BF26: 58847 | BG26: 55915 | BH26: 54401 | BI26: 53717 | BJ26: 52100 | BK26: 51470 | BL26: 50015 | BM26: 49968 | BN26: 46302 | BO26: 44120 | BP26: 42014 | BQ26: 40206 | BR26: 37439 | BS26: 35764 | BT26: 32333 | BU26: 31001 | BV26: 28915 | BW26: 27011 | BX26: 26972 | BY26: 25973 | BZ26: 24895 | CA26: 25135 | CB26: 24790 | CC26: 22908 | CD26: 21892 | CE26: 19997 | CF26: 19055 | CG26: 17245 | CH26: 16252 | CI26: 14926 | CJ26: 13156 | CK26: 11639 | CL26: 10546 | CM26: 8893 | CN26: 7327 | CO26: 5964 | CP26: 4987 | CQ26: 3934 | CR26: 3240 | CS26: 2655 | CT26: 7602
A27: Québec | B27: 99 | C27: Ensemble du Québec | D27: 2004 | E27: Estimation | F27: Féminin | G27: 3810461 | H27: 36086 | I27: 35684 | J27: 36320 | K27: 36060 | L27: 37096 | M27: 37152 | N27: 38849 | O27: 41056 | P27: 43701 | Q27: 44872 | R27: 45442 | S27: 47167 | T27: 48752 | U27: 49660 | V27: 48438 | W27: 45256 | X27: 43049 | Y27: 43411 | Z27: 45217 | AA27: 46458 | AB27: 47386 | AC27: 47802 | AD27: 49607 | AE27: 52236 | AF27: 52019 | AG27: 50954 | AH27: 49945 | AI27: 50355 | AJ27: 48420 | AK27: 48564 | AL27: 46535 | AM27: 45599 | AN27: 46438 | AO27: 48592 | AP27: 49459 | AQ27: 49524 | AR27: 50508 | AS27: 52639 | AT27: 56292 | AU27: 62151 | AV27: 63139 | AW27: 64816 | AX27: 63431 | AY27: 65700 | AZ27: 65510 | BA27: 65020 | BB27: 64658 | BC27: 63993 | BD27: 61491 | BE27: 62155 | BF27: 60160 | BG27: 57195 | BH27: 55498 | BI27: 55308 | BJ27: 53572 | BK27: 53189 | BL27: 51687 | BM27: 51508 | BN27: 48274 | BO27: 46176 | BP27: 44011 | BQ27: 41918 | BR27: 39286 | BS27: 37375 | BT27: 34563 | BU27: 33092 | BV27: 31262 | BW27: 29956 | BX27: 30272 | BY27: 29781 | BZ27: 28859 | CA27: 29191 | CB27: 29483 | CC27: 28701 | CD27: 27969 | CE27: 26221 | CF27: 25672 | CG27: 24247 | CH27: 23628 | CI27: 22444 | CJ27: 21158 | CK27: 19584 | CL27: 18310 | CM27: 16481 | CN27: 14417 | CO27: 12405 | CP27: 11174 | CQ27: 9713 | CR27: 8417 | CS27: 7175 | CT27: 26465
A28: Québec | B28: 99 | C28: Ensemble du Québec | D28: 2004 | E28: Estimation | F28: Total | G28: 7535590 | H28: 74151 | I28: 73073 | J28: 74306 | K28: 74355 | L28: 76362 | M28: 76416 | N28: 79621 | O28: 84823 | P28: 89038 | Q28: 91508 | R28: 93494 | S28: 96629 | T28: 99719 | U28: 101692 | V28: 99338 | W28: 93019 | X28: 87878 | Y28: 88264 | Z28: 92827 | AA28: 95835 | AB28: 97647 | AC28: 97905 | AD28: 101966 | AE28: 106997 | AF28: 107325 | AG28: 103936 | AH28: 102296 | AI28: 102616 | AJ28: 99917 | AK28: 99904 | AL28: 95315 | AM28: 93891 | AN28: 95030 | AO28: 99807 | AP28: 101915 | AQ28: 101481 | AR28: 102816 | AS28: 107635 | AT28: 115318 | AU28: 126661 | AV28: 129134 | AW28: 131490 | AX28: 128993 | AY28: 132180 | AZ28: 131035 | BA28: 129965 | BB28: 129618 | BC28: 127860 | BD28: 122157 | BE28: 123114 | BF28: 119007 | BG28: 113110 | BH28: 109899 | BI28: 109025 | BJ28: 105672 | BK28: 104659 | BL28: 101702 | BM28: 101476 | BN28: 94576 | BO28: 90296 | BP28: 86025 | BQ28: 82124 | BR28: 76725 | BS28: 73139 | BT28: 66896 | BU28: 64093 | BV28: 60177 | BW28: 56967 | BX28: 57244 | BY28: 55754 | BZ28: 53754 | CA28: 54326 | CB28: 54273 | CC28: 51609 | CD28: 49861 | CE28: 46218 | CF28: 44727 | CG28: 41492 | CH28: 39880 | CI28: 37370 | CJ28: 34314 | CK28: 31223 | CL28: 28856 | CM28: 25374 | CN28: 21744 | CO28: 18369 | CP28: 16161 | CQ28: 13647 | CR28: 11657 | CS28: 9830 | CT28: 34067
A29: Québec | B29: 99 | C29: Ensemble du Québec | D29: 2005 | E29: Estimation | F29: Masculin | G29: 3750329 | H29: 38433 | I29: 38243 | J29: 37654 | K29: 38285 | L29: 38586 | M29: 39613 | N29: 39509 | O29: 40978 | P29: 44034 | Q29: 45581 | R29: 46988 | S29: 48404 | T29: 49773 | U29: 51278 | V29: 52393 | W29: 51339 | X29: 48086 | Y29: 44984 | Z29: 44956 | AA29: 48439 | AB29: 50184 | AC29: 50831 | AD29: 50647 | AE29: 52834 | AF29: 54946 | AG29: 55475 | AH29: 53007 | AI29: 52482 | AJ29: 52463 | AK29: 51725 | AL29: 51683 | AM29: 49178 | AN29: 48656 | AO29: 48816 | AP29: 51489 | AQ29: 52699 | AR29: 52237 | AS29: 52529 | AT29: 55202 | AU29: 59226 | AV29: 64817 | AW29: 66321 | AX29: 66826 | AY29: 65538 | AZ29: 66321 | BA29: 65332 | BB29: 64759 | BC29: 64715 | BD29: 63769 | BE29: 60441 | BF29: 60901 | BG29: 58744 | BH29: 55724 | BI29: 54130 | BJ29: 53489 | BK29: 51772 | BL29: 51132 | BM29: 49555 | BN29: 49662 | BO29: 45893 | BP29: 43841 | BQ29: 41698 | BR29: 39829 | BS29: 37085 | BT29: 35474 | BU29: 31893 | BV29: 30564 | BW29: 28374 | BX29: 26419 | BY29: 26399 | BZ29: 25466 | CA29: 24231 | CB29: 24421 | CC29: 24025 | CD29: 22076 | CE29: 21052 | CF29: 19117 | CG29: 18139 | CH29: 16277 | CI29: 15366 | CJ29: 14006 | CK29: 12315 | CL29: 10752 | CM29: 9719 | CN29: 8077 | CO29: 6506 | CP29: 5281 | CQ29: 4288 | CR29: 3317 | CS29: 2689 | CT29: 7927
A30: Québec | B30: 99 | C30: Ensemble du Québec | D30: 2005 | E30: Estimation | F30: Féminin | G30: 3831147 | H30: 36288 | I30: 36434 | J30: 35950 | K30: 36565 | L30: 36353 | M30: 37468 | N30: 37428 | O30: 39143 | P30: 41305 | Q30: 44016 | R30: 45209 | S30: 45767 | T30: 47493 | U30: 49051 | V30: 50047 | W30: 48750 | X30: 45599 | Y30: 43346 | Z30: 43756 | AA30: 46085 | AB30: 47252 | AC30: 48084 | AD30: 48158 | AE30: 49957 | AF30: 52633 | AG30: 52343 | AH30: 51347 | AI30: 50387 | AJ30: 50828 | AK30: 48679 | AL30: 48900 | AM30: 46786 | AN30: 45759 | AO30: 46550 | AP30: 48849 | AQ30: 49797 | AR30: 49814 | AS30: 50701 | AT30: 52814 | AU30: 56443 | AV30: 62481 | AW30: 63335 | AX30: 64961 | AY30: 63435 | AZ30: 65801 | BA30: 65374 | BB30: 64816 | BC30: 64489 | BD30: 63885 | BE30: 61462 | BF30: 62273 | BG30: 60116 | BH30: 57029 | BI30: 55288 | BJ30: 55160 | BK30: 53372 | BL30: 52949 | BM30: 51312 | BN30: 51299 | BO30: 48098 | BP30: 46054 | BQ30: 43857 | BR30: 41747 | BS30: 39039 | BT30: 37060 | BU30: 34211 | BV30: 32667 | BW30: 30848 | BX30: 29476 | BY30: 29776 | BZ30: 29299 | CA30: 28337 | CB30: 28574 | CC30: 28795 | CD30: 28013 | CE30: 27187 | CF30: 25462 | CG30: 24806 | CH30: 23358 | CI30: 22704 | CJ30: 21547 | CK30: 20146 | CL30: 18531 | CM30: 17159 | CN30: 15400 | CO30: 13282 | CP30: 11385 | CQ30: 10137 | CR30: 8672 | CS30: 7362 | CT30: 27187
A31: Québec | B31: 99 | C31: Ensemble du Québec | D31: 2005 | E31: Estimation | F31: Total | G31: 7581476 | H31: 74721 | I31: 74677 | J31: 73604 | K31: 74850 | L31: 74939 | M31: 77081 | N31: 76937 | O31: 80121 | P31: 85339 | Q31: 89597 | R31: 92197 | S31: 94171 | T31: 97266 | U31: 100329 | V31: 102440 | W31: 100089 | X31: 93685 | Y31: 88330 | Z31: 88712 | AA31: 94524 | AB31: 97436 | AC31: 98915 | AD31: 98805 | AE31: 102791 | AF31: 107579 | AG31: 107818 | AH31: 104354 | AI31: 102869 | AJ31: 103291 | AK31: 100404 | AL31: 100583 | AM31: 95964 | AN31: 94415 | AO31: 95366 | AP31: 100338 | AQ31: 102496 | AR31: 102051 | AS31: 103230 | AT31: 108016 | AU31: 115669 | AV31: 127298 | AW31: 129656 | AX31: 131787 | AY31: 128973 | AZ31: 132122 | BA31: 130706 | BB31: 129575 | BC31: 129204 | BD31: 127654 | BE31: 121903 | BF31: 123174 | BG31: 118860 | BH31: 112753 | BI31: 109418 | BJ31: 108649 | BK31: 105144 | BL31: 104081 | BM31: 100867 | BN31: 100961 | BO31: 93991 | BP31: 89895 | BQ31: 85555 | BR31: 81576 | BS31: 76124 | BT31: 72534 | BU31: 66104 | BV31: 63231 | BW31: 59222 | BX31: 55895 | BY31: 56175 | BZ31: 54765 | CA31: 52568 | CB31: 52995 | CC31: 52820 | CD31: 50089 | CE31: 48239 | CF31: 44579 | CG31: 42945 | CH31: 39635 | CI31: 38070 | CJ31: 35553 | CK31: 32461 | CL31: 29283 | CM31: 26878 | CN31: 23477 | CO31: 19788 | CP31: 16666 | CQ31: 14425 | CR31: 11989 | CS31: 10051 | CT31: 35114
A32: Québec | B32: 99 | C32: Ensemble du Québec | D32: 2006 | E32: Estimation | F32: Masculin | G32: 3777953 | H32: 40005 | I32: 38487 | J32: 38374 | K32: 37914 | L32: 38511 | M32: 38929 | N32: 39830 | O32: 39859 | P32: 41247 | Q32: 44146 | R32: 45783 | S32: 47350 | T32: 48750 | U32: 50081 | V32: 51532 | W32: 52522 | X32: 51643 | Y32: 48538 | Z32: 45714 | AA32: 45590 | AB32: 49100 | AC32: 50931 | AD32: 51306 | AE32: 51301 | AF32: 53226 | AG32: 55131 | AH32: 55256 | AI32: 53330 | AJ32: 52752 | AK32: 52515 | AL32: 51971 | AM32: 51847 | AN32: 49664 | AO32: 49085 | AP32: 49195 | AQ32: 51555 | AR32: 52779 | AS32: 52483 | AT32: 52811 | AU32: 55487 | AV32: 59470 | AW32: 64661 | AX32: 66468 | AY32: 66634 | AZ32: 65682 | BA32: 65968 | BB32: 65201 | BC32: 64639 | BD32: 64356 | BE32: 63565 | BF32: 60536 | BG32: 60657 | BH32: 58565 | BI32: 55657 | BJ32: 53925 | BK32: 53118 | BL32: 51504 | BM32: 50787 | BN32: 49227 | BO32: 49076 | BP32: 45659 | BQ32: 43575 | BR32: 41436 | BS32: 39301 | BT32: 36765 | BU32: 35017 | BV32: 31607 | BW32: 30037 | BX32: 27811 | BY32: 26008 | BZ32: 25755 | CA32: 24890 | CB32: 23795 | CC32: 23618 | CD32: 23099 | CE32: 21310 | CF32: 20150 | CG32: 18362 | CH32: 17192 | CI32: 15498 | CJ32: 14446 | CK32: 13201 | CL32: 11526 | CM32: 9941 | CN32: 8920 | CO32: 7363 | CP32: 5837 | CQ32: 4641 | CR32: 3747 | CS32: 2865 | CT32: 8355
A33: Québec | B33: 99 | C33: Ensemble du Québec | D33: 2006 | E33: Estimation | F33: Féminin | G33: 3854013 | H33: 37980 | I33: 36356 | J33: 36539 | K33: 36189 | L33: 36708 | M33: 36641 | N33: 37749 | O33: 37863 | P33: 39413 | Q33: 41560 | R33: 44177 | S33: 45487 | T33: 46182 | U33: 47804 | V33: 49244 | W33: 50321 | X33: 48967 | Y33: 46178 | Z33: 43922 | AA33: 44522 | AB33: 46741 | AC33: 48066 | AD33: 48526 | AE33: 48714 | AF33: 50552 | AG33: 52856 | AH33: 52602 | AI33: 51692 | AJ33: 50928 | AK33: 51026 | AL33: 49056 | AM33: 49008 | AN33: 47053 | AO33: 46017 | AP33: 46769 | AQ33: 48971 | AR33: 49958 | AS33: 50118 | AT33: 50943 | AU33: 53077 | AV33: 56697 | AW33: 62296 | AX33: 63471 | AY33: 64721 | AZ33: 63705 | BA33: 65646 | BB33: 65178 | BC33: 64640 | BD33: 64324 | BE33: 63527 | BF33: 61737 | BG33: 62058 | BH33: 59912 | BI33: 56948 | BJ33: 55165 | BK33: 54885 | BL33: 53312 | BM33: 52592 | BN33: 50978 | BO33: 50812 | BP33: 48023 | BQ33: 45961 | BR33: 43718 | BS33: 41465 | BT33: 38813 | BU33: 36708 | BV33: 33942 | BW33: 32220 | BX33: 30432 | BY33: 29113 | BZ33: 29191 | CA33: 28822 | CB33: 27914 | CC33: 27953 | CD33: 28047 | CE33: 27267 | CF33: 26321 | CG33: 24821 | CH33: 23867 | CI33: 22514 | CJ33: 21807 | CK33: 20730 | CL33: 19113 | CM33: 17593 | CN33: 15993 | CO33: 14355 | CP33: 12318 | CQ33: 10452 | CR33: 9136 | CS33: 7797 | CT33: 28528
A34: Québec | B34: 99 | C34: Ensemble du Québec | D34: 2006 | E34: Estimation | F34: Total | G34: 7631966 | H34: 77985 | I34: 74843 | J34: 74913 | K34: 74103 | L34: 75219 | M34: 75570 | N34: 77579 | O34: 77722 | P34: 80660 | Q34: 85706 | R34: 89960 | S34: 92837 | T34: 94932 | U34: 97885 | V34: 100776 | W34: 102843 | X34: 100610 | Y34: 94716 | Z34: 89636 | AA34: 90112 | AB34: 95841 | AC34: 98997 | AD34: 99832 | AE34: 100015 | AF34: 103778 | AG34: 107987 | AH34: 107858 | AI34: 105022 | AJ34: 103680 | AK34: 103541 | AL34: 101027 | AM34: 100855 | AN34: 96717 | AO34: 95102 | AP34: 95964 | AQ34: 100526 | AR34: 102737 | AS34: 102601 | AT34: 103754 | AU34: 108564 | AV34: 116167 | AW34: 126957 | AX34: 129939 | AY34: 131355 | AZ34: 129387 | BA34: 131614 | BB34: 130379 | BC34: 129279 | BD34: 128680 | BE34: 127092 | BF34: 122273 | BG34: 122715 | BH34: 118477 | BI34: 112605 | BJ34: 109090 | BK34: 108003 | BL34: 104816 | BM34: 103379 | BN34: 100205 | BO34: 99888 | BP34: 93682 | BQ34: 89536 | BR34: 85154 | BS34: 80766 | BT34: 75578 | BU34: 71725 | BV34: 65549 | BW34: 62257 | BX34: 58243 | BY34: 55121 | BZ34: 54946 | CA34: 53712 | CB34: 51709 | CC34: 51571 | CD34: 51146 | CE34: 48577 | CF34: 46471 | CG34: 43183 | CH34: 41059 | CI34: 38012 | CJ34: 36253 | CK34: 33931 | CL34: 30639 | CM34: 27534 | CN34: 24913 | CO34: 21718 | CP34: 18155 | CQ34: 15093 | CR34: 12883 | CS34: 10662 | CT34: 36883
A35: Québec | B35: 99 | C35: Ensemble du Québec | D35: 2007 | E35: Estimation | F35: Masculin | G35: 3808855 | H35: 42486 | I35: 40093 | J35: 38602 | K35: 38531 | L35: 38008 | M35: 38627 | N35: 39085 | O35: 39959 | P35: 39974 | Q35: 41398 | R35: 44294 | S35: 45942 | T35: 47517 | U35: 48867 | V35: 50123 | W35: 51591 | X35: 52741 | Y35: 52008 | Z35: 49169 | AA35: 46823 | AB35: 46628 | AC35: 49853 | AD35: 51269 | AE35: 51634 | AF35: 51461 | AG35: 53532 | AH35: 55550 | AI35: 55653 | AJ35: 53694 | AK35: 53104 | AL35: 52922 | AM35: 52297 | AN35: 52300 | AO35: 49933 | AP35: 49323 | AQ35: 49503 | AR35: 51859 | AS35: 53004 | AT35: 52634 | AU35: 52928 | AV35: 55481 | AW35: 59277 | AX35: 64493 | AY35: 66172 | AZ35: 66416 | BA35: 65496 | BB35: 66096 | BC35: 65277 | BD35: 64777 | BE35: 64563 | BF35: 63680 | BG35: 60601 | BH35: 60735 | BI35: 58608 | BJ35: 55628 | BK35: 53968 | BL35: 53217 | BM35: 51499 | BN35: 50851 | BO35: 49228 | BP35: 49125 | BQ35: 45402 | BR35: 43291 | BS35: 40987 | BT35: 38887 | BU35: 36195 | BV35: 34523 | BW35: 31033 | BX35: 29514 | BY35: 27326 | BZ35: 25492 | CA35: 25120 | CB35: 24190 | CC35: 22981 | CD35: 22882 | CE35: 22303 | CF35: 20463 | CG35: 19282 | CH35: 17467 | CI35: 16278 | CJ35: 14510 | CK35: 13473 | CL35: 12146 | CM35: 10508 | CN35: 8964 | CO35: 7988 | CP35: 6538 | CQ35: 5073 | CR35: 3977 | CS35: 3140 | CT35: 8815
A36: Québec | B36: 99 | C36: Ensemble du Québec | D36: 2007 | E36: Estimation | F36: Féminin | G36: 3884061 | H36: 40133 | I36: 38369 | J36: 36566 | K36: 36737 | L36: 36338 | M36: 36868 | N36: 36760 | O36: 37878 | P36: 37970 | Q36: 39598 | R36: 41790 | S36: 44431 | T36: 45833 | U36: 46594 | V36: 48245 | W36: 49780 | X36: 50860 | Y36: 49646 | Z36: 46817 | AA36: 45051 | AB36: 45401 | AC36: 47457 | AD36: 48583 | AE36: 49025 | AF36: 49203 | AG36: 50941 | AH36: 53333 | AI36: 53108 | AJ36: 52104 | AK36: 51342 | AL36: 51566 | AM36: 49561 | AN36: 49636 | AO36: 47582 | AP36: 46486 | AQ36: 47245 | AR36: 49391 | AS36: 50263 | AT36: 50374 | AU36: 51207 | AV36: 53264 | AW36: 56693 | AX36: 62331 | AY36: 63382 | AZ36: 64704 | BA36: 63597 | BB36: 65613 | BC36: 65238 | BD36: 64743 | BE36: 64269 | BF36: 63403 | BG36: 61301 | BH36: 61738 | BI36: 59491 | BJ36: 56550 | BK36: 54763 | BL36: 54520 | BM36: 52949 | BN36: 52341 | BO36: 50827 | BP36: 50717 | BQ36: 47616 | BR36: 45544 | BS36: 43305 | BT36: 41094 | BU36: 38514 | BV36: 36457 | BW36: 33706 | BX36: 31987 | BY36: 30267 | BZ36: 28890 | CA36: 28886 | CB36: 28405 | CC36: 27502 | CD36: 27560 | CE36: 27563 | CF36: 26752 | CG36: 25786 | CH36: 24138 | CI36: 23213 | CJ36: 21745 | CK36: 20953 | CL36: 19842 | CM36: 18094 | CN36: 16597 | CO36: 14931 | CP36: 13352 | CQ36: 11322 | CR36: 9419 | CS36: 8137 | CT36: 29978
A37: Québec | B37: 99 | C37: Ensemble du Québec | D37: 2007 | E37: Estimation | F37: Total | G37: 7692916 | H37: 82619 | I37: 78462 | J37: 75168 | K37: 75268 | L37: 74346 | M37: 75495 | N37: 75845 | O37: 77837 | P37: 77944 | Q37: 80996 | R37: 86084 | S37: 90373 | T37: 93350 | U37: 95461 | V37: 98368 | W37: 101371 | X37: 103601 | Y37: 101654 | Z37: 95986 | AA37: 91874 | AB37: 92029 | AC37: 97310 | AD37: 99852 | AE37: 100659 | AF37: 100664 | AG37: 104473 | AH37: 108883 | AI37: 108761 | AJ37: 105798 | AK37: 104446 | AL37: 104488 | AM37: 101858 | AN37: 101936 | AO37: 97515 | AP37: 95809 | AQ37: 96748 | AR37: 101250 | AS37: 103267 | AT37: 103008 | AU37: 104135 | AV37: 108745 | AW37: 115970 | AX37: 126824 | AY37: 129554 | AZ37: 131120 | BA37: 129093 | BB37: 131709 | BC37: 130515 | BD37: 129520 | BE37: 128832 | BF37: 127083 | BG37: 121902 | BH37: 122473 | BI37: 118099 | BJ37: 112178 | BK37: 108731 | BL37: 107737 | BM37: 104448 | BN37: 103192 | BO37: 100055 | BP37: 99842 | BQ37: 93018 | BR37: 88835 | BS37: 84292 | BT37: 79981 | BU37: 74709 | BV37: 70980 | BW37: 64739 | BX37: 61501 | BY37: 57593 | BZ37: 54382 | CA37: 54006 | CB37: 52595 | CC37: 50483 | CD37: 50442 | CE37: 49866 | CF37: 47215 | CG37: 45068 | CH37: 41605 | CI37: 39491 | CJ37: 36255 | CK37: 34426 | CL37: 31988 | CM37: 28602 | CN37: 25561 | CO37: 22919 | CP37: 19890 | CQ37: 16395 | CR37: 13396 | CS37: 11277 | CT37: 38793
A38: Québec | B38: 99 | C38: Ensemble du Québec | D38: 2008 | E38: Estimation | F38: Masculin | G38: 3843579 | H38: 43477 | I38: 42614 | J38: 40350 | K38: 38821 | L38: 38790 | M38: 38188 | N38: 38801 | O38: 39249 | P38: 40121 | Q38: 40115 | R38: 41562 | S38: 44428 | T38: 46136 | U38: 47701 | V38: 49015 | W38: 50208 | X38: 51712 | Y38: 53067 | Z38: 52623 | AA38: 50260 | AB38: 47767 | AC38: 47433 | AD38: 50238 | AE38: 51391 | AF38: 51729 | AG38: 51586 | AH38: 53718 | AI38: 55913 | AJ38: 56112 | AK38: 54246 | AL38: 53725 | AM38: 53511 | AN38: 52872 | AO38: 52998 | AP38: 50378 | AQ38: 49677 | AR38: 49891 | AS38: 52329 | AT38: 53328 | AU38: 52909 | AV38: 53059 | AW38: 55508 | AX38: 59173 | AY38: 64433 | AZ38: 65910 | BA38: 66208 | BB38: 65316 | BC38: 66257 | BD38: 65371 | BE38: 64905 | BF38: 64820 | BG38: 63810 | BH38: 60700 | BI38: 60821 | BJ38: 58598 | BK38: 55554 | BL38: 53961 | BM38: 53282 | BN38: 51523 | BO38: 50845 | BP38: 49236 | BQ38: 49098 | BR38: 45146 | BS38: 42929 | BT38: 40496 | BU38: 38412 | BV38: 35642 | BW38: 33926 | BX38: 30444 | BY38: 28991 | BZ38: 26876 | CA38: 24937 | CB38: 24485 | CC38: 23482 | CD38: 22206 | CE38: 22094 | CF38: 21455 | CG38: 19585 | CH38: 18468 | CI38: 16526 | CJ38: 15354 | CK38: 13562 | CL38: 12506 | CM38: 11118 | CN38: 9462 | CO38: 8081 | CP38: 7058 | CQ38: 5754 | CR38: 4337 | CS38: 3380 | CT38: 9490
A39: Québec | B39: 99 | C39: Ensemble du Québec | D39: 2008 | E39: Estimation | F39: Féminin | G39: 3918146 | H39: 41816 | I39: 40441 | J39: 38712 | K39: 36868 | L39: 36982 | M39: 36504 | N39: 37077 | O39: 36908 | P39: 38030 | Q39: 38134 | R39: 39832 | S39: 42028 | T39: 44735 | U39: 46183 | V39: 47024 | W39: 48762 | X39: 50371 | Y39: 51598 | Z39: 50480 | AA39: 47923 | AB39: 45933 | AC39: 46167 | AD39: 47947 | AE39: 48815 | AF39: 49467 | AG39: 49651 | AH39: 51364 | AI39: 53858 | AJ39: 53756 | AK39: 52684 | AL39: 51914 | AM39: 52240 | AN39: 50295 | AO39: 50418 | AP39: 48269 | AQ39: 47000 | AR39: 47709 | AS39: 49905 | AT39: 50677 | AU39: 50713 | AV39: 51470 | AW39: 53470 | AX39: 56708 | AY39: 62329 | AZ39: 63284 | BA39: 64633 | BB39: 63477 | BC39: 65602 | BD39: 65228 | BE39: 64780 | BF39: 64233 | BG39: 63274 | BH39: 60865 | BI39: 61356 | BJ39: 59047 | BK39: 56097 | BL39: 54378 | BM39: 54145 | BN39: 52586 | BO39: 52095 | BP39: 50619 | BQ39: 50543 | BR39: 47170 | BS39: 45116 | BT39: 42898 | BU39: 40724 | BV39: 38174 | BW39: 36197 | BX39: 33440 | BY39: 31748 | BZ39: 30055 | CA39: 28645 | CB39: 28529 | CC39: 27966 | CD39: 27036 | CE39: 27061 | CF39: 27050 | CG39: 26204 | CH39: 25115 | CI39: 23481 | CJ39: 22546 | CK39: 21013 | CL39: 20045 | CM39: 18913 | CN39: 17129 | CO39: 15552 | CP39: 13932 | CQ39: 12312 | CR39: 10295 | CS39: 8420 | CT39: 31971
A40: Québec | B40: 99 | C40: Ensemble du Québec | D40: 2008 | E40: Estimation | F40: Total | G40: 7761725 | H40: 85293 | I40: 83055 | J40: 79062 | K40: 75689 | L40: 75772 | M40: 74692 | N40: 75878 | O40: 76157 | P40: 78151 | Q40: 78249 | R40: 81394 | S40: 86456 | T40: 90871 | U40: 93884 | V40: 96039 | W40: 98970 | X40: 102083 | Y40: 104665 | Z40: 103103 | AA40: 98183 | AB40: 93700 | AC40: 93600 | AD40: 98185 | AE40: 100206 | AF40: 101196 | AG40: 101237 | AH40: 105082 | AI40: 109771 | AJ40: 109868 | AK40: 106930 | AL40: 105639 | AM40: 105751 | AN40: 103167 | AO40: 103416 | AP40: 98647 | AQ40: 96677 | AR40: 97600 | AS40: 102234 | AT40: 104005 | AU40: 103622 | AV40: 104529 | AW40: 108978 | AX40: 115881 | AY40: 126762 | AZ40: 129194 | BA40: 130841 | BB40: 128793 | BC40: 131859 | BD40: 130599 | BE40: 129685 | BF40: 129053 | BG40: 127084 | BH40: 121565 | BI40: 122177 | BJ40: 117645 | BK40: 111651 | BL40: 108339 | BM40: 107427 | BN40: 104109 | BO40: 102940 | BP40: 99855 | BQ40: 99641 | BR40: 92316 | BS40: 88045 | BT40: 83394 | BU40: 79136 | BV40: 73816 | BW40: 70123 | BX40: 63884 | BY40: 60739 | BZ40: 56931 | CA40: 53582 | CB40: 53014 | CC40: 51448 | CD40: 49242 | CE40: 49155 | CF40: 48505 | CG40: 45789 | CH40: 43583 | CI40: 40007 | CJ40: 37900 | CK40: 34575 | CL40: 32551 | CM40: 30031 | CN40: 26591 | CO40: 23633 | CP40: 20990 | CQ40: 18066 | CR40: 14632 | CS40: 11800 | CT40: 41461
A41: Québec | B41: 99 | C41: Ensemble du Québec | D41: 2009 | E41: Estimation | F41: Masculin | G41: 3887035 | H41: 45266 | I41: 43657 | J41: 42877 | K41: 40617 | L41: 39086 | M41: 39074 | N41: 38395 | O41: 39021 | P41: 39434 | Q41: 40328 | R41: 40294 | S41: 41749 | T41: 44617 | U41: 46380 | V41: 47899 | W41: 49213 | X41: 50381 | Y41: 51941 | Z41: 53731 | AA41: 53817 | AB41: 51177 | AC41: 48678 | AD41: 48283 | AE41: 50960 | AF41: 51808 | AG41: 52317 | AH41: 52134 | AI41: 54439 | AJ41: 56744 | AK41: 56980 | AL41: 55193 | AM41: 54566 | AN41: 54443 | AO41: 53637 | AP41: 53762 | AQ41: 50958 | AR41: 50208 | AS41: 50376 | AT41: 52829 | AU41: 53744 | AV41: 53131 | AW41: 53276 | AX41: 55631 | AY41: 59162 | AZ41: 64413 | BA41: 65721 | BB41: 66047 | BC41: 65202 | BD41: 66424 | BE41: 65509 | BF41: 65076 | BG41: 65075 | BH41: 63912 | BI41: 60809 | BJ41: 60945 | BK41: 58621 | BL41: 55478 | BM41: 53935 | BN41: 53318 | BO41: 51514 | BP41: 50830 | BQ41: 49220 | BR41: 49035 | BS41: 44904 | BT41: 42581 | BU41: 39996 | BV41: 37997 | BW41: 35030 | BX41: 33341 | BY41: 29840 | BZ41: 28446 | CA41: 26358 | CB41: 24354 | CC41: 23775 | CD41: 22707 | CE41: 21380 | CF41: 21316 | CG41: 20553 | CH41: 18702 | CI41: 17599 | CJ41: 15612 | CK41: 14397 | CL41: 12672 | CM41: 11464 | CN41: 10079 | CO41: 8470 | CP41: 7175 | CQ41: 6183 | CR41: 4961 | CS41: 3684 | CT41: 10162
A42: Québec | B42: 99 | C42: Ensemble du Québec | D42: 2009 | E42: Estimation | F42: Féminin | G42: 3956348 | H42: 42890 | I42: 42154 | J42: 40729 | K42: 39078 | L42: 37164 | M42: 37357 | N42: 36756 | O42: 37342 | P42: 37092 | Q42: 38258 | R42: 38321 | S42: 40118 | T42: 42317 | U42: 45102 | V42: 46605 | W42: 47531 | X42: 49363 | Y42: 51195 | Z42: 52419 | AA42: 51903 | AB42: 48911 | AC42: 46780 | AD42: 46845 | AE42: 48539 | AF42: 49411 | AG42: 50034 | AH42: 50344 | AI42: 52130 | AJ42: 54599 | AK42: 54580 | AL42: 53448 | AM42: 52715 | AN42: 52990 | AO42: 51091 | AP42: 51177 | AQ42: 48944 | AR42: 47565 | AS42: 48143 | AT42: 50374 | AU42: 51036 | AV42: 50945 | AW42: 51785 | AX42: 53646 | AY42: 56772 | AZ42: 62366 | BA42: 63211 | BB42: 64560 | BC42: 63335 | BD42: 65601 | BE42: 65245 | BF42: 64810 | BG42: 64198 | BH42: 63149 | BI42: 60420 | BJ42: 60926 | BK42: 58640 | BL42: 55679 | BM42: 53970 | BN42: 53751 | BO42: 52208 | BP42: 51827 | BQ42: 50409 | BR42: 50367 | BS42: 46701 | BT42: 44683 | BU42: 42504 | BV42: 40327 | BW42: 37850 | BX42: 35914 | BY42: 33162 | BZ42: 31446 | CA42: 29818 | CB42: 28301 | CC42: 28140 | CD42: 27513 | CE42: 26470 | CF42: 26537 | CG42: 26478 | CH42: 25551 | CI42: 24431 | CJ42: 22727 | CK42: 21813 | CL42: 20215 | CM42: 19119 | CN42: 17886 | CO42: 16056 | CP42: 14485 | CQ42: 12823 | CR42: 11211 | CS42: 9305 | CT42: 33712
A43: Québec | B43: 99 | C43: Ensemble du Québec | D43: 2009 | E43: Estimation | F43: Total | G43: 7843383 | H43: 88156 | I43: 85811 | J43: 83606 | K43: 79695 | L43: 76250 | M43: 76431 | N43: 75151 | O43: 76363 | P43: 76526 | Q43: 78586 | R43: 78615 | S43: 81867 | T43: 86934 | U43: 91482 | V43: 94504 | W43: 96744 | X43: 99744 | Y43: 103136 | Z43: 106150 | AA43: 105720 | AB43: 100088 | AC43: 95458 | AD43: 95128 | AE43: 99499 | AF43: 101219 | AG43: 102351 | AH43: 102478 | AI43: 106569 | AJ43: 111343 | AK43: 111560 | AL43: 108641 | AM43: 107281 | AN43: 107433 | AO43: 104728 | AP43: 104939 | AQ43: 99902 | AR43: 97773 | AS43: 98519 | AT43: 103203 | AU43: 104780 | AV43: 104076 | AW43: 105061 | AX43: 109277 | AY43: 115934 | AZ43: 126779 | BA43: 128932 | BB43: 130607 | BC43: 128537 | BD43: 132025 | BE43: 130754 | BF43: 129886 | BG43: 129273 | BH43: 127061 | BI43: 121229 | BJ43: 121871 | BK43: 117261 | BL43: 111157 | BM43: 107905 | BN43: 107069 | BO43: 103722 | BP43: 102657 | BQ43: 99629 | BR43: 99402 | BS43: 91605 | BT43: 87264 | BU43: 82500 | BV43: 78324 | BW43: 72880 | BX43: 69255 | BY43: 63002 | BZ43: 59892 | CA43: 56176 | CB43: 52655 | CC43: 51915 | CD43: 50220 | CE43: 47850 | CF43: 47853 | CG43: 47031 | CH43: 44253 | CI43: 42030 | CJ43: 38339 | CK43: 36210 | CL43: 32887 | CM43: 30583 | CN43: 27965 | CO43: 24526 | CP43: 21660 | CQ43: 19006 | CR43: 16172 | CS43: 12989 | CT43: 43874
A44: Québec | B44: 99 | C44: Ensemble du Québec | D44: 2010 | E44: Estimation | F44: Masculin | G44: 3931753 | H44: 44769 | I44: 45307 | J44: 43971 | K44: 43152 | L44: 40928 | M44: 39377 | N44: 39363 | O44: 38620 | P44: 39241 | Q44: 39588 | R44: 40545 | S44: 40440 | T44: 41934 | U44: 44761 | V44: 46603 | W44: 48129 | X44: 49429 | Y44: 50587 | Z44: 52539 | AA44: 54914 | AB44: 54690 | AC44: 51910 | AD44: 49539 | AE44: 49181 | AF44: 51619 | AG44: 52315 | AH44: 52989 | AI44: 52816 | AJ44: 55415 | AK44: 57771 | AL44: 58099 | AM44: 56303 | AN44: 55585 | AO44: 55416 | AP44: 54424 | AQ44: 54569 | AR44: 51604 | AS44: 50702 | AT44: 50813 | AU44: 53308 | AV44: 54105 | AW44: 53388 | AX44: 53499 | AY44: 55737 | AZ44: 59146 | BA44: 64294 | BB44: 65453 | BC44: 65892 | BD44: 65067 | BE44: 66513 | BF44: 65658 | BG44: 65228 | BH44: 65284 | BI44: 64087 | BJ44: 60892 | BK44: 61043 | BL44: 58635 | BM44: 55421 | BN44: 53925 | BO44: 53303 | BP44: 51470 | BQ44: 50777 | BR44: 49176 | BS44: 49005 | BT44: 44651 | BU44: 42205 | BV44: 39507 | BW44: 37504 | BX44: 34403 | BY44: 32702 | BZ44: 29253 | CA44: 27865 | CB44: 25801 | CC44: 23756 | CD44: 23130 | CE44: 21974 | CF44: 20518 | CG44: 20499 | CH44: 19661 | CI44: 17817 | CJ44: 16676 | CK44: 14678 | CL44: 13362 | CM44: 11693 | CN44: 10474 | CO44: 9059 | CP44: 7481 | CQ44: 6284 | CR44: 5360 | CS44: 4217 | CT44: 10960
A45: Québec | B45: 99 | C45: Ensemble du Québec | D45: 2010 | E45: Estimation | F45: Féminin | G45: 3997469 | H45: 42992 | I45: 43188 | J45: 42577 | K45: 41044 | L45: 39444 | M45: 37488 | N45: 37697 | O45: 36979 | P45: 37577 | Q45: 37254 | R45: 38444 | S45: 38512 | T45: 40358 | U45: 42568 | V45: 45446 | W45: 46994 | X45: 48119 | Y45: 50057 | Z45: 52106 | AA45: 53780 | AB45: 52958 | AC45: 49733 | AD45: 47536 | AE45: 47729 | AF45: 49386 | AG45: 50158 | AH45: 50962 | AI45: 51204 | AJ45: 53008 | AK45: 55549 | AL45: 55495 | AM45: 54390 | AN45: 53588 | AO45: 53827 | AP45: 52030 | AQ45: 51994 | AR45: 49673 | AS45: 48144 | AT45: 48659 | AU45: 50861 | AV45: 51424 | AW45: 51210 | AX45: 52016 | AY45: 53825 | AZ45: 56750 | BA45: 62384 | BB45: 63128 | BC45: 64479 | BD45: 63191 | BE45: 65607 | BF45: 65264 | BG45: 64865 | BH45: 64192 | BI45: 62957 | BJ45: 59992 | BK45: 60557 | BL45: 58221 | BM45: 55267 | BN45: 53592 | BO45: 53353 | BP45: 51831 | BQ45: 51552 | BR45: 50163 | BS45: 50173 | BT45: 46254 | BU45: 44212 | BV45: 42095 | BW45: 39938 | BX45: 37460 | BY45: 35590 | BZ45: 32889 | CA45: 31172 | CB45: 29545 | CC45: 28018 | CD45: 27786 | CE45: 27021 | CF45: 25939 | CG45: 25992 | CH45: 25859 | CI45: 24888 | CJ45: 23724 | CK45: 21938 | CL45: 21017 | CM45: 19301 | CN45: 18128 | CO45: 16805 | CP45: 14954 | CQ45: 13339 | CR45: 11753 | CS45: 10101 | CT45: 36250
A46: Québec | B46: 99 | C46: Ensemble du Québec | D46: 2010 | E46: Estimation | F46: Total | G46: 7929222 | H46: 87761 | I46: 88495 | J46: 86548 | K46: 84196 | L46: 80372 | M46: 76865 | N46: 77060 | O46: 75599 | P46: 76818 | Q46: 76842 | R46: 78989 | S46: 78952 | T46: 82292 | U46: 87329 | V46: 92049 | W46: 95123 | X46: 97548 | Y46: 100644 | Z46: 104645 | AA46: 108694 | AB46: 107648 | AC46: 101643 | AD46: 97075 | AE46: 96910 | AF46: 101005 | AG46: 102473 | AH46: 103951 | AI46: 104020 | AJ46: 108423 | AK46: 113320 | AL46: 113594 | AM46: 110693 | AN46: 109173 | AO46: 109243 | AP46: 106454 | AQ46: 106563 | AR46: 101277 | AS46: 98846 | AT46: 99472 | AU46: 104169 | AV46: 105529 | AW46: 104598 | AX46: 105515 | AY46: 109562 | AZ46: 115896 | BA46: 126678 | BB46: 128581 | BC46: 130371 | BD46: 128258 | BE46: 132120 | BF46: 130922 | BG46: 130093 | BH46: 129476 | BI46: 127044 | BJ46: 120884 | BK46: 121600 | BL46: 116856 | BM46: 110688 | BN46: 107517 | BO46: 106656 | BP46: 103301 | BQ46: 102329 | BR46: 99339 | BS46: 99178 | BT46: 90905 | BU46: 86417 | BV46: 81602 | BW46: 77442 | BX46: 71863 | BY46: 68292 | BZ46: 62142 | CA46: 59037 | CB46: 55346 | CC46: 51774 | CD46: 50916 | CE46: 48995 | CF46: 46457 | CG46: 46491 | CH46: 45520 | CI46: 42705 | CJ46: 40400 | CK46: 36616 | CL46: 34379 | CM46: 30994 | CN46: 28602 | CO46: 25864 | CP46: 22435 | CQ46: 19623 | CR46: 17113 | CS46: 14318 | CT46: 47210
A47: Québec | B47: 99 | C47: Ensemble du Québec | D47: 2011 | E47: Estimation | F47: Masculin | G47: 3971988 | H47: 45164 | I47: 44783 | J47: 45186 | K47: 44401 | L47: 43203 | M47: 41350 | N47: 39806 | O47: 39602 | P47: 38984 | Q47: 39376 | R47: 39854 | S47: 40615 | T47: 40770 | U47: 42293 | V47: 44792 | W47: 46853 | X47: 48354 | Y47: 49733 | Z47: 51120 | AA47: 53475 | AB47: 55545 | AC47: 55014 | AD47: 52583 | AE47: 50504 | AF47: 50288 | AG47: 51926 | AH47: 52461 | AI47: 53550 | AJ47: 53814 | AK47: 56326 | AL47: 58426 | AM47: 58693 | AN47: 57307 | AO47: 56441 | AP47: 56069 | AQ47: 55160 | AR47: 54872 | AS47: 52166 | AT47: 51105 | AU47: 51384 | AV47: 53631 | AW47: 54145 | AX47: 53672 | AY47: 53870 | AZ47: 55921 | BA47: 59216 | BB47: 63736 | BC47: 65067 | BD47: 65596 | BE47: 65070 | BF47: 66516 | BG47: 65717 | BH47: 65382 | BI47: 65408 | BJ47: 63912 | BK47: 61277 | BL47: 60817 | BM47: 58477 | BN47: 55410 | BO47: 53959 | BP47: 53168 | BQ47: 51443 | BR47: 50551 | BS47: 49199 | BT47: 48492 | BU47: 44413 | BV47: 41701 | BW47: 38970 | BX47: 36916 | BY47: 33867 | BZ47: 31869 | CA47: 28810 | CB47: 27168 | CC47: 25192 | CD47: 23265 | CE47: 22357 | CF47: 21103 | CG47: 19788 | CH47: 19536 | CI47: 18598 | CJ47: 16912 | CK47: 15592 | CL47: 13729 | CM47: 12360 | CN47: 10741 | CO47: 9384 | CP47: 8026 | CQ47: 6573 | CR47: 5507 | CS47: 4536 | CT47: 12075
A48: Québec | B48: 99 | C48: Ensemble du Québec | D48: 2011 | E48: Estimation | F48: Féminin | G48: 4033102 | H48: 43134 | I48: 43176 | J48: 43444 | K48: 42903 | L48: 41252 | M48: 39785 | N48: 38037 | O48: 37990 | P48: 37300 | Q48: 37748 | R48: 37553 | S48: 38529 | T48: 38870 | U48: 40663 | V48: 42819 | W48: 45612 | X48: 47316 | Y48: 48697 | Z48: 50719 | AA48: 53415 | AB48: 54486 | AC48: 53677 | AD48: 50435 | AE48: 48525 | AF48: 48676 | AG48: 49948 | AH48: 50655 | AI48: 51615 | AJ48: 52140 | AK48: 53736 | AL48: 56058 | AM48: 56266 | AN48: 55188 | AO48: 54414 | AP48: 54156 | AQ48: 52929 | AR48: 52485 | AS48: 50310 | AT48: 48796 | AU48: 49218 | AV48: 51032 | AW48: 51599 | AX48: 51404 | AY48: 52344 | AZ48: 54092 | BA48: 56951 | BB48: 61868 | BC48: 63055 | BD48: 64153 | BE48: 63439 | BF48: 65239 | BG48: 65212 | BH48: 64931 | BI48: 64065 | BJ48: 62750 | BK48: 59851 | BL48: 59904 | BM48: 57739 | BN48: 54984 | BO48: 53380 | BP48: 52825 | BQ48: 51505 | BR48: 51175 | BS48: 50052 | BT48: 49641 | BU48: 45877 | BV48: 43725 | BW48: 41670 | BX48: 39446 | BY48: 37136 | BZ48: 35132 | CA48: 32613 | CB48: 30816 | CC48: 29219 | CD48: 27734 | CE48: 27259 | CF48: 26415 | CG48: 25371 | CH48: 25317 | CI48: 25026 | CJ48: 24079 | CK48: 22919 | CL48: 21144 | CM48: 20060 | CN48: 18375 | CO48: 16984 | CP48: 15602 | CQ48: 13787 | CR48: 12149 | CS48: 10565 | CT48: 38817
A49: Québec | B49: 99 | C49: Ensemble du Québec | D49: 2011 | E49: Estimation | F49: Total | G49: 8005090 | H49: 88298 | I49: 87959 | J49: 88630 | K49: 87304 | L49: 84455 | M49: 81135 | N49: 77843 | O49: 77592 | P49: 76284 | Q49: 77124 | R49: 77407 | S49: 79144 | T49: 79640 | U49: 82956 | V49: 87611 | W49: 92465 | X49: 95670 | Y49: 98430 | Z49: 101839 | AA49: 106890 | AB49: 110031 | AC49: 108691 | AD49: 103018 | AE49: 99029 | AF49: 98964 | AG49: 101874 | AH49: 103116 | AI49: 105165 | AJ49: 105954 | AK49: 110062 | AL49: 114484 | AM49: 114959 | AN49: 112495 | AO49: 110855 | AP49: 110225 | AQ49: 108089 | AR49: 107357 | AS49: 102476 | AT49: 99901 | AU49: 100602 | AV49: 104663 | AW49: 105744 | AX49: 105076 | AY49: 106214 | AZ49: 110013 | BA49: 116167 | BB49: 125604 | BC49: 128122 | BD49: 129749 | BE49: 128509 | BF49: 131755 | BG49: 130929 | BH49: 130313 | BI49: 129473 | BJ49: 126662 | BK49: 121128 | BL49: 120721 | BM49: 116216 | BN49: 110394 | BO49: 107339 | BP49: 105993 | BQ49: 102948 | BR49: 101726 | BS49: 99251 | BT49: 98133 | BU49: 90290 | BV49: 85426 | BW49: 80640 | BX49: 76362 | BY49: 71003 | BZ49: 67001 | CA49: 61423 | CB49: 57984 | CC49: 54411 | CD49: 50999 | CE49: 49616 | CF49: 47518 | CG49: 45159 | CH49: 44853 | CI49: 43624 | CJ49: 40991 | CK49: 38511 | CL49: 34873 | CM49: 32420 | CN49: 29116 | CO49: 26368 | CP49: 23628 | CQ49: 20360 | CR49: 17656 | CS49: 15101 | CT49: 50892
A50: Québec | B50: 99 | C50: Ensemble du Québec | D50: 2012 | E50: Estimation | F50: Masculin | G50: 4003669 | H50: 44974 | I50: 45341 | J50: 45152 | K50: 45548 | L50: 44698 | M50: 43430 | N50: 41601 | O50: 40007 | P50: 39855 | Q50: 39234 | R50: 39678 | S50: 40178 | T50: 41020 | U50: 41197 | V50: 42656 | W50: 45135 | X50: 47148 | Y50: 48585 | Z50: 50322 | AA50: 52323 | AB50: 54392 | AC50: 56012 | AD50: 55343 | AE50: 52884 | AF50: 50680 | AG50: 50410 | AH50: 52206 | AI50: 52861 | AJ50: 54081 | AK50: 54228 | AL50: 56744 | AM50: 58850 | AN50: 59130 | AO50: 57620 | AP50: 56723 | AQ50: 56338 | AR50: 55420 | AS50: 55078 | AT50: 52292 | AU50: 51264 | AV50: 51482 | AW50: 53736 | AX50: 54195 | AY50: 53648 | AZ50: 53884 | BA50: 55958 | BB50: 59293 | BC50: 63861 | BD50: 65128 | BE50: 65668 | BF50: 65013 | BG50: 66533 | BH50: 65604 | BI50: 65208 | BJ50: 65265 | BK50: 63666 | BL50: 60980 | BM50: 60566 | BN50: 58151 | BO50: 55073 | BP50: 53604 | BQ50: 52804 | BR50: 50928 | BS50: 50021 | BT50: 48594 | BU50: 47912 | BV50: 43775 | BW50: 41056 | BX50: 38324 | BY50: 36306 | BZ50: 33238 | CA50: 31179 | CB50: 28129 | CC50: 26483 | CD50: 24420 | CE50: 22483 | CF50: 21622 | CG50: 20279 | CH50: 18956 | CI50: 18662 | CJ50: 17680 | CK50: 15959 | CL50: 14563 | CM50: 12671 | CN50: 11349 | CO50: 9738 | CP50: 8473 | CQ50: 7088 | CR50: 5701 | CS50: 4749 | CT50: 13373
A51: Québec | B51: 99 | C51: Ensemble du Québec | D51: 2012 | E51: Estimation | F51: Féminin | G51: 4057432 | H51: 42992 | I51: 43296 | J51: 43521 | K51: 43786 | L51: 43181 | M51: 41558 | N51: 40109 | O51: 38302 | P51: 38297 | Q51: 37616 | R51: 38118 | S51: 37898 | T51: 38967 | U51: 39184 | V51: 40875 | W51: 42952 | X51: 45729 | Y51: 47270 | Z51: 48824 | AA51: 51219 | AB51: 53531 | AC51: 54383 | AD51: 53515 | AE51: 50315 | AF51: 48599 | AG51: 48867 | AH51: 50167 | AI51: 51087 | AJ51: 52032 | AK51: 52533 | AL51: 54136 | AM51: 56434 | AN51: 56687 | AO51: 55550 | AP51: 54726 | AQ51: 54461 | AR51: 53119 | AS51: 52762 | AT51: 50537 | AU51: 49005 | AV51: 49455 | AW51: 51302 | AX51: 51897 | AY51: 51630 | AZ51: 52482 | BA51: 54273 | BB51: 57174 | BC51: 62188 | BD51: 63264 | BE51: 64386 | BF51: 63494 | BG51: 65333 | BH51: 65200 | BI51: 64970 | BJ51: 64110 | BK51: 62797 | BL51: 59811 | BM51: 59898 | BN51: 57699 | BO51: 54898 | BP51: 53254 | BQ51: 52658 | BR51: 51199 | BS51: 50872 | BT51: 49679 | BU51: 49222 | BV51: 45366 | BW51: 43135 | BX51: 41037 | BY51: 38808 | BZ51: 36404 | CA51: 34454 | CB51: 31885 | CC51: 30168 | CD51: 28508 | CE51: 26969 | CF51: 26566 | CG51: 25628 | CH51: 24541 | CI51: 24447 | CJ51: 24136 | CK51: 23097 | CL51: 21877 | CM51: 19930 | CN51: 18864 | CO51: 17128 | CP51: 15735 | CQ51: 14461 | CR51: 12579 | CS51: 10878 | CT51: 41546
A52: Québec | B52: 99 | C52: Ensemble du Québec | D52: 2012 | E52: Estimation | F52: Total | G52: 8061101 | H52: 87966 | I52: 88637 | J52: 88673 | K52: 89334 | L52: 87879 | M52: 84988 | N52: 81710 | O52: 78309 | P52: 78152 | Q52: 76850 | R52: 77796 | S52: 78076 | T52: 79987 | U52: 80381 | V52: 83531 | W52: 88087 | X52: 92877 | Y52: 95855 | Z52: 99146 | AA52: 103542 | AB52: 107923 | AC52: 110395 | AD52: 108858 | AE52: 103199 | AF52: 99279 | AG52: 99277 | AH52: 102373 | AI52: 103948 | AJ52: 106113 | AK52: 106761 | AL52: 110880 | AM52: 115284 | AN52: 115817 | AO52: 113170 | AP52: 111449 | AQ52: 110799 | AR52: 108539 | AS52: 107840 | AT52: 102829 | AU52: 100269 | AV52: 100937 | AW52: 105038 | AX52: 106092 | AY52: 105278 | AZ52: 106366 | BA52: 110231 | BB52: 116467 | BC52: 126049 | BD52: 128392 | BE52: 130054 | BF52: 128507 | BG52: 131866 | BH52: 130804 | BI52: 130178 | BJ52: 129375 | BK52: 126463 | BL52: 120791 | BM52: 120464 | BN52: 115850 | BO52: 109971 | BP52: 106858 | BQ52: 105462 | BR52: 102127 | BS52: 100893 | BT52: 98273 | BU52: 97134 | BV52: 89141 | BW52: 84191 | BX52: 79361 | BY52: 75114 | BZ52: 69642 | CA52: 65633 | CB52: 60014 | CC52: 56651 | CD52: 52928 | CE52: 49452 | CF52: 48188 | CG52: 45907 | CH52: 43497 | CI52: 43109 | CJ52: 41816 | CK52: 39056 | CL52: 36440 | CM52: 32601 | CN52: 30213 | CO52: 26866 | CP52: 24208 | CQ52: 21549 | CR52: 18280 | CS52: 15627 | CT52: 54919
A53: Québec | B53: 99 | C53: Ensemble du Québec | D53: 2013 | E53: Estimation | F53: Masculin | G53: 4032124 | H53: 45856 | I53: 45117 | J53: 45530 | K53: 45443 | L53: 45813 | M53: 44960 | N53: 43681 | O53: 41817 | P53: 40176 | Q53: 40081 | R53: 39484 | S53: 39994 | T53: 40526 | U53: 41429 | V53: 41612 | W53: 42963 | X53: 45497 | Y53: 47412 | Z53: 49291 | AA53: 51536 | AB53: 53232 | AC53: 54955 | AD53: 56444 | AE53: 55608 | AF53: 53057 | AG53: 50717 | AH53: 50605 | AI53: 52546 | AJ53: 53226 | AK53: 54419 | AL53: 54529 | AM53: 57096 | AN53: 58987 | AO53: 59336 | AP53: 57725 | AQ53: 56880 | AR53: 56507 | AS53: 55494 | AT53: 55243 | AU53: 52245 | AV53: 51280 | AW53: 51435 | AX53: 53725 | AY53: 54219 | AZ53: 53521 | BA53: 53723 | BB53: 55850 | BC53: 59257 | BD53: 63911 | BE53: 65151 | BF53: 65686 | BG53: 64851 | BH53: 66453 | BI53: 65434 | BJ53: 64989 | BK53: 65037 | BL53: 63357 | BM53: 60648 | BN53: 60276 | BO53: 57783 | BP53: 54686 | BQ53: 53185 | BR53: 52363 | BS53: 50358 | BT53: 49485 | BU53: 47935 | BV53: 47309 | BW53: 43106 | BX53: 40370 | BY53: 37714 | BZ53: 35660 | CA53: 32508 | CB53: 30446 | CC53: 27351 | CD53: 25719 | CE53: 23665 | CF53: 21727 | CG53: 20801 | CH53: 19418 | CI53: 18032 | CJ53: 17735 | CK53: 16694 | CL53: 14957 | CM53: 13479 | CN53: 11624 | CO53: 10259 | CP53: 8761 | CQ53: 7528 | CR53: 6208 | CS53: 4859 | CT53: 14527
A54: Québec | B54: 99 | C54: Ensemble du Québec | D54: 2013 | E54: Estimation | F54: Féminin | G54: 4078756 | H54: 42805 | I54: 43203 | J54: 43506 | K54: 43792 | L54: 44113 | M54: 43457 | N54: 41802 | O54: 40375 | P54: 38534 | Q54: 38583 | R54: 37891 | S54: 38460 | T54: 38241 | U54: 39372 | V54: 39482 | W54: 41202 | X54: 43130 | Y54: 45804 | Z54: 47615 | AA54: 49603 | AB54: 51434 | AC54: 53436 | AD54: 54244 | AE54: 53359 | AF54: 50208 | AG54: 48674 | AH54: 49065 | AI54: 50496 | AJ54: 51572 | AK54: 52341 | AL54: 52839 | AM54: 54445 | AN54: 56697 | AO54: 56955 | AP54: 55802 | AQ54: 54910 | AR54: 54675 | AS54: 53255 | AT54: 53032 | AU54: 50676 | AV54: 49131 | AW54: 49592 | AX54: 51478 | AY54: 52119 | AZ54: 51769 | BA54: 52586 | BB54: 54362 | BC54: 57327 | BD54: 62444 | BE54: 63440 | BF54: 64559 | BG54: 63489 | BH54: 65332 | BI54: 65163 | BJ54: 64886 | BK54: 64128 | BL54: 62805 | BM54: 59720 | BN54: 59903 | BO54: 57683 | BP54: 54773 | BQ54: 53099 | BR54: 52545 | BS54: 50850 | BT54: 50568 | BU54: 49290 | BV54: 48782 | BW54: 44841 | BX54: 42541 | BY54: 40354 | BZ54: 38081 | CA54: 35713 | CB54: 33744 | CC54: 31211 | CD54: 29451 | CE54: 27768 | CF54: 26148 | CG54: 25759 | CH54: 24795 | CI54: 23655 | CJ54: 23459 | CK54: 23109 | CL54: 21992 | CM54: 20655 | CN54: 18639 | CO54: 17618 | CP54: 15794 | CQ54: 14381 | CR54: 13123 | CS54: 11343 | CT54: 43674
A55: Québec | B55: 99 | C55: Ensemble du Québec | D55: 2013 | E55: Estimation | F55: Total | G55: 8110880 | H55: 88661 | I55: 88320 | J55: 89036 | K55: 89235 | L55: 89926 | M55: 88417 | N55: 85483 | O55: 82192 | P55: 78710 | Q55: 78664 | R55: 77375 | S55: 78454 | T55: 78767 | U55: 80801 | V55: 81094 | W55: 84165 | X55: 88627 | Y55: 93216 | Z55: 96906 | AA55: 101139 | AB55: 104666 | AC55: 108391 | AD55: 110688 | AE55: 108967 | AF55: 103265 | AG55: 99391 | AH55: 99670 | AI55: 103042 | AJ55: 104798 | AK55: 106760 | AL55: 107368 | AM55: 111541 | AN55: 115684 | AO55: 116291 | AP55: 113527 | AQ55: 111790 | AR55: 111182 | AS55: 108749 | AT55: 108275 | AU55: 102921 | AV55: 100411 | AW55: 101027 | AX55: 105203 | AY55: 106338 | AZ55: 105290 | BA55: 106309 | BB55: 110212 | BC55: 116584 | BD55: 126355 | BE55: 128591 | BF55: 130245 | BG55: 128340 | BH55: 131785 | BI55: 130597 | BJ55: 129875 | BK55: 129165 | BL55: 126162 | BM55: 120368 | BN55: 120179 | BO55: 115466 | BP55: 109459 | BQ55: 106284 | BR55: 104908 | BS55: 101208 | BT55: 100053 | BU55: 97225 | BV55: 96091 | BW55: 87947 | BX55: 82911 | BY55: 78068 | BZ55: 73741 | CA55: 68221 | CB55: 64190 | CC55: 58562 | CD55: 55170 | CE55: 51433 | CF55: 47875 | CG55: 46560 | CH55: 44213 | CI55: 41687 | CJ55: 41194 | CK55: 39803 | CL55: 36949 | CM55: 34134 | CN55: 30263 | CO55: 27877 | CP55: 24555 | CQ55: 21909 | CR55: 19331 | CS55: 16202 | CT55: 58201
A56: Québec | B56: 99 | C56: Ensemble du Québec | D56: 2014 | E56: Estimation | F56: Masculin | G56: 4053655 | H56: 44902 | I56: 45895 | J56: 45284 | K56: 45565 | L56: 45628 | M56: 46027 | N56: 45115 | O56: 43817 | P56: 41922 | Q56: 40313 | R56: 40300 | S56: 39676 | T56: 40241 | U56: 40797 | V56: 41807 | W56: 41961 | X56: 43290 | Y56: 45801 | Z56: 48179 | AA56: 50480 | AB56: 52191 | AC56: 53724 | AD56: 55490 | AE56: 56631 | AF56: 55602 | AG56: 52967 | AH56: 50531 | AI56: 50515 | AJ56: 52595 | AK56: 53345 | AL56: 54581 | AM56: 54534 | AN56: 57138 | AO56: 58970 | AP56: 59408 | AQ56: 57692 | AR56: 56833 | AS56: 56512 | AT56: 55440 | AU56: 55263 | AV56: 52101 | AW56: 51141 | AX56: 51287 | AY56: 53564 | AZ56: 54083 | BA56: 53285 | BB56: 53524 | BC56: 55659 | BD56: 59126 | BE56: 63882 | BF56: 65037 | BG56: 65585 | BH56: 64649 | BI56: 66348 | BJ56: 65216 | BK56: 64702 | BL56: 64716 | BM56: 63060 | BN56: 60279 | BO56: 59913 | BP56: 57407 | BQ56: 54230 | BR56: 52704 | BS56: 51902 | BT56: 49765 | BU56: 48871 | BV56: 47237 | BW56: 46702 | BX56: 42401 | BY56: 39691 | BZ56: 36980 | CA56: 34956 | CB56: 31842 | CC56: 29676 | CD56: 26554 | CE56: 24939 | CF56: 22890 | CG56: 20868 | CH56: 19966 | CI56: 18544 | CJ56: 17097 | CK56: 16808 | CL56: 15702 | CM56: 13935 | CN56: 12397 | CO56: 10656 | CP56: 9269 | CQ56: 7831 | CR56: 6666 | CS56: 5391 | CT56: 15659
A57: Québec | B57: 99 | C57: Ensemble du Québec | D57: 2014 | E57: Estimation | F57: Féminin | G57: 4096528 | H57: 43239 | I57: 43015 | J57: 43458 | K57: 43604 | L57: 43952 | M57: 44367 | N57: 43642 | O57: 41989 | P57: 40585 | Q57: 38685 | R57: 38798 | S57: 38137 | T57: 38713 | U57: 38527 | V57: 39717 | W57: 39770 | X57: 41470 | Y57: 43223 | Z57: 46294 | AA57: 48456 | AB57: 49729 | AC57: 51329 | AD57: 53136 | AE57: 53966 | AF57: 53033 | AG57: 50002 | AH57: 48506 | AI57: 49096 | AJ57: 50577 | AK57: 51725 | AL57: 52566 | AM57: 53081 | AN57: 54631 | AO57: 56949 | AP57: 57210 | AQ57: 56064 | AR57: 54991 | AS57: 54865 | AT57: 53355 | AU57: 53134 | AV57: 50712 | AW57: 49138 | AX57: 49696 | AY57: 51563 | AZ57: 52243 | BA57: 51846 | BB57: 52621 | BC57: 54428 | BD57: 57397 | BE57: 62636 | BF57: 63513 | BG57: 64642 | BH57: 63466 | BI57: 65273 | BJ57: 65091 | BK57: 64817 | BL57: 64128 | BM57: 62764 | BN57: 59644 | BO57: 59833 | BP57: 57595 | BQ57: 54601 | BR57: 52895 | BS57: 52364 | BT57: 50501 | BU57: 50214 | BV57: 48825 | BW57: 48325 | BX57: 44222 | BY57: 41921 | BZ57: 39650 | CA57: 37327 | CB57: 34983 | CC57: 33023 | CD57: 30446 | CE57: 28704 | CF57: 27005 | CG57: 25299 | CH57: 24925 | CI57: 23925 | CJ57: 22810 | CK57: 22448 | CL57: 22066 | CM57: 20859 | CN57: 19395 | CO57: 17377 | CP57: 16347 | CQ57: 14431 | CR57: 13133 | CS57: 11816 | CT57: 46059
A58: Québec | B58: 99 | C58: Ensemble du Québec | D58: 2014 | E58: Estimation | F58: Total | G58: 8150183 | H58: 88141 | I58: 88910 | J58: 88742 | K58: 89169 | L58: 89580 | M58: 90394 | N58: 88757 | O58: 85806 | P58: 82507 | Q58: 78998 | R58: 79098 | S58: 77813 | T58: 78954 | U58: 79324 | V58: 81524 | W58: 81731 | X58: 84760 | Y58: 89024 | Z58: 94473 | AA58: 98936 | AB58: 101920 | AC58: 105053 | AD58: 108626 | AE58: 110597 | AF58: 108635 | AG58: 102969 | AH58: 99037 | AI58: 99611 | AJ58: 103172 | AK58: 105070 | AL58: 107147 | AM58: 107615 | AN58: 111769 | AO58: 115919 | AP58: 116618 | AQ58: 113756 | AR58: 111824 | AS58: 111377 | AT58: 108795 | AU58: 108397 | AV58: 102813 | AW58: 100279 | AX58: 100983 | AY58: 105127 | AZ58: 106326 | BA58: 105131 | BB58: 106145 | BC58: 110087 | BD58: 116523 | BE58: 126518 | BF58: 128550 | BG58: 130227 | BH58: 128115 | BI58: 131621 | BJ58: 130307 | BK58: 129519 | BL58: 128844 | BM58: 125824 | BN58: 119923 | BO58: 119746 | BP58: 115002 | BQ58: 108831 | BR58: 105599 | BS58: 104266 | BT58: 100266 | BU58: 99085 | BV58: 96062 | BW58: 95027 | BX58: 86623 | BY58: 81612 | BZ58: 76630 | CA58: 72283 | CB58: 66825 | CC58: 62699 | CD58: 57000 | CE58: 53643 | CF58: 49895 | CG58: 46167 | CH58: 44891 | CI58: 42469 | CJ58: 39907 | CK58: 39256 | CL58: 37768 | CM58: 34794 | CN58: 31792 | CO58: 28033 | CP58: 25616 | CQ58: 22262 | CR58: 19799 | CS58: 17207 | CT58: 61718
A59: Québec | B59: 99 | C59: Ensemble du Québec | D59: 2015 | E59: Estimation | F59: Masculin | G59: 4067889 | H59: 44306 | I59: 44942 | J59: 45971 | K59: 45314 | L59: 45557 | M59: 45748 | N59: 46149 | O59: 45235 | P59: 43941 | Q59: 42035 | R59: 40409 | S59: 40504 | T59: 39904 | U59: 40475 | V59: 41105 | W59: 42170 | X59: 42331 | Y59: 43707 | Z59: 46682 | AA59: 49359 | AB59: 51133 | AC59: 52602 | AD59: 54089 | AE59: 55638 | AF59: 56482 | AG59: 55360 | AH59: 52571 | AI59: 50299 | AJ59: 50147 | AK59: 52463 | AL59: 53189 | AM59: 54340 | AN59: 54234 | AO59: 56969 | AP59: 58675 | AQ59: 59238 | AR59: 57478 | AS59: 56588 | AT59: 56338 | AU59: 55297 | AV59: 55139 | AW59: 51834 | AX59: 50943 | AY59: 51068 | AZ59: 53465 | BA59: 53934 | BB59: 53013 | BC59: 53243 | BD59: 55433 | BE59: 59034 | BF59: 63831 | BG59: 64932 | BH59: 65478 | BI59: 64473 | BJ59: 66191 | BK59: 64931 | BL59: 64439 | BM59: 64467 | BN59: 62774 | BO59: 59873 | BP59: 59542 | BQ59: 56975 | BR59: 53710 | BS59: 52208 | BT59: 51395 | BU59: 49151 | BV59: 48201 | BW59: 46469 | BX59: 45963 | BY59: 41555 | BZ59: 38905 | CA59: 36209 | CB59: 34178 | CC59: 31014 | CD59: 28855 | CE59: 25679 | CF59: 24056 | CG59: 22046 | CH59: 19953 | CI59: 19045 | CJ59: 17567 | CK59: 16068 | CL59: 15759 | CM59: 14581 | CN59: 12868 | CO59: 11306 | CP59: 9610 | CQ59: 8206 | CR59: 6853 | CS59: 5734 | CT59: 16759
A60: Québec | B60: 99 | C60: Ensemble du Québec | D60: 2015 | E60: Estimation | F60: Féminin | G60: 4107383 | H60: 42730 | I60: 43426 | J60: 43256 | K60: 43617 | L60: 43639 | M60: 44114 | N60: 44541 | O60: 43806 | P60: 42095 | Q60: 40749 | R60: 38797 | S60: 38975 | T60: 38345 | U60: 38987 | V60: 38853 | W60: 40141 | X60: 40167 | Y60: 41785 | Z60: 43924 | AA60: 47318 | AB60: 48804 | AC60: 49662 | AD60: 50987 | AE60: 52556 | AF60: 53424 | AG60: 52488 | AH60: 49441 | AI60: 48113 | AJ60: 48770 | AK60: 50459 | AL60: 51595 | AM60: 52484 | AN60: 53002 | AO60: 54626 | AP60: 56984 | AQ60: 57210 | AR60: 56061 | AS60: 54935 | AT60: 54885 | AU60: 53324 | AV60: 53195 | AW60: 50689 | AX60: 49110 | AY60: 49709 | AZ60: 51628 | BA60: 52334 | BB60: 51920 | BC60: 52676 | BD60: 54523 | BE60: 57479 | BF60: 62786 | BG60: 63565 | BH60: 64701 | BI60: 63362 | BJ60: 65226 | BK60: 65020 | BL60: 64753 | BM60: 64085 | BN60: 62749 | BO60: 59542 | BP60: 59737 | BQ60: 57456 | BR60: 54370 | BS60: 52640 | BT60: 52114 | BU60: 50032 | BV60: 49751 | BW60: 48310 | BX60: 47752 | BY60: 43627 | BZ60: 41249 | CA60: 38949 | CB60: 36529 | CC60: 34140 | CD60: 32245 | CE60: 29617 | CF60: 27863 | CG60: 26142 | CH60: 24407 | CI60: 24011 | CJ60: 22955 | CK60: 21775 | CL60: 21347 | CM60: 20871 | CN60: 19616 | CO60: 18057 | CP60: 16019 | CQ60: 15000 | CR60: 12961 | CS60: 11723 | CT60: 47991
A61: Québec | B61: 99 | C61: Ensemble du Québec | D61: 2015 | E61: Estimation | F61: Total | G61: 8175272 | H61: 87036 | I61: 88368 | J61: 89227 | K61: 88931 | L61: 89196 | M61: 89862 | N61: 90690 | O61: 89041 | P61: 86036 | Q61: 82784 | R61: 79206 | S61: 79479 | T61: 78249 | U61: 79462 | V61: 79958 | W61: 82311 | X61: 82498 | Y61: 85492 | Z61: 90606 | AA61: 96677 | AB61: 99937 | AC61: 102264 | AD61: 105076 | AE61: 108194 | AF61: 109906 | AG61: 107848 | AH61: 102012 | AI61: 98412 | AJ61: 98917 | AK61: 102922 | AL61: 104784 | AM61: 106824 | AN61: 107236 | AO61: 111595 | AP61: 115659 | AQ61: 116448 | AR61: 113539 | AS61: 111523 | AT61: 111223 | AU61: 108621 | AV61: 108334 | AW61: 102523 | AX61: 100053 | AY61: 100777 | AZ61: 105093 | BA61: 106268 | BB61: 104933 | BC61: 105919 | BD61: 109956 | BE61: 116513 | BF61: 126617 | BG61: 128497 | BH61: 130179 | BI61: 127835 | BJ61: 131417 | BK61: 129951 | BL61: 129192 | BM61: 128552 | BN61: 125523 | BO61: 119415 | BP61: 119279 | BQ61: 114431 | BR61: 108080 | BS61: 104848 | BT61: 103509 | BU61: 99183 | BV61: 97952 | BW61: 94779 | BX61: 93715 | BY61: 85182 | BZ61: 80154 | CA61: 75158 | CB61: 70707 | CC61: 65154 | CD61: 61100 | CE61: 55296 | CF61: 51919 | CG61: 48188 | CH61: 44360 | CI61: 43056 | CJ61: 40522 | CK61: 37843 | CL61: 37106 | CM61: 35452 | CN61: 32484 | CO61: 29363 | CP61: 25629 | CQ61: 23206 | CR61: 19814 | CS61: 17457 | CT61: 64750
A62: Québec | B62: 99 | C62: Ensemble du Québec | D62: 2016 | E62: Estimation | F62: Masculin | G62: 4095582 | H62: 44451 | I62: 44523 | J62: 45226 | K62: 45973 | L62: 45603 | M62: 45651 | N62: 46105 | O62: 46302 | P62: 45445 | Q62: 44054 | R62: 42295 | S62: 40812 | T62: 40767 | U62: 40309 | V62: 40886 | W62: 41509 | X62: 42579 | Y62: 43018 | Z62: 44837 | AA62: 48173 | AB62: 50334 | AC62: 52033 | AD62: 53210 | AE62: 54828 | AF62: 56289 | AG62: 56670 | AH62: 55457 | AI62: 52922 | AJ62: 50762 | AK62: 50631 | AL62: 52534 | AM62: 53408 | AN62: 54301 | AO62: 54507 | AP62: 56890 | AQ62: 58466 | AR62: 59031 | AS62: 57501 | AT62: 56637 | AU62: 56281 | AV62: 55356 | AW62: 54857 | AX62: 51993 | AY62: 51059 | AZ62: 51231 | BA62: 53219 | BB62: 53747 | BC62: 53013 | BD62: 53352 | BE62: 55482 | BF62: 59115 | BG62: 63480 | BH62: 64780 | BI62: 65216 | BJ62: 64579 | BK62: 65806 | BL62: 64727 | BM62: 64241 | BN62: 64042 | BO62: 62341 | BP62: 59747 | BQ62: 58898 | BR62: 56430 | BS62: 53406 | BT62: 51798 | BU62: 50740 | BV62: 48626 | BW62: 47553 | BX62: 45842 | BY62: 44826 | BZ62: 40913 | CA62: 38125 | CB62: 35499 | CC62: 33240 | CD62: 30309 | CE62: 27963 | CF62: 24957 | CG62: 23153 | CH62: 21139 | CI62: 19125 | CJ62: 18093 | CK62: 16627 | CL62: 15251 | CM62: 14673 | CN62: 13436 | CO62: 11808 | CP62: 10213 | CQ62: 8600 | CR62: 7316 | CS62: 6033 | CT62: 18397
A63: Québec | B63: 99 | C63: Ensemble du Québec | D63: 2016 | E63: Estimation | F63: Féminin | G63: 4130368 | H63: 42170 | I63: 43263 | J63: 43701 | K63: 43668 | L63: 43911 | M63: 43869 | N63: 44412 | O63: 44784 | P63: 43931 | Q63: 42378 | R63: 40957 | S63: 39238 | T63: 39191 | U63: 38806 | V63: 39313 | W63: 39432 | X63: 40679 | Y63: 40883 | Z63: 42879 | AA63: 45477 | AB63: 48088 | AC63: 49261 | AD63: 49779 | AE63: 50977 | AF63: 52417 | AG63: 53023 | AH63: 52167 | AI63: 49535 | AJ63: 48433 | AK63: 48970 | AL63: 50592 | AM63: 51807 | AN63: 52662 | AO63: 53221 | AP63: 54893 | AQ63: 56864 | AR63: 57214 | AS63: 56126 | AT63: 55097 | AU63: 54899 | AV63: 53488 | AW63: 53054 | AX63: 50878 | AY63: 49458 | AZ63: 49919 | BA63: 51617 | BB63: 52411 | BC63: 52156 | BD63: 52902 | BE63: 54744 | BF63: 57820 | BG63: 62466 | BH63: 63587 | BI63: 64538 | BJ63: 63627 | BK63: 64957 | BL63: 64918 | BM63: 64662 | BN63: 63948 | BO63: 62553 | BP63: 59746 | BQ63: 59368 | BR63: 57286 | BS63: 54305 | BT63: 52510 | BU63: 51719 | BV63: 49731 | BW63: 49213 | BX63: 47873 | BY63: 46838 | BZ63: 43223 | CA63: 40570 | CB63: 38208 | CC63: 35787 | CD63: 33391 | CE63: 31407 | CF63: 28816 | CG63: 27097 | CH63: 25252 | CI63: 23637 | CJ63: 23063 | CK63: 21949 | CL63: 20894 | CM63: 20214 | CN63: 19622 | CO63: 18320 | CP63: 16740 | CQ63: 14788 | CR63: 13639 | CS63: 11704 | CT63: 50788
A64: Québec | B64: 99 | C64: Ensemble du Québec | D64: 2016 | E64: Estimation | F64: Total | G64: 8225950 | H64: 86621 | I64: 87786 | J64: 88927 | K64: 89641 | L64: 89514 | M64: 89520 | N64: 90517 | O64: 91086 | P64: 89376 | Q64: 86432 | R64: 83252 | S64: 80050 | T64: 79958 | U64: 79115 | V64: 80199 | W64: 80941 | X64: 83258 | Y64: 83901 | Z64: 87716 | AA64: 93650 | AB64: 98422 | AC64: 101294 | AD64: 102989 | AE64: 105805 | AF64: 108706 | AG64: 109693 | AH64: 107624 | AI64: 102457 | AJ64: 99195 | AK64: 99601 | AL64: 103126 | AM64: 105215 | AN64: 106963 | AO64: 107728 | AP64: 111783 | AQ64: 115330 | AR64: 116245 | AS64: 113627 | AT64: 111734 | AU64: 111180 | AV64: 108844 | AW64: 107911 | AX64: 102871 | AY64: 100517 | AZ64: 101150 | BA64: 104836 | BB64: 106158 | BC64: 105169 | BD64: 106254 | BE64: 110226 | BF64: 116935 | BG64: 125946 | BH64: 128367 | BI64: 129754 | BJ64: 128206 | BK64: 130763 | BL64: 129645 | BM64: 128903 | BN64: 127990 | BO64: 124894 | BP64: 119493 | BQ64: 118266 | BR64: 113716 | BS64: 107711 | BT64: 104308 | BU64: 102459 | BV64: 98357 | BW64: 96766 | BX64: 93715 | BY64: 91664 | BZ64: 84136 | CA64: 78695 | CB64: 73707 | CC64: 69027 | CD64: 63700 | CE64: 59370 | CF64: 53773 | CG64: 50250 | CH64: 46391 | CI64: 42762 | CJ64: 41156 | CK64: 38576 | CL64: 36145 | CM64: 34887 | CN64: 33058 | CO64: 30128 | CP64: 26953 | CQ64: 23388 | CR64: 20955 | CS64: 17737 | CT64: 69185
A65: Québec | B65: 99 | C65: Ensemble du Québec | D65: 2017 | E65: Estimation | F65: Masculin | G65: 4134265 | H65: 43228 | I65: 44734 | J65: 44917 | K65: 45623 | L65: 46414 | M65: 45976 | N65: 46075 | O65: 46559 | P65: 46715 | Q65: 45809 | R65: 44387 | S65: 42586 | T65: 41112 | U65: 41024 | V65: 40606 | W65: 41192 | X65: 41922 | Y65: 43062 | Z65: 44034 | AA65: 46604 | AB65: 49482 | AC65: 51374 | AD65: 52919 | AE65: 54070 | AF65: 55655 | AG65: 57070 | AH65: 57456 | AI65: 56197 | AJ65: 53565 | AK65: 51546 | AL65: 51388 | AM65: 53335 | AN65: 54112 | AO65: 54925 | AP65: 55139 | AQ65: 57407 | AR65: 58947 | AS65: 59468 | AT65: 57869 | AU65: 57015 | AV65: 56608 | AW65: 55565 | AX65: 55064 | AY65: 52166 | AZ65: 51205 | BA65: 51324 | BB65: 53300 | BC65: 53796 | BD65: 53050 | BE65: 53332 | BF65: 55477 | BG65: 59059 | BH65: 63333 | BI65: 64596 | BJ65: 65051 | BK65: 64381 | BL65: 65564 | BM65: 64445 | BN65: 63904 | BO65: 63678 | BP65: 61972 | BQ65: 59369 | BR65: 58454 | BS65: 55990 | BT65: 53013 | BU65: 51292 | BV65: 50167 | BW65: 48026 | BX65: 46913 | BY65: 45201 | BZ65: 44138 | CA65: 40169 | CB65: 37441 | CC65: 34717 | CD65: 32424 | CE65: 29495 | CF65: 27149 | CG65: 24122 | CH65: 22318 | CI65: 20319 | CJ65: 18205 | CK65: 17141 | CL65: 15720 | CM65: 14298 | CN65: 13640 | CO65: 12331 | CP65: 10734 | CQ65: 9161 | CR65: 7615 | CS65: 6356 | CT65: 19959
A66: Québec | B66: 99 | C66: Ensemble du Québec | D66: 2017 | E66: Estimation | F66: Féminin | G66: 4164562 | H66: 41122 | I66: 42404 | J66: 43615 | K66: 44056 | L66: 44052 | M66: 44305 | N66: 44286 | O66: 44795 | P66: 45083 | Q66: 44227 | R66: 42672 | S66: 41242 | T66: 39496 | U66: 39403 | V66: 39108 | W66: 39641 | X66: 39829 | Y66: 41139 | Z66: 41906 | AA66: 44645 | AB66: 46685 | AC66: 48867 | AD66: 49770 | AE66: 50425 | AF66: 51681 | AG66: 53243 | AH66: 53763 | AI66: 53089 | AJ66: 50474 | AK66: 49367 | AL66: 49883 | AM66: 51450 | AN66: 52543 | AO66: 53277 | AP66: 53835 | AQ66: 55465 | AR66: 57393 | AS66: 57644 | AT66: 56474 | AU66: 55426 | AV66: 55227 | AW66: 53681 | AX66: 53254 | AY66: 51073 | AZ66: 49592 | BA66: 50016 | BB66: 51731 | BC66: 52502 | BD66: 52192 | BE66: 52906 | BF66: 54730 | BG66: 57783 | BH66: 62403 | BI66: 63472 | BJ66: 64421 | BK66: 63465 | BL66: 64823 | BM66: 64710 | BN66: 64475 | BO66: 63738 | BP66: 62301 | BQ66: 59510 | BR66: 59089 | BS66: 56971 | BT66: 53983 | BU66: 52223 | BV66: 51361 | BW66: 49353 | BX66: 48824 | BY66: 47429 | BZ66: 46342 | CA66: 42702 | CB66: 40065 | CC66: 37624 | CD66: 35157 | CE66: 32779 | CF66: 30698 | CG66: 28145 | CH66: 26436 | CI66: 24524 | CJ66: 22830 | CK66: 22269 | CL66: 21049 | CM66: 19934 | CN66: 19217 | CO66: 18527 | CP66: 17193 | CQ66: 15519 | CR66: 13535 | CS66: 12335 | CT66: 52664
A67: Québec | B67: 99 | C67: Ensemble du Québec | D67: 2017 | E67: Estimation | F67: Total | G67: 8298827 | H67: 84350 | I67: 87138 | J67: 88532 | K67: 89679 | L67: 90466 | M67: 90281 | N67: 90361 | O67: 91354 | P67: 91798 | Q67: 90036 | R67: 87059 | S67: 83828 | T67: 80608 | U67: 80427 | V67: 79714 | W67: 80833 | X67: 81751 | Y67: 84201 | Z67: 85940 | AA67: 91249 | AB67: 96167 | AC67: 100241 | AD67: 102689 | AE67: 104495 | AF67: 107336 | AG67: 110313 | AH67: 111219 | AI67: 109286 | AJ67: 104039 | AK67: 100913 | AL67: 101271 | AM67: 104785 | AN67: 106655 | AO67: 108202 | AP67: 108974 | AQ67: 112872 | AR67: 116340 | AS67: 117112 | AT67: 114343 | AU67: 112441 | AV67: 111835 | AW67: 109246 | AX67: 108318 | AY67: 103239 | AZ67: 100797 | BA67: 101340 | BB67: 105031 | BC67: 106298 | BD67: 105242 | BE67: 106238 | BF67: 110207 | BG67: 116842 | BH67: 125736 | BI67: 128068 | BJ67: 129472 | BK67: 127846 | BL67: 130387 | BM67: 129155 | BN67: 128379 | BO67: 127416 | BP67: 124273 | BQ67: 118879 | BR67: 117543 | BS67: 112961 | BT67: 106996 | BU67: 103515 | BV67: 101528 | BW67: 97379 | BX67: 95737 | BY67: 92630 | BZ67: 90480 | CA67: 82871 | CB67: 77506 | CC67: 72341 | CD67: 67581 | CE67: 62274 | CF67: 57847 | CG67: 52267 | CH67: 48754 | CI67: 44843 | CJ67: 41035 | CK67: 39410 | CL67: 36769 | CM67: 34232 | CN67: 32857 | CO67: 30858 | CP67: 27927 | CQ67: 24680 | CR67: 21150 | CS67: 18691 | CT67: 72623
A68: Québec | B68: 99 | C68: Ensemble du Québec | D68: 2018 | E68: Estimation | F68: Masculin | G68: 4182891 | H68: 42744 | I68: 43692 | J68: 45347 | K68: 45570 | L68: 46254 | M68: 47074 | N68: 46623 | O68: 46722 | P68: 47165 | Q68: 47236 | R68: 46289 | S68: 44826 | T68: 42959 | U68: 41489 | V68: 41395 | W68: 41015 | X68: 41633 | Y68: 42442 | Z68: 44369 | AA68: 46075 | AB68: 48046 | AC68: 50650 | AD68: 52431 | AE68: 53990 | AF68: 55096 | AG68: 56583 | AH68: 58084 | AI68: 58539 | AJ68: 57250 | AK68: 54583 | AL68: 52522 | AM68: 52439 | AN68: 54334 | AO68: 55092 | AP68: 55929 | AQ68: 56120 | AR68: 58323 | AS68: 59739 | AT68: 60144 | AU68: 58459 | AV68: 57691 | AW68: 57148 | AX68: 56041 | AY68: 55490 | AZ68: 52524 | BA68: 51563 | BB68: 51569 | BC68: 53513 | BD68: 53933 | BE68: 53143 | BF68: 53427 | BG68: 55516 | BH68: 59015 | BI68: 63281 | BJ68: 64503 | BK68: 64915 | BL68: 64229 | BM68: 65303 | BN68: 64206 | BO68: 63630 | BP68: 63320 | BQ68: 61574 | BR68: 58961 | BS68: 57997 | BT68: 55492 | BU68: 52579 | BV68: 50731 | BW68: 49583 | BX68: 47408 | BY68: 46212 | BZ68: 44454 | CA68: 43433 | CB68: 39446 | CC68: 36614 | CD68: 33880 | CE68: 31569 | CF68: 28674 | CG68: 26245 | CH68: 23206 | CI68: 21410 | CJ68: 19443 | CK68: 17264 | CL68: 16138 | CM68: 14735 | CN68: 13276 | CO68: 12501 | CP68: 11152 | CQ68: 9681 | CR68: 8064 | CS68: 6639 | CT68: 21298
A69: Québec | B69: 99 | C69: Ensemble du Québec | D69: 2018 | E69: Estimation | F69: Féminin | G69: 4204741 | H69: 41006 | I69: 41562 | J69: 42935 | K69: 44178 | L69: 44617 | M69: 44620 | N69: 44868 | O69: 44849 | P69: 45316 | Q69: 45565 | R69: 44676 | S69: 43088 | T69: 41633 | U69: 39820 | V69: 39749 | W69: 39537 | X69: 40124 | Y69: 40360 | Z69: 42510 | AA69: 43942 | AB69: 45969 | AC69: 47556 | AD69: 49459 | AE69: 50443 | AF69: 51055 | AG69: 52415 | AH69: 54007 | AI69: 54774 | AJ69: 54011 | AK69: 51403 | AL69: 50430 | AM69: 50865 | AN69: 52418 | AO69: 53451 | AP69: 54179 | AQ69: 54715 | AR69: 56243 | AS69: 58066 | AT69: 58275 | AU69: 57013 | AV69: 55924 | AW69: 55597 | AX69: 54061 | AY69: 53565 | AZ69: 51348 | BA69: 49862 | BB69: 50190 | BC69: 51887 | BD69: 52576 | BE69: 52285 | BF69: 52934 | BG69: 54748 | BH69: 57778 | BI69: 62373 | BJ69: 63438 | BK69: 64331 | BL69: 63316 | BM69: 64678 | BN69: 64588 | BO69: 64275 | BP69: 63499 | BQ69: 62050 | BR69: 59252 | BS69: 58790 | BT69: 56620 | BU69: 53637 | BV69: 51879 | BW69: 50942 | BX69: 48985 | BY69: 48401 | BZ69: 46978 | CA69: 45831 | CB69: 42128 | CC69: 39447 | CD69: 36991 | CE69: 34547 | CF69: 32136 | CG69: 29992 | CH69: 27431 | CI69: 25688 | CJ69: 23755 | CK69: 21994 | CL69: 21415 | CM69: 20043 | CN69: 18856 | CO69: 18057 | CP69: 17279 | CQ69: 15938 | CR69: 14115 | CS69: 12177 | CT69: 54432
A70: Québec | B70: 99 | C70: Ensemble du Québec | D70: 2018 | E70: Estimation | F70: Total | G70: 8387632 | H70: 83750 | I70: 85254 | J70: 88282 | K70: 89748 | L70: 90871 | M70: 91694 | N70: 91491 | O70: 91571 | P70: 92481 | Q70: 92801 | R70: 90965 | S70: 87914 | T70: 84592 | U70: 81309 | V70: 81144 | W70: 80552 | X70: 81757 | Y70: 82802 | Z70: 86879 | AA70: 90017 | AB70: 94015 | AC70: 98206 | AD70: 101890 | AE70: 104433 | AF70: 106151 | AG70: 108998 | AH70: 112091 | AI70: 113313 | AJ70: 111261 | AK70: 105986 | AL70: 102952 | AM70: 103304 | AN70: 106752 | AO70: 108543 | AP70: 110108 | AQ70: 110835 | AR70: 114566 | AS70: 117805 | AT70: 118419 | AU70: 115472 | AV70: 113615 | AW70: 112745 | AX70: 110102 | AY70: 109055 | AZ70: 103872 | BA70: 101425 | BB70: 101759 | BC70: 105400 | BD70: 106509 | BE70: 105428 | BF70: 106361 | BG70: 110264 | BH70: 116793 | BI70: 125654 | BJ70: 127941 | BK70: 129246 | BL70: 127545 | BM70: 129981 | BN70: 128794 | BO70: 127905 | BP70: 126819 | BQ70: 123624 | BR70: 118213 | BS70: 116787 | BT70: 112112 | BU70: 106216 | BV70: 102610 | BW70: 100525 | BX70: 96393 | BY70: 94613 | BZ70: 91432 | CA70: 89264 | CB70: 81574 | CC70: 76061 | CD70: 70871 | CE70: 66116 | CF70: 60810 | CG70: 56237 | CH70: 50637 | CI70: 47098 | CJ70: 43198 | CK70: 39258 | CL70: 37553 | CM70: 34778 | CN70: 32132 | CO70: 30558 | CP70: 28431 | CQ70: 25619 | CR70: 22179 | CS70: 18816 | CT70: 75730
A71: Québec | B71: 99 | C71: Ensemble du Québec | D71: 2019 | E71: Estimation | F71: Masculin | G71: 4238281 | H71: 42979 | I71: 43020 | J71: 44091 | K71: 45806 | L71: 46111 | M71: 46816 | N71: 47660 | O71: 47208 | P71: 47211 | Q71: 47650 | R71: 47717 | S71: 46688 | T71: 45190 | U71: 43348 | V71: 41881 | W71: 41786 | X71: 41479 | Y71: 42183 | Z71: 44144 | AA71: 47192 | AB71: 48078 | AC71: 49760 | AD71: 52478 | AE71: 54276 | AF71: 55778 | AG71: 56587 | AH71: 58017 | AI71: 59365 | AJ71: 59679 | AK71: 58454 | AL71: 55808 | AM71: 53549 | AN71: 53403 | AO71: 55228 | AP71: 56034 | AQ71: 56740 | AR71: 56997 | AS71: 59120 | AT71: 60393 | AU71: 60878 | AV71: 59104 | AW71: 58324 | AX71: 57669 | AY71: 56530 | AZ71: 55885 | BA71: 52933 | BB71: 51864 | BC71: 51797 | BD71: 53772 | BE71: 54176 | BF71: 53296 | BG71: 53525 | BH71: 55543 | BI71: 59072 | BJ71: 63250 | BK71: 64452 | BL71: 64824 | BM71: 64076 | BN71: 65065 | BO71: 63924 | BP71: 63323 | BQ71: 62977 | BR71: 61202 | BS71: 58557 | BT71: 57592 | BU71: 55040 | BV71: 52068 | BW71: 50273 | BX71: 49015 | BY71: 46850 | BZ71: 45536 | CA71: 43728 | CB71: 42691 | CC71: 38606 | CD71: 35809 | CE71: 33055 | CF71: 30648 | CG71: 27783 | CH71: 25332 | CI71: 22259 | CJ71: 20376 | CK71: 18480 | CL71: 16321 | CM71: 15156 | CN71: 13694 | CO71: 12274 | CP71: 11377 | CQ71: 10076 | CR71: 8614 | CS71: 7030 | CT71: 22676
A72: Québec | B72: 99 | C72: Ensemble du Québec | D72: 2019 | E72: Estimation | F72: Féminin | G72: 4246684 | H72: 40692 | I72: 41260 | J72: 41914 | K72: 43392 | L72: 44592 | M72: 45077 | N72: 45127 | O72: 45375 | P72: 45330 | Q72: 45775 | R72: 46013 | S72: 45036 | T72: 43484 | U72: 42043 | V72: 40175 | W72: 40115 | X72: 39975 | Y72: 40657 | Z72: 41984 | AA72: 44971 | AB72: 45450 | AC72: 47087 | AD72: 48336 | AE72: 50361 | AF72: 51411 | AG72: 52029 | AH72: 53543 | AI72: 55028 | AJ72: 55798 | AK72: 55083 | AL72: 52343 | AM72: 51324 | AN72: 51734 | AO72: 53142 | AP72: 54250 | AQ72: 54993 | AR72: 55409 | AS72: 56898 | AT72: 58684 | AU72: 58878 | AV72: 57522 | AW72: 56347 | AX72: 55956 | AY72: 54458 | AZ72: 53863 | BA72: 51610 | BB72: 50081 | BC72: 50421 | BD72: 52038 | BE72: 52723 | BF72: 52359 | BG72: 52977 | BH72: 54768 | BI72: 57814 | BJ72: 62344 | BK72: 63386 | BL72: 64272 | BM72: 63274 | BN72: 64557 | BO72: 64435 | BP72: 64107 | BQ72: 63253 | BR72: 61850 | BS72: 59026 | BT72: 58530 | BU72: 56341 | BV72: 53346 | BW72: 51522 | BX72: 50574 | BY72: 48573 | BZ72: 47938 | CA72: 46492 | CB72: 45231 | CC72: 41497 | CD72: 38813 | CE72: 36338 | CF72: 33861 | CG72: 31396 | CH72: 29283 | CI72: 26648 | CJ72: 24841 | CK72: 22938 | CL72: 21026 | CM72: 20400 | CN72: 18998 | CO72: 17739 | CP72: 16869 | CQ72: 15910 | CR72: 14617 | CS72: 12749 | CT72: 56005
A73: Québec | B73: 99 | C73: Ensemble du Québec | D73: 2019 | E73: Estimation | F73: Total | G73: 8484965 | H73: 83671 | I73: 84280 | J73: 86005 | K73: 89198 | L73: 90703 | M73: 91893 | N73: 92787 | O73: 92583 | P73: 92541 | Q73: 93425 | R73: 93730 | S73: 91724 | T73: 88674 | U73: 85391 | V73: 82056 | W73: 81901 | X73: 81454 | Y73: 82840 | Z73: 86128 | AA73: 92163 | AB73: 93528 | AC73: 96847 | AD73: 100814 | AE73: 104637 | AF73: 107189 | AG73: 108616 | AH73: 111560 | AI73: 114393 | AJ73: 115477 | AK73: 113537 | AL73: 108151 | AM73: 104873 | AN73: 105137 | AO73: 108370 | AP73: 110284 | AQ73: 111733 | AR73: 112406 | AS73: 116018 | AT73: 119077 | AU73: 119756 | AV73: 116626 | AW73: 114671 | AX73: 113625 | AY73: 110988 | AZ73: 109748 | BA73: 104543 | BB73: 101945 | BC73: 102218 | BD73: 105810 | BE73: 106899 | BF73: 105655 | BG73: 106502 | BH73: 110311 | BI73: 116886 | BJ73: 125594 | BK73: 127838 | BL73: 129096 | BM73: 127350 | BN73: 129622 | BO73: 128359 | BP73: 127430 | BQ73: 126230 | BR73: 123052 | BS73: 117583 | BT73: 116122 | BU73: 111381 | BV73: 105414 | BW73: 101795 | BX73: 99589 | BY73: 95423 | BZ73: 93474 | CA73: 90220 | CB73: 87922 | CC73: 80103 | CD73: 74622 | CE73: 69393 | CF73: 64509 | CG73: 59179 | CH73: 54615 | CI73: 48907 | CJ73: 45217 | CK73: 41418 | CL73: 37347 | CM73: 35556 | CN73: 32692 | CO73: 30013 | CP73: 28246 | CQ73: 25986 | CR73: 23231 | CS73: 19779 | CT73: 78681
A74: Québec | B74: 99 | C74: Ensemble du Québec | D74: 2020 | E74: Projection | F74: Masculin | G74: 4267232 | H74: 43560 | I74: 43328 | J74: 43394 | K74: 44428 | L74: 46125 | M74: 46420 | N74: 47115 | O74: 47942 | P74: 47458 | Q74: 47422 | R74: 47869 | S74: 47908 | T74: 46882 | U74: 45378 | V74: 43553 | W74: 42108 | X74: 42105 | Y74: 41911 | Z74: 43504 | AA74: 46492 | AB74: 48800 | AC74: 49192 | AD74: 50650 | AE74: 53259 | AF74: 54749 | AG74: 56093 | AH74: 56844 | AI74: 58218 | AJ74: 59572 | AK74: 59888 | AL74: 58748 | AM74: 56130 | AN74: 53862 | AO74: 53760 | AP74: 55573 | AQ74: 56381 | AR74: 57057 | AS74: 57247 | AT74: 59364 | AU74: 60612 | AV74: 61057 | AW74: 59206 | AX74: 58404 | AY74: 57721 | AZ74: 56558 | BA74: 55884 | BB74: 52905 | BC74: 51825 | BD74: 51740 | BE74: 53699 | BF74: 54087 | BG74: 53166 | BH74: 53391 | BI74: 55372 | BJ74: 58881 | BK74: 63002 | BL74: 64176 | BM74: 64527 | BN74: 63744 | BO74: 64691 | BP74: 63521 | BQ74: 62877 | BR74: 62490 | BS74: 60699 | BT74: 58042 | BU74: 57015 | BV74: 54445 | BW74: 51447 | BX74: 49617 | BY74: 48313 | BZ74: 46125 | CA74: 44751 | CB74: 42899 | CC74: 41806 | CD74: 37717 | CE74: 34889 | CF74: 32111 | CG74: 29674 | CH74: 26801 | CI74: 24335 | CJ74: 21283 | CK74: 19378 | CL74: 17467 | CM74: 15325 | CN74: 14116 | CO74: 12647 | CP74: 11216 | CQ74: 10287 | CR74: 8997 | CS74: 7581 | CT74: 24424
A75: Québec | B75: 99 | C75: Ensemble du Québec | D75: 2020 | E75: Projection | F75: Féminin | G75: 4271841 | H75: 41390 | I75: 41060 | J75: 41610 | K75: 42220 | L75: 43687 | M75: 44883 | N75: 45385 | O75: 45406 | P75: 45596 | Q75: 45547 | R75: 45969 | S75: 46180 | T75: 45209 | U75: 43660 | V75: 42231 | W75: 40413 | X75: 40504 | Y75: 40500 | Z75: 41801 | AA75: 44173 | AB75: 46298 | AC75: 46297 | AD75: 47544 | AE75: 48726 | AF75: 50694 | AG75: 51743 | AH75: 52282 | AI75: 53890 | AJ75: 55382 | AK75: 56117 | AL75: 55450 | AM75: 52725 | AN75: 51688 | AO75: 52122 | AP75: 53546 | AQ75: 54631 | AR75: 55304 | AS75: 55667 | AT75: 57157 | AU75: 58883 | AV75: 59067 | AW75: 57666 | AX75: 56468 | AY75: 56063 | AZ75: 54505 | BA75: 53907 | BB75: 51642 | BC75: 50087 | BD75: 50412 | BE75: 52016 | BF75: 52675 | BG75: 52292 | BH75: 52907 | BI75: 54653 | BJ75: 57690 | BK75: 62170 | BL75: 63198 | BM75: 64064 | BN75: 63054 | BO75: 64311 | BP75: 64165 | BQ75: 63801 | BR75: 62926 | BS75: 61502 | BT75: 58670 | BU75: 58130 | BV75: 55929 | BW75: 52920 | BX75: 51070 | BY75: 50094 | BZ75: 48053 | CA75: 47370 | CB75: 45877 | CC75: 44572 | CD75: 40822 | CE75: 38108 | CF75: 35608 | CG75: 33102 | CH75: 30611 | CI75: 28470 | CJ75: 25820 | CK75: 23972 | CL75: 22032 | CM75: 20089 | CN75: 19382 | CO75: 17933 | CP75: 16611 | CQ75: 15658 | CR75: 14611 | CS75: 13270 | CT75: 58246
A76: Québec | B76: 99 | C76: Ensemble du Québec | D76: 2020 | E76: Projection | F76: Total | G76: 8539073 | H76: 84950 | I76: 84388 | J76: 85004 | K76: 86648 | L76: 89812 | M76: 91303 | N76: 92500 | O76: 93348 | P76: 93054 | Q76: 92969 | R76: 93838 | S76: 94088 | T76: 92091 | U76: 89038 | V76: 85784 | W76: 82521 | X76: 82609 | Y76: 82411 | Z76: 85305 | AA76: 90665 | AB76: 95098 | AC76: 95489 | AD76: 98194 | AE76: 101985 | AF76: 105443 | AG76: 107836 | AH76: 109126 | AI76: 112108 | AJ76: 114954 | AK76: 116005 | AL76: 114198 | AM76: 108855 | AN76: 105550 | AO76: 105882 | AP76: 109119 | AQ76: 111012 | AR76: 112361 | AS76: 112914 | AT76: 116521 | AU76: 119495 | AV76: 120124 | AW76: 116872 | AX76: 114872 | AY76: 113784 | AZ76: 111063 | BA76: 109791 | BB76: 104547 | BC76: 101912 | BD76: 102152 | BE76: 105715 | BF76: 106762 | BG76: 105458 | BH76: 106298 | BI76: 110025 | BJ76: 116571 | BK76: 125172 | BL76: 127374 | BM76: 128591 | BN76: 126798 | BO76: 129002 | BP76: 127686 | BQ76: 126678 | BR76: 125416 | BS76: 122201 | BT76: 116712 | BU76: 115145 | BV76: 110374 | BW76: 104367 | BX76: 100687 | BY76: 98407 | BZ76: 94178 | CA76: 92121 | CB76: 88776 | CC76: 86378 | CD76: 78539 | CE76: 72997 | CF76: 67719 | CG76: 62776 | CH76: 57412 | CI76: 52805 | CJ76: 47103 | CK76: 43350 | CL76: 39499 | CM76: 35414 | CN76: 33498 | CO76: 30580 | CP76: 27827 | CQ76: 25945 | CR76: 23608 | CS76: 20851 | CT76: 82670
A77: Québec | B77: 99 | C77: Ensemble du Québec | D77: 2021 | E77: Projection | F77: Masculin | G77: 4295378 | H77: 43706 | I77: 43926 | J77: 43718 | K77: 43740 | L77: 44744 | M77: 46443 | N77: 46744 | O77: 47404 | P77: 48194 | Q77: 47666 | R77: 47636 | S77: 48051 | T77: 48095 | U77: 47065 | V77: 45581 | W77: 43775 | X77: 42435 | Y77: 42548 | Z77: 43276 | AA77: 45920 | AB77: 48129 | AC77: 49905 | AD77: 50076 | AE77: 51415 | AF77: 53694 | AG77: 55025 | AH77: 56321 | AI77: 57002 | AJ77: 58382 | AK77: 59744 | AL77: 60156 | AM77: 59049 | AN77: 56418 | AO77: 54199 | AP77: 54103 | AQ77: 55924 | AR77: 56710 | AS77: 57300 | AT77: 57484 | AU77: 59582 | AV77: 60783 | AW77: 61149 | AX77: 59264 | AY77: 58446 | AZ77: 57753 | BA77: 56551 | BB77: 55835 | BC77: 52862 | BD77: 51760 | BE77: 51675 | BF77: 53603 | BG77: 53958 | BH77: 53046 | BI77: 53235 | BJ77: 55193 | BK77: 58645 | BL77: 62737 | BM77: 63878 | BN77: 64186 | BO77: 63386 | BP77: 64291 | BQ77: 63074 | BR77: 62401 | BS77: 61991 | BT77: 60173 | BU77: 57469 | BV77: 56406 | BW77: 53798 | BX77: 50783 | BY77: 48919 | BZ77: 47582 | CA77: 45352 | CB77: 43916 | CC77: 42014 | CD77: 40857 | CE77: 36769 | CF77: 33926 | CG77: 31128 | CH77: 28653 | CI77: 25769 | CJ77: 23287 | CK77: 20270 | CL77: 18334 | CM77: 16414 | CN77: 14291 | CO77: 13052 | CP77: 11573 | CQ77: 10160 | CR77: 9203 | CS77: 7927 | CT77: 26366
A78: Québec | B78: 99 | C78: Ensemble du Québec | D78: 2021 | E78: Projection | F78: Féminin | G78: 4296488 | H78: 41525 | I78: 41764 | J78: 41412 | K78: 41927 | L78: 42529 | M78: 43991 | N78: 45197 | O78: 45671 | P78: 45635 | Q78: 45825 | R78: 45747 | S78: 46143 | T78: 46363 | U78: 45390 | V78: 43850 | W78: 42487 | X78: 40814 | Y78: 41043 | Z78: 41676 | AA78: 44053 | AB78: 45527 | AC78: 47140 | AD78: 46732 | AE78: 47896 | AF78: 49025 | AG78: 51001 | AH78: 51973 | AI78: 52609 | AJ78: 54224 | AK78: 55695 | AL78: 56472 | AM78: 55814 | AN78: 53087 | AO78: 52082 | AP78: 52525 | AQ78: 53929 | AR78: 54946 | AS78: 55556 | AT78: 55924 | AU78: 57369 | AV78: 59083 | AW78: 59197 | AX78: 57769 | AY78: 56562 | AZ78: 56093 | BA78: 54537 | BB78: 53923 | BC78: 51632 | BD78: 50073 | BE78: 50380 | BF78: 51964 | BG78: 52602 | BH78: 52211 | BI78: 52798 | BJ78: 54537 | BK78: 57538 | BL78: 61994 | BM78: 63004 | BN78: 63851 | BO78: 62817 | BP78: 64036 | BQ78: 63868 | BR78: 63479 | BS78: 62566 | BT78: 61116 | BU78: 58269 | BV78: 57706 | BW78: 55474 | BX78: 52452 | BY78: 50583 | BZ78: 49562 | CA78: 47493 | CB78: 46757 | CC78: 45219 | CD78: 43843 | CE78: 40082 | CF78: 37345 | CG78: 34807 | CH78: 32284 | CI78: 29771 | CJ78: 27593 | CK78: 24929 | CL78: 23040 | CM78: 21069 | CN78: 19102 | CO78: 18304 | CP78: 16803 | CQ78: 15428 | CR78: 14399 | CS78: 13289 | CT78: 60687
A79: Québec | B79: 99 | C79: Ensemble du Québec | D79: 2021 | E79: Projection | F79: Total | G79: 8591866 | H79: 85231 | I79: 85690 | J79: 85130 | K79: 85667 | L79: 87273 | M79: 90434 | N79: 91941 | O79: 93075 | P79: 93829 | Q79: 93491 | R79: 93383 | S79: 94194 | T79: 94458 | U79: 92455 | V79: 89431 | W79: 86262 | X79: 83249 | Y79: 83591 | Z79: 84952 | AA79: 89973 | AB79: 93656 | AC79: 97045 | AD79: 96808 | AE79: 99311 | AF79: 102719 | AG79: 106026 | AH79: 108294 | AI79: 109611 | AJ79: 112606 | AK79: 115439 | AL79: 116628 | AM79: 114863 | AN79: 109505 | AO79: 106281 | AP79: 106628 | AQ79: 109853 | AR79: 111656 | AS79: 112856 | AT79: 113408 | AU79: 116951 | AV79: 119866 | AW79: 120346 | AX79: 117033 | AY79: 115008 | AZ79: 113846 | BA79: 111088 | BB79: 109758 | BC79: 104494 | BD79: 101833 | BE79: 102055 | BF79: 105567 | BG79: 106560 | BH79: 105257 | BI79: 106033 | BJ79: 109730 | BK79: 116183 | BL79: 124731 | BM79: 126882 | BN79: 128037 | BO79: 126203 | BP79: 128327 | BQ79: 126942 | BR79: 125880 | BS79: 124557 | BT79: 121289 | BU79: 115738 | BV79: 114112 | BW79: 109272 | BX79: 103235 | BY79: 99502 | BZ79: 97144 | CA79: 92845 | CB79: 90673 | CC79: 87233 | CD79: 84700 | CE79: 76851 | CF79: 71271 | CG79: 65935 | CH79: 60937 | CI79: 55540 | CJ79: 50880 | CK79: 45199 | CL79: 41374 | CM79: 37483 | CN79: 33393 | CO79: 31356 | CP79: 28376 | CQ79: 25588 | CR79: 23602 | CS79: 21216 | CT79: 87053
A80: Québec | B80: 99 | C80: Ensemble du Québec | D80: 2022 | E80: Projection | F80: Masculin | G80: 4322951 | H80: 43729 | I80: 44085 | J80: 44326 | K80: 44087 | L80: 44091 | M80: 45091 | N80: 46773 | O80: 47027 | P80: 47669 | Q80: 48415 | R80: 47890 | S80: 47838 | T80: 48246 | U80: 48296 | V80: 47279 | W80: 45820 | X80: 44122 | Y80: 42895 | Z80: 43954 | AA80: 45746 | AB80: 47574 | AC80: 49235 | AD80: 50768 | AE80: 50811 | AF80: 51826 | AG80: 53944 | AH80: 55218 | AI80: 56446 | AJ80: 57164 | AK80: 58541 | AL80: 60005 | AM80: 60441 | AN80: 59322 | AO80: 56762 | AP80: 54561 | AQ80: 54465 | AR80: 56241 | AS80: 56951 | AT80: 57561 | AU80: 57707 | AV80: 59754 | AW80: 60869 | AX80: 61207 | AY80: 59309 | AZ80: 58466 | BA80: 57732 | BB80: 56512 | BC80: 55780 | BD80: 52782 | BE80: 51684 | BF80: 51582 | BG80: 53476 | BH80: 53812 | BI80: 52880 | BJ80: 53063 | BK80: 54980 | BL80: 58403 | BM80: 62449 | BN80: 63561 | BO80: 63834 | BP80: 62988 | BQ80: 63842 | BR80: 62613 | BS80: 61904 | BT80: 61452 | BU80: 59592 | BV80: 56862 | BW80: 55756 | BX80: 53122 | BY80: 50092 | BZ80: 48195 | CA80: 46794 | CB80: 44519 | CC80: 43030 | CD80: 41084 | CE80: 39854 | CF80: 35769 | CG80: 32883 | CH80: 30067 | CI80: 27567 | CJ80: 24683 | CK80: 22185 | CL80: 19196 | CM80: 17259 | CN80: 15329 | CO80: 13227 | CP80: 11957 | CQ80: 10507 | CR80: 9109 | CS80: 8135 | CT80: 28322
A81: Québec | B81: 99 | C81: Ensemble du Québec | D81: 2022 | E81: Projection | F81: Féminin | G81: 4321042 | H81: 41556 | I81: 41910 | J81: 42145 | K81: 41763 | L81: 42254 | M81: 42850 | N81: 44322 | O81: 45500 | P81: 45910 | Q81: 45864 | R81: 46033 | S81: 45935 | T81: 46327 | U81: 46545 | V81: 45586 | W81: 44109 | X81: 42881 | Y81: 41368 | Z81: 42252 | AA81: 43987 | AB81: 45417 | AC81: 46350 | AD81: 47542 | AE81: 47059 | AF81: 48200 | AG81: 49331 | AH81: 51225 | AI81: 52303 | AJ81: 52947 | AK81: 54537 | AL81: 56050 | AM81: 56852 | AN81: 56181 | AO81: 53489 | AP81: 52504 | AQ81: 52930 | AR81: 54260 | AS81: 55208 | AT81: 55832 | AU81: 56141 | AV81: 57563 | AW81: 59218 | AX81: 59312 | AY81: 57872 | AZ81: 56605 | BA81: 56138 | BB81: 54558 | BC81: 53915 | BD81: 51621 | BE81: 50053 | BF81: 50328 | BG81: 51891 | BH81: 52528 | BI81: 52101 | BJ81: 52682 | BK81: 54393 | BL81: 57364 | BM81: 61799 | BN81: 62786 | BO81: 63607 | BP81: 62553 | BQ81: 63748 | BR81: 63532 | BS81: 63120 | BT81: 62191 | BU81: 60722 | BV81: 57858 | BW81: 57259 | BX81: 55002 | BY81: 51959 | BZ81: 50055 | CA81: 48989 | CB81: 46887 | CC81: 46087 | CD81: 44503 | CE81: 43074 | CF81: 39293 | CG81: 36531 | CH81: 33970 | CI81: 31408 | CJ81: 28861 | CK81: 26644 | CL81: 23970 | CM81: 22038 | CN81: 20044 | CO81: 18051 | CP81: 17170 | CQ81: 15625 | CR81: 14193 | CS81: 13097 | CT81: 62819
A82: Québec | B82: 99 | C82: Ensemble du Québec | D82: 2022 | E82: Projection | F82: Total | G82: 8643993 | H82: 85285 | I82: 85995 | J82: 86471 | K82: 85850 | L82: 86345 | M82: 87941 | N82: 91095 | O82: 92527 | P82: 93579 | Q82: 94279 | R82: 93923 | S82: 93773 | T82: 94573 | U82: 94841 | V82: 92865 | W82: 89929 | X82: 87003 | Y82: 84263 | Z82: 86206 | AA82: 89733 | AB82: 92991 | AC82: 95585 | AD82: 98310 | AE82: 97870 | AF82: 100026 | AG82: 103275 | AH82: 106443 | AI82: 108749 | AJ82: 110111 | AK82: 113078 | AL82: 116055 | AM82: 117293 | AN82: 115503 | AO82: 110251 | AP82: 107065 | AQ82: 107395 | AR82: 110501 | AS82: 112159 | AT82: 113393 | AU82: 113848 | AV82: 117317 | AW82: 120087 | AX82: 120519 | AY82: 117181 | AZ82: 115071 | BA82: 113870 | BB82: 111070 | BC82: 109695 | BD82: 104403 | BE82: 101737 | BF82: 101910 | BG82: 105367 | BH82: 106340 | BI82: 104981 | BJ82: 105745 | BK82: 109373 | BL82: 115767 | BM82: 124248 | BN82: 126347 | BO82: 127441 | BP82: 125541 | BQ82: 127590 | BR82: 126145 | BS82: 125024 | BT82: 123643 | BU82: 120314 | BV82: 114720 | BW82: 113015 | BX82: 108124 | BY82: 102051 | BZ82: 98250 | CA82: 95783 | CB82: 91406 | CC82: 89117 | CD82: 85587 | CE82: 82928 | CF82: 75062 | CG82: 69414 | CH82: 64037 | CI82: 58975 | CJ82: 53544 | CK82: 48829 | CL82: 43166 | CM82: 39297 | CN82: 35373 | CO82: 31278 | CP82: 29127 | CQ82: 26132 | CR82: 23302 | CS82: 21232 | CT82: 91141
A83: Québec | B83: 99 | C83: Ensemble du Québec | D83: 2023 | E83: Projection | F83: Masculin | G83: 4350504 | H83: 43679 | I83: 44139 | J83: 44514 | K83: 44711 | L83: 44457 | M83: 44456 | N83: 45451 | O83: 47096 | P83: 47322 | Q83: 47910 | R83: 48658 | S83: 48113 | T83: 48053 | U83: 48464 | V83: 48521 | W83: 47524 | X83: 46173 | Y83: 44585 | Z83: 44329 | AA83: 46464 | AB83: 47419 | AC83: 48683 | AD83: 50094 | AE83: 51491 | AF83: 51200 | AG83: 52069 | AH83: 54133 | AI83: 55357 | AJ83: 56606 | AK83: 57337 | AL83: 58823 | AM83: 60310 | AN83: 60731 | AO83: 59681 | AP83: 57125 | AQ83: 54933 | AR83: 54826 | AS83: 56525 | AT83: 57226 | AU83: 57797 | AV83: 57907 | AW83: 59855 | AX83: 60936 | AY83: 61240 | AZ83: 59332 | BA83: 58452 | BB83: 57686 | BC83: 56440 | BD83: 55711 | BE83: 52722 | BF83: 51606 | BG83: 51458 | BH83: 53345 | BI83: 53660 | BJ83: 52713 | BK83: 52855 | BL83: 54764 | BM83: 58141 | BN83: 62140 | BO83: 63211 | BP83: 63444 | BQ83: 62575 | BR83: 63382 | BS83: 62114 | BT83: 61384 | BU83: 60882 | BV83: 58978 | BW83: 56224 | BX83: 55064 | BY83: 52407 | BZ83: 49362 | CA83: 47411 | CB83: 45958 | CC83: 43643 | CD83: 42098 | CE83: 40094 | CF83: 38778 | CG83: 34694 | CH83: 31792 | CI83: 28941 | CJ83: 26421 | CK83: 23533 | CL83: 21038 | CM83: 18071 | CN83: 16127 | CO83: 14209 | CP83: 12145 | CQ83: 10877 | CR83: 9432 | CS83: 8076 | CT83: 30191
A84: Québec | B84: 99 | C84: Ensemble du Québec | D84: 2023 | E84: Projection | F84: Féminin | G84: 4346095 | H84: 41499 | I84: 41971 | J84: 42323 | K84: 42511 | L84: 42104 | M84: 42599 | N84: 43214 | O84: 44645 | P84: 45767 | Q84: 46159 | R84: 46091 | S84: 46224 | T84: 46129 | U84: 46525 | V84: 46749 | W84: 45860 | X84: 44528 | Y84: 43463 | Z84: 42599 | AA84: 44602 | AB84: 45370 | AC84: 46245 | AD84: 46756 | AE84: 47877 | AF84: 47359 | AG84: 48501 | AH84: 49576 | AI84: 51583 | AJ84: 52668 | AK84: 53309 | AL84: 54939 | AM84: 56459 | AN84: 57250 | AO84: 56601 | AP84: 53941 | AQ84: 52936 | AR84: 53295 | AS84: 54547 | AT84: 55512 | AU84: 56070 | AV84: 56367 | AW84: 57714 | AX84: 59334 | AY84: 59423 | AZ84: 57918 | BA84: 56639 | BB84: 56156 | BC84: 54563 | BD84: 53904 | BE84: 51600 | BF84: 50012 | BG84: 50277 | BH84: 51829 | BI84: 52427 | BJ84: 51996 | BK84: 52545 | BL84: 54245 | BM84: 57203 | BN84: 61598 | BO84: 62558 | BP84: 63353 | BQ84: 62274 | BR84: 63427 | BS84: 63188 | BT84: 62745 | BU84: 61784 | BV84: 60285 | BW84: 57406 | BX84: 56764 | BY84: 54499 | BZ84: 51433 | CA84: 49490 | CB84: 48376 | CC84: 46233 | CD84: 45368 | CE84: 43722 | CF84: 42238 | CG84: 38445 | CH84: 35654 | CI84: 33060 | CJ84: 30473 | CK84: 27892 | CL84: 25640 | CM84: 22943 | CN84: 20981 | CO84: 18956 | CP84: 16948 | CQ84: 15979 | CR84: 14399 | CS84: 12942 | CT84: 64534
A85: Québec | B85: 99 | C85: Ensemble du Québec | D85: 2023 | E85: Projection | F85: Total | G85: 8696599 | H85: 85178 | I85: 86110 | J85: 86837 | K85: 87222 | L85: 86561 | M85: 87055 | N85: 88665 | O85: 91741 | P85: 93089 | Q85: 94069 | R85: 94749 | S85: 94337 | T85: 94182 | U85: 94989 | V85: 95270 | W85: 93384 | X85: 90701 | Y85: 88048 | Z85: 86928 | AA85: 91066 | AB85: 92789 | AC85: 94928 | AD85: 96850 | AE85: 99368 | AF85: 98559 | AG85: 100570 | AH85: 103709 | AI85: 106940 | AJ85: 109274 | AK85: 110646 | AL85: 113762 | AM85: 116769 | AN85: 117981 | AO85: 116282 | AP85: 111066 | AQ85: 107869 | AR85: 108121 | AS85: 111072 | AT85: 112738 | AU85: 113867 | AV85: 114274 | AW85: 117569 | AX85: 120270 | AY85: 120663 | AZ85: 117250 | BA85: 115091 | BB85: 113842 | BC85: 111003 | BD85: 109615 | BE85: 104322 | BF85: 101618 | BG85: 101735 | BH85: 105174 | BI85: 106087 | BJ85: 104709 | BK85: 105400 | BL85: 109009 | BM85: 115344 | BN85: 123738 | BO85: 125769 | BP85: 126797 | BQ85: 124849 | BR85: 126809 | BS85: 125302 | BT85: 124129 | BU85: 122666 | BV85: 119263 | BW85: 113630 | BX85: 111828 | BY85: 106906 | BZ85: 100795 | CA85: 96901 | CB85: 94334 | CC85: 89876 | CD85: 87466 | CE85: 83816 | CF85: 81016 | CG85: 73139 | CH85: 67446 | CI85: 62001 | CJ85: 56894 | CK85: 51425 | CL85: 46678 | CM85: 41014 | CN85: 37108 | CO85: 33165 | CP85: 29093 | CQ85: 26856 | CR85: 23831 | CS85: 21018 | CT85: 94725
A86: Québec | B86: 99 | C86: Ensemble du Québec | D86: 2024 | E86: Projection | F86: Masculin | G86: 4377154 | H86: 43602 | I86: 44093 | J86: 44584 | K86: 44909 | L86: 45098 | M86: 44826 | N86: 44820 | O86: 45788 | P86: 47389 | Q86: 47563 | R86: 48167 | S86: 48872 | T86: 48330 | U86: 48269 | V86: 48692 | W86: 48764 | X86: 47879 | Y86: 46650 | Z86: 46038 | AA86: 46876 | AB86: 48144 | AC86: 48510 | AD86: 49516 | AE86: 50784 | AF86: 51847 | AG86: 51420 | AH86: 52233 | AI86: 54250 | AJ86: 55507 | AK86: 56765 | AL86: 57611 | AM86: 59120 | AN86: 60595 | AO86: 61079 | AP86: 60033 | AQ86: 57493 | AR86: 55284 | AS86: 55099 | AT86: 56794 | AU86: 57473 | AV86: 57993 | AW86: 58012 | AX86: 59921 | AY86: 60984 | AZ86: 61263 | BA86: 59319 | BB86: 58399 | BC86: 57618 | BD86: 56370 | BE86: 55629 | BF86: 52635 | BG86: 51479 | BH86: 51335 | BI86: 53186 | BJ86: 53492 | BK86: 52515 | BL86: 52646 | BM86: 54522 | BN86: 57863 | BO86: 61802 | BP86: 62828 | BQ86: 63016 | BR86: 62124 | BS86: 62894 | BT86: 61612 | BU86: 60815 | BV86: 60265 | BW86: 58315 | BX86: 55554 | BY86: 54341 | BZ86: 51662 | CA86: 48589 | CB86: 46584 | CC86: 45076 | CD86: 42707 | CE86: 41095 | CF86: 39037 | CG86: 37647 | CH86: 33559 | CI86: 30623 | CJ86: 27770 | CK86: 25221 | CL86: 22341 | CM86: 19831 | CN86: 16922 | CO86: 14976 | CP86: 13072 | CQ86: 11054 | CR86: 9782 | CS86: 8375 | CT86: 31718
A87: Québec | B87: 99 | C87: Ensemble du Québec | D87: 2024 | E87: Projection | F87: Féminin | G87: 4370455 | H87: 41421 | I87: 41934 | J87: 42386 | K87: 42694 | L87: 42857 | M87: 42452 | N87: 42960 | O87: 43542 | P87: 44904 | Q87: 46024 | R87: 46389 | S87: 46287 | T87: 46428 | U87: 46333 | V87: 46735 | W87: 47024 | X87: 46283 | Y87: 45103 | Z87: 44698 | AA87: 44984 | AB87: 45982 | AC87: 46183 | AD87: 46626 | AE87: 47063 | AF87: 48148 | AG87: 47657 | AH87: 48737 | AI87: 49927 | AJ87: 51950 | AK87: 53014 | AL87: 53701 | AM87: 55348 | AN87: 56861 | AO87: 57667 | AP87: 57060 | AQ87: 54378 | AR87: 53295 | AS87: 53599 | AT87: 54856 | AU87: 55750 | AV87: 56292 | AW87: 56521 | AX87: 57843 | AY87: 59448 | AZ87: 59461 | BA87: 57954 | BB87: 56657 | BC87: 56156 | BD87: 54543 | BE87: 53878 | BF87: 51557 | BG87: 49950 | BH87: 50209 | BI87: 51729 | BJ87: 52321 | BK87: 51866 | BL87: 52402 | BM87: 54095 | BN87: 57015 | BO87: 61375 | BP87: 62307 | BQ87: 63077 | BR87: 61966 | BS87: 63083 | BT87: 62826 | BU87: 62346 | BV87: 61352 | BW87: 59826 | BX87: 56926 | BY87: 56253 | BZ87: 53948 | CA87: 50859 | CB87: 48881 | CC87: 47710 | CD87: 45520 | CE87: 44588 | CF87: 42880 | CG87: 41328 | CH87: 37536 | CI87: 34709 | CJ87: 32074 | CK87: 29450 | CL87: 26853 | CM87: 24554 | CN87: 21855 | CO87: 19860 | CP87: 17803 | CQ87: 15784 | CR87: 14730 | CS87: 13141 | CT87: 65918
A88: Québec | B88: 99 | C88: Ensemble du Québec | D88: 2024 | E88: Projection | F88: Total | G88: 8747609 | H88: 85023 | I88: 86027 | J88: 86970 | K88: 87603 | L88: 87955 | M88: 87278 | N88: 87780 | O88: 89330 | P88: 92293 | Q88: 93587 | R88: 94556 | S88: 95159 | T88: 94758 | U88: 94602 | V88: 95427 | W88: 95788 | X88: 94162 | Y88: 91753 | Z88: 90736 | AA88: 91860 | AB88: 94126 | AC88: 94693 | AD88: 96142 | AE88: 97847 | AF88: 99995 | AG88: 99077 | AH88: 100970 | AI88: 104177 | AJ88: 107457 | AK88: 109779 | AL88: 111312 | AM88: 114468 | AN88: 117456 | AO88: 118746 | AP88: 117093 | AQ88: 111871 | AR88: 108579 | AS88: 108698 | AT88: 111650 | AU88: 113223 | AV88: 114285 | AW88: 114533 | AX88: 117764 | AY88: 120432 | AZ88: 120724 | BA88: 117273 | BB88: 115056 | BC88: 113774 | BD88: 110913 | BE88: 109507 | BF88: 104192 | BG88: 101429 | BH88: 101544 | BI88: 104915 | BJ88: 105813 | BK88: 104381 | BL88: 105048 | BM88: 108617 | BN88: 114878 | BO88: 123177 | BP88: 125135 | BQ88: 126093 | BR88: 124090 | BS88: 125977 | BT88: 124438 | BU88: 123161 | BV88: 121617 | BW88: 118141 | BX88: 112480 | BY88: 110594 | BZ88: 105610 | CA88: 99448 | CB88: 95465 | CC88: 92786 | CD88: 88227 | CE88: 85683 | CF88: 81917 | CG88: 78975 | CH88: 71095 | CI88: 65332 | CJ88: 59844 | CK88: 54671 | CL88: 49194 | CM88: 44385 | CN88: 38777 | CO88: 34836 | CP88: 30875 | CQ88: 26838 | CR88: 24512 | CS88: 21516 | CT88: 97636
A89: Québec | B89: 99 | C89: Ensemble du Québec | D89: 2025 | E89: Projection | F89: Masculin | G89: 4402700 | H89: 43490 | I89: 44019 | J89: 44548 | K89: 44985 | L89: 45298 | M89: 45475 | N89: 45200 | O89: 45154 | P89: 46075 | Q89: 47634 | R89: 47818 | S89: 48390 | T89: 49091 | U89: 48551 | V89: 48493 | W89: 48951 | X89: 49123 | Y89: 48357 | Z89: 48103 | AA89: 48596 | AB89: 48554 | AC89: 49228 | AD89: 49325 | AE89: 50188 | AF89: 51116 | AG89: 52028 | AH89: 51554 | AI89: 52329 | AJ89: 54375 | AK89: 55641 | AL89: 57026 | AM89: 57889 | AN89: 59402 | AO89: 60929 | AP89: 61408 | AQ89: 60384 | AR89: 57828 | AS89: 55546 | AT89: 55369 | AU89: 57032 | AV89: 57665 | AW89: 58088 | AX89: 58080 | AY89: 59961 | AZ89: 60997 | BA89: 61240 | BB89: 59263 | BC89: 58336 | BD89: 57545 | BE89: 56297 | BF89: 55526 | BG89: 52504 | BH89: 51358 | BI89: 51191 | BJ89: 53026 | BK89: 53292 | BL89: 52310 | BM89: 52420 | BN89: 54267 | BO89: 57550 | BP89: 61445 | BQ89: 62416 | BR89: 62587 | BS89: 61659 | BT89: 62391 | BU89: 61053 | BV89: 60215 | BW89: 59610 | BX89: 57636 | BY89: 54824 | BZ89: 53588 | CA89: 50858 | CB89: 47743 | CC89: 45695 | CD89: 44127 | CE89: 41725 | CF89: 40035 | CG89: 37906 | CH89: 36434 | CI89: 32363 | CJ89: 29409 | CK89: 26527 | CL89: 23960 | CM89: 21087 | CN89: 18588 | CO89: 15735 | CP89: 13791 | CQ89: 11929 | CR89: 9963 | CS89: 8704 | CT89: 33279
A90: Québec | B90: 99 | C90: Ensemble du Québec | D90: 2025 | E90: Projection | F90: Féminin | G90: 4394194 | H90: 41308 | I90: 41863 | J90: 42356 | K90: 42772 | L90: 43049 | M90: 43217 | N90: 42837 | O90: 43306 | P90: 43813 | Q90: 45168 | R90: 46247 | S90: 46592 | T90: 46484 | U90: 46629 | V90: 46545 | W90: 47015 | X90: 47452 | Y90: 46857 | Z90: 46362 | AA90: 47098 | AB90: 46353 | AC90: 46773 | AD90: 46538 | AE90: 46919 | AF90: 47314 | AG90: 48413 | AH90: 47869 | AI90: 49078 | AJ90: 50299 | AK90: 52289 | AL90: 53407 | AM90: 54124 | AN90: 55737 | AO90: 57281 | AP90: 58119 | AQ90: 57475 | AR90: 54731 | AS90: 53593 | AT90: 53891 | AU90: 55101 | AV90: 55968 | AW90: 56448 | AX90: 56647 | AY90: 57955 | AZ90: 59491 | BA90: 59494 | BB90: 57974 | BC90: 56668 | BD90: 56123 | BE90: 54519 | BF90: 53838 | BG90: 51496 | BH90: 49886 | BI90: 50116 | BJ90: 51630 | BK90: 52186 | BL90: 51732 | BM90: 52264 | BN90: 53929 | BO90: 56822 | BP90: 61142 | BQ90: 62037 | BR90: 62769 | BS90: 61644 | BT90: 62720 | BU90: 62419 | BV90: 61920 | BW90: 60898 | BX90: 59325 | BY90: 56429 | BZ90: 55693 | CA90: 53354 | CB90: 50240 | CC90: 48216 | CD90: 46986 | CE90: 44748 | CF90: 43749 | CG90: 41983 | CH90: 40369 | CI90: 36554 | CJ90: 33695 | CK90: 31031 | CL90: 28362 | CM90: 25733 | CN90: 23412 | CO90: 20706 | CP90: 18672 | CQ90: 16600 | CR90: 14583 | CS90: 13469 | CT90: 67276
A91: Québec | B91: 99 | C91: Ensemble du Québec | D91: 2025 | E91: Projection | F91: Total | G91: 8796894 | H91: 84798 | I91: 85882 | J91: 86904 | K91: 87757 | L91: 88347 | M91: 88692 | N91: 88037 | O91: 88460 | P91: 89888 | Q91: 92802 | R91: 94065 | S91: 94982 | T91: 95575 | U91: 95180 | V91: 95038 | W91: 95966 | X91: 96575 | Y91: 95214 | Z91: 94465 | AA91: 95694 | AB91: 94907 | AC91: 96001 | AD91: 95863 | AE91: 97107 | AF91: 98430 | AG91: 100441 | AH91: 99423 | AI91: 101407 | AJ91: 104674 | AK91: 107930 | AL91: 110433 | AM91: 112013 | AN91: 115139 | AO91: 118210 | AP91: 119527 | AQ91: 117859 | AR91: 112559 | AS91: 109139 | AT91: 109260 | AU91: 112133 | AV91: 113633 | AW91: 114536 | AX91: 114727 | AY91: 117916 | AZ91: 120488 | BA91: 120734 | BB91: 117237 | BC91: 115004 | BD91: 113668 | BE91: 110816 | BF91: 109364 | BG91: 104000 | BH91: 101244 | BI91: 101307 | BJ91: 104656 | BK91: 105478 | BL91: 104042 | BM91: 104684 | BN91: 108196 | BO91: 114372 | BP91: 122587 | BQ91: 124453 | BR91: 125356 | BS91: 123303 | BT91: 125111 | BU91: 123472 | BV91: 122135 | BW91: 120508 | BX91: 116961 | BY91: 111253 | BZ91: 109281 | CA91: 104212 | CB91: 97983 | CC91: 93911 | CD91: 91113 | CE91: 86473 | CF91: 83784 | CG91: 79889 | CH91: 76803 | CI91: 68917 | CJ91: 63104 | CK91: 57558 | CL91: 52322 | CM91: 46820 | CN91: 42000 | CO91: 36441 | CP91: 32463 | CQ91: 28529 | CR91: 24546 | CS91: 22173 | CT91: 100555
A92: Québec | B92: 99 | C92: Ensemble du Québec | D92: 2026 | E92: Projection | F92: Masculin | G92: 4427164 | H92: 43350 | I92: 43918 | J92: 44486 | K92: 44956 | L92: 45382 | M92: 45680 | N92: 45844 | O92: 45544 | P92: 45456 | Q92: 46325 | R92: 47897 | S92: 48047 | T92: 48605 | U92: 49320 | V92: 48777 | W92: 48754 | X92: 49302 | Y92: 49601 | Z92: 49819 | AA92: 50668 | AB92: 50269 | AC92: 49601 | AD92: 50013 | AE92: 49976 | AF92: 50492 | AG92: 51264 | AH92: 52132 | AI92: 51627 | AJ92: 52453 | AK92: 54511 | AL92: 55893 | AM92: 57306 | AN92: 58163 | AO92: 59736 | AP92: 61267 | AQ92: 61761 | AR92: 60698 | AS92: 58082 | AT92: 55812 | AU92: 55606 | AV92: 57220 | AW92: 57757 | AX92: 58160 | AY92: 58122 | AZ92: 59978 | BA92: 60976 | BB92: 61169 | BC92: 59188 | BD92: 58250 | BE92: 57458 | BF92: 56190 | BG92: 55396 | BH92: 52378 | BI92: 51212 | BJ92: 51035 | BK92: 52830 | BL92: 53085 | BM92: 52089 | BN92: 52173 | BO92: 53980 | BP92: 57229 | BQ92: 61047 | BR92: 62001 | BS92: 62126 | BT92: 61176 | BU92: 61837 | BV92: 60461 | BW92: 59573 | BX92: 58924 | BY92: 56905 | BZ92: 54079 | CA92: 52776 | CB92: 49997 | CC92: 46854 | CD92: 44765 | CE92: 43121 | CF92: 40668 | CG92: 38907 | CH92: 36723 | CI92: 35149 | CJ92: 31094 | CK92: 28113 | CL92: 25223 | CM92: 22636 | CN92: 19782 | CO92: 17301 | CP92: 14518 | CQ92: 12599 | CR92: 10764 | CS92: 8878 | CT92: 34899
A93: Québec | B93: 99 | C93: Ensemble du Québec | D93: 2026 | E93: Projection | F93: Féminin | G93: 4417212 | H93: 41183 | I93: 41765 | J93: 42300 | K93: 42743 | L93: 43137 | M93: 43419 | N93: 43598 | O93: 43183 | P93: 43580 | Q93: 44089 | R93: 45410 | S93: 46458 | T93: 46795 | U93: 46693 | V93: 46849 | W93: 46817 | X93: 47441 | Y93: 48028 | Z93: 48119 | AA93: 48752 | AB93: 48455 | AC93: 47135 | AD93: 47103 | AE93: 46802 | AF93: 47145 | AG93: 47569 | AH93: 48611 | AI93: 48211 | AJ93: 49442 | AK93: 50647 | AL93: 52685 | AM93: 53819 | AN93: 54519 | AO93: 56168 | AP93: 57735 | AQ93: 58549 | AR93: 57838 | AS93: 55024 | AT93: 53894 | AU93: 54138 | AV93: 55327 | AW93: 56124 | AX93: 56577 | AY93: 56761 | AZ93: 58002 | BA93: 59521 | BB93: 59508 | BC93: 57970 | BD93: 56635 | BE93: 56103 | BF93: 54469 | BG93: 53766 | BH93: 51434 | BI93: 49794 | BJ93: 50017 | BK93: 51501 | BL93: 52048 | BM93: 51591 | BN93: 52102 | BO93: 53743 | BP93: 56615 | BQ93: 60883 | BR93: 61748 | BS93: 62452 | BT93: 61309 | BU93: 62341 | BV93: 61994 | BW93: 61454 | BX93: 60397 | BY93: 58809 | BZ93: 55868 | CA93: 55092 | CB93: 52705 | CC93: 49567 | CD93: 47490 | CE93: 46199 | CF93: 43917 | CG93: 42839 | CH93: 41011 | CI93: 39329 | CJ93: 35507 | CK93: 32609 | CL93: 29897 | CM93: 27201 | CN93: 24551 | CO93: 22184 | CP93: 19485 | CQ93: 17425 | CR93: 15348 | CS93: 13333 | CT93: 68812
A94: Québec | B94: 99 | C94: Ensemble du Québec | D94: 2026 | E94: Projection | F94: Total | G94: 8844376 | H94: 84533 | I94: 85683 | J94: 86786 | K94: 87699 | L94: 88519 | M94: 89099 | N94: 89442 | O94: 88727 | P94: 89036 | Q94: 90414 | R94: 93307 | S94: 94505 | T94: 95400 | U94: 96013 | V94: 95626 | W94: 95571 | X94: 96743 | Y94: 97629 | Z94: 97938 | AA94: 99420 | AB94: 98724 | AC94: 96736 | AD94: 97116 | AE94: 96778 | AF94: 97637 | AG94: 98833 | AH94: 100743 | AI94: 99838 | AJ94: 101895 | AK94: 105158 | AL94: 108578 | AM94: 111125 | AN94: 112682 | AO94: 115904 | AP94: 119002 | AQ94: 120310 | AR94: 118536 | AS94: 113106 | AT94: 109706 | AU94: 109744 | AV94: 112547 | AW94: 113881 | AX94: 114737 | AY94: 114883 | AZ94: 117980 | BA94: 120497 | BB94: 120677 | BC94: 117158 | BD94: 114885 | BE94: 113561 | BF94: 110659 | BG94: 109162 | BH94: 103812 | BI94: 101006 | BJ94: 101052 | BK94: 104331 | BL94: 105133 | BM94: 103680 | BN94: 104275 | BO94: 107723 | BP94: 113844 | BQ94: 121930 | BR94: 123749 | BS94: 124578 | BT94: 122485 | BU94: 124178 | BV94: 122455 | BW94: 121027 | BX94: 119321 | BY94: 115714 | BZ94: 109947 | CA94: 107868 | CB94: 102702 | CC94: 96421 | CD94: 92255 | CE94: 89320 | CF94: 84585 | CG94: 81746 | CH94: 77734 | CI94: 74478 | CJ94: 66601 | CK94: 60722 | CL94: 55120 | CM94: 49837 | CN94: 44333 | CO94: 39485 | CP94: 34003 | CQ94: 30024 | CR94: 26112 | CS94: 22211 | CT94: 103711
A95: Québec | B95: 99 | C95: Ensemble du Québec | D95: 2027 | E95: Projection | F95: Masculin | G95: 4450209 | H95: 43190 | I95: 43781 | J95: 44376 | K95: 44898 | L95: 45353 | M95: 45771 | N95: 46051 | O95: 46185 | P95: 45851 | Q95: 45718 | R95: 46582 | S95: 48125 | T95: 48274 | U95: 48826 | V95: 49542 | W95: 49042 | X95: 49114 | Y95: 49785 | Z95: 51060 | AA95: 52373 | AB95: 52309 | AC95: 51284 | AD95: 50358 | AE95: 50612 | AF95: 50235 | AG95: 50601 | AH95: 51332 | AI95: 52172 | AJ95: 51719 | AK95: 52564 | AL95: 54744 | AM95: 56168 | AN95: 57569 | AO95: 58493 | AP95: 60059 | AQ95: 61602 | AR95: 62069 | AS95: 60933 | AT95: 58331 | AU95: 56045 | AV95: 55785 | AW95: 57317 | AX95: 57815 | AY95: 58199 | AZ95: 58134 | BA95: 59945 | BB95: 60907 | BC95: 61094 | BD95: 59107 | BE95: 58163 | BF95: 57357 | BG95: 56057 | BH95: 55257 | BI95: 52226 | BJ95: 51056 | BK95: 50851 | BL95: 52620 | BM95: 52858 | BN95: 51848 | BO95: 51913 | BP95: 53681 | BQ95: 56857 | BR95: 60638 | BS95: 61544 | BT95: 61643 | BU95: 60645 | BV95: 61242 | BW95: 59829 | BX95: 58902 | BY95: 58184 | BZ95: 56152 | CA95: 53274 | CB95: 51898 | CC95: 49092 | CD95: 45913 | CE95: 43770 | CF95: 42055 | CG95: 39531 | CH95: 37701 | CI95: 35455 | CJ95: 33794 | CK95: 29742 | CL95: 26758 | CM95: 23866 | CN95: 21271 | CO95: 18434 | CP95: 15983 | CQ95: 13276 | CR95: 11400 | CS95: 9606 | CT95: 36468
A96: Québec | B96: 99 | C96: Ensemble du Québec | D96: 2027 | E96: Projection | F96: Féminin | G96: 4439257 | H96: 41025 | I96: 41633 | J96: 42194 | K96: 42685 | L96: 43116 | M96: 43496 | N96: 43793 | O96: 43936 | P96: 43457 | Q96: 43852 | R96: 44332 | S96: 45619 | T96: 46662 | U96: 47007 | V96: 46911 | W96: 47124 | X96: 47250 | Y96: 48020 | Z96: 49282 | AA96: 50501 | AB96: 50089 | AC96: 49207 | AD96: 47442 | AE96: 47344 | AF96: 47008 | AG96: 47387 | AH96: 47753 | AI96: 48926 | AJ96: 48566 | AK96: 49785 | AL96: 51038 | AM96: 53106 | AN96: 54222 | AO96: 54942 | AP96: 56615 | AQ96: 58161 | AR96: 58899 | AS96: 58127 | AT96: 55326 | AU96: 54147 | AV96: 54368 | AW96: 55480 | AX96: 56255 | AY96: 56682 | AZ96: 56804 | BA96: 58033 | BB96: 59530 | BC96: 59499 | BD96: 57945 | BE96: 56614 | BF96: 56054 | BG96: 54403 | BH96: 53705 | BI96: 51337 | BJ96: 49705 | BK96: 49902 | BL96: 51376 | BM96: 51915 | BN96: 51434 | BO96: 51928 | BP96: 53550 | BQ96: 56373 | BR96: 60595 | BS96: 61439 | BT96: 62102 | BU96: 60934 | BV96: 61925 | BW96: 61554 | BX96: 60961 | BY96: 59874 | BZ96: 58242 | CA96: 55267 | CB96: 54439 | CC96: 52009 | CD96: 48834 | CE96: 46703 | CF96: 45361 | CG96: 43025 | CH96: 41869 | CI96: 39980 | CJ96: 38215 | CK96: 34368 | CL96: 31430 | CM96: 28686 | CN96: 25958 | CO96: 23283 | CP96: 20901 | CQ96: 18198 | CR96: 16126 | CS96: 14059 | CT96: 70043
A97: Québec | B97: 99 | C97: Ensemble du Québec | D97: 2027 | E97: Projection | F97: Total | G97: 8889466 | H97: 84215 | I97: 85414 | J97: 86570 | K97: 87583 | L97: 88469 | M97: 89267 | N97: 89844 | O97: 90121 | P97: 89308 | Q97: 89570 | R97: 90914 | S97: 93744 | T97: 94936 | U97: 95833 | V97: 96453 | W97: 96166 | X97: 96364 | Y97: 97805 | Z97: 100342 | AA97: 102874 | AB97: 102398 | AC97: 100491 | AD97: 97800 | AE97: 97956 | AF97: 97243 | AG97: 97988 | AH97: 99085 | AI97: 101098 | AJ97: 100285 | AK97: 102349 | AL97: 105782 | AM97: 109274 | AN97: 111791 | AO97: 113435 | AP97: 116674 | AQ97: 119763 | AR97: 120968 | AS97: 119060 | AT97: 113657 | AU97: 110192 | AV97: 110153 | AW97: 112797 | AX97: 114070 | AY97: 114881 | AZ97: 114938 | BA97: 117978 | BB97: 120437 | BC97: 120593 | BD97: 117052 | BE97: 114777 | BF97: 113411 | BG97: 110460 | BH97: 108962 | BI97: 103563 | BJ97: 100761 | BK97: 100753 | BL97: 103996 | BM97: 104773 | BN97: 103282 | BO97: 103841 | BP97: 107231 | BQ97: 113230 | BR97: 121233 | BS97: 122983 | BT97: 123745 | BU97: 121579 | BV97: 123167 | BW97: 121383 | BX97: 119863 | BY97: 118058 | BZ97: 114394 | CA97: 108541 | CB97: 106337 | CC97: 101101 | CD97: 94747 | CE97: 90473 | CF97: 87416 | CG97: 82556 | CH97: 79570 | CI97: 75435 | CJ97: 72009 | CK97: 64110 | CL97: 58188 | CM97: 52552 | CN97: 47229 | CO97: 41717 | CP97: 36884 | CQ97: 31474 | CR97: 27526 | CS97: 23665 | CT97: 106511
A98: Québec | B98: 99 | C98: Ensemble du Québec | D98: 2028 | E98: Projection | F98: Masculin | G98: 4472384 | H98: 43017 | I98: 43627 | J98: 44242 | K98: 44800 | L98: 45295 | M98: 45738 | N98: 46142 | O98: 46404 | P98: 46495 | Q98: 46105 | R98: 45982 | S98: 46819 | T98: 48355 | U98: 48496 | V98: 49065 | W98: 49811 | X98: 49398 | Y98: 49590 | Z98: 51239 | AA98: 53621 | AB98: 54004 | AC98: 53326 | AD98: 52030 | AE98: 50965 | AF98: 50870 | AG98: 50349 | AH98: 50674 | AI98: 51375 | AJ98: 52259 | AK98: 51840 | AL98: 52812 | AM98: 55018 | AN98: 56430 | AO98: 57894 | AP98: 58818 | AQ98: 60389 | AR98: 61912 | AS98: 62300 | AT98: 61184 | AU98: 58558 | AV98: 56237 | AW98: 55883 | AX98: 57378 | AY98: 57864 | AZ98: 58208 | BA98: 58111 | BB98: 59891 | BC98: 60839 | BD98: 61006 | BE98: 59020 | BF98: 58058 | BG98: 57215 | BH98: 55912 | BI98: 55100 | BJ98: 52081 | BK98: 50877 | BL98: 50657 | BM98: 52411 | BN98: 52618 | BO98: 51590 | BP98: 51624 | BQ98: 53347 | BR98: 56489 | BS98: 60201 | BT98: 61080 | BU98: 61110 | BV98: 60081 | BW98: 60625 | BX98: 59162 | BY98: 58184 | BZ98: 57426 | CA98: 55322 | CB98: 52402 | CC98: 50962 | CD98: 48120 | CE98: 44905 | CF98: 42697 | CG98: 40911 | CH98: 38329 | CI98: 36429 | CJ98: 34108 | CK98: 32372 | CL98: 28331 | CM98: 25338 | CN98: 22439 | CO98: 19850 | CP98: 17058 | CQ98: 14639 | CR98: 12033 | CS98: 10200 | CT98: 38406
A99: Québec | B99: 99 | C99: Ensemble du Québec | D99: 2028 | E99: Projection | F99: Féminin | G99: 4460516 | H99: 40869 | I99: 41488 | J99: 42073 | K99: 42588 | L99: 43049 | M99: 43481 | N99: 43879 | O99: 44135 | P99: 44215 | Q99: 43724 | R99: 44088 | S99: 44531 | T99: 45822 | U99: 46868 | V99: 47221 | W99: 47199 | X99: 47558 | Y99: 47829 | Z99: 49268 | AA99: 51664 | AB99: 51830 | AC99: 50839 | AD99: 49502 | AE99: 47677 | AF99: 47552 | AG99: 47244 | AH99: 47567 | AI99: 48079 | AJ99: 49280 | AK99: 48912 | AL99: 50185 | AM99: 51465 | AN99: 53505 | AO99: 54651 | AP99: 55400 | AQ99: 57042 | AR99: 58511 | AS99: 59173 | AT99: 58412 | AU99: 55576 | AV99: 54363 | AW99: 54530 | AX99: 55614 | AY99: 56376 | AZ99: 56729 | BA99: 56844 | BB99: 58050 | BC99: 59540 | BD99: 59476 | BE99: 57916 | BF99: 56560 | BG99: 55981 | BH99: 54342 | BI99: 53598 | BJ99: 51240 | BK99: 49596 | BL99: 49777 | BM99: 51241 | BN99: 51755 | BO99: 51276 | BP99: 51741 | BQ99: 53334 | BR99: 56122 | BS99: 60291 | BT99: 61103 | BU99: 61728 | BV99: 60539 | BW99: 61484 | BX99: 61070 | BY99: 60436 | BZ99: 59308 | CA99: 57631 | CB99: 54626 | CC99: 53726 | CD99: 51256 | CE99: 48037 | CF99: 45859 | CG99: 44450 | CH99: 42056 | CI99: 40818 | CJ99: 38855 | CK99: 37002 | CL99: 33152 | CM99: 30178 | CN99: 27390 | CO99: 24646 | CP99: 21948 | CQ99: 19529 | CR99: 16863 | CS99: 14795 | CT99: 71788
A100: Québec | B100: 99 | C100: Ensemble du Québec | D100: 2028 | E100: Projection | F100: Total | G100: 8932900 | H100: 83886 | I100: 85115 | J100: 86315 | K100: 87388 | L100: 88344 | M100: 89219 | N100: 90021 | O100: 90539 | P100: 90710 | Q100: 89829 | R100: 90070 | S100: 91350 | T100: 94177 | U100: 95364 | V100: 96286 | W100: 97010 | X100: 96956 | Y100: 97419 | Z100: 100507 | AA100: 105285 | AB100: 105834 | AC100: 104165 | AD100: 101532 | AE100: 98642 | AF100: 98422 | AG100: 97593 | AH100: 98241 | AI100: 99454 | AJ100: 101539 | AK100: 100752 | AL100: 102997 | AM100: 106483 | AN100: 109935 | AO100: 112545 | AP100: 114218 | AQ100: 117431 | AR100: 120423 | AS100: 121473 | AT100: 119596 | AU100: 114134 | AV100: 110600 | AW100: 110413 | AX100: 112992 | AY100: 114240 | AZ100: 114937 | BA100: 114955 | BB100: 117941 | BC100: 120379 | BD100: 120482 | BE100: 116936 | BF100: 114618 | BG100: 113196 | BH100: 110254 | BI100: 108698 | BJ100: 103321 | BK100: 100473 | BL100: 100434 | BM100: 103652 | BN100: 104373 | BO100: 102866 | BP100: 103365 | BQ100: 106681 | BR100: 112611 | BS100: 120492 | BT100: 122183 | BU100: 122838 | BV100: 120620 | BW100: 122109 | BX100: 120232 | BY100: 118620 | BZ100: 116734 | CA100: 112953 | CB100: 107028 | CC100: 104688 | CD100: 99376 | CE100: 92942 | CF100: 88556 | CG100: 85361 | CH100: 80385 | CI100: 77247 | CJ100: 72963 | CK100: 69374 | CL100: 61483 | CM100: 55516 | CN100: 49829 | CO100: 44496 | CP100: 39006 | CQ100: 34168 | CR100: 28896 | CS100: 24995 | CT100: 110194
A101: Québec | B101: 99 | C101: Ensemble du Québec | D101: 2029 | E101: Projection | F101: Masculin | G101: 4493683 | H101: 42865 | I101: 43457 | J101: 44093 | K101: 44658 | L101: 45196 | M101: 45681 | N101: 46116 | O101: 46485 | P101: 46697 | Q101: 46753 | R101: 46367 | S101: 46210 | T101: 47045 | U101: 48569 | V101: 48722 | W101: 49310 | X101: 50162 | Y101: 49875 | Z101: 51055 | AA101: 53793 | AB101: 55246 | AC101: 55024 | AD101: 54056 | AE101: 52634 | AF101: 51224 | AG101: 50985 | AH101: 50433 | AI101: 50724 | AJ101: 51467 | AK101: 52376 | AL101: 52092 | AM101: 53101 | AN101: 55286 | AO101: 56763 | AP101: 58235 | AQ101: 59171 | AR101: 60714 | AS101: 62143 | AT101: 62539 | AU101: 61399 | AV101: 58737 | AW101: 56328 | AX101: 55955 | AY101: 57422 | AZ101: 57878 | BA101: 58191 | BB101: 58062 | BC101: 59816 | BD101: 60747 | BE101: 60920 | BF101: 58918 | BG101: 57925 | BH101: 57078 | BI101: 55767 | BJ101: 54943 | BK101: 51893 | BL101: 50690 | BM101: 50460 | BN101: 52181 | BO101: 52362 | BP101: 51319 | BQ101: 51306 | BR101: 53002 | BS101: 56094 | BT101: 59761 | BU101: 60565 | BV101: 60563 | BW101: 59478 | BX101: 59961 | BY101: 58457 | BZ101: 57434 | CA101: 56598 | CB101: 54434 | CC101: 51490 | CD101: 49987 | CE101: 47082 | CF101: 43831 | CG101: 41557 | CH101: 39691 | CI101: 37061 | CJ101: 35075 | CK101: 32689 | CL101: 30856 | CM101: 26856 | CN101: 23852 | CO101: 20956 | CP101: 18373 | CQ101: 15642 | CR101: 13285 | CS101: 10785 | CT101: 40649
A102: Québec | B102: 99 | C102: Ensemble du Québec | D102: 2029 | E102: Projection | F102: Féminin | G102: 4480969 | H102: 40724 | I102: 41330 | J102: 41924 | K102: 42462 | L102: 42953 | M102: 43422 | N102: 43856 | O102: 44233 | P102: 44408 | Q102: 44480 | R102: 43972 | S102: 44294 | T102: 44746 | U102: 46028 | V102: 47087 | W102: 47497 | X102: 47628 | Y102: 48127 | Z102: 49083 | AA102: 51652 | AB102: 52998 | AC102: 52577 | AD102: 51135 | AE102: 49736 | AF102: 47880 | AG102: 47787 | AH102: 47429 | AI102: 47887 | AJ102: 48432 | AK102: 49632 | AL102: 49318 | AM102: 50616 | AN102: 51869 | AO102: 53940 | AP102: 55103 | AQ102: 55831 | AR102: 57393 | AS102: 58793 | AT102: 59468 | AU102: 58652 | AV102: 55799 | AW102: 54534 | AX102: 54656 | AY102: 55723 | AZ102: 56416 | BA102: 56768 | BB102: 56856 | BC102: 58054 | BD102: 59495 | BE102: 59447 | BF102: 57860 | BG102: 56482 | BH102: 55912 | BI102: 54233 | BJ102: 53496 | BK102: 51113 | BL102: 49472 | BM102: 49660 | BN102: 51094 | BO102: 51594 | BP102: 51100 | BQ102: 51548 | BR102: 53099 | BS102: 55853 | BT102: 59984 | BU102: 60743 | BV102: 61335 | BW102: 60106 | BX102: 60998 | BY102: 60553 | BZ102: 59873 | CA102: 58690 | CB102: 56957 | CC102: 53919 | CD102: 52964 | CE102: 50440 | CF102: 47189 | CG102: 44948 | CH102: 43465 | CI102: 41021 | CJ102: 39685 | CK102: 37640 | CL102: 35710 | CM102: 31841 | CN102: 28838 | CO102: 26022 | CP102: 23244 | CQ102: 20535 | CR102: 18113 | CS102: 15477 | CT102: 74033
A103: Québec | B103: 99 | C103: Ensemble du Québec | D103: 2029 | E103: Projection | F103: Total | G103: 8974652 | H103: 83589 | I103: 84787 | J103: 86017 | K103: 87120 | L103: 88149 | M103: 89103 | N103: 89972 | O103: 90718 | P103: 91105 | Q103: 91233 | R103: 90339 | S103: 90504 | T103: 91791 | U103: 94597 | V103: 95809 | W103: 96807 | X103: 97790 | Y103: 98002 | Z103: 100138 | AA103: 105445 | AB103: 108244 | AC103: 107601 | AD103: 105191 | AE103: 102370 | AF103: 99104 | AG103: 98772 | AH103: 97862 | AI103: 98611 | AJ103: 99899 | AK103: 102008 | AL103: 101410 | AM103: 103717 | AN103: 107155 | AO103: 110703 | AP103: 113338 | AQ103: 115002 | AR103: 118107 | AS103: 120936 | AT103: 122007 | AU103: 120051 | AV103: 114536 | AW103: 110862 | AX103: 110611 | AY103: 113145 | AZ103: 114294 | BA103: 114959 | BB103: 114918 | BC103: 117870 | BD103: 120242 | BE103: 120367 | BF103: 116778 | BG103: 114407 | BH103: 112990 | BI103: 110000 | BJ103: 108439 | BK103: 103006 | BL103: 100162 | BM103: 100120 | BN103: 103275 | BO103: 103956 | BP103: 102419 | BQ103: 102854 | BR103: 106101 | BS103: 111947 | BT103: 119745 | BU103: 121308 | BV103: 121898 | BW103: 119584 | BX103: 120959 | BY103: 119010 | BZ103: 117307 | CA103: 115288 | CB103: 111391 | CC103: 105409 | CD103: 102951 | CE103: 97522 | CF103: 91020 | CG103: 86505 | CH103: 83156 | CI103: 78082 | CJ103: 74760 | CK103: 70329 | CL103: 66566 | CM103: 58697 | CN103: 52690 | CO103: 46978 | CP103: 41617 | CQ103: 36177 | CR103: 31398 | CS103: 26262 | CT103: 114682
A104: Québec | B104: 99 | C104: Ensemble du Québec | D104: 2030 | E104: Projection | F104: Masculin | G104: 4514110 | H104: 42733 | I104: 43303 | J104: 43924 | K104: 44504 | L104: 45062 | M104: 45576 | N104: 46057 | O104: 46457 | P104: 46795 | Q104: 46959 | R104: 47014 | S104: 46600 | T104: 46440 | U104: 47268 | V104: 48801 | W104: 48982 | X104: 49678 | Y104: 50645 | Z104: 51335 | AA104: 53608 | AB104: 55430 | AC104: 56256 | AD104: 55766 | AE104: 54667 | AF104: 52890 | AG104: 51338 | AH104: 51062 | AI104: 50477 | AJ104: 50827 | AK104: 51593 | AL104: 52619 | AM104: 52374 | AN104: 53372 | AO104: 55628 | AP104: 57100 | AQ104: 58573 | AR104: 59491 | AS104: 60945 | AT104: 62391 | AU104: 62760 | AV104: 61572 | AW104: 58831 | AX104: 56394 | AY104: 56010 | AZ104: 57437 | BA104: 57857 | BB104: 58136 | BC104: 57992 | BD104: 59736 | BE104: 60659 | BF104: 60812 | BG104: 58788 | BH104: 57796 | BI104: 56929 | BJ104: 55611 | BK104: 54759 | BL104: 51709 | BM104: 50494 | BN104: 50239 | BO104: 51931 | BP104: 52090 | BQ104: 51001 | BR104: 50982 | BS104: 52647 | BT104: 55686 | BU104: 59276 | BV104: 60020 | BW104: 59961 | BX104: 58844 | BY104: 59252 | BZ104: 57717 | CA104: 56624 | CB104: 55707 | CC104: 53493 | CD104: 50501 | CE104: 48921 | CF104: 45974 | CG104: 42678 | CH104: 40330 | CI104: 38388 | CJ104: 35700 | CK104: 33634 | CL104: 31189 | CM104: 29269 | CN104: 25301 | CO104: 22309 | CP104: 19443 | CQ104: 16891 | CR104: 14224 | CS104: 11938 | CT104: 43128
A105: Québec | B105: 99 | C105: Ensemble du Québec | D105: 2030 | E105: Projection | F105: Féminin | G105: 4500600 | H105: 40597 | I105: 41174 | J105: 41772 | K105: 42311 | L105: 42836 | M105: 43326 | N105: 43802 | O105: 44205 | P105: 44496 | Q105: 44682 | R105: 44728 | S105: 44180 | T105: 44501 | U105: 44961 | V105: 46248 | W105: 47366 | X105: 47932 | Y105: 48202 | Z105: 49383 | AA105: 51471 | AB105: 52989 | AC105: 53738 | AD105: 52874 | AE105: 51364 | AF105: 49935 | AG105: 48109 | AH105: 47959 | AI105: 47749 | AJ105: 48254 | AK105: 48769 | AL105: 50029 | AM105: 49738 | AN105: 51023 | AO105: 52305 | AP105: 54392 | AQ105: 55537 | AR105: 56189 | AS105: 57680 | AT105: 59086 | AU105: 59705 | AV105: 58868 | AW105: 55949 | AX105: 54659 | AY105: 54776 | AZ105: 55770 | BA105: 56450 | BB105: 56788 | BC105: 56859 | BD105: 58020 | BE105: 59478 | BF105: 59386 | BG105: 57785 | BH105: 56418 | BI105: 55812 | BJ105: 54128 | BK105: 53369 | BL105: 50997 | BM105: 49349 | BN105: 49517 | BO105: 50933 | BP105: 51425 | BQ105: 50901 | BR105: 51327 | BS105: 52852 | BT105: 55573 | BU105: 59638 | BV105: 60361 | BW105: 60912 | BX105: 59655 | BY105: 60504 | BZ105: 59987 | CA105: 59265 | CB105: 58020 | CC105: 56233 | CD105: 53153 | CE105: 52118 | CF105: 49545 | CG105: 46265 | CH105: 43974 | CI105: 42394 | CJ105: 39894 | CK105: 38468 | CL105: 36340 | CM105: 34315 | CN105: 30437 | CO105: 27408 | CP105: 24559 | CQ105: 21776 | CR105: 19057 | CS105: 16652 | CT105: 76684
A106: Québec | B106: 99 | C106: Ensemble du Québec | D106: 2030 | E106: Projection | F106: Total | G106: 9014710 | H106: 83330 | I106: 84477 | J106: 85696 | K106: 86815 | L106: 87898 | M106: 88902 | N106: 89859 | O106: 90662 | P106: 91291 | Q106: 91641 | R106: 91742 | S106: 90780 | T106: 90941 | U106: 92229 | V106: 95049 | W106: 96348 | X106: 97610 | Y106: 98847 | Z106: 100718 | AA106: 105079 | AB106: 108419 | AC106: 109994 | AD106: 108640 | AE106: 106031 | AF106: 102825 | AG106: 99447 | AH106: 99021 | AI106: 98226 | AJ106: 99081 | AK106: 100362 | AL106: 102648 | AM106: 102112 | AN106: 104395 | AO106: 107933 | AP106: 111492 | AQ106: 114110 | AR106: 115680 | AS106: 118625 | AT106: 121477 | AU106: 122465 | AV106: 120440 | AW106: 114780 | AX106: 111053 | AY106: 110786 | AZ106: 113207 | BA106: 114307 | BB106: 114924 | BC106: 114851 | BD106: 117756 | BE106: 120137 | BF106: 120198 | BG106: 116573 | BH106: 114214 | BI106: 112741 | BJ106: 109739 | BK106: 108128 | BL106: 102706 | BM106: 99843 | BN106: 99756 | BO106: 102864 | BP106: 103515 | BQ106: 101902 | BR106: 102309 | BS106: 105499 | BT106: 111259 | BU106: 118914 | BV106: 120381 | BW106: 120873 | BX106: 118499 | BY106: 119756 | BZ106: 117704 | CA106: 115889 | CB106: 113727 | CC106: 109726 | CD106: 103654 | CE106: 101039 | CF106: 95519 | CG106: 88943 | CH106: 84304 | CI106: 80782 | CJ106: 75594 | CK106: 72102 | CL106: 67529 | CM106: 63584 | CN106: 55738 | CO106: 49717 | CP106: 44002 | CQ106: 38667 | CR106: 33281 | CS106: 28590 | CT106: 119812
A107: Québec | B107: 99 | C107: Ensemble du Québec | D107: 2031 | E107: Projection | F107: Masculin | G107: 4533649 | H107: 42637 | I107: 43174 | J107: 43771 | K107: 44337 | L107: 44898 | M107: 45446 | N107: 45953 | O107: 46394 | P107: 46770 | Q107: 47043 | R107: 47215 | S107: 47236 | T107: 46828 | U107: 46665 | V107: 47506 | W107: 49059 | X107: 49344 | Y107: 50153 | Z107: 52098 | AA107: 53890 | AB107: 55241 | AC107: 56444 | AD107: 57004 | AE107: 56360 | AF107: 54919 | AG107: 53002 | AH107: 51404 | AI107: 51120 | AJ107: 50582 | AK107: 50955 | AL107: 51841 | AM107: 52909 | AN107: 52656 | AO107: 53721 | AP107: 55970 | AQ107: 57450 | AR107: 58906 | AS107: 59730 | AT107: 61192 | AU107: 62601 | AV107: 62923 | AW107: 61656 | AX107: 58890 | AY107: 56447 | AZ107: 56026 | BA107: 57421 | BB107: 57811 | BC107: 58078 | BD107: 57925 | BE107: 59655 | BF107: 60555 | BG107: 60678 | BH107: 58650 | BI107: 57639 | BJ107: 56768 | BK107: 55419 | BL107: 54564 | BM107: 51514 | BN107: 50275 | BO107: 50004 | BP107: 51656 | BQ107: 51775 | BR107: 50685 | BS107: 50644 | BT107: 52274 | BU107: 55244 | BV107: 58748 | BW107: 59451 | BX107: 59330 | BY107: 58170 | BZ107: 58527 | CA107: 56919 | CB107: 55744 | CC107: 54767 | CD107: 52503 | CE107: 49452 | CF107: 47787 | CG107: 44785 | CH107: 41457 | CI107: 39035 | CJ107: 37017 | CK107: 34271 | CL107: 32121 | CM107: 29611 | CN107: 27608 | CO107: 23700 | CP107: 20716 | CQ107: 17884 | CR107: 15372 | CS107: 12795 | CT107: 46279
A108: Québec | B108: 99 | C108: Ensemble du Québec | D108: 2031 | E108: Projection | F108: Féminin | G108: 4519456 | H108: 40506 | I108: 41050 | J108: 41619 | K108: 42157 | L108: 42683 | M108: 43196 | N108: 43710 | O108: 44149 | P108: 44467 | Q108: 44772 | R108: 44926 | S108: 44931 | T108: 44388 | U108: 44720 | V108: 45180 | W108: 46524 | X108: 47797 | Y108: 48504 | Z108: 49454 | AA108: 51761 | AB108: 52802 | AC108: 53730 | AD108: 54028 | AE108: 53098 | AF108: 51556 | AG108: 50152 | AH108: 48290 | AI108: 48281 | AJ108: 48114 | AK108: 48598 | AL108: 49186 | AM108: 50455 | AN108: 50160 | AO108: 51459 | AP108: 52763 | AQ108: 54832 | AR108: 55895 | AS108: 56478 | AT108: 57974 | AU108: 59329 | AV108: 59921 | AW108: 59024 | AX108: 56091 | AY108: 54780 | AZ108: 54825 | BA108: 55805 | BB108: 56466 | BC108: 56791 | BD108: 56840 | BE108: 57997 | BF108: 59427 | BG108: 59313 | BH108: 57717 | BI108: 56322 | BJ108: 55714 | BK108: 54009 | BL108: 53245 | BM108: 50875 | BN108: 49213 | BO108: 49372 | BP108: 50767 | BQ108: 51230 | BR108: 50691 | BS108: 51091 | BT108: 52593 | BU108: 55249 | BV108: 59260 | BW108: 59949 | BX108: 60453 | BY108: 59159 | BZ108: 59943 | CA108: 59377 | CB108: 58591 | CC108: 57294 | CD108: 55454 | CE108: 52321 | CF108: 51213 | CG108: 48591 | CH108: 45270 | CI108: 42921 | CJ108: 41252 | CK108: 38695 | CL108: 37151 | CM108: 34944 | CN108: 32838 | CO108: 28951 | CP108: 25891 | CQ108: 23013 | CR108: 20222 | CS108: 17530 | CT108: 80131
A109: Québec | B109: 99 | C109: Ensemble du Québec | D109: 2031 | E109: Projection | F109: Total | G109: 9053105 | H109: 83143 | I109: 84224 | J109: 85390 | K109: 86494 | L109: 87581 | M109: 88642 | N109: 89663 | O109: 90543 | P109: 91237 | Q109: 91815 | R109: 92141 | S109: 92167 | T109: 91216 | U109: 91385 | V109: 92686 | W109: 95583 | X109: 97141 | Y109: 98657 | Z109: 101552 | AA109: 105651 | AB109: 108043 | AC109: 110174 | AD109: 111032 | AE109: 109458 | AF109: 106475 | AG109: 103154 | AH109: 99694 | AI109: 99401 | AJ109: 98696 | AK109: 99553 | AL109: 101027 | AM109: 103364 | AN109: 102816 | AO109: 105180 | AP109: 108733 | AQ109: 112282 | AR109: 114801 | AS109: 116208 | AT109: 119166 | AU109: 121930 | AV109: 122844 | AW109: 120680 | AX109: 114981 | AY109: 111227 | AZ109: 110851 | BA109: 113226 | BB109: 114277 | BC109: 114869 | BD109: 114765 | BE109: 117652 | BF109: 119982 | BG109: 119991 | BH109: 116367 | BI109: 113961 | BJ109: 112482 | BK109: 109428 | BL109: 107809 | BM109: 102389 | BN109: 99488 | BO109: 99376 | BP109: 102423 | BQ109: 103005 | BR109: 101376 | BS109: 101735 | BT109: 104867 | BU109: 110493 | BV109: 118008 | BW109: 119400 | BX109: 119783 | BY109: 117329 | BZ109: 118470 | CA109: 116296 | CB109: 114335 | CC109: 112061 | CD109: 107957 | CE109: 101773 | CF109: 99000 | CG109: 93376 | CH109: 86727 | CI109: 81956 | CJ109: 78269 | CK109: 72966 | CL109: 69272 | CM109: 64555 | CN109: 60446 | CO109: 52651 | CP109: 46607 | CQ109: 40897 | CR109: 35594 | CS109: 30325 | CT109: 126410
A110: Québec | B110: 99 | C110: Ensemble du Québec | D110: 2032 | E110: Projection | F110: Masculin | G110: 4552380 | H110: 42578 | I110: 43073 | J110: 43638 | K110: 44186 | L110: 44728 | M110: 45297 | N110: 45821 | O110: 46299 | P110: 46709 | Q110: 47022 | R110: 47299 | S110: 47452 | T110: 47475 | U110: 47061 | V110: 46896 | W110: 47764 | X110: 49418 | Y110: 49824 | Z110: 51614 | AA110: 54650 | AB110: 55526 | AC110: 56253 | AD110: 57183 | AE110: 57593 | AF110: 56607 | AG110: 55023 | AH110: 53075 | AI110: 51463 | AJ110: 51212 | AK110: 50706 | AL110: 51206 | AM110: 52139 | AN110: 53188 | AO110: 53011 | AP110: 54078 | AQ110: 56331 | AR110: 57782 | AS110: 59148 | AT110: 59983 | AU110: 61415 | AV110: 62781 | AW110: 63003 | AX110: 61709 | AY110: 58931 | AZ110: 56461 | BA110: 56019 | BB110: 57370 | BC110: 57749 | BD110: 58000 | BE110: 57845 | BF110: 59561 | BG110: 60423 | BH110: 60545 | BI110: 58499 | BJ110: 57479 | BK110: 56583 | BL110: 55230 | BM110: 54361 | BN110: 51297 | BO110: 50048 | BP110: 49746 | BQ110: 51351 | BR110: 51461 | BS110: 50351 | BT110: 50295 | BU110: 51868 | BV110: 54766 | BW110: 58198 | BX110: 58834 | BY110: 58664 | BZ110: 57464 | CA110: 57733 | CB110: 56051 | CC110: 54819 | CD110: 53760 | CE110: 51426 | CF110: 48338 | CG110: 46576 | CH110: 43511 | CI110: 40142 | CJ110: 37661 | CK110: 35548 | CL110: 32747 | CM110: 30522 | CN110: 27970 | CO110: 25881 | CP110: 22030 | CQ110: 19085 | CR110: 16311 | CS110: 13861 | CT110: 49790
A111: Québec | B111: 99 | C111: Ensemble du Québec | D111: 2032 | E111: Projection | F111: Féminin | G111: 4537496 | H111: 40456 | I111: 40964 | J111: 41496 | K111: 42013 | L111: 42522 | M111: 43050 | N111: 43581 | O111: 44053 | P111: 44415 | Q111: 44750 | R111: 45008 | S111: 45125 | T111: 45138 | U111: 44596 | V111: 44937 | W111: 45458 | X111: 46964 | Y111: 48372 | Z111: 49761 | AA111: 51838 | AB111: 53093 | AC111: 53550 | AD111: 54017 | AE111: 54256 | AF111: 53286 | AG111: 51778 | AH111: 50328 | AI111: 48617 | AJ111: 48650 | AK111: 48466 | AL111: 49008 | AM111: 49610 | AN111: 50861 | AO111: 50595 | AP111: 51920 | AQ111: 53211 | AR111: 55190 | AS111: 56191 | AT111: 56777 | AU111: 58222 | AV111: 59549 | AW111: 60078 | AX111: 59145 | AY111: 56206 | AZ111: 54825 | BA111: 54872 | BB111: 55835 | BC111: 56476 | BD111: 56765 | BE111: 56819 | BF111: 57944 | BG111: 59353 | BH111: 59237 | BI111: 57621 | BJ111: 56210 | BK111: 55581 | BL111: 53889 | BM111: 53103 | BN111: 50736 | BO111: 49067 | BP111: 49206 | BQ111: 50579 | BR111: 51022 | BS111: 50456 | BT111: 50846 | BU111: 52298 | BV111: 54914 | BW111: 58860 | BX111: 59494 | BY111: 59971 | BZ111: 58636 | CA111: 59342 | CB111: 58723 | CC111: 57866 | CD111: 56505 | CE111: 54592 | CF111: 51431 | CG111: 50235 | CH111: 47558 | CI111: 44189 | CJ111: 41767 | CK111: 40031 | CL111: 37383 | CM111: 35740 | CN111: 33444 | CO111: 31253 | CP111: 27371 | CQ111: 24290 | CR111: 21403 | CS111: 18624 | CT111: 84033
A112: Québec | B112: 99 | C112: Ensemble du Québec | D112: 2032 | E112: Projection | F112: Total | G112: 9089876 | H112: 83034 | I112: 84037 | J112: 85134 | K112: 86199 | L112: 87250 | M112: 88347 | N112: 89402 | O112: 90352 | P112: 91124 | Q112: 91772 | R112: 92307 | S112: 92577 | T112: 92613 | U112: 91657 | V112: 91833 | W112: 93222 | X112: 96382 | Y112: 98196 | Z112: 101375 | AA112: 106488 | AB112: 108619 | AC112: 109803 | AD112: 111200 | AE112: 111849 | AF112: 109893 | AG112: 106801 | AH112: 103403 | AI112: 100080 | AJ112: 99862 | AK112: 99172 | AL112: 100214 | AM112: 101749 | AN112: 104049 | AO112: 103606 | AP112: 105998 | AQ112: 109542 | AR112: 112972 | AS112: 115339 | AT112: 116760 | AU112: 119637 | AV112: 122330 | AW112: 123081 | AX112: 120854 | AY112: 115137 | AZ112: 111286 | BA112: 110891 | BB112: 113205 | BC112: 114225 | BD112: 114765 | BE112: 114664 | BF112: 117505 | BG112: 119776 | BH112: 119782 | BI112: 116120 | BJ112: 113689 | BK112: 112164 | BL112: 109119 | BM112: 107464 | BN112: 102033 | BO112: 99115 | BP112: 98952 | BQ112: 101930 | BR112: 102483 | BS112: 100807 | BT112: 101141 | BU112: 104166 | BV112: 109680 | BW112: 117058 | BX112: 118328 | BY112: 118635 | BZ112: 116100 | CA112: 117075 | CB112: 114774 | CC112: 112685 | CD112: 110265 | CE112: 106018 | CF112: 99769 | CG112: 96811 | CH112: 91069 | CI112: 84331 | CJ112: 79428 | CK112: 75579 | CL112: 70130 | CM112: 66262 | CN112: 61414 | CO112: 57134 | CP112: 49401 | CQ112: 43375 | CR112: 37714 | CS112: 32485 | CT112: 133823
A113: Québec | B113: 99 | C113: Ensemble du Québec | D113: 2033 | E113: Projection | F113: Masculin | G113: 4570294 | H113: 42584 | I113: 43024 | J113: 43540 | K113: 44060 | L113: 44584 | M113: 45128 | N113: 45667 | O113: 46161 | P113: 46601 | Q113: 46960 | R113: 47282 | S113: 47540 | T113: 47676 | U113: 47688 | V113: 47289 | W113: 47159 | X113: 48127 | Y113: 49901 | Z113: 51284 | AA113: 54166 | AB113: 56291 | AC113: 56535 | AD113: 56997 | AE113: 57779 | AF113: 57845 | AG113: 56704 | AH113: 55088 | AI113: 53112 | AJ113: 51559 | AK113: 51334 | AL113: 50961 | AM113: 51512 | AN113: 52422 | AO113: 53541 | AP113: 53368 | AQ113: 54448 | AR113: 56666 | AS113: 58029 | AT113: 59409 | AU113: 60208 | AV113: 61595 | AW113: 62863 | AX113: 63060 | AY113: 61749 | AZ113: 58961 | BA113: 56458 | BB113: 55974 | BC113: 57313 | BD113: 57680 | BE113: 57932 | BF113: 57756 | BG113: 59428 | BH113: 60290 | BI113: 60384 | BJ113: 58341 | BK113: 57296 | BL113: 56393 | BM113: 55027 | BN113: 54128 | BO113: 51065 | BP113: 49797 | BQ113: 49459 | BR113: 51047 | BS113: 51142 | BT113: 50017 | BU113: 49910 | BV113: 51415 | BW113: 54258 | BX113: 57610 | BY113: 58182 | BZ113: 57968 | CA113: 56693 | CB113: 56865 | CC113: 55144 | CD113: 53829 | CE113: 52679 | CF113: 50279 | CG113: 47120 | CH113: 45278 | CI113: 42158 | CJ113: 38735 | CK113: 36198 | CL113: 33999 | CM113: 31140 | CN113: 28848 | CO113: 26241 | CP113: 24094 | CQ113: 20329 | CR113: 17428 | CS113: 14722 | CT113: 53788
A114: Québec | B114: 99 | C114: Ensemble du Québec | D114: 2033 | E114: Projection | F114: Féminin | G114: 4554779 | H114: 40460 | I114: 40919 | J114: 41407 | K114: 41885 | L114: 42380 | M114: 42896 | N114: 43433 | O114: 43927 | P114: 44319 | Q114: 44696 | R114: 44983 | S114: 45210 | T114: 45337 | U114: 45343 | V114: 44821 | W114: 45209 | X114: 45897 | Y114: 47535 | Z114: 49627 | AA114: 52141 | AB114: 53166 | AC114: 53844 | AD114: 53832 | AE114: 54239 | AF114: 54441 | AG114: 53501 | AH114: 51945 | AI114: 50636 | AJ114: 48965 | AK114: 48989 | AL114: 48870 | AM114: 49436 | AN114: 50032 | AO114: 51298 | AP114: 51064 | AQ114: 52370 | AR114: 53576 | AS114: 55485 | AT114: 56481 | AU114: 57027 | AV114: 58441 | AW114: 59703 | AX114: 60198 | AY114: 59252 | AZ114: 56247 | BA114: 54871 | BB114: 54896 | BC114: 55843 | BD114: 56460 | BE114: 56754 | BF114: 56770 | BG114: 57882 | BH114: 59275 | BI114: 59128 | BJ114: 57511 | BK114: 56092 | BL114: 55455 | BM114: 53755 | BN114: 52970 | BO114: 50591 | BP114: 48906 | BQ114: 49043 | BR114: 50378 | BS114: 50797 | BT114: 50223 | BU114: 50568 | BV114: 51987 | BW114: 54558 | BX114: 58430 | BY114: 59036 | BZ114: 59427 | CA114: 58056 | CB114: 58696 | CC114: 58008 | CD114: 57073 | CE114: 55643 | CF114: 53670 | CG114: 50459 | CH114: 49181 | CI114: 46437 | CJ114: 43027 | CK114: 40543 | CL114: 38700 | CM114: 35989 | CN114: 34237 | CO114: 31851 | CP114: 29564 | CQ114: 25685 | CR114: 22608 | CS114: 19731 | CT114: 88552
A115: Québec | B115: 99 | C115: Ensemble du Québec | D115: 2033 | E115: Projection | F115: Total | G115: 9125073 | H115: 83044 | I115: 83943 | J115: 84947 | K115: 85945 | L115: 86964 | M115: 88024 | N115: 89100 | O115: 90088 | P115: 90920 | Q115: 91656 | R115: 92265 | S115: 92750 | T115: 93013 | U115: 93031 | V115: 92110 | W115: 92368 | X115: 94024 | Y115: 97436 | Z115: 100911 | AA115: 106307 | AB115: 109457 | AC115: 110379 | AD115: 110829 | AE115: 112018 | AF115: 112286 | AG115: 110205 | AH115: 107033 | AI115: 103748 | AJ115: 100524 | AK115: 100323 | AL115: 99831 | AM115: 100948 | AN115: 102454 | AO115: 104839 | AP115: 104432 | AQ115: 106818 | AR115: 110242 | AS115: 113514 | AT115: 115890 | AU115: 117235 | AV115: 120036 | AW115: 122566 | AX115: 123258 | AY115: 121001 | AZ115: 115208 | BA115: 111329 | BB115: 110870 | BC115: 113156 | BD115: 114140 | BE115: 114686 | BF115: 114526 | BG115: 117310 | BH115: 119565 | BI115: 119512 | BJ115: 115852 | BK115: 113388 | BL115: 111848 | BM115: 108782 | BN115: 107098 | BO115: 101656 | BP115: 98703 | BQ115: 98502 | BR115: 101425 | BS115: 101939 | BT115: 100240 | BU115: 100478 | BV115: 103402 | BW115: 108816 | BX115: 116040 | BY115: 117218 | BZ115: 117395 | CA115: 114749 | CB115: 115561 | CC115: 113152 | CD115: 110902 | CE115: 108322 | CF115: 103949 | CG115: 97579 | CH115: 94459 | CI115: 88595 | CJ115: 81762 | CK115: 76741 | CL115: 72699 | CM115: 67129 | CN115: 63085 | CO115: 58092 | CP115: 53658 | CQ115: 46014 | CR115: 40036 | CS115: 34453 | CT115: 142340
A116: Québec | B116: 99 | C116: Ensemble du Québec | D116: 2034 | E116: Projection | F116: Masculin | G116: 4587553 | H116: 42645 | I116: 43033 | J116: 43500 | K116: 43966 | L116: 44458 | M116: 44982 | N116: 45508 | O116: 46007 | P116: 46471 | Q116: 46864 | R116: 47232 | S116: 47515 | T116: 47763 | U116: 47900 | V116: 47928 | W116: 47558 | X116: 47519 | Y116: 48609 | Z116: 51358 | AA116: 53834 | AB116: 55804 | AC116: 57299 | AD116: 57283 | AE116: 57592 | AF116: 58021 | AG116: 57947 | AH116: 56765 | AI116: 55116 | AJ116: 53211 | AK116: 51681 | AL116: 51598 | AM116: 51264 | AN116: 51792 | AO116: 52776 | AP116: 53890 | AQ116: 53738 | AR116: 54779 | AS116: 56915 | AT116: 58284 | AU116: 59636 | AV116: 60387 | AW116: 61690 | AX116: 62916 | AY116: 63097 | AZ116: 61767 | BA116: 58939 | BB116: 56412 | BC116: 55928 | BD116: 57251 | BE116: 57604 | BF116: 57843 | BG116: 57635 | BH116: 59303 | BI116: 60135 | BJ116: 60226 | BK116: 58152 | BL116: 57100 | BM116: 56186 | BN116: 54802 | BO116: 53894 | BP116: 50820 | BQ116: 49515 | BR116: 49177 | BS116: 50724 | BT116: 50799 | BU116: 49635 | BV116: 49493 | BW116: 50952 | BX116: 53731 | BY116: 56980 | BZ116: 57504 | CA116: 57202 | CB116: 55868 | CC116: 55962 | CD116: 54161 | CE116: 52764 | CF116: 51524 | CG116: 49048 | CH116: 45837 | CI116: 43895 | CJ116: 40719 | CK116: 37264 | CL116: 34644 | CM116: 32365 | CN116: 29456 | CO116: 27094 | CP116: 24459 | CQ116: 22259 | CR116: 18590 | CS116: 15755 | CT116: 58049
A117: Québec | B117: 99 | C117: Ensemble du Québec | D117: 2034 | E117: Projection | F117: Féminin | G117: 4571255 | H117: 40517 | I117: 40921 | J117: 41364 | K117: 41807 | L117: 42262 | M117: 42752 | N117: 43279 | O117: 43784 | P117: 44200 | Q117: 44599 | R117: 44936 | S117: 45187 | T117: 45420 | U117: 45553 | V117: 45574 | W117: 45107 | X117: 45652 | Y117: 46460 | Z117: 48788 | AA117: 52005 | AB117: 53470 | AC117: 53912 | AD117: 54140 | AE117: 54057 | AF117: 54430 | AG117: 54656 | AH117: 53662 | AI117: 52249 | AJ117: 50992 | AK117: 49326 | AL117: 49400 | AM117: 49302 | AN117: 49860 | AO117: 50467 | AP117: 51765 | AQ117: 51507 | AR117: 52742 | AS117: 53875 | AT117: 55788 | AU117: 56739 | AV117: 57247 | AW117: 58592 | AX117: 59819 | AY117: 60302 | AZ117: 59303 | BA117: 56289 | BB117: 54896 | BC117: 54909 | BD117: 55828 | BE117: 56441 | BF117: 56703 | BG117: 56710 | BH117: 57812 | BI117: 59172 | BJ117: 59024 | BK117: 57379 | BL117: 55949 | BM117: 55314 | BN117: 53607 | BO117: 52818 | BP117: 50426 | BQ117: 48744 | BR117: 48837 | BS117: 50151 | BT117: 50556 | BU117: 49946 | BV117: 50276 | BW117: 51651 | BX117: 54166 | BY117: 57978 | BZ117: 58508 | CA117: 58855 | CB117: 57428 | CC117: 57986 | CD117: 57223 | CE117: 56215 | CF117: 54712 | CG117: 52670 | CH117: 49413 | CI117: 48036 | CJ117: 45233 | CK117: 41770 | CL117: 39211 | CM117: 37265 | CN117: 34481 | CO117: 32623 | CP117: 30152 | CQ117: 27767 | CR117: 23932 | CS117: 20857 | CT117: 93567
A118: Québec | B118: 99 | C118: Ensemble du Québec | D118: 2034 | E118: Projection | F118: Total | G118: 9158808 | H118: 83162 | I118: 83954 | J118: 84864 | K118: 85773 | L118: 86720 | M118: 87734 | N118: 88787 | O118: 89791 | P118: 90671 | Q118: 91463 | R118: 92168 | S118: 92702 | T118: 93183 | U118: 93453 | V118: 93502 | W118: 92665 | X118: 93171 | Y118: 95069 | Z118: 100146 | AA118: 105839 | AB118: 109274 | AC118: 111211 | AD118: 111423 | AE118: 111649 | AF118: 112451 | AG118: 112603 | AH118: 110427 | AI118: 107365 | AJ118: 104203 | AK118: 101007 | AL118: 100998 | AM118: 100566 | AN118: 101652 | AO118: 103243 | AP118: 105655 | AQ118: 105245 | AR118: 107521 | AS118: 110790 | AT118: 114072 | AU118: 116375 | AV118: 117634 | AW118: 120282 | AX118: 122735 | AY118: 123399 | AZ118: 121070 | BA118: 115228 | BB118: 111308 | BC118: 110837 | BD118: 113079 | BE118: 114045 | BF118: 114546 | BG118: 114345 | BH118: 117115 | BI118: 119307 | BJ118: 119250 | BK118: 115531 | BL118: 113049 | BM118: 111500 | BN118: 108409 | BO118: 106712 | BP118: 101246 | BQ118: 98259 | BR118: 98014 | BS118: 100875 | BT118: 101355 | BU118: 99581 | BV118: 99769 | BW118: 102603 | BX118: 107897 | BY118: 114958 | BZ118: 116012 | CA118: 116057 | CB118: 113296 | CC118: 113948 | CD118: 111384 | CE118: 108979 | CF118: 106236 | CG118: 101718 | CH118: 95250 | CI118: 91931 | CJ118: 85952 | CK118: 79034 | CL118: 73855 | CM118: 69630 | CN118: 63937 | CO118: 59717 | CP118: 54611 | CQ118: 50026 | CR118: 42522 | CS118: 36612 | CT118: 151616
A119: Québec | B119: 99 | C119: Ensemble du Québec | D119: 2035 | E119: Projection | F119: Masculin | G119: 4604037 | H119: 42789 | I119: 43097 | J119: 43500 | K119: 43912 | L119: 44370 | M119: 44850 | N119: 45358 | O119: 45850 | P119: 46317 | Q119: 46725 | R119: 47122 | S119: 47456 | T119: 47736 | U119: 47983 | V119: 48130 | W119: 48184 | X119: 47920 | Y119: 48014 | Z119: 50068 | AA119: 53914 | AB119: 55476 | AC119: 56826 | AD119: 58047 | AE119: 57874 | AF119: 57850 | AG119: 58121 | AH119: 57992 | AI119: 56792 | AJ119: 55205 | AK119: 53329 | AL119: 51936 | AM119: 51886 | AN119: 51559 | AO119: 52154 | AP119: 53134 | AQ119: 54261 | AR119: 54085 | AS119: 55051 | AT119: 57177 | AU119: 58526 | AV119: 59819 | AW119: 60483 | AX119: 61739 | AY119: 62955 | AZ119: 63111 | BA119: 61747 | BB119: 58890 | BC119: 56366 | BD119: 55860 | BE119: 57180 | BF119: 57519 | BG119: 57723 | BH119: 57510 | BI119: 59151 | BJ119: 59984 | BK119: 60042 | BL119: 57967 | BM119: 56903 | BN119: 55958 | BO119: 54571 | BP119: 53636 | BQ119: 50539 | BR119: 49236 | BS119: 48870 | BT119: 50400 | BU119: 50414 | BV119: 49231 | BW119: 49059 | BX119: 50463 | BY119: 53146 | BZ119: 56332 | CA119: 56760 | CB119: 56387 | CC119: 54984 | CD119: 54988 | CE119: 53113 | CF119: 51626 | CG119: 50270 | CH119: 47721 | CI119: 44449 | CJ119: 42419 | CK119: 39185 | CL119: 35684 | CM119: 32998 | CN119: 30641 | CO119: 27695 | CP119: 25280 | CQ119: 22613 | CR119: 20388 | CS119: 16833 | CT119: 62623
A120: Québec | B120: 99 | C120: Ensemble du Québec | D120: 2035 | E120: Projection | F120: Féminin | G120: 4587155 | H120: 40648 | I120: 40979 | J120: 41355 | K120: 41753 | L120: 42173 | M120: 42626 | N120: 43139 | O120: 43627 | P120: 44057 | Q120: 44473 | R120: 44842 | S120: 45145 | T120: 45400 | U120: 45631 | V120: 45776 | W120: 45853 | X120: 45534 | Y120: 46233 | Z120: 47730 | AA120: 51168 | AB120: 53339 | AC120: 54217 | AD120: 54206 | AE120: 54362 | AF120: 54246 | AG120: 54646 | AH120: 54823 | AI120: 53972 | AJ120: 52591 | AK120: 51331 | AL120: 49731 | AM120: 49825 | AN120: 49722 | AO120: 50298 | AP120: 50931 | AQ120: 52211 | AR120: 51885 | AS120: 53039 | AT120: 54189 | AU120: 56037 | AV120: 56962 | AW120: 57407 | AX120: 58722 | AY120: 59930 | AZ120: 60349 | BA120: 59336 | BB120: 56316 | BC120: 54904 | BD120: 54888 | BE120: 55813 | BF120: 56399 | BG120: 56647 | BH120: 56643 | BI120: 57718 | BJ120: 59064 | BK120: 58894 | BL120: 57248 | BM120: 55825 | BN120: 55173 | BO120: 53462 | BP120: 52645 | BQ120: 50247 | BR120: 48547 | BS120: 48632 | BT120: 49916 | BU120: 50283 | BV120: 49671 | BW120: 49959 | BX120: 51285 | BY120: 53752 | BZ120: 57475 | CA120: 57956 | CB120: 58231 | CC120: 56749 | CD120: 57220 | CE120: 56380 | CF120: 55294 | CG120: 53704 | CH120: 51591 | CI120: 48287 | CJ120: 46800 | CK120: 43927 | CL120: 40418 | CM120: 37775 | CN120: 35723 | CO120: 32882 | CP120: 30895 | CQ120: 28355 | CR120: 25885 | CS120: 22091 | CT120: 99137
A121: Québec | B121: 99 | C121: Ensemble du Québec | D121: 2035 | E121: Projection | F121: Total | G121: 9191192 | H121: 83437 | I121: 84076 | J121: 84855 | K121: 85665 | L121: 86543 | M121: 87476 | N121: 88497 | O121: 89477 | P121: 90374 | Q121: 91198 | R121: 91964 | S121: 92601 | T121: 93136 | U121: 93614 | V121: 93906 | W121: 94037 | X121: 93454 | Y121: 94247 | Z121: 97798 | AA121: 105082 | AB121: 108815 | AC121: 111043 | AD121: 112253 | AE121: 112236 | AF121: 112096 | AG121: 112767 | AH121: 112815 | AI121: 110764 | AJ121: 107796 | AK121: 104660 | AL121: 101667 | AM121: 101711 | AN121: 101281 | AO121: 102452 | AP121: 104065 | AQ121: 106472 | AR121: 105970 | AS121: 108090 | AT121: 111366 | AU121: 114563 | AV121: 116781 | AW121: 117890 | AX121: 120461 | AY121: 122885 | AZ121: 123460 | BA121: 121083 | BB121: 115206 | BC121: 111270 | BD121: 110748 | BE121: 112993 | BF121: 113918 | BG121: 114370 | BH121: 114153 | BI121: 116869 | BJ121: 119048 | BK121: 118936 | BL121: 115215 | BM121: 112728 | BN121: 111131 | BO121: 108033 | BP121: 106281 | BQ121: 100786 | BR121: 97783 | BS121: 97502 | BT121: 100316 | BU121: 100697 | BV121: 98902 | BW121: 99018 | BX121: 101748 | BY121: 106898 | BZ121: 113807 | CA121: 114716 | CB121: 114618 | CC121: 111733 | CD121: 112208 | CE121: 109493 | CF121: 106920 | CG121: 103974 | CH121: 99312 | CI121: 92736 | CJ121: 89219 | CK121: 83112 | CL121: 76102 | CM121: 70773 | CN121: 66364 | CO121: 60577 | CP121: 56175 | CQ121: 50968 | CR121: 46273 | CS121: 38924 | CT121: 161760
A122: Québec | B122: 99 | C122: Ensemble du Québec | D122: 2036 | E122: Projection | F122: Masculin | G122: 4620047 | H122: 42996 | I122: 43230 | J122: 43557 | K122: 43924 | L122: 44319 | M122: 44761 | N122: 45235 | O122: 45704 | P122: 46162 | Q122: 46578 | R122: 46989 | S122: 47356 | T122: 47680 | U122: 47971 | V122: 48217 | W122: 48391 | X122: 48554 | Y122: 48401 | Z122: 49470 | AA122: 52635 | AB122: 55552 | AC122: 56496 | AD122: 57574 | AE122: 58641 | AF122: 58120 | AG122: 57940 | AH122: 58170 | AI122: 58023 | AJ122: 56878 | AK122: 55323 | AL122: 53576 | AM122: 52232 | AN122: 52183 | AO122: 51918 | AP122: 52514 | AQ122: 53500 | AR122: 54599 | AS122: 54344 | AT122: 55316 | AU122: 57423 | AV122: 58716 | AW122: 59919 | AX122: 60540 | AY122: 61782 | AZ122: 62972 | BA122: 63098 | BB122: 61693 | BC122: 58837 | BD122: 56304 | BE122: 55798 | BF122: 57091 | BG122: 57407 | BH122: 57603 | BI122: 57368 | BJ122: 59004 | BK122: 59800 | BL122: 59840 | BM122: 57757 | BN122: 56681 | BO122: 55719 | BP122: 54304 | BQ122: 53344 | BR122: 50250 | BS122: 48939 | BT122: 48557 | BU122: 50029 | BV122: 50019 | BW122: 48798 | BX122: 48593 | BY122: 49934 | BZ122: 52547 | CA122: 55615 | CB122: 55962 | CC122: 55509 | CD122: 54040 | CE122: 53936 | CF122: 51984 | CG122: 50401 | CH122: 48941 | CI122: 46305 | CJ122: 42988 | CK122: 40847 | CL122: 37561 | CM122: 34027 | CN122: 31274 | CO122: 28846 | CP122: 25869 | CQ122: 23409 | CR122: 20743 | CS122: 18500 | CT122: 67595
A123: Québec | B123: 99 | C123: Ensemble du Québec | D123: 2036 | E123: Projection | F123: Féminin | G123: 4602301 | H123: 40843 | I123: 41106 | J123: 41424 | K123: 41757 | L123: 42125 | M123: 42545 | N123: 43016 | O123: 43484 | P123: 43896 | Q123: 44317 | R123: 44714 | S123: 45050 | T123: 45350 | U123: 45621 | V123: 45857 | W123: 46048 | X123: 46287 | Y123: 46111 | Z123: 47490 | AA123: 50114 | AB123: 52515 | AC123: 54088 | AD123: 54508 | AE123: 54438 | AF123: 54553 | AG123: 54465 | AH123: 54800 | AI123: 55109 | AJ123: 54296 | AK123: 52930 | AL123: 51737 | AM123: 50159 | AN123: 50251 | AO123: 50162 | AP123: 50764 | AQ123: 51388 | AR123: 52587 | AS123: 52185 | AT123: 53347 | AU123: 54439 | AV123: 56259 | AW123: 57124 | AX123: 57526 | AY123: 58840 | AZ123: 59988 | BA123: 60388 | BB123: 59358 | BC123: 56329 | BD123: 54890 | BE123: 54873 | BF123: 55767 | BG123: 56333 | BH123: 56584 | BI123: 56547 | BJ123: 57621 | BK123: 58940 | BL123: 58761 | BM123: 57116 | BN123: 55679 | BO123: 55015 | BP123: 53289 | BQ123: 52468 | BR123: 50063 | BS123: 48337 | BT123: 48415 | BU123: 49664 | BV123: 50002 | BW123: 49351 | BX123: 49609 | BY123: 50911 | BZ123: 53297 | CA123: 56928 | CB123: 57342 | CC123: 57558 | CD123: 56004 | CE123: 56385 | CF123: 55462 | CG123: 54288 | CH123: 52617 | CI123: 50422 | CJ123: 47055 | CK123: 45479 | CL123: 42526 | CM123: 38956 | CN123: 36233 | CO123: 34082 | CP123: 31163 | CQ123: 29069 | CR123: 26444 | CS123: 23927 | CT123: 105141
A124: Québec | B124: 99 | C124: Ensemble du Québec | D124: 2036 | E124: Projection | F124: Total | G124: 9222348 | H124: 83839 | I124: 84336 | J124: 84981 | K124: 85681 | L124: 86444 | M124: 87306 | N124: 88251 | O124: 89188 | P124: 90058 | Q124: 90895 | R124: 91703 | S124: 92406 | T124: 93030 | U124: 93592 | V124: 94074 | W124: 94439 | X124: 94841 | Y124: 94512 | Z124: 96960 | AA124: 102749 | AB124: 108067 | AC124: 110584 | AD124: 112082 | AE124: 113079 | AF124: 112673 | AG124: 112405 | AH124: 112970 | AI124: 113132 | AJ124: 111174 | AK124: 108253 | AL124: 105313 | AM124: 102391 | AN124: 102434 | AO124: 102080 | AP124: 103278 | AQ124: 104888 | AR124: 107186 | AS124: 106529 | AT124: 108663 | AU124: 111862 | AV124: 114975 | AW124: 117043 | AX124: 118066 | AY124: 120622 | AZ124: 122960 | BA124: 123486 | BB124: 121051 | BC124: 115166 | BD124: 111194 | BE124: 110671 | BF124: 112858 | BG124: 113740 | BH124: 114187 | BI124: 113915 | BJ124: 116625 | BK124: 118740 | BL124: 118601 | BM124: 114873 | BN124: 112360 | BO124: 110734 | BP124: 107593 | BQ124: 105812 | BR124: 100313 | BS124: 97276 | BT124: 96972 | BU124: 99693 | BV124: 100021 | BW124: 98149 | BX124: 98202 | BY124: 100845 | BZ124: 105844 | CA124: 112543 | CB124: 113304 | CC124: 113067 | CD124: 110044 | CE124: 110321 | CF124: 107446 | CG124: 104689 | CH124: 101558 | CI124: 96727 | CJ124: 90043 | CK124: 86326 | CL124: 80087 | CM124: 72983 | CN124: 67507 | CO124: 62928 | CP124: 57032 | CQ124: 52478 | CR124: 47187 | CS124: 42427 | CT124: 172736
A125: Québec | B125: 99 | C125: Ensemble du Québec | D125: 2037 | E125: Projection | F125: Masculin | G125: 4635378 | H125: 43231 | I125: 43430 | J125: 43698 | K125: 43984 | L125: 44322 | M125: 44704 | N125: 45133 | O125: 45573 | P125: 46008 | Q125: 46417 | R125: 46839 | S125: 47226 | T125: 47576 | U125: 47909 | V125: 48192 | W125: 48478 | X125: 48759 | Y125: 49035 | Z125: 49862 | AA125: 52030 | AB125: 54266 | AC125: 56574 | AD125: 57246 | AE125: 58161 | AF125: 58885 | AG125: 58227 | AH125: 57994 | AI125: 58197 | AJ125: 58099 | AK125: 56980 | AL125: 55570 | AM125: 53872 | AN125: 52524 | AO125: 52534 | AP125: 52281 | AQ125: 52888 | AR125: 53844 | AS125: 54868 | AT125: 54619 | AU125: 55569 | AV125: 57610 | AW125: 58818 | AX125: 59977 | AY125: 60592 | AZ125: 61805 | BA125: 62952 | BB125: 63033 | BC125: 61633 | BD125: 58770 | BE125: 56242 | BF125: 55718 | BG125: 56990 | BH125: 57299 | BI125: 57464 | BJ125: 57231 | BK125: 58829 | BL125: 59610 | BM125: 59633 | BN125: 57532 | BO125: 56441 | BP125: 55460 | BQ125: 54011 | BR125: 53048 | BS125: 49944 | BT125: 48627 | BU125: 48205 | BV125: 49636 | BW125: 49585 | BX125: 48345 | BY125: 48091 | BZ125: 49392 | CA125: 51901 | CB125: 54835 | CC125: 55116 | CD125: 54577 | CE125: 53033 | CF125: 52809 | CG125: 50771 | CH125: 49086 | CI125: 47524 | CJ125: 44803 | CK125: 41419 | CL125: 39172 | CM125: 35830 | CN125: 32272 | CO125: 29462 | CP125: 26964 | CQ125: 23989 | CR125: 21500 | CS125: 18838 | CT125: 73350
A126: Québec | B126: 99 | C126: Ensemble du Québec | D126: 2037 | E126: Projection | F126: Féminin | G126: 4617000 | H126: 41078 | I126: 41303 | J126: 41557 | K126: 41818 | L126: 42133 | M126: 42495 | N126: 42934 | O126: 43360 | P126: 43761 | Q126: 44172 | R126: 44571 | S126: 44924 | T126: 45251 | U126: 45562 | V126: 45837 | W126: 46138 | X126: 46485 | Y126: 46866 | Z126: 47377 | AA126: 49875 | AB126: 51451 | AC126: 53269 | AD126: 54378 | AE126: 54731 | AF126: 54629 | AG126: 54762 | AH126: 54631 | AI126: 55098 | AJ126: 55447 | AK126: 54632 | AL126: 53324 | AM126: 52164 | AN126: 50574 | AO126: 50694 | AP126: 50646 | AQ126: 51222 | AR126: 51764 | AS126: 52880 | AT126: 52501 | AU126: 53609 | AV126: 54671 | AW126: 56427 | AX126: 57259 | AY126: 57650 | AZ126: 58889 | BA126: 60023 | BB126: 60409 | BC126: 59367 | BD126: 56309 | BE126: 54888 | BF126: 54838 | BG126: 55719 | BH126: 56271 | BI126: 56496 | BJ126: 56460 | BK126: 57491 | BL126: 58812 | BM126: 58623 | BN126: 56970 | BO126: 55518 | BP126: 54852 | BQ126: 53111 | BR126: 52267 | BS126: 49850 | BT126: 48140 | BU126: 48164 | BV126: 49388 | BW126: 49699 | BX126: 49031 | BY126: 49248 | BZ126: 50484 | CA126: 52808 | CB126: 56344 | CC126: 56682 | CD126: 56800 | CE126: 55201 | CF126: 55472 | CG126: 54467 | CH126: 53196 | CI126: 51430 | CJ126: 49158 | CK126: 45728 | CL126: 44029 | CM126: 40999 | CN126: 37388 | CO126: 34589 | CP126: 32323 | CQ126: 29343 | CR126: 27153 | CS126: 24468 | CT126: 112195
A127: Québec | B127: 99 | C127: Ensemble du Québec | D127: 2037 | E127: Projection | F127: Total | G127: 9252378 | H127: 84309 | I127: 84733 | J127: 85255 | K127: 85802 | L127: 86455 | M127: 87199 | N127: 88067 | O127: 88933 | P127: 89769 | Q127: 90589 | R127: 91410 | S127: 92150 | T127: 92827 | U127: 93471 | V127: 94029 | W127: 94616 | X127: 95244 | Y127: 95901 | Z127: 97239 | AA127: 101905 | AB127: 105717 | AC127: 109843 | AD127: 111624 | AE127: 112892 | AF127: 113514 | AG127: 112989 | AH127: 112625 | AI127: 113295 | AJ127: 113546 | AK127: 111612 | AL127: 108894 | AM127: 106036 | AN127: 103098 | AO127: 103228 | AP127: 102927 | AQ127: 104110 | AR127: 105608 | AS127: 107748 | AT127: 107120 | AU127: 109178 | AV127: 112281 | AW127: 115245 | AX127: 117236 | AY127: 118242 | AZ127: 120694 | BA127: 122975 | BB127: 123442 | BC127: 121000 | BD127: 115079 | BE127: 111130 | BF127: 110556 | BG127: 112709 | BH127: 113570 | BI127: 113960 | BJ127: 113691 | BK127: 116320 | BL127: 118422 | BM127: 118256 | BN127: 114502 | BO127: 111959 | BP127: 110312 | BQ127: 107122 | BR127: 105315 | BS127: 99794 | BT127: 96767 | BU127: 96369 | BV127: 99024 | BW127: 99284 | BX127: 97376 | BY127: 97339 | BZ127: 99876 | CA127: 104709 | CB127: 111179 | CC127: 111798 | CD127: 111377 | CE127: 108234 | CF127: 108281 | CG127: 105238 | CH127: 102282 | CI127: 98954 | CJ127: 93961 | CK127: 87147 | CL127: 83201 | CM127: 76829 | CN127: 69660 | CO127: 64051 | CP127: 59287 | CQ127: 53332 | CR127: 48653 | CS127: 43306 | CT127: 185545
A128: Québec | B128: 99 | C128: Ensemble du Québec | D128: 2038 | E128: Projection | F128: Masculin | G128: 4650437 | H128: 43532 | I128: 43681 | J128: 43900 | K128: 44124 | L128: 44384 | M128: 44713 | N128: 45079 | O128: 45487 | P128: 45882 | Q128: 46277 | R128: 46682 | S128: 47076 | T128: 47458 | U128: 47805 | V128: 48154 | W128: 48452 | X128: 48836 | Y128: 49236 | Z128: 50497 | AA128: 52416 | AB128: 53674 | AC128: 55294 | AD128: 57316 | AE128: 57838 | AF128: 58418 | AG128: 58986 | AH128: 58278 | AI128: 58038 | AJ128: 58278 | AK128: 58207 | AL128: 57218 | AM128: 55848 | AN128: 54155 | AO128: 52879 | AP128: 52901 | AQ128: 52642 | AR128: 53235 | AS128: 54118 | AT128: 55139 | AU128: 54866 | AV128: 55769 | AW128: 57719 | AX128: 58885 | AY128: 60027 | AZ128: 60624 | BA128: 61784 | BB128: 62894 | BC128: 62976 | BD128: 61560 | BE128: 58703 | BF128: 56166 | BG128: 55616 | BH128: 56865 | BI128: 57162 | BJ128: 57332 | BK128: 57063 | BL128: 58643 | BM128: 59402 | BN128: 59418 | BO128: 57304 | BP128: 56178 | BQ128: 55167 | BR128: 53723 | BS128: 52741 | BT128: 49643 | BU128: 48287 | BV128: 47842 | BW128: 49221 | BX128: 49132 | BY128: 47862 | BZ128: 47577 | CA128: 48784 | CB128: 51187 | CC128: 54031 | CD128: 54190 | CE128: 53573 | CF128: 51944 | CG128: 51598 | CH128: 49463 | CI128: 47675 | CJ128: 45993 | CK128: 43186 | CL128: 39756 | CM128: 37403 | CN128: 34018 | CO128: 30423 | CP128: 27582 | CQ128: 25042 | CR128: 22062 | CS128: 19555 | CT128: 78688
A129: Québec | B129: 99 | C129: Ensemble du Québec | D129: 2038 | E129: Projection | F129: Féminin | G129: 4630968 | H129: 41360 | I129: 41553 | J129: 41739 | K129: 41946 | L129: 42190 | M129: 42499 | N129: 42883 | O129: 43274 | P129: 43643 | Q129: 44036 | R129: 44415 | S129: 44784 | T129: 45130 | U129: 45462 | V129: 45783 | W129: 46116 | X129: 46564 | Y129: 47061 | Z129: 48117 | AA129: 49770 | AB129: 51219 | AC129: 52198 | AD129: 53557 | AE129: 54606 | AF129: 54920 | AG129: 54840 | AH129: 54920 | AI129: 54918 | AJ129: 55430 | AK129: 55769 | AL129: 55027 | AM129: 53749 | AN129: 52575 | AO129: 51014 | AP129: 51162 | AQ129: 51091 | AR129: 51595 | AS129: 52069 | AT129: 53199 | AU129: 52758 | AV129: 53838 | AW129: 54841 | AX129: 56566 | AY129: 57370 | AZ129: 57700 | BA129: 58917 | BB129: 60050 | BC129: 60409 | BD129: 59347 | BE129: 56301 | BF129: 54851 | BG129: 54786 | BH129: 55659 | BI129: 56189 | BJ129: 56399 | BK129: 56344 | BL129: 57368 | BM129: 58679 | BN129: 58479 | BO129: 56813 | BP129: 55359 | BQ129: 54658 | BR129: 52904 | BS129: 52042 | BT129: 49627 | BU129: 47890 | BV129: 47904 | BW129: 49094 | BX129: 49363 | BY129: 48671 | BZ129: 48836 | CA129: 50028 | CB129: 52270 | CC129: 55706 | CD129: 55958 | CE129: 55994 | CF129: 54328 | CG129: 54489 | CH129: 53389 | CI129: 52019 | CJ129: 50161 | CK129: 47787 | CL129: 44308 | CM129: 42473 | CN129: 39376 | CO129: 35705 | CP129: 32823 | CQ129: 30462 | CR129: 27419 | CS129: 25138 | CT129: 118940
A130: Québec | B130: 99 | C130: Ensemble du Québec | D130: 2038 | E130: Projection | F130: Total | G130: 9281405 | H130: 84892 | I130: 85234 | J130: 85639 | K130: 86070 | L130: 86574 | M130: 87212 | N130: 87962 | O130: 88761 | P130: 89525 | Q130: 90313 | R130: 91097 | S130: 91860 | T130: 92588 | U130: 93267 | V130: 93937 | W130: 94568 | X130: 95400 | Y130: 96297 | Z130: 98614 | AA130: 102186 | AB130: 104893 | AC130: 107492 | AD130: 110873 | AE130: 112444 | AF130: 113338 | AG130: 113826 | AH130: 113198 | AI130: 112956 | AJ130: 113708 | AK130: 113976 | AL130: 112245 | AM130: 109597 | AN130: 106730 | AO130: 103893 | AP130: 104063 | AQ130: 103733 | AR130: 104830 | AS130: 106187 | AT130: 108338 | AU130: 107624 | AV130: 109607 | AW130: 112560 | AX130: 115451 | AY130: 117397 | AZ130: 118324 | BA130: 120701 | BB130: 122944 | BC130: 123385 | BD130: 120907 | BE130: 115004 | BF130: 111017 | BG130: 110402 | BH130: 112524 | BI130: 113351 | BJ130: 113731 | BK130: 113407 | BL130: 116011 | BM130: 118081 | BN130: 117897 | BO130: 114117 | BP130: 111537 | BQ130: 109825 | BR130: 106627 | BS130: 104783 | BT130: 99270 | BU130: 96177 | BV130: 95746 | BW130: 98315 | BX130: 98495 | BY130: 96533 | BZ130: 96413 | CA130: 98812 | CB130: 103457 | CC130: 109737 | CD130: 110148 | CE130: 109567 | CF130: 106272 | CG130: 106087 | CH130: 102852 | CI130: 99694 | CJ130: 96154 | CK130: 90973 | CL130: 84064 | CM130: 79876 | CN130: 73394 | CO130: 66128 | CP130: 60405 | CQ130: 55504 | CR130: 49481 | CS130: 44693 | CT130: 197628
A131: Québec | B131: 99 | C131: Ensemble du Québec | D131: 2039 | E131: Projection | F131: Masculin | G131: 4665012 | H131: 43848 | I131: 43974 | J131: 44153 | K131: 44317 | L131: 44523 | M131: 44777 | N131: 45089 | O131: 45438 | P131: 45793 | Q131: 46143 | R131: 46527 | S131: 46915 | T131: 47298 | U131: 47684 | V131: 48041 | W131: 48404 | X131: 48825 | Y131: 49329 | Z131: 50698 | AA131: 53054 | AB131: 54069 | AC131: 54692 | AD131: 56046 | AE131: 57918 | AF131: 58094 | AG131: 58502 | AH131: 59036 | AI131: 58309 | AJ131: 58107 | AK131: 58384 | AL131: 58440 | AM131: 57496 | AN131: 56125 | AO131: 54500 | AP131: 53248 | AQ131: 53274 | AR131: 53000 | AS131: 53510 | AT131: 54394 | AU131: 55378 | AV131: 55080 | AW131: 55876 | AX131: 57797 | AY131: 58943 | AZ131: 60054 | BA131: 60607 | BB131: 61737 | BC131: 62837 | BD131: 62903 | BE131: 61497 | BF131: 58618 | BG131: 56059 | BH131: 55510 | BI131: 56750 | BJ131: 57020 | BK131: 57157 | BL131: 56883 | BM131: 58452 | BN131: 59181 | BO131: 59170 | BP131: 57041 | BQ131: 55897 | BR131: 54876 | BS131: 53407 | BT131: 52420 | BU131: 49309 | BV131: 47921 | BW131: 47441 | BX131: 48773 | BY131: 48639 | BZ131: 47362 | CA131: 47006 | CB131: 48122 | CC131: 50433 | CD131: 53148 | CE131: 53209 | CF131: 52491 | CG131: 50768 | CH131: 50289 | CI131: 48075 | CJ131: 46180 | CK131: 44372 | CL131: 41479 | CM131: 37975 | CN131: 35536 | CO131: 32104 | CP131: 28508 | CQ131: 25633 | CR131: 23045 | CS131: 20095 | CT131: 83975
A132: Québec | B132: 99 | C132: Ensemble du Québec | D132: 2039 | E132: Projection | F132: Féminin | G132: 4644481 | H132: 41659 | I132: 41818 | J132: 41982 | K132: 42140 | L132: 42317 | M132: 42558 | N132: 42885 | O132: 43235 | P132: 43555 | Q132: 43912 | R132: 44277 | S132: 44628 | T132: 44984 | U132: 45349 | V132: 45686 | W132: 46071 | X132: 46554 | Y132: 47140 | Z132: 48325 | AA132: 50510 | AB132: 51098 | AC132: 51969 | AD132: 52501 | AE132: 53790 | AF132: 54801 | AG132: 55138 | AH132: 55003 | AI132: 55225 | AJ132: 55263 | AK132: 55758 | AL132: 56159 | AM132: 55438 | AN132: 54150 | AO132: 53005 | AP132: 51491 | AQ132: 51609 | AR132: 51462 | AS132: 51905 | AT132: 52374 | AU132: 53457 | AV132: 52994 | AW132: 54010 | AX132: 54975 | AY132: 56678 | AZ132: 57419 | BA132: 57747 | BB132: 58946 | BC132: 60049 | BD132: 60392 | BE132: 59324 | BF132: 56265 | BG132: 54797 | BH132: 54728 | BI132: 55568 | BJ132: 56095 | BK132: 56280 | BL132: 56213 | BM132: 57247 | BN132: 58530 | BO132: 58318 | BP132: 56642 | BQ132: 55176 | BR132: 54464 | BS132: 52684 | BT132: 51829 | BU132: 49385 | BV132: 47642 | BW132: 47616 | BX132: 48769 | BY132: 49012 | BZ132: 48273 | CA132: 48403 | CB132: 49525 | CC132: 51686 | CD132: 55005 | CE132: 55173 | CF132: 55116 | CG132: 53378 | CH132: 53427 | CI132: 52220 | CJ132: 50743 | CK132: 48781 | CL132: 46320 | CM132: 42749 | CN132: 40802 | CO132: 37619 | CP132: 33906 | CQ132: 30953 | CR132: 28485 | CS132: 25410 | CT132: 125532
A133: Québec | B133: 99 | C133: Ensemble du Québec | D133: 2039 | E133: Projection | F133: Total | G133: 9309493 | H133: 85507 | I133: 85792 | J133: 86135 | K133: 86457 | L133: 86840 | M133: 87335 | N133: 87974 | O133: 88673 | P133: 89348 | Q133: 90055 | R133: 90804 | S133: 91543 | T133: 92282 | U133: 93033 | V133: 93727 | W133: 94475 | X133: 95379 | Y133: 96469 | Z133: 99023 | AA133: 103564 | AB133: 105167 | AC133: 106661 | AD133: 108547 | AE133: 111708 | AF133: 112895 | AG133: 113640 | AH133: 114039 | AI133: 113534 | AJ133: 113370 | AK133: 114142 | AL133: 114599 | AM133: 112934 | AN133: 110275 | AO133: 107505 | AP133: 104739 | AQ133: 104883 | AR133: 104462 | AS133: 105415 | AT133: 106768 | AU133: 108835 | AV133: 108074 | AW133: 109886 | AX133: 112772 | AY133: 115621 | AZ133: 117473 | BA133: 118354 | BB133: 120683 | BC133: 122886 | BD133: 123295 | BE133: 120821 | BF133: 114883 | BG133: 110856 | BH133: 110238 | BI133: 112318 | BJ133: 113115 | BK133: 113437 | BL133: 113096 | BM133: 115699 | BN133: 117711 | BO133: 117488 | BP133: 113683 | BQ133: 111073 | BR133: 109340 | BS133: 106091 | BT133: 104249 | BU133: 98694 | BV133: 95563 | BW133: 95057 | BX133: 97542 | BY133: 97651 | BZ133: 95635 | CA133: 95409 | CB133: 97647 | CC133: 102119 | CD133: 108153 | CE133: 108382 | CF133: 107607 | CG133: 104146 | CH133: 103716 | CI133: 100295 | CJ133: 96923 | CK133: 93153 | CL133: 87799 | CM133: 80724 | CN133: 76338 | CO133: 69723 | CP133: 62414 | CQ133: 56586 | CR133: 51530 | CS133: 45505 | CT133: 209507
A134: Québec | B134: 99 | C134: Ensemble du Québec | D134: 2040 | E134: Projection | F134: Masculin | G134: 4679245 | H134: 44178 | I134: 44286 | J134: 44447 | K134: 44567 | L134: 44725 | M134: 44925 | N134: 45157 | O134: 45440 | P134: 45742 | Q134: 46054 | R134: 46406 | S134: 46764 | T134: 47138 | U134: 47524 | V134: 47907 | W134: 48303 | X134: 48771 | Y134: 49307 | Z134: 50787 | AA134: 53263 | AB134: 54691 | AC134: 55086 | AD134: 55442 | AE134: 56645 | AF134: 58171 | AG134: 58195 | AH134: 58569 | AI134: 59066 | AJ134: 58386 | AK134: 58209 | AL134: 58617 | AM134: 58716 | AN134: 57773 | AO134: 56475 | AP134: 54872 | AQ134: 53620 | AR134: 53630 | AS134: 53277 | AT134: 53792 | AU134: 54640 | AV134: 55588 | AW134: 55183 | AX134: 55958 | AY134: 57855 | AZ134: 58963 | BA134: 60047 | BB134: 60558 | BC134: 61687 | BD134: 62776 | BE134: 62840 | BF134: 61403 | BG134: 58503 | BH134: 55956 | BI134: 55385 | BJ134: 56613 | BK134: 56862 | BL134: 56993 | BM134: 56693 | BN134: 58231 | BO134: 58948 | BP134: 58906 | BQ134: 56763 | BR134: 55600 | BS134: 54568 | BT134: 53099 | BU134: 52062 | BV134: 48932 | BW134: 47535 | BX134: 47029 | BY134: 48300 | BZ134: 48150 | CA134: 46792 | CB134: 46388 | CC134: 47437 | CD134: 49633 | CE134: 52196 | CF134: 52155 | CG134: 51323 | CH134: 49512 | CI134: 48895 | CJ134: 46577 | CK134: 44569 | CL134: 42635 | CM134: 39654 | CN134: 36110 | CO134: 33567 | CP134: 30101 | CQ134: 26522 | CR134: 23623 | CS134: 21029 | CT134: 88978
A135: Québec | B135: 99 | C135: Ensemble du Québec | D135: 2040 | E135: Projection | F135: Féminin | G135: 4657460 | H135: 41962 | I135: 42123 | J135: 42267 | K135: 42379 | L135: 42517 | M135: 42696 | N135: 42957 | O135: 43243 | P135: 43507 | Q135: 43831 | R135: 44159 | S135: 44490 | T135: 44837 | U135: 45202 | V135: 45567 | W135: 45968 | X135: 46498 | Y135: 47128 | Z135: 48404 | AA135: 50706 | AB135: 51846 | AC135: 51860 | AD135: 52265 | AE135: 52737 | AF135: 53971 | AG135: 55014 | AH135: 55310 | AI135: 55294 | AJ135: 55561 | AK135: 55590 | AL135: 56145 | AM135: 56570 | AN135: 55840 | AO135: 54590 | AP135: 53473 | AQ135: 51944 | AR135: 51973 | AS135: 51770 | AT135: 52213 | AU135: 52637 | AV135: 53684 | AW135: 53168 | AX135: 54148 | AY135: 55090 | AZ135: 56738 | BA135: 57472 | BB135: 57773 | BC135: 58954 | BD135: 60028 | BE135: 60373 | BF135: 59291 | BG135: 56208 | BH135: 54740 | BI135: 54646 | BJ135: 55473 | BK135: 55981 | BL135: 56157 | BM135: 56101 | BN135: 57097 | BO135: 58370 | BP135: 58147 | BQ135: 56457 | BR135: 54966 | BS135: 54234 | BT135: 52468 | BU135: 51569 | BV135: 49126 | BW135: 47350 | BX135: 47309 | BY135: 48420 | BZ135: 48616 | CA135: 47853 | CB135: 47929 | CC135: 48969 | CD135: 51047 | CE135: 54231 | CF135: 54321 | CG135: 54156 | CH135: 52348 | CI135: 52276 | CJ135: 50954 | CK135: 49371 | CL135: 47292 | CM135: 44713 | CN135: 41090 | CO135: 39019 | CP135: 35743 | CQ135: 31998 | CR135: 28972 | CS135: 26423 | CT135: 131557
A136: Québec | B136: 99 | C136: Ensemble du Québec | D136: 2040 | E136: Projection | F136: Total | G136: 9336705 | H136: 86140 | I136: 86409 | J136: 86714 | K136: 86946 | L136: 87242 | M136: 87621 | N136: 88114 | O136: 88683 | P136: 89249 | Q136: 89885 | R136: 90565 | S136: 91254 | T136: 91975 | U136: 92726 | V136: 93474 | W136: 94271 | X136: 95269 | Y136: 96435 | Z136: 99191 | AA136: 103969 | AB136: 106537 | AC136: 106946 | AD136: 107707 | AE136: 109382 | AF136: 112142 | AG136: 113209 | AH136: 113879 | AI136: 114360 | AJ136: 113947 | AK136: 113799 | AL136: 114762 | AM136: 115286 | AN136: 113613 | AO136: 111065 | AP136: 108345 | AQ136: 105564 | AR136: 105603 | AS136: 105047 | AT136: 106005 | AU136: 107277 | AV136: 109272 | AW136: 108351 | AX136: 110106 | AY136: 112945 | AZ136: 115701 | BA136: 117519 | BB136: 118331 | BC136: 120641 | BD136: 122804 | BE136: 123213 | BF136: 120694 | BG136: 114711 | BH136: 110696 | BI136: 110031 | BJ136: 112086 | BK136: 112843 | BL136: 113150 | BM136: 112794 | BN136: 115328 | BO136: 117318 | BP136: 117053 | BQ136: 113220 | BR136: 110566 | BS136: 108802 | BT136: 105567 | BU136: 103631 | BV136: 98058 | BW136: 94885 | BX136: 94338 | BY136: 96720 | BZ136: 96766 | CA136: 94645 | CB136: 94317 | CC136: 96406 | CD136: 100680 | CE136: 106427 | CF136: 106476 | CG136: 105479 | CH136: 101860 | CI136: 101171 | CJ136: 97531 | CK136: 93940 | CL136: 89927 | CM136: 84367 | CN136: 77200 | CO136: 72586 | CP136: 65844 | CQ136: 58520 | CR136: 52595 | CS136: 47452 | CT136: 220535
A137: Québec | B137: 99 | C137: Ensemble du Québec | D137: 2041 | E137: Projection | F137: Masculin | G137: 4693165 | H137: 44488 | I137: 44624 | J137: 44767 | K137: 44874 | L137: 44976 | M137: 45118 | N137: 45299 | O137: 45506 | P137: 45746 | Q137: 46008 | R137: 46312 | S137: 46642 | T137: 46996 | U137: 47372 | V137: 47761 | W137: 48172 | X137: 48667 | Y137: 49248 | Z137: 50762 | AA137: 53342 | AB137: 54897 | AC137: 55717 | AD137: 55836 | AE137: 56053 | AF137: 56907 | AG137: 58273 | AH137: 58249 | AI137: 58593 | AJ137: 59144 | AK137: 58498 | AL137: 58453 | AM137: 58890 | AN137: 58983 | AO137: 58124 | AP137: 56837 | AQ137: 55235 | AR137: 53972 | AS137: 53897 | AT137: 53558 | AU137: 54040 | AV137: 54858 | AW137: 55701 | AX137: 55268 | AY137: 56014 | AZ137: 57896 | BA137: 58964 | BB137: 60005 | BC137: 60516 | BD137: 61619 | BE137: 62704 | BF137: 62748 | BG137: 61282 | BH137: 58402 | BI137: 55837 | BJ137: 55261 | BK137: 56458 | BL137: 56692 | BM137: 56802 | BN137: 56489 | BO137: 57997 | BP137: 58691 | BQ137: 58619 | BR137: 56462 | BS137: 55286 | BT137: 54250 | BU137: 52744 | BV137: 51683 | BW137: 48544 | BX137: 47125 | BY137: 46582 | BZ137: 47810 | CA137: 47586 | CB137: 46197 | CC137: 45728 | CD137: 46689 | CE137: 48758 | CF137: 51177 | CG137: 51013 | CH137: 50066 | CI137: 48166 | CJ137: 47395 | CK137: 44988 | CL137: 42849 | CM137: 40801 | CN137: 37729 | CO137: 34141 | CP137: 31505 | CQ137: 28036 | CR137: 24481 | CS137: 21584 | CT137: 94131
A138: Québec | B138: 99 | C138: Ensemble du Québec | D138: 2041 | E138: Projection | F138: Féminin | G138: 4669929 | H138: 42275 | I138: 42435 | J138: 42566 | K138: 42658 | L138: 42752 | M138: 42886 | N138: 43086 | O138: 43300 | P138: 43518 | Q138: 43780 | R138: 44073 | S138: 44372 | T138: 44702 | U138: 45060 | V138: 45422 | W138: 45839 | X138: 46398 | Y138: 47075 | Z138: 48390 | AA138: 50790 | AB138: 52040 | AC138: 52596 | AD138: 52156 | AE138: 52491 | AF138: 52933 | AG138: 54191 | AH138: 55174 | AI138: 55604 | AJ138: 55635 | AK138: 55893 | AL138: 55974 | AM138: 56568 | AN138: 56970 | AO138: 56279 | AP138: 55051 | AQ138: 53916 | AR138: 52312 | AS138: 52287 | AT138: 52082 | AU138: 52478 | AV138: 52877 | AW138: 53861 | AX138: 53301 | AY138: 54275 | AZ138: 55156 | BA138: 56785 | BB138: 57499 | BC138: 57783 | BD138: 58943 | BE138: 60015 | BF138: 60330 | BG138: 59225 | BH138: 56156 | BI138: 54654 | BJ138: 54563 | BK138: 55372 | BL138: 55867 | BM138: 56037 | BN138: 55968 | BO138: 56946 | BP138: 58201 | BQ138: 57952 | BR138: 56248 | BS138: 54745 | BT138: 54004 | BU138: 52210 | BV138: 51303 | BW138: 48837 | BX138: 47054 | BY138: 46993 | BZ138: 48043 | CA138: 48198 | CB138: 47388 | CC138: 47404 | CD138: 48377 | CE138: 50339 | CF138: 53405 | CG138: 53389 | CH138: 53131 | CI138: 51225 | CJ138: 51017 | CK138: 49584 | CL138: 47870 | CM138: 45679 | CN138: 42990 | CO138: 39303 | CP138: 37078 | CQ138: 33742 | CR138: 29964 | CS138: 26893 | CT138: 137743
A139: Québec | B139: 99 | C139: Ensemble du Québec | D139: 2041 | E139: Projection | F139: Total | G139: 9363094 | H139: 86763 | I139: 87059 | J139: 87333 | K139: 87532 | L139: 87728 | M139: 88004 | N139: 88385 | O139: 88806 | P139: 89264 | Q139: 89788 | R139: 90385 | S139: 91014 | T139: 91698 | U139: 92432 | V139: 93183 | W139: 94011 | X139: 95065 | Y139: 96323 | Z139: 99152 | AA139: 104132 | AB139: 106937 | AC139: 108313 | AD139: 107992 | AE139: 108544 | AF139: 109840 | AG139: 112464 | AH139: 113423 | AI139: 114197 | AJ139: 114779 | AK139: 114391 | AL139: 114427 | AM139: 115458 | AN139: 115953 | AO139: 114403 | AP139: 111888 | AQ139: 109151 | AR139: 106284 | AS139: 106184 | AT139: 105640 | AU139: 106518 | AV139: 107735 | AW139: 109562 | AX139: 108569 | AY139: 110289 | AZ139: 113052 | BA139: 115749 | BB139: 117504 | BC139: 118299 | BD139: 120562 | BE139: 122719 | BF139: 123078 | BG139: 120507 | BH139: 114558 | BI139: 110491 | BJ139: 109824 | BK139: 111830 | BL139: 112559 | BM139: 112839 | BN139: 112457 | BO139: 114943 | BP139: 116892 | BQ139: 116571 | BR139: 112710 | BS139: 110031 | BT139: 108254 | BU139: 104954 | BV139: 102986 | BW139: 97381 | BX139: 94179 | BY139: 93575 | BZ139: 95853 | CA139: 95784 | CB139: 93585 | CC139: 93132 | CD139: 95066 | CE139: 99097 | CF139: 104582 | CG139: 104402 | CH139: 103197 | CI139: 99391 | CJ139: 98412 | CK139: 94572 | CL139: 90719 | CM139: 86480 | CN139: 80719 | CO139: 73444 | CP139: 68583 | CQ139: 61778 | CR139: 54445 | CS139: 48477 | CT139: 231874
A140: RSS | B140: 15 | C140: 15 Laurentides | D140: 1996 | E140: Estimation | F140: Masculin | G140: 220071 | H140: 2906 | I140: 3059 | J140: 3182 | K140: 3462 | L140: 3595 | M140: 3677 | N140: 3475 | O140: 3236 | P140: 3070 | Q140: 3069 | R140: 2994 | S140: 3098 | T140: 3109 | U140: 3022 | V140: 3165 | W140: 3197 | X140: 3226 | Y140: 3076 | Z140: 2984 | AA140: 2779 | AB140: 2718 | AC140: 2633 | AD140: 2420 | AE140: 2271 | AF140: 2347 | AG140: 2527 | AH140: 2673 | AI140: 2731 | AJ140: 2914 | AK140: 3193 | AL140: 3663 | AM140: 4033 | AN140: 4216 | AO140: 4265 | AP140: 4211 | AQ140: 4411 | AR140: 4429 | AS140: 4440 | AT140: 4367 | AU140: 4252 | AV140: 3931 | AW140: 4108 | AX140: 3943 | AY140: 3647 | AZ140: 3475 | BA140: 3488 | BB140: 3280 | BC140: 3311 | BD140: 3286 | BE140: 3285 | BF140: 3064 | BG140: 2846 | BH140: 2706 | BI140: 2687 | BJ140: 2504 | BK140: 2358 | BL140: 2105 | BM140: 2085 | BN140: 1951 | BO140: 1796 | BP140: 1869 | BQ140: 1801 | BR140: 1741 | BS140: 1721 | BT140: 1767 | BU140: 1715 | BV140: 1611 | BW140: 1504 | BX140: 1514 | BY140: 1355 | BZ140: 1335 | CA140: 1211 | CB140: 1068 | CC140: 1018 | CD140: 933 | CE140: 804 | CF140: 708 | CG140: 635 | CH140: 580 | CI140: 484 | CJ140: 467 | CK140: 403 | CL140: 363 | CM140: 315 | CN140: 245 | CO140: 211 | CP140: 157 | CQ140: 126 | CR140: 119 | CS140: 91 | CT140: 249
A141: RSS | B141: 15 | C141: 15 Laurentides | D141: 1996 | E141: Estimation | F141: Féminin | G141: 219540 | H141: 2842 | I141: 2921 | J141: 3186 | K141: 3242 | L141: 3484 | M141: 3442 | N141: 3472 | O141: 3081 | P141: 2906 | Q141: 2924 | R141: 2908 | S141: 2904 | T141: 2859 | U141: 2880 | V141: 3032 | W141: 3181 | X141: 3072 | Y141: 2877 | Z141: 2679 | AA141: 2608 | AB141: 2384 | AC141: 2370 | AD141: 2224 | AE141: 2225 | AF141: 2309 | AG141: 2566 | AH141: 2737 | AI141: 2807 | AJ141: 3005 | AK141: 3220 | AL141: 3629 | AM141: 4081 | AN141: 4181 | AO141: 4361 | AP141: 4299 | AQ141: 4418 | AR141: 4405 | AS141: 4270 | AT141: 4291 | AU141: 4219 | AV141: 3900 | AW141: 3952 | AX141: 3717 | AY141: 3561 | AZ141: 3360 | BA141: 3366 | BB141: 3291 | BC141: 3200 | BD141: 3174 | BE141: 3100 | BF141: 3002 | BG141: 2726 | BH141: 2658 | BI141: 2629 | BJ141: 2376 | BK141: 2257 | BL141: 2022 | BM141: 2034 | BN141: 1858 | BO141: 1801 | BP141: 1809 | BQ141: 1728 | BR141: 1676 | BS141: 1777 | BT141: 1843 | BU141: 1727 | BV141: 1667 | BW141: 1665 | BX141: 1600 | BY141: 1496 | BZ141: 1443 | CA141: 1362 | CB141: 1371 | CC141: 1214 | CD141: 1188 | CE141: 1077 | CF141: 983 | CG141: 874 | CH141: 809 | CI141: 733 | CJ141: 693 | CK141: 625 | CL141: 591 | CM141: 496 | CN141: 460 | CO141: 381 | CP141: 319 | CQ141: 297 | CR141: 248 | CS141: 221 | CT141: 682
A142: RSS | B142: 15 | C142: 15 Laurentides | D142: 1996 | E142: Estimation | F142: Total | G142: 439611 | H142: 5748 | I142: 5980 | J142: 6368 | K142: 6704 | L142: 7079 | M142: 7119 | N142: 6947 | O142: 6317 | P142: 5976 | Q142: 5993 | R142: 5902 | S142: 6002 | T142: 5968 | U142: 5902 | V142: 6197 | W142: 6378 | X142: 6298 | Y142: 5953 | Z142: 5663 | AA142: 5387 | AB142: 5102 | AC142: 5003 | AD142: 4644 | AE142: 4496 | AF142: 4656 | AG142: 5093 | AH142: 5410 | AI142: 5538 | AJ142: 5919 | AK142: 6413 | AL142: 7292 | AM142: 8114 | AN142: 8397 | AO142: 8626 | AP142: 8510 | AQ142: 8829 | AR142: 8834 | AS142: 8710 | AT142: 8658 | AU142: 8471 | AV142: 7831 | AW142: 8060 | AX142: 7660 | AY142: 7208 | AZ142: 6835 | BA142: 6854 | BB142: 6571 | BC142: 6511 | BD142: 6460 | BE142: 6385 | BF142: 6066 | BG142: 5572 | BH142: 5364 | BI142: 5316 | BJ142: 4880 | BK142: 4615 | BL142: 4127 | BM142: 4119 | BN142: 3809 | BO142: 3597 | BP142: 3678 | BQ142: 3529 | BR142: 3417 | BS142: 3498 | BT142: 3610 | BU142: 3442 | BV142: 3278 | BW142: 3169 | BX142: 3114 | BY142: 2851 | BZ142: 2778 | CA142: 2573 | CB142: 2439 | CC142: 2232 | CD142: 2121 | CE142: 1881 | CF142: 1691 | CG142: 1509 | CH142: 1389 | CI142: 1217 | CJ142: 1160 | CK142: 1028 | CL142: 954 | CM142: 811 | CN142: 705 | CO142: 592 | CP142: 476 | CQ142: 423 | CR142: 367 | CS142: 312 | CT142: 931
A143: RSS | B143: 15 | C143: 15 Laurentides | D143: 1997 | E143: Estimation | F143: Masculin | G143: 223322 | H143: 2822 | I143: 2955 | J143: 3132 | K143: 3245 | L143: 3520 | M143: 3654 | N143: 3713 | O143: 3510 | P143: 3275 | Q143: 3103 | R143: 3086 | S143: 3023 | T143: 3114 | U143: 3128 | V143: 3024 | W143: 3139 | X143: 3171 | Y143: 3181 | Z143: 3024 | AA143: 2916 | AB143: 2768 | AC143: 2680 | AD143: 2661 | AE143: 2429 | AF143: 2315 | AG143: 2407 | AH143: 2610 | AI143: 2731 | AJ143: 2779 | AK143: 2959 | AL143: 3229 | AM143: 3719 | AN143: 4085 | AO143: 4289 | AP143: 4360 | AQ143: 4291 | AR143: 4479 | AS143: 4483 | AT143: 4492 | AU143: 4388 | AV143: 4291 | AW143: 3953 | AX143: 4093 | AY143: 3945 | AZ143: 3664 | BA143: 3489 | BB143: 3488 | BC143: 3287 | BD143: 3310 | BE143: 3287 | BF143: 3307 | BG143: 3065 | BH143: 2863 | BI143: 2725 | BJ143: 2701 | BK143: 2522 | BL143: 2381 | BM143: 2114 | BN143: 2090 | BO143: 1973 | BP143: 1791 | BQ143: 1873 | BR143: 1798 | BS143: 1734 | BT143: 1718 | BU143: 1758 | BV143: 1691 | BW143: 1585 | BX143: 1486 | BY143: 1494 | BZ143: 1318 | CA143: 1286 | CB143: 1175 | CC143: 1020 | CD143: 957 | CE143: 882 | CF143: 747 | CG143: 669 | CH143: 588 | CI143: 532 | CJ143: 440 | CK143: 428 | CL143: 364 | CM143: 311 | CN143: 281 | CO143: 188 | CP143: 184 | CQ143: 125 | CR143: 97 | CS143: 106 | CT143: 259
A144: RSS | B144: 15 | C144: 15 Laurentides | D144: 1997 | E144: Estimation | F144: Féminin | G144: 223035 | H144: 2693 | I144: 2935 | J144: 2992 | K144: 3257 | L144: 3295 | M144: 3540 | N144: 3483 | O144: 3513 | P144: 3104 | Q144: 2934 | R144: 2934 | S144: 2919 | T144: 2902 | U144: 2871 | V144: 2863 | W144: 2999 | X144: 3122 | Y144: 3016 | Z144: 2774 | AA144: 2610 | AB144: 2584 | AC144: 2392 | AD144: 2421 | AE144: 2292 | AF144: 2296 | AG144: 2403 | AH144: 2653 | AI144: 2812 | AJ144: 2842 | AK144: 3056 | AL144: 3264 | AM144: 3695 | AN144: 4155 | AO144: 4248 | AP144: 4426 | AQ144: 4366 | AR144: 4465 | AS144: 4475 | AT144: 4319 | AU144: 4335 | AV144: 4260 | AW144: 3924 | AX144: 3981 | AY144: 3718 | AZ144: 3559 | BA144: 3363 | BB144: 3376 | BC144: 3291 | BD144: 3226 | BE144: 3200 | BF144: 3126 | BG144: 3020 | BH144: 2764 | BI144: 2674 | BJ144: 2667 | BK144: 2399 | BL144: 2291 | BM144: 2033 | BN144: 2052 | BO144: 1881 | BP144: 1804 | BQ144: 1824 | BR144: 1723 | BS144: 1677 | BT144: 1784 | BU144: 1839 | BV144: 1720 | BW144: 1650 | BX144: 1644 | BY144: 1585 | BZ144: 1463 | CA144: 1413 | CB144: 1327 | CC144: 1337 | CD144: 1183 | CE144: 1156 | CF144: 1041 | CG144: 955 | CH144: 838 | CI144: 770 | CJ144: 704 | CK144: 657 | CL144: 584 | CM144: 554 | CN144: 470 | CO144: 428 | CP144: 348 | CQ144: 292 | CR144: 272 | CS144: 207 | CT144: 726
A145: RSS | B145: 15 | C145: 15 Laurentides | D145: 1997 | E145: Estimation | F145: Total | G145: 446357 | H145: 5515 | I145: 5890 | J145: 6124 | K145: 6502 | L145: 6815 | M145: 7194 | N145: 7196 | O145: 7023 | P145: 6379 | Q145: 6037 | R145: 6020 | S145: 5942 | T145: 6016 | U145: 5999 | V145: 5887 | W145: 6138 | X145: 6293 | Y145: 6197 | Z145: 5798 | AA145: 5526 | AB145: 5352 | AC145: 5072 | AD145: 5082 | AE145: 4721 | AF145: 4611 | AG145: 4810 | AH145: 5263 | AI145: 5543 | AJ145: 5621 | AK145: 6015 | AL145: 6493 | AM145: 7414 | AN145: 8240 | AO145: 8537 | AP145: 8786 | AQ145: 8657 | AR145: 8944 | AS145: 8958 | AT145: 8811 | AU145: 8723 | AV145: 8551 | AW145: 7877 | AX145: 8074 | AY145: 7663 | AZ145: 7223 | BA145: 6852 | BB145: 6864 | BC145: 6578 | BD145: 6536 | BE145: 6487 | BF145: 6433 | BG145: 6085 | BH145: 5627 | BI145: 5399 | BJ145: 5368 | BK145: 4921 | BL145: 4672 | BM145: 4147 | BN145: 4142 | BO145: 3854 | BP145: 3595 | BQ145: 3697 | BR145: 3521 | BS145: 3411 | BT145: 3502 | BU145: 3597 | BV145: 3411 | BW145: 3235 | BX145: 3130 | BY145: 3079 | BZ145: 2781 | CA145: 2699 | CB145: 2502 | CC145: 2357 | CD145: 2140 | CE145: 2038 | CF145: 1788 | CG145: 1624 | CH145: 1426 | CI145: 1302 | CJ145: 1144 | CK145: 1085 | CL145: 948 | CM145: 865 | CN145: 751 | CO145: 616 | CP145: 532 | CQ145: 417 | CR145: 369 | CS145: 313 | CT145: 985
A146: RSS | B146: 15 | C146: 15 Laurentides | D146: 1998 | E146: Estimation | F146: Masculin | G146: 226439 | H146: 2572 | I146: 2871 | J146: 3020 | K146: 3183 | L146: 3307 | M146: 3564 | N146: 3692 | O146: 3754 | P146: 3540 | Q146: 3311 | R146: 3135 | S146: 3117 | T146: 3031 | U146: 3138 | V146: 3158 | W146: 3013 | X146: 3107 | Y146: 3143 | Z146: 3150 | AA146: 2952 | AB146: 2870 | AC146: 2736 | AD146: 2661 | AE146: 2651 | AF146: 2458 | AG146: 2371 | AH146: 2476 | AI146: 2699 | AJ146: 2803 | AK146: 2860 | AL146: 3002 | AM146: 3286 | AN146: 3785 | AO146: 4173 | AP146: 4361 | AQ146: 4446 | AR146: 4356 | AS146: 4525 | AT146: 4540 | AU146: 4528 | AV146: 4426 | AW146: 4318 | AX146: 3953 | AY146: 4109 | AZ146: 3949 | BA146: 3670 | BB146: 3501 | BC146: 3496 | BD146: 3275 | BE146: 3313 | BF146: 3285 | BG146: 3325 | BH146: 3073 | BI146: 2878 | BJ146: 2740 | BK146: 2730 | BL146: 2541 | BM146: 2411 | BN146: 2124 | BO146: 2104 | BP146: 1971 | BQ146: 1794 | BR146: 1875 | BS146: 1797 | BT146: 1722 | BU146: 1718 | BV146: 1737 | BW146: 1662 | BX146: 1572 | BY146: 1459 | BZ146: 1450 | CA146: 1277 | CB146: 1242 | CC146: 1139 | CD146: 975 | CE146: 916 | CF146: 831 | CG146: 688 | CH146: 622 | CI146: 545 | CJ146: 476 | CK146: 396 | CL146: 385 | CM146: 325 | CN146: 275 | CO146: 237 | CP146: 164 | CQ146: 157 | CR146: 106 | CS146: 80 | CT146: 280
A147: RSS | B147: 15 | C147: 15 Laurentides | D147: 1998 | E147: Estimation | F147: Féminin | G147: 226424 | H147: 2456 | I147: 2764 | J147: 3018 | K147: 3045 | L147: 3312 | M147: 3339 | N147: 3581 | O147: 3522 | P147: 3555 | Q147: 3113 | R147: 2956 | S147: 2957 | T147: 2934 | U147: 2910 | V147: 2879 | W147: 2840 | X147: 2960 | Y147: 3074 | Z147: 2944 | AA147: 2694 | AB147: 2576 | AC147: 2584 | AD147: 2425 | AE147: 2488 | AF147: 2355 | AG147: 2389 | AH147: 2487 | AI147: 2740 | AJ147: 2873 | AK147: 2900 | AL147: 3114 | AM147: 3308 | AN147: 3768 | AO147: 4230 | AP147: 4318 | AQ147: 4506 | AR147: 4407 | AS147: 4528 | AT147: 4531 | AU147: 4355 | AV147: 4365 | AW147: 4297 | AX147: 3937 | AY147: 4003 | AZ147: 3724 | BA147: 3563 | BB147: 3387 | BC147: 3388 | BD147: 3327 | BE147: 3250 | BF147: 3237 | BG147: 3145 | BH147: 3047 | BI147: 2787 | BJ147: 2704 | BK147: 2714 | BL147: 2430 | BM147: 2329 | BN147: 2054 | BO147: 2073 | BP147: 1902 | BQ147: 1810 | BR147: 1840 | BS147: 1729 | BT147: 1685 | BU147: 1781 | BV147: 1841 | BW147: 1700 | BX147: 1617 | BY147: 1612 | BZ147: 1562 | CA147: 1434 | CB147: 1382 | CC147: 1291 | CD147: 1307 | CE147: 1154 | CF147: 1121 | CG147: 1003 | CH147: 921 | CI147: 781 | CJ147: 737 | CK147: 668 | CL147: 616 | CM147: 547 | CN147: 507 | CO147: 444 | CP147: 394 | CQ147: 316 | CR147: 247 | CS147: 232 | CT147: 747
A148: RSS | B148: 15 | C148: 15 Laurentides | D148: 1998 | E148: Estimation | F148: Total | G148: 452863 | H148: 5028 | I148: 5635 | J148: 6038 | K148: 6228 | L148: 6619 | M148: 6903 | N148: 7273 | O148: 7276 | P148: 7095 | Q148: 6424 | R148: 6091 | S148: 6074 | T148: 5965 | U148: 6048 | V148: 6037 | W148: 5853 | X148: 6067 | Y148: 6217 | Z148: 6094 | AA148: 5646 | AB148: 5446 | AC148: 5320 | AD148: 5086 | AE148: 5139 | AF148: 4813 | AG148: 4760 | AH148: 4963 | AI148: 5439 | AJ148: 5676 | AK148: 5760 | AL148: 6116 | AM148: 6594 | AN148: 7553 | AO148: 8403 | AP148: 8679 | AQ148: 8952 | AR148: 8763 | AS148: 9053 | AT148: 9071 | AU148: 8883 | AV148: 8791 | AW148: 8615 | AX148: 7890 | AY148: 8112 | AZ148: 7673 | BA148: 7233 | BB148: 6888 | BC148: 6884 | BD148: 6602 | BE148: 6563 | BF148: 6522 | BG148: 6470 | BH148: 6120 | BI148: 5665 | BJ148: 5444 | BK148: 5444 | BL148: 4971 | BM148: 4740 | BN148: 4178 | BO148: 4177 | BP148: 3873 | BQ148: 3604 | BR148: 3715 | BS148: 3526 | BT148: 3407 | BU148: 3499 | BV148: 3578 | BW148: 3362 | BX148: 3189 | BY148: 3071 | BZ148: 3012 | CA148: 2711 | CB148: 2624 | CC148: 2430 | CD148: 2282 | CE148: 2070 | CF148: 1952 | CG148: 1691 | CH148: 1543 | CI148: 1326 | CJ148: 1213 | CK148: 1064 | CL148: 1001 | CM148: 872 | CN148: 782 | CO148: 681 | CP148: 558 | CQ148: 473 | CR148: 353 | CS148: 312 | CT148: 1027
A149: RSS | B149: 15 | C149: 15 Laurentides | D149: 1999 | E149: Estimation | F149: Masculin | G149: 229279 | H149: 2480 | I149: 2626 | J149: 2923 | K149: 3079 | L149: 3246 | M149: 3359 | N149: 3581 | O149: 3732 | P149: 3794 | Q149: 3571 | R149: 3346 | S149: 3161 | T149: 3124 | U149: 3053 | V149: 3165 | W149: 3176 | X149: 3006 | Y149: 3075 | Z149: 3125 | AA149: 3092 | AB149: 2909 | AC149: 2821 | AD149: 2738 | AE149: 2629 | AF149: 2671 | AG149: 2496 | AH149: 2447 | AI149: 2551 | AJ149: 2794 | AK149: 2912 | AL149: 2959 | AM149: 3090 | AN149: 3351 | AO149: 3876 | AP149: 4262 | AQ149: 4402 | AR149: 4503 | AS149: 4375 | AT149: 4566 | AU149: 4574 | AV149: 4582 | AW149: 4450 | AX149: 4324 | AY149: 3956 | AZ149: 4110 | BA149: 3937 | BB149: 3668 | BC149: 3503 | BD149: 3467 | BE149: 3258 | BF149: 3305 | BG149: 3276 | BH149: 3332 | BI149: 3074 | BJ149: 2896 | BK149: 2755 | BL149: 2751 | BM149: 2548 | BN149: 2425 | BO149: 2144 | BP149: 2103 | BQ149: 1981 | BR149: 1800 | BS149: 1861 | BT149: 1789 | BU149: 1713 | BV149: 1719 | BW149: 1709 | BX149: 1625 | BY149: 1547 | BZ149: 1422 | CA149: 1397 | CB149: 1224 | CC149: 1189 | CD149: 1086 | CE149: 924 | CF149: 836 | CG149: 788 | CH149: 642 | CI149: 575 | CJ149: 480 | CK149: 434 | CL149: 349 | CM149: 346 | CN149: 282 | CO149: 240 | CP149: 204 | CQ149: 143 | CR149: 128 | CS149: 89 | CT149: 253
A150: RSS | B150: 15 | C150: 15 Laurentides | D150: 1999 | E150: Estimation | F150: Féminin | G150: 229430 | H150: 2411 | I150: 2542 | J150: 2833 | K150: 3086 | L150: 3086 | M150: 3354 | N150: 3366 | O150: 3614 | P150: 3554 | Q150: 3594 | R150: 3114 | S150: 2976 | T150: 2980 | U150: 2950 | V150: 2908 | W150: 2879 | X150: 2815 | Y150: 2930 | Z150: 2993 | AA150: 2867 | AB150: 2625 | AC150: 2523 | AD150: 2552 | AE150: 2434 | AF150: 2520 | AG150: 2418 | AH150: 2453 | AI150: 2582 | AJ150: 2828 | AK150: 2969 | AL150: 2977 | AM150: 3194 | AN150: 3384 | AO150: 3850 | AP150: 4318 | AQ150: 4387 | AR150: 4539 | AS150: 4456 | AT150: 4583 | AU150: 4581 | AV150: 4372 | AW150: 4396 | AX150: 4325 | AY150: 3946 | AZ150: 4022 | BA150: 3729 | BB150: 3568 | BC150: 3395 | BD150: 3401 | BE150: 3327 | BF150: 3264 | BG150: 3265 | BH150: 3174 | BI150: 3056 | BJ150: 2819 | BK150: 2727 | BL150: 2751 | BM150: 2453 | BN150: 2361 | BO150: 2079 | BP150: 2086 | BQ150: 1923 | BR150: 1813 | BS150: 1852 | BT150: 1726 | BU150: 1684 | BV150: 1778 | BW150: 1816 | BX150: 1670 | BY150: 1578 | BZ150: 1581 | CA150: 1528 | CB150: 1395 | CC150: 1340 | CD150: 1251 | CE150: 1266 | CF150: 1106 | CG150: 1076 | CH150: 960 | CI150: 877 | CJ150: 757 | CK150: 699 | CL150: 616 | CM150: 577 | CN150: 504 | CO150: 469 | CP150: 409 | CQ150: 356 | CR150: 284 | CS150: 203 | CT150: 795
A151: RSS | B151: 15 | C151: 15 Laurentides | D151: 1999 | E151: Estimation | F151: Total | G151: 458709 | H151: 4891 | I151: 5168 | J151: 5756 | K151: 6165 | L151: 6332 | M151: 6713 | N151: 6947 | O151: 7346 | P151: 7348 | Q151: 7165 | R151: 6460 | S151: 6137 | T151: 6104 | U151: 6003 | V151: 6073 | W151: 6055 | X151: 5821 | Y151: 6005 | Z151: 6118 | AA151: 5959 | AB151: 5534 | AC151: 5344 | AD151: 5290 | AE151: 5063 | AF151: 5191 | AG151: 4914 | AH151: 4900 | AI151: 5133 | AJ151: 5622 | AK151: 5881 | AL151: 5936 | AM151: 6284 | AN151: 6735 | AO151: 7726 | AP151: 8580 | AQ151: 8789 | AR151: 9042 | AS151: 8831 | AT151: 9149 | AU151: 9155 | AV151: 8954 | AW151: 8846 | AX151: 8649 | AY151: 7902 | AZ151: 8132 | BA151: 7666 | BB151: 7236 | BC151: 6898 | BD151: 6868 | BE151: 6585 | BF151: 6569 | BG151: 6541 | BH151: 6506 | BI151: 6130 | BJ151: 5715 | BK151: 5482 | BL151: 5502 | BM151: 5001 | BN151: 4786 | BO151: 4223 | BP151: 4189 | BQ151: 3904 | BR151: 3613 | BS151: 3713 | BT151: 3515 | BU151: 3397 | BV151: 3497 | BW151: 3525 | BX151: 3295 | BY151: 3125 | BZ151: 3003 | CA151: 2925 | CB151: 2619 | CC151: 2529 | CD151: 2337 | CE151: 2190 | CF151: 1942 | CG151: 1864 | CH151: 1602 | CI151: 1452 | CJ151: 1237 | CK151: 1133 | CL151: 965 | CM151: 923 | CN151: 786 | CO151: 709 | CP151: 613 | CQ151: 499 | CR151: 412 | CS151: 292 | CT151: 1048
A152: RSS | B152: 15 | C152: 15 Laurentides | D152: 2000 | E152: Estimation | F152: Masculin | G152: 232502 | H152: 2548 | I152: 2532 | J152: 2699 | K152: 2982 | L152: 3151 | M152: 3306 | N152: 3399 | O152: 3614 | P152: 3776 | Q152: 3831 | R152: 3601 | S152: 3380 | T152: 3178 | U152: 3139 | V152: 3074 | W152: 3164 | X152: 3191 | Y152: 2990 | Z152: 3049 | AA152: 3077 | AB152: 3062 | AC152: 2855 | AD152: 2806 | AE152: 2710 | AF152: 2607 | AG152: 2686 | AH152: 2538 | AI152: 2517 | AJ152: 2640 | AK152: 2922 | AL152: 3036 | AM152: 3097 | AN152: 3181 | AO152: 3448 | AP152: 3968 | AQ152: 4335 | AR152: 4435 | AS152: 4544 | AT152: 4403 | AU152: 4582 | AV152: 4629 | AW152: 4620 | AX152: 4444 | AY152: 4335 | AZ152: 3955 | BA152: 4108 | BB152: 3915 | BC152: 3677 | BD152: 3482 | BE152: 3460 | BF152: 3256 | BG152: 3309 | BH152: 3285 | BI152: 3346 | BJ152: 3093 | BK152: 2917 | BL152: 2778 | BM152: 2767 | BN152: 2561 | BO152: 2458 | BP152: 2145 | BQ152: 2111 | BR152: 2001 | BS152: 1792 | BT152: 1850 | BU152: 1779 | BV152: 1701 | BW152: 1702 | BX152: 1673 | BY152: 1584 | BZ152: 1527 | CA152: 1388 | CB152: 1363 | CC152: 1179 | CD152: 1140 | CE152: 1042 | CF152: 859 | CG152: 798 | CH152: 720 | CI152: 595 | CJ152: 517 | CK152: 443 | CL152: 393 | CM152: 319 | CN152: 313 | CO152: 248 | CP152: 212 | CQ152: 178 | CR152: 125 | CS152: 115 | CT152: 242
A153: RSS | B153: 15 | C153: 15 Laurentides | D153: 2000 | E153: Estimation | F153: Féminin | G153: 232977 | H153: 2422 | I153: 2493 | J153: 2629 | K153: 2892 | L153: 3149 | M153: 3132 | N153: 3394 | O153: 3390 | P153: 3648 | Q153: 3593 | R153: 3632 | S153: 3136 | T153: 3002 | U153: 2997 | V153: 2960 | W153: 2902 | X153: 2876 | Y153: 2803 | Z153: 2865 | AA153: 2923 | AB153: 2820 | AC153: 2573 | AD153: 2496 | AE153: 2550 | AF153: 2465 | AG153: 2605 | AH153: 2486 | AI153: 2550 | AJ153: 2671 | AK153: 2939 | AL153: 3088 | AM153: 3076 | AN153: 3298 | AO153: 3473 | AP153: 3936 | AQ153: 4408 | AR153: 4417 | AS153: 4594 | AT153: 4503 | AU153: 4633 | AV153: 4613 | AW153: 4392 | AX153: 4420 | AY153: 4353 | AZ153: 3947 | BA153: 4042 | BB153: 3735 | BC153: 3565 | BD153: 3412 | BE153: 3409 | BF153: 3347 | BG153: 3288 | BH153: 3302 | BI153: 3196 | BJ153: 3084 | BK153: 2838 | BL153: 2744 | BM153: 2789 | BN153: 2478 | BO153: 2391 | BP153: 2097 | BQ153: 2105 | BR153: 1941 | BS153: 1819 | BT153: 1861 | BU153: 1717 | BV153: 1688 | BW153: 1772 | BX153: 1811 | BY153: 1656 | BZ153: 1566 | CA153: 1555 | CB153: 1508 | CC153: 1370 | CD153: 1311 | CE153: 1206 | CF153: 1222 | CG153: 1052 | CH153: 1046 | CI153: 920 | CJ153: 846 | CK153: 716 | CL153: 648 | CM153: 588 | CN153: 548 | CO153: 468 | CP153: 431 | CQ153: 364 | CR153: 312 | CS153: 245 | CT153: 824
A154: RSS | B154: 15 | C154: 15 Laurentides | D154: 2000 | E154: Estimation | F154: Total | G154: 465479 | H154: 4970 | I154: 5025 | J154: 5328 | K154: 5874 | L154: 6300 | M154: 6438 | N154: 6793 | O154: 7004 | P154: 7424 | Q154: 7424 | R154: 7233 | S154: 6516 | T154: 6180 | U154: 6136 | V154: 6034 | W154: 6066 | X154: 6067 | Y154: 5793 | Z154: 5914 | AA154: 6000 | AB154: 5882 | AC154: 5428 | AD154: 5302 | AE154: 5260 | AF154: 5072 | AG154: 5291 | AH154: 5024 | AI154: 5067 | AJ154: 5311 | AK154: 5861 | AL154: 6124 | AM154: 6173 | AN154: 6479 | AO154: 6921 | AP154: 7904 | AQ154: 8743 | AR154: 8852 | AS154: 9138 | AT154: 8906 | AU154: 9215 | AV154: 9242 | AW154: 9012 | AX154: 8864 | AY154: 8688 | AZ154: 7902 | BA154: 8150 | BB154: 7650 | BC154: 7242 | BD154: 6894 | BE154: 6869 | BF154: 6603 | BG154: 6597 | BH154: 6587 | BI154: 6542 | BJ154: 6177 | BK154: 5755 | BL154: 5522 | BM154: 5556 | BN154: 5039 | BO154: 4849 | BP154: 4242 | BQ154: 4216 | BR154: 3942 | BS154: 3611 | BT154: 3711 | BU154: 3496 | BV154: 3389 | BW154: 3474 | BX154: 3484 | BY154: 3240 | BZ154: 3093 | CA154: 2943 | CB154: 2871 | CC154: 2549 | CD154: 2451 | CE154: 2248 | CF154: 2081 | CG154: 1850 | CH154: 1766 | CI154: 1515 | CJ154: 1363 | CK154: 1159 | CL154: 1041 | CM154: 907 | CN154: 861 | CO154: 716 | CP154: 643 | CQ154: 542 | CR154: 437 | CS154: 360 | CT154: 1066
A155: RSS | B155: 15 | C155: 15 Laurentides | D155: 2001 | E155: Estimation | F155: Masculin | G155: 236275 | H155: 2417 | I155: 2581 | J155: 2621 | K155: 2792 | L155: 3028 | M155: 3228 | N155: 3344 | O155: 3479 | P155: 3651 | Q155: 3810 | R155: 3833 | S155: 3616 | T155: 3411 | U155: 3222 | V155: 3150 | W155: 3090 | X155: 3163 | Y155: 3183 | Z155: 3007 | AA155: 2994 | AB155: 3070 | AC155: 3024 | AD155: 2853 | AE155: 2775 | AF155: 2749 | AG155: 2625 | AH155: 2729 | AI155: 2631 | AJ155: 2648 | AK155: 2785 | AL155: 3054 | AM155: 3165 | AN155: 3243 | AO155: 3317 | AP155: 3577 | AQ155: 4035 | AR155: 4372 | AS155: 4440 | AT155: 4571 | AU155: 4453 | AV155: 4591 | AW155: 4650 | AX155: 4617 | AY155: 4454 | AZ155: 4319 | BA155: 4009 | BB155: 4085 | BC155: 3899 | BD155: 3688 | BE155: 3536 | BF155: 3463 | BG155: 3295 | BH155: 3335 | BI155: 3316 | BJ155: 3360 | BK155: 3127 | BL155: 2960 | BM155: 2815 | BN155: 2783 | BO155: 2590 | BP155: 2456 | BQ155: 2189 | BR155: 2118 | BS155: 2012 | BT155: 1818 | BU155: 1845 | BV155: 1768 | BW155: 1695 | BX155: 1679 | BY155: 1651 | BZ155: 1555 | CA155: 1489 | CB155: 1360 | CC155: 1310 | CD155: 1146 | CE155: 1083 | CF155: 987 | CG155: 825 | CH155: 737 | CI155: 660 | CJ155: 539 | CK155: 474 | CL155: 399 | CM155: 359 | CN155: 282 | CO155: 270 | CP155: 226 | CQ155: 191 | CR155: 143 | CS155: 112 | CT155: 269
A156: RSS | B156: 15 | C156: 15 Laurentides | D156: 2001 | E156: Estimation | F156: Féminin | G156: 236660 | H156: 2349 | I156: 2453 | J156: 2592 | K156: 2728 | L156: 2932 | M156: 3186 | N156: 3190 | O156: 3411 | P156: 3453 | Q156: 3660 | R156: 3640 | S156: 3632 | T156: 3190 | U156: 3052 | V156: 3005 | W156: 2963 | X156: 2879 | Y156: 2861 | Z156: 2766 | AA156: 2830 | AB156: 2856 | AC156: 2775 | AD156: 2561 | AE156: 2520 | AF156: 2546 | AG156: 2522 | AH156: 2648 | AI156: 2573 | AJ156: 2643 | AK156: 2803 | AL156: 3059 | AM156: 3194 | AN156: 3200 | AO156: 3407 | AP156: 3570 | AQ156: 4007 | AR156: 4419 | AS156: 4466 | AT156: 4597 | AU156: 4546 | AV156: 4642 | AW156: 4623 | AX156: 4417 | AY156: 4426 | AZ156: 4346 | BA156: 4003 | BB156: 4041 | BC156: 3766 | BD156: 3586 | BE156: 3443 | BF156: 3418 | BG156: 3378 | BH156: 3318 | BI156: 3339 | BJ156: 3231 | BK156: 3102 | BL156: 2902 | BM156: 2780 | BN156: 2810 | BO156: 2531 | BP156: 2407 | BQ156: 2147 | BR156: 2106 | BS156: 1972 | BT156: 1829 | BU156: 1864 | BV156: 1719 | BW156: 1704 | BX156: 1767 | BY156: 1791 | BZ156: 1648 | CA156: 1549 | CB156: 1523 | CC156: 1481 | CD156: 1351 | CE156: 1269 | CF156: 1168 | CG156: 1159 | CH156: 1025 | CI156: 996 | CJ156: 902 | CK156: 814 | CL156: 678 | CM156: 615 | CN156: 558 | CO156: 518 | CP156: 439 | CQ156: 379 | CR156: 333 | CS156: 262 | CT156: 901
A157: RSS | B157: 15 | C157: 15 Laurentides | D157: 2001 | E157: Estimation | F157: Total | G157: 472935 | H157: 4766 | I157: 5034 | J157: 5213 | K157: 5520 | L157: 5960 | M157: 6414 | N157: 6534 | O157: 6890 | P157: 7104 | Q157: 7470 | R157: 7473 | S157: 7248 | T157: 6601 | U157: 6274 | V157: 6155 | W157: 6053 | X157: 6042 | Y157: 6044 | Z157: 5773 | AA157: 5824 | AB157: 5926 | AC157: 5799 | AD157: 5414 | AE157: 5295 | AF157: 5295 | AG157: 5147 | AH157: 5377 | AI157: 5204 | AJ157: 5291 | AK157: 5588 | AL157: 6113 | AM157: 6359 | AN157: 6443 | AO157: 6724 | AP157: 7147 | AQ157: 8042 | AR157: 8791 | AS157: 8906 | AT157: 9168 | AU157: 8999 | AV157: 9233 | AW157: 9273 | AX157: 9034 | AY157: 8880 | AZ157: 8665 | BA157: 8012 | BB157: 8126 | BC157: 7665 | BD157: 7274 | BE157: 6979 | BF157: 6881 | BG157: 6673 | BH157: 6653 | BI157: 6655 | BJ157: 6591 | BK157: 6229 | BL157: 5862 | BM157: 5595 | BN157: 5593 | BO157: 5121 | BP157: 4863 | BQ157: 4336 | BR157: 4224 | BS157: 3984 | BT157: 3647 | BU157: 3709 | BV157: 3487 | BW157: 3399 | BX157: 3446 | BY157: 3442 | BZ157: 3203 | CA157: 3038 | CB157: 2883 | CC157: 2791 | CD157: 2497 | CE157: 2352 | CF157: 2155 | CG157: 1984 | CH157: 1762 | CI157: 1656 | CJ157: 1441 | CK157: 1288 | CL157: 1077 | CM157: 974 | CN157: 840 | CO157: 788 | CP157: 665 | CQ157: 570 | CR157: 476 | CS157: 374 | CT157: 1170
A158: RSS | B158: 15 | C158: 15 Laurentides | D158: 2002 | E158: Estimation | F158: Masculin | G158: 240377 | H158: 2556 | I158: 2473 | J158: 2670 | K158: 2713 | L158: 2870 | M158: 3115 | N158: 3303 | O158: 3432 | P158: 3559 | Q158: 3735 | R158: 3879 | S158: 3904 | T158: 3664 | U158: 3427 | V158: 3200 | W158: 3119 | X158: 3078 | Y158: 3171 | Z158: 3168 | AA158: 2989 | AB158: 2970 | AC158: 3048 | AD158: 3004 | AE158: 2846 | AF158: 2768 | AG158: 2762 | AH158: 2678 | AI158: 2808 | AJ158: 2713 | AK158: 2743 | AL158: 2870 | AM158: 3141 | AN158: 3256 | AO158: 3340 | AP158: 3403 | AQ158: 3670 | AR158: 4147 | AS158: 4478 | AT158: 4528 | AU158: 4655 | AV158: 4512 | AW158: 4629 | AX158: 4699 | AY158: 4667 | AZ158: 4501 | BA158: 4376 | BB158: 4044 | BC158: 4148 | BD158: 3933 | BE158: 3705 | BF158: 3537 | BG158: 3479 | BH158: 3298 | BI158: 3349 | BJ158: 3310 | BK158: 3354 | BL158: 3137 | BM158: 2984 | BN158: 2838 | BO158: 2797 | BP158: 2620 | BQ158: 2487 | BR158: 2199 | BS158: 2133 | BT158: 2006 | BU158: 1809 | BV158: 1836 | BW158: 1743 | BX158: 1668 | BY158: 1634 | BZ158: 1598 | CA158: 1508 | CB158: 1438 | CC158: 1300 | CD158: 1259 | CE158: 1101 | CF158: 1039 | CG158: 933 | CH158: 780 | CI158: 677 | CJ158: 625 | CK158: 517 | CL158: 433 | CM158: 362 | CN158: 305 | CO158: 239 | CP158: 222 | CQ158: 187 | CR158: 153 | CS158: 116 | CT158: 300
A159: RSS | B159: 15 | C159: 15 Laurentides | D159: 2002 | E159: Estimation | F159: Féminin | G159: 241031 | H159: 2464 | I159: 2403 | J159: 2529 | K159: 2663 | L159: 2787 | M159: 2992 | N159: 3268 | O159: 3260 | P159: 3493 | Q159: 3546 | R159: 3730 | S159: 3711 | T159: 3681 | U159: 3210 | V159: 3041 | W159: 2979 | X159: 2929 | Y159: 2852 | Z159: 2827 | AA159: 2738 | AB159: 2825 | AC159: 2859 | AD159: 2790 | AE159: 2604 | AF159: 2583 | AG159: 2638 | AH159: 2625 | AI159: 2749 | AJ159: 2675 | AK159: 2757 | AL159: 2891 | AM159: 3156 | AN159: 3302 | AO159: 3287 | AP159: 3491 | AQ159: 3635 | AR159: 4068 | AS159: 4501 | AT159: 4548 | AU159: 4665 | AV159: 4600 | AW159: 4712 | AX159: 4662 | AY159: 4463 | AZ159: 4478 | BA159: 4397 | BB159: 4065 | BC159: 4106 | BD159: 3800 | BE159: 3602 | BF159: 3460 | BG159: 3456 | BH159: 3411 | BI159: 3353 | BJ159: 3357 | BK159: 3275 | BL159: 3163 | BM159: 2947 | BN159: 2816 | BO159: 2836 | BP159: 2548 | BQ159: 2415 | BR159: 2153 | BS159: 2111 | BT159: 1978 | BU159: 1822 | BV159: 1862 | BW159: 1698 | BX159: 1680 | BY159: 1736 | BZ159: 1752 | CA159: 1606 | CB159: 1517 | CC159: 1481 | CD159: 1446 | CE159: 1309 | CF159: 1244 | CG159: 1139 | CH159: 1119 | CI159: 989 | CJ159: 953 | CK159: 859 | CL159: 759 | CM159: 613 | CN159: 562 | CO159: 511 | CP159: 480 | CQ159: 401 | CR159: 341 | CS159: 289 | CT159: 947
A160: RSS | B160: 15 | C160: 15 Laurentides | D160: 2002 | E160: Estimation | F160: Total | G160: 481408 | H160: 5020 | I160: 4876 | J160: 5199 | K160: 5376 | L160: 5657 | M160: 6107 | N160: 6571 | O160: 6692 | P160: 7052 | Q160: 7281 | R160: 7609 | S160: 7615 | T160: 7345 | U160: 6637 | V160: 6241 | W160: 6098 | X160: 6007 | Y160: 6023 | Z160: 5995 | AA160: 5727 | AB160: 5795 | AC160: 5907 | AD160: 5794 | AE160: 5450 | AF160: 5351 | AG160: 5400 | AH160: 5303 | AI160: 5557 | AJ160: 5388 | AK160: 5500 | AL160: 5761 | AM160: 6297 | AN160: 6558 | AO160: 6627 | AP160: 6894 | AQ160: 7305 | AR160: 8215 | AS160: 8979 | AT160: 9076 | AU160: 9320 | AV160: 9112 | AW160: 9341 | AX160: 9361 | AY160: 9130 | AZ160: 8979 | BA160: 8773 | BB160: 8109 | BC160: 8254 | BD160: 7733 | BE160: 7307 | BF160: 6997 | BG160: 6935 | BH160: 6709 | BI160: 6702 | BJ160: 6667 | BK160: 6629 | BL160: 6300 | BM160: 5931 | BN160: 5654 | BO160: 5633 | BP160: 5168 | BQ160: 4902 | BR160: 4352 | BS160: 4244 | BT160: 3984 | BU160: 3631 | BV160: 3698 | BW160: 3441 | BX160: 3348 | BY160: 3370 | BZ160: 3350 | CA160: 3114 | CB160: 2955 | CC160: 2781 | CD160: 2705 | CE160: 2410 | CF160: 2283 | CG160: 2072 | CH160: 1899 | CI160: 1666 | CJ160: 1578 | CK160: 1376 | CL160: 1192 | CM160: 975 | CN160: 867 | CO160: 750 | CP160: 702 | CQ160: 588 | CR160: 494 | CS160: 405 | CT160: 1247
A161: RSS | B161: 15 | C161: 15 Laurentides | D161: 2003 | E161: Estimation | F161: Masculin | G161: 245103 | H161: 2585 | I161: 2636 | J161: 2550 | K161: 2749 | L161: 2801 | M161: 2940 | N161: 3199 | O161: 3366 | P161: 3514 | Q161: 3626 | R161: 3807 | S161: 3940 | T161: 3971 | U161: 3695 | V161: 3437 | W161: 3182 | X161: 3094 | Y161: 3070 | Z161: 3174 | AA161: 3135 | AB161: 2952 | AC161: 2933 | AD161: 3005 | AE161: 2992 | AF161: 2828 | AG161: 2777 | AH161: 2822 | AI161: 2770 | AJ161: 2925 | AK161: 2836 | AL161: 2859 | AM161: 2972 | AN161: 3267 | AO161: 3355 | AP161: 3447 | AQ161: 3507 | AR161: 3756 | AS161: 4263 | AT161: 4581 | AU161: 4627 | AV161: 4757 | AW161: 4588 | AX161: 4686 | AY161: 4754 | AZ161: 4722 | BA161: 4541 | BB161: 4436 | BC161: 4069 | BD161: 4198 | BE161: 3968 | BF161: 3730 | BG161: 3540 | BH161: 3499 | BI161: 3300 | BJ161: 3377 | BK161: 3311 | BL161: 3375 | BM161: 3156 | BN161: 3016 | BO161: 2873 | BP161: 2827 | BQ161: 2647 | BR161: 2505 | BS161: 2210 | BT161: 2156 | BU161: 1991 | BV161: 1802 | BW161: 1836 | BX161: 1733 | BY161: 1641 | BZ161: 1613 | CA161: 1558 | CB161: 1494 | CC161: 1393 | CD161: 1244 | CE161: 1213 | CF161: 1061 | CG161: 980 | CH161: 879 | CI161: 735 | CJ161: 630 | CK161: 598 | CL161: 492 | CM161: 391 | CN161: 336 | CO161: 285 | CP161: 216 | CQ161: 187 | CR161: 152 | CS161: 129 | CT161: 328
A162: RSS | B162: 15 | C162: 15 Laurentides | D162: 2003 | E162: Estimation | F162: Féminin | G162: 245786 | H162: 2330 | I162: 2535 | J162: 2490 | K162: 2607 | L162: 2734 | M162: 2856 | N162: 3058 | O162: 3346 | P162: 3331 | Q162: 3572 | R162: 3629 | S162: 3784 | T162: 3769 | U162: 3716 | V162: 3221 | W162: 3033 | X162: 2952 | Y162: 2895 | Z162: 2837 | AA162: 2786 | AB162: 2694 | AC162: 2812 | AD162: 2858 | AE162: 2802 | AF162: 2649 | AG162: 2653 | AH162: 2760 | AI162: 2743 | AJ162: 2873 | AK162: 2777 | AL162: 2869 | AM162: 2983 | AN162: 3271 | AO162: 3416 | AP162: 3402 | AQ162: 3562 | AR162: 3703 | AS162: 4147 | AT162: 4583 | AU162: 4645 | AV162: 4738 | AW162: 4652 | AX162: 4778 | AY162: 4701 | AZ162: 4506 | BA162: 4527 | BB162: 4451 | BC162: 4135 | BD162: 4187 | BE162: 3844 | BF162: 3639 | BG162: 3498 | BH162: 3528 | BI162: 3462 | BJ162: 3408 | BK162: 3375 | BL162: 3334 | BM162: 3229 | BN162: 2987 | BO162: 2861 | BP162: 2867 | BQ162: 2576 | BR162: 2443 | BS162: 2172 | BT162: 2122 | BU162: 1989 | BV162: 1806 | BW162: 1862 | BX162: 1688 | BY162: 1661 | BZ162: 1705 | CA162: 1727 | CB162: 1585 | CC162: 1500 | CD162: 1455 | CE162: 1421 | CF162: 1283 | CG162: 1208 | CH162: 1105 | CI162: 1081 | CJ162: 950 | CK162: 920 | CL162: 822 | CM162: 704 | CN162: 568 | CO162: 536 | CP162: 471 | CQ162: 419 | CR162: 342 | CS162: 290 | CT162: 985
A163: RSS | B163: 15 | C163: 15 Laurentides | D163: 2003 | E163: Estimation | F163: Total | G163: 490889 | H163: 4915 | I163: 5171 | J163: 5040 | K163: 5356 | L163: 5535 | M163: 5796 | N163: 6257 | O163: 6712 | P163: 6845 | Q163: 7198 | R163: 7436 | S163: 7724 | T163: 7740 | U163: 7411 | V163: 6658 | W163: 6215 | X163: 6046 | Y163: 5965 | Z163: 6011 | AA163: 5921 | AB163: 5646 | AC163: 5745 | AD163: 5863 | AE163: 5794 | AF163: 5477 | AG163: 5430 | AH163: 5582 | AI163: 5513 | AJ163: 5798 | AK163: 5613 | AL163: 5728 | AM163: 5955 | AN163: 6538 | AO163: 6771 | AP163: 6849 | AQ163: 7069 | AR163: 7459 | AS163: 8410 | AT163: 9164 | AU163: 9272 | AV163: 9495 | AW163: 9240 | AX163: 9464 | AY163: 9455 | AZ163: 9228 | BA163: 9068 | BB163: 8887 | BC163: 8204 | BD163: 8385 | BE163: 7812 | BF163: 7369 | BG163: 7038 | BH163: 7027 | BI163: 6762 | BJ163: 6785 | BK163: 6686 | BL163: 6709 | BM163: 6385 | BN163: 6003 | BO163: 5734 | BP163: 5694 | BQ163: 5223 | BR163: 4948 | BS163: 4382 | BT163: 4278 | BU163: 3980 | BV163: 3608 | BW163: 3698 | BX163: 3421 | BY163: 3302 | BZ163: 3318 | CA163: 3285 | CB163: 3079 | CC163: 2893 | CD163: 2699 | CE163: 2634 | CF163: 2344 | CG163: 2188 | CH163: 1984 | CI163: 1816 | CJ163: 1580 | CK163: 1518 | CL163: 1314 | CM163: 1095 | CN163: 904 | CO163: 821 | CP163: 687 | CQ163: 606 | CR163: 494 | CS163: 419 | CT163: 1313
A164: RSS | B164: 15 | C164: 15 Laurentides | D164: 2004 | E164: Estimation | F164: Masculin | G164: 250093 | H164: 2574 | I164: 2646 | J164: 2727 | K164: 2619 | L164: 2825 | M164: 2896 | N164: 3008 | O164: 3269 | P164: 3428 | Q164: 3584 | R164: 3687 | S164: 3869 | T164: 3987 | U164: 4037 | V164: 3743 | W164: 3460 | X164: 3176 | Y164: 3080 | Z164: 3078 | AA164: 3186 | AB164: 3111 | AC164: 2927 | AD164: 2910 | AE164: 3008 | AF164: 2992 | AG164: 2875 | AH164: 2840 | AI164: 2908 | AJ164: 2887 | AK164: 3071 | AL164: 2964 | AM164: 2988 | AN164: 3080 | AO164: 3390 | AP164: 3464 | AQ164: 3533 | AR164: 3589 | AS164: 3817 | AT164: 4354 | AU164: 4667 | AV164: 4729 | AW164: 4853 | AX164: 4658 | AY164: 4735 | AZ164: 4793 | BA164: 4762 | BB164: 4567 | BC164: 4482 | BD164: 4095 | BE164: 4248 | BF164: 4020 | BG164: 3755 | BH164: 3563 | BI164: 3533 | BJ164: 3331 | BK164: 3418 | BL164: 3316 | BM164: 3409 | BN164: 3189 | BO164: 3053 | BP164: 2911 | BQ164: 2846 | BR164: 2675 | BS164: 2535 | BT164: 2212 | BU164: 2162 | BV164: 1975 | BW164: 1784 | BX164: 1829 | BY164: 1721 | BZ164: 1620 | CA164: 1587 | CB164: 1530 | CC164: 1458 | CD164: 1353 | CE164: 1188 | CF164: 1167 | CG164: 1013 | CH164: 931 | CI164: 841 | CJ164: 690 | CK164: 584 | CL164: 548 | CM164: 455 | CN164: 342 | CO164: 294 | CP164: 247 | CQ164: 186 | CR164: 150 | CS164: 129 | CT164: 367
A165: RSS | B165: 15 | C165: 15 Laurentides | D165: 2004 | E165: Estimation | F165: Féminin | G165: 250290 | H165: 2428 | I165: 2361 | J165: 2651 | K165: 2588 | L165: 2684 | M165: 2803 | N165: 2912 | O165: 3111 | P165: 3403 | Q165: 3389 | R165: 3637 | S165: 3699 | T165: 3831 | U165: 3811 | V165: 3755 | W165: 3241 | X165: 3022 | Y165: 2926 | Z165: 2869 | AA165: 2806 | AB165: 2732 | AC165: 2644 | AD165: 2782 | AE165: 2859 | AF165: 2803 | AG165: 2703 | AH165: 2749 | AI165: 2894 | AJ165: 2878 | AK165: 3000 | AL165: 2890 | AM165: 2970 | AN165: 3076 | AO165: 3393 | AP165: 3518 | AQ165: 3490 | AR165: 3631 | AS165: 3752 | AT165: 4205 | AU165: 4646 | AV165: 4724 | AW165: 4807 | AX165: 4707 | AY165: 4844 | AZ165: 4726 | BA165: 4534 | BB165: 4560 | BC165: 4474 | BD165: 4176 | BE165: 4245 | BF165: 3895 | BG165: 3666 | BH165: 3532 | BI165: 3582 | BJ165: 3502 | BK165: 3442 | BL165: 3396 | BM165: 3373 | BN165: 3278 | BO165: 3012 | BP165: 2906 | BQ165: 2898 | BR165: 2599 | BS165: 2454 | BT165: 2181 | BU165: 2128 | BV165: 1982 | BW165: 1793 | BX165: 1839 | BY165: 1679 | BZ165: 1650 | CA165: 1690 | CB165: 1698 | CC165: 1564 | CD165: 1465 | CE165: 1411 | CF165: 1384 | CG165: 1249 | CH165: 1163 | CI165: 1082 | CJ165: 1026 | CK165: 908 | CL165: 880 | CM165: 789 | CN165: 659 | CO165: 533 | CP165: 499 | CQ165: 424 | CR165: 363 | CS165: 296 | CT165: 1081
A166: RSS | B166: 15 | C166: 15 Laurentides | D166: 2004 | E166: Estimation | F166: Total | G166: 500383 | H166: 5002 | I166: 5007 | J166: 5378 | K166: 5207 | L166: 5509 | M166: 5699 | N166: 5920 | O166: 6380 | P166: 6831 | Q166: 6973 | R166: 7324 | S166: 7568 | T166: 7818 | U166: 7848 | V166: 7498 | W166: 6701 | X166: 6198 | Y166: 6006 | Z166: 5947 | AA166: 5992 | AB166: 5843 | AC166: 5571 | AD166: 5692 | AE166: 5867 | AF166: 5795 | AG166: 5578 | AH166: 5589 | AI166: 5802 | AJ166: 5765 | AK166: 6071 | AL166: 5854 | AM166: 5958 | AN166: 6156 | AO166: 6783 | AP166: 6982 | AQ166: 7023 | AR166: 7220 | AS166: 7569 | AT166: 8559 | AU166: 9313 | AV166: 9453 | AW166: 9660 | AX166: 9365 | AY166: 9579 | AZ166: 9519 | BA166: 9296 | BB166: 9127 | BC166: 8956 | BD166: 8271 | BE166: 8493 | BF166: 7915 | BG166: 7421 | BH166: 7095 | BI166: 7115 | BJ166: 6833 | BK166: 6860 | BL166: 6712 | BM166: 6782 | BN166: 6467 | BO166: 6065 | BP166: 5817 | BQ166: 5744 | BR166: 5274 | BS166: 4989 | BT166: 4393 | BU166: 4290 | BV166: 3957 | BW166: 3577 | BX166: 3668 | BY166: 3400 | BZ166: 3270 | CA166: 3277 | CB166: 3228 | CC166: 3022 | CD166: 2818 | CE166: 2599 | CF166: 2551 | CG166: 2262 | CH166: 2094 | CI166: 1923 | CJ166: 1716 | CK166: 1492 | CL166: 1428 | CM166: 1244 | CN166: 1001 | CO166: 827 | CP166: 746 | CQ166: 610 | CR166: 513 | CS166: 425 | CT166: 1448
A167: RSS | B167: 15 | C167: 15 Laurentides | D167: 2005 | E167: Estimation | F167: Masculin | G167: 254837 | H167: 2654 | I167: 2631 | J167: 2734 | K167: 2821 | L167: 2685 | M167: 2901 | N167: 2964 | O167: 3065 | P167: 3325 | Q167: 3471 | R167: 3649 | S167: 3732 | T167: 3924 | U167: 4033 | V167: 4100 | W167: 3788 | X167: 3485 | Y167: 3182 | Z167: 3075 | AA167: 3067 | AB167: 3169 | AC167: 3054 | AD167: 2867 | AE167: 2870 | AF167: 2975 | AG167: 3005 | AH167: 2931 | AI167: 2930 | AJ167: 3017 | AK167: 3025 | AL167: 3216 | AM167: 3104 | AN167: 3122 | AO167: 3179 | AP167: 3499 | AQ167: 3539 | AR167: 3594 | AS167: 3648 | AT167: 3873 | AU167: 4446 | AV167: 4760 | AW167: 4820 | AX167: 4940 | AY167: 4723 | AZ167: 4777 | BA167: 4810 | BB167: 4775 | BC167: 4576 | BD167: 4520 | BE167: 4107 | BF167: 4295 | BG167: 4058 | BH167: 3787 | BI167: 3587 | BJ167: 3572 | BK167: 3355 | BL167: 3462 | BM167: 3342 | BN167: 3444 | BO167: 3219 | BP167: 3101 | BQ167: 2949 | BR167: 2863 | BS167: 2715 | BT167: 2562 | BU167: 2211 | BV167: 2162 | BW167: 1948 | BX167: 1756 | BY167: 1807 | BZ167: 1707 | CA167: 1596 | CB167: 1560 | CC167: 1484 | CD167: 1412 | CE167: 1302 | CF167: 1129 | CG167: 1110 | CH167: 962 | CI167: 882 | CJ167: 787 | CK167: 648 | CL167: 532 | CM167: 503 | CN167: 413 | CO167: 308 | CP167: 265 | CQ167: 216 | CR167: 154 | CS167: 125 | CT167: 390
A168: RSS | B168: 15 | C168: 15 Laurentides | D168: 2005 | E168: Estimation | F168: Féminin | G168: 254812 | H168: 2480 | I168: 2456 | J168: 2417 | K168: 2757 | L168: 2672 | M168: 2764 | N168: 2868 | O168: 2959 | P168: 3152 | Q168: 3449 | R168: 3428 | S168: 3687 | T168: 3751 | U168: 3865 | V168: 3855 | W168: 3796 | X168: 3274 | Y168: 3024 | Z168: 2906 | AA168: 2837 | AB168: 2769 | AC168: 2679 | AD168: 2590 | AE168: 2777 | AF168: 2859 | AG168: 2836 | AH168: 2799 | AI168: 2877 | AJ168: 3047 | AK168: 3022 | AL168: 3130 | AM168: 2994 | AN168: 3069 | AO168: 3161 | AP168: 3484 | AQ168: 3605 | AR168: 3576 | AS168: 3685 | AT168: 3791 | AU168: 4262 | AV168: 4715 | AW168: 4805 | AX168: 4875 | AY168: 4759 | AZ168: 4898 | BA168: 4741 | BB168: 4548 | BC168: 4581 | BD168: 4512 | BE168: 4221 | BF168: 4312 | BG168: 3932 | BH168: 3711 | BI168: 3567 | BJ168: 3640 | BK168: 3531 | BL168: 3488 | BM168: 3415 | BN168: 3409 | BO168: 3339 | BP168: 3061 | BQ168: 2960 | BR168: 2946 | BS168: 2624 | BT168: 2469 | BU168: 2190 | BV168: 2125 | BW168: 1979 | BX168: 1766 | BY168: 1823 | BZ168: 1658 | CA168: 1630 | CB168: 1667 | CC168: 1668 | CD168: 1526 | CE168: 1427 | CF168: 1373 | CG168: 1338 | CH168: 1202 | CI168: 1128 | CJ168: 1041 | CK168: 988 | CL168: 864 | CM168: 830 | CN168: 736 | CO168: 612 | CP168: 498 | CQ168: 459 | CR168: 379 | CS168: 316 | CT168: 1121
A169: RSS | B169: 15 | C169: 15 Laurentides | D169: 2005 | E169: Estimation | F169: Total | G169: 509649 | H169: 5134 | I169: 5087 | J169: 5151 | K169: 5578 | L169: 5357 | M169: 5665 | N169: 5832 | O169: 6024 | P169: 6477 | Q169: 6920 | R169: 7077 | S169: 7419 | T169: 7675 | U169: 7898 | V169: 7955 | W169: 7584 | X169: 6759 | Y169: 6206 | Z169: 5981 | AA169: 5904 | AB169: 5938 | AC169: 5733 | AD169: 5457 | AE169: 5647 | AF169: 5834 | AG169: 5841 | AH169: 5730 | AI169: 5807 | AJ169: 6064 | AK169: 6047 | AL169: 6346 | AM169: 6098 | AN169: 6191 | AO169: 6340 | AP169: 6983 | AQ169: 7144 | AR169: 7170 | AS169: 7333 | AT169: 7664 | AU169: 8708 | AV169: 9475 | AW169: 9625 | AX169: 9815 | AY169: 9482 | AZ169: 9675 | BA169: 9551 | BB169: 9323 | BC169: 9157 | BD169: 9032 | BE169: 8328 | BF169: 8607 | BG169: 7990 | BH169: 7498 | BI169: 7154 | BJ169: 7212 | BK169: 6886 | BL169: 6950 | BM169: 6757 | BN169: 6853 | BO169: 6558 | BP169: 6162 | BQ169: 5909 | BR169: 5809 | BS169: 5339 | BT169: 5031 | BU169: 4401 | BV169: 4287 | BW169: 3927 | BX169: 3522 | BY169: 3630 | BZ169: 3365 | CA169: 3226 | CB169: 3227 | CC169: 3152 | CD169: 2938 | CE169: 2729 | CF169: 2502 | CG169: 2448 | CH169: 2164 | CI169: 2010 | CJ169: 1828 | CK169: 1636 | CL169: 1396 | CM169: 1333 | CN169: 1149 | CO169: 920 | CP169: 763 | CQ169: 675 | CR169: 533 | CS169: 441 | CT169: 1511
A170: RSS | B170: 15 | C170: 15 Laurentides | D170: 2006 | E170: Estimation | F170: Masculin | G170: 259123 | H170: 2687 | I170: 2665 | J170: 2737 | K170: 2808 | L170: 2896 | M170: 2765 | N170: 2947 | O170: 3042 | P170: 3119 | Q170: 3382 | R170: 3504 | S170: 3696 | T170: 3778 | U170: 3976 | V170: 4071 | W170: 4148 | X170: 3850 | Y170: 3536 | Z170: 3204 | AA170: 3028 | AB170: 3061 | AC170: 3136 | AD170: 2963 | AE170: 2827 | AF170: 2834 | AG170: 2970 | AH170: 3036 | AI170: 3012 | AJ170: 3031 | AK170: 3104 | AL170: 3176 | AM170: 3331 | AN170: 3237 | AO170: 3248 | AP170: 3274 | AQ170: 3565 | AR170: 3578 | AS170: 3631 | AT170: 3714 | AU170: 3923 | AV170: 4506 | AW170: 4815 | AX170: 4908 | AY170: 4987 | AZ170: 4784 | BA170: 4784 | BB170: 4800 | BC170: 4765 | BD170: 4592 | BE170: 4523 | BF170: 4158 | BG170: 4307 | BH170: 4084 | BI170: 3816 | BJ170: 3612 | BK170: 3590 | BL170: 3402 | BM170: 3495 | BN170: 3371 | BO170: 3451 | BP170: 3247 | BQ170: 3136 | BR170: 2978 | BS170: 2865 | BT170: 2744 | BU170: 2555 | BV170: 2212 | BW170: 2137 | BX170: 1904 | BY170: 1724 | BZ170: 1774 | CA170: 1682 | CB170: 1585 | CC170: 1522 | CD170: 1430 | CE170: 1366 | CF170: 1244 | CG170: 1076 | CH170: 1040 | CI170: 917 | CJ170: 830 | CK170: 736 | CL170: 613 | CM170: 484 | CN170: 448 | CO170: 391 | CP170: 278 | CQ170: 228 | CR170: 191 | CS170: 137 | CT170: 409
A171: RSS | B171: 15 | C171: 15 Laurentides | D171: 2006 | E171: Estimation | F171: Féminin | G171: 259485 | H171: 2620 | I171: 2534 | J171: 2533 | K171: 2488 | L171: 2836 | M171: 2784 | N171: 2843 | O171: 2919 | P171: 3009 | Q171: 3191 | R171: 3480 | S171: 3486 | T171: 3708 | U171: 3819 | V171: 3880 | W171: 3902 | X171: 3797 | Y171: 3331 | Z171: 3023 | AA171: 2874 | AB171: 2803 | AC171: 2737 | AD171: 2614 | AE171: 2584 | AF171: 2769 | AG171: 2876 | AH171: 2886 | AI171: 2928 | AJ171: 3019 | AK171: 3192 | AL171: 3182 | AM171: 3239 | AN171: 3125 | AO171: 3183 | AP171: 3255 | AQ171: 3562 | AR171: 3669 | AS171: 3688 | AT171: 3735 | AU171: 3861 | AV171: 4319 | AW171: 4747 | AX171: 4892 | AY171: 4920 | AZ171: 4812 | BA171: 4928 | BB171: 4734 | BC171: 4594 | BD171: 4592 | BE171: 4508 | BF171: 4306 | BG171: 4330 | BH171: 3987 | BI171: 3753 | BJ171: 3601 | BK171: 3681 | BL171: 3553 | BM171: 3530 | BN171: 3412 | BO171: 3449 | BP171: 3405 | BQ171: 3122 | BR171: 3035 | BS171: 2948 | BT171: 2664 | BU171: 2468 | BV171: 2197 | BW171: 2095 | BX171: 1959 | BY171: 1754 | BZ171: 1783 | CA171: 1655 | CB171: 1620 | CC171: 1630 | CD171: 1621 | CE171: 1479 | CF171: 1394 | CG171: 1329 | CH171: 1270 | CI171: 1169 | CJ171: 1081 | CK171: 1011 | CL171: 932 | CM171: 822 | CN171: 780 | CO171: 696 | CP171: 567 | CQ171: 465 | CR171: 418 | CS171: 344 | CT171: 1160
A172: RSS | B172: 15 | C172: 15 Laurentides | D172: 2006 | E172: Estimation | F172: Total | G172: 518608 | H172: 5307 | I172: 5199 | J172: 5270 | K172: 5296 | L172: 5732 | M172: 5549 | N172: 5790 | O172: 5961 | P172: 6128 | Q172: 6573 | R172: 6984 | S172: 7182 | T172: 7486 | U172: 7795 | V172: 7951 | W172: 8050 | X172: 7647 | Y172: 6867 | Z172: 6227 | AA172: 5902 | AB172: 5864 | AC172: 5873 | AD172: 5577 | AE172: 5411 | AF172: 5603 | AG172: 5846 | AH172: 5922 | AI172: 5940 | AJ172: 6050 | AK172: 6296 | AL172: 6358 | AM172: 6570 | AN172: 6362 | AO172: 6431 | AP172: 6529 | AQ172: 7127 | AR172: 7247 | AS172: 7319 | AT172: 7449 | AU172: 7784 | AV172: 8825 | AW172: 9562 | AX172: 9800 | AY172: 9907 | AZ172: 9596 | BA172: 9712 | BB172: 9534 | BC172: 9359 | BD172: 9184 | BE172: 9031 | BF172: 8464 | BG172: 8637 | BH172: 8071 | BI172: 7569 | BJ172: 7213 | BK172: 7271 | BL172: 6955 | BM172: 7025 | BN172: 6783 | BO172: 6900 | BP172: 6652 | BQ172: 6258 | BR172: 6013 | BS172: 5813 | BT172: 5408 | BU172: 5023 | BV172: 4409 | BW172: 4232 | BX172: 3863 | BY172: 3478 | BZ172: 3557 | CA172: 3337 | CB172: 3205 | CC172: 3152 | CD172: 3051 | CE172: 2845 | CF172: 2638 | CG172: 2405 | CH172: 2310 | CI172: 2086 | CJ172: 1911 | CK172: 1747 | CL172: 1545 | CM172: 1306 | CN172: 1228 | CO172: 1087 | CP172: 845 | CQ172: 693 | CR172: 609 | CS172: 481 | CT172: 1569
A173: RSS | B173: 15 | C173: 15 Laurentides | D173: 2007 | E173: Estimation | F173: Masculin | G173: 264626 | H173: 2829 | I173: 2801 | J173: 2776 | K173: 2826 | L173: 2884 | M173: 2950 | N173: 2825 | O173: 2994 | P173: 3109 | Q173: 3171 | R173: 3444 | S173: 3563 | T173: 3748 | U173: 3810 | V173: 4007 | W173: 4085 | X173: 4165 | Y173: 3849 | Z173: 3540 | AA173: 3206 | AB173: 3040 | AC173: 3052 | AD173: 3096 | AE173: 2963 | AF173: 2841 | AG173: 2916 | AH173: 3090 | AI173: 3191 | AJ173: 3187 | AK173: 3214 | AL173: 3262 | AM173: 3325 | AN173: 3459 | AO173: 3350 | AP173: 3363 | AQ173: 3393 | AR173: 3692 | AS173: 3679 | AT173: 3732 | AU173: 3777 | AV173: 3954 | AW173: 4527 | AX173: 4842 | AY173: 4938 | AZ173: 5027 | BA173: 4832 | BB173: 4852 | BC173: 4868 | BD173: 4831 | BE173: 4665 | BF173: 4579 | BG173: 4198 | BH173: 4362 | BI173: 4130 | BJ173: 3872 | BK173: 3671 | BL173: 3669 | BM173: 3473 | BN173: 3549 | BO173: 3427 | BP173: 3507 | BQ173: 3267 | BR173: 3158 | BS173: 2977 | BT173: 2863 | BU173: 2714 | BV173: 2530 | BW173: 2182 | BX173: 2103 | BY173: 1880 | BZ173: 1688 | CA173: 1714 | CB173: 1632 | CC173: 1538 | CD173: 1476 | CE173: 1384 | CF173: 1306 | CG173: 1183 | CH173: 1024 | CI173: 974 | CJ173: 858 | CK173: 768 | CL173: 677 | CM173: 555 | CN173: 435 | CO173: 395 | CP173: 345 | CQ173: 242 | CR173: 194 | CS173: 156 | CT173: 431
A174: RSS | B174: 15 | C174: 15 Laurentides | D174: 2007 | E174: Estimation | F174: Féminin | G174: 264689 | H174: 2797 | I174: 2727 | J174: 2616 | K174: 2631 | L174: 2568 | M174: 2909 | N174: 2836 | O174: 2885 | P174: 2969 | Q174: 3050 | R174: 3245 | S174: 3527 | T174: 3534 | U174: 3756 | V174: 3855 | W174: 3916 | X174: 3910 | Y174: 3788 | Z174: 3283 | AA174: 2991 | AB174: 2853 | AC174: 2774 | AD174: 2739 | AE174: 2655 | AF174: 2653 | AG174: 2885 | AH174: 3031 | AI174: 3051 | AJ174: 3083 | AK174: 3171 | AL174: 3335 | AM174: 3301 | AN174: 3380 | AO174: 3259 | AP174: 3306 | AQ174: 3365 | AR174: 3670 | AS174: 3768 | AT174: 3772 | AU174: 3811 | AV174: 3913 | AW174: 4352 | AX174: 4787 | AY174: 4906 | AZ174: 4946 | BA174: 4841 | BB174: 4958 | BC174: 4781 | BD174: 4626 | BE174: 4628 | BF174: 4531 | BG174: 4308 | BH174: 4341 | BI174: 4009 | BJ174: 3785 | BK174: 3643 | BL174: 3717 | BM174: 3593 | BN174: 3565 | BO174: 3456 | BP174: 3486 | BQ174: 3420 | BR174: 3123 | BS174: 3025 | BT174: 2946 | BU174: 2658 | BV174: 2470 | BW174: 2182 | BX174: 2093 | BY174: 1939 | BZ174: 1744 | CA174: 1769 | CB174: 1634 | CC174: 1604 | CD174: 1620 | CE174: 1591 | CF174: 1459 | CG174: 1365 | CH174: 1279 | CI174: 1231 | CJ174: 1127 | CK174: 1036 | CL174: 955 | CM174: 868 | CN174: 789 | CO174: 726 | CP174: 632 | CQ174: 504 | CR174: 415 | CS174: 371 | CT174: 1287
A175: RSS | B175: 15 | C175: 15 Laurentides | D175: 2007 | E175: Estimation | F175: Total | G175: 529315 | H175: 5626 | I175: 5528 | J175: 5392 | K175: 5457 | L175: 5452 | M175: 5859 | N175: 5661 | O175: 5879 | P175: 6078 | Q175: 6221 | R175: 6689 | S175: 7090 | T175: 7282 | U175: 7566 | V175: 7862 | W175: 8001 | X175: 8075 | Y175: 7637 | Z175: 6823 | AA175: 6197 | AB175: 5893 | AC175: 5826 | AD175: 5835 | AE175: 5618 | AF175: 5494 | AG175: 5801 | AH175: 6121 | AI175: 6242 | AJ175: 6270 | AK175: 6385 | AL175: 6597 | AM175: 6626 | AN175: 6839 | AO175: 6609 | AP175: 6669 | AQ175: 6758 | AR175: 7362 | AS175: 7447 | AT175: 7504 | AU175: 7588 | AV175: 7867 | AW175: 8879 | AX175: 9629 | AY175: 9844 | AZ175: 9973 | BA175: 9673 | BB175: 9810 | BC175: 9649 | BD175: 9457 | BE175: 9293 | BF175: 9110 | BG175: 8506 | BH175: 8703 | BI175: 8139 | BJ175: 7657 | BK175: 7314 | BL175: 7386 | BM175: 7066 | BN175: 7114 | BO175: 6883 | BP175: 6993 | BQ175: 6687 | BR175: 6281 | BS175: 6002 | BT175: 5809 | BU175: 5372 | BV175: 5000 | BW175: 4364 | BX175: 4196 | BY175: 3819 | BZ175: 3432 | CA175: 3483 | CB175: 3266 | CC175: 3142 | CD175: 3096 | CE175: 2975 | CF175: 2765 | CG175: 2548 | CH175: 2303 | CI175: 2205 | CJ175: 1985 | CK175: 1804 | CL175: 1632 | CM175: 1423 | CN175: 1224 | CO175: 1121 | CP175: 977 | CQ175: 746 | CR175: 609 | CS175: 527 | CT175: 1718
A176: RSS | B176: 15 | C176: 15 Laurentides | D176: 2008 | E176: Estimation | F176: Masculin | G176: 269132 | H176: 3040 | I176: 2881 | J176: 2862 | K176: 2833 | L176: 2872 | M176: 2910 | N176: 2985 | O176: 2863 | P176: 3021 | Q176: 3146 | R176: 3193 | S176: 3464 | T176: 3589 | U176: 3763 | V176: 3821 | W176: 4018 | X176: 4079 | Y176: 4142 | Z176: 3831 | AA176: 3532 | AB176: 3176 | AC176: 3021 | AD176: 3023 | AE176: 3062 | AF176: 2971 | AG176: 2882 | AH176: 3006 | AI176: 3199 | AJ176: 3326 | AK176: 3318 | AL176: 3350 | AM176: 3397 | AN176: 3434 | AO176: 3559 | AP176: 3440 | AQ176: 3445 | AR176: 3471 | AS176: 3778 | AT176: 3758 | AU176: 3813 | AV176: 3838 | AW176: 3994 | AX176: 4570 | AY176: 4875 | AZ176: 4975 | BA176: 5040 | BB176: 4836 | BC176: 4880 | BD176: 4909 | BE176: 4871 | BF176: 4735 | BG176: 4634 | BH176: 4256 | BI176: 4409 | BJ176: 4176 | BK176: 3910 | BL176: 3711 | BM176: 3714 | BN176: 3507 | BO176: 3574 | BP176: 3476 | BQ176: 3545 | BR176: 3284 | BS176: 3171 | BT176: 2966 | BU176: 2834 | BV176: 2691 | BW176: 2490 | BX176: 2158 | BY176: 2072 | BZ176: 1860 | CA176: 1672 | CB176: 1675 | CC176: 1585 | CD176: 1497 | CE176: 1429 | CF176: 1338 | CG176: 1235 | CH176: 1133 | CI176: 970 | CJ176: 927 | CK176: 781 | CL176: 706 | CM176: 607 | CN176: 491 | CO176: 385 | CP176: 359 | CQ176: 300 | CR176: 195 | CS176: 164 | CT176: 448
A177: RSS | B177: 15 | C177: 15 Laurentides | D177: 2008 | E177: Estimation | F177: Féminin | G177: 269240 | H177: 2883 | I177: 2869 | J177: 2794 | K177: 2671 | L177: 2704 | M177: 2621 | N177: 2962 | O177: 2871 | P177: 2909 | Q177: 3016 | R177: 3084 | S177: 3289 | T177: 3576 | U177: 3586 | V177: 3800 | W177: 3889 | X177: 3967 | Y177: 3913 | Z177: 3742 | AA177: 3228 | AB177: 2937 | AC177: 2788 | AD177: 2732 | AE177: 2725 | AF177: 2693 | AG177: 2748 | AH177: 3008 | AI177: 3178 | AJ177: 3209 | AK177: 3216 | AL177: 3293 | AM177: 3454 | AN177: 3404 | AO177: 3493 | AP177: 3359 | AQ177: 3388 | AR177: 3429 | AS177: 3749 | AT177: 3825 | AU177: 3815 | AV177: 3861 | AW177: 3957 | AX177: 4394 | AY177: 4832 | AZ177: 4940 | BA177: 4988 | BB177: 4865 | BC177: 4993 | BD177: 4833 | BE177: 4675 | BF177: 4675 | BG177: 4554 | BH177: 4308 | BI177: 4343 | BJ177: 4012 | BK177: 3789 | BL177: 3665 | BM177: 3731 | BN177: 3624 | BO177: 3600 | BP177: 3485 | BQ177: 3514 | BR177: 3420 | BS177: 3120 | BT177: 3009 | BU177: 2926 | BV177: 2648 | BW177: 2468 | BX177: 2157 | BY177: 2068 | BZ177: 1924 | CA177: 1726 | CB177: 1741 | CC177: 1615 | CD177: 1580 | CE177: 1580 | CF177: 1553 | CG177: 1429 | CH177: 1311 | CI177: 1239 | CJ177: 1186 | CK177: 1086 | CL177: 982 | CM177: 901 | CN177: 830 | CO177: 742 | CP177: 674 | CQ177: 598 | CR177: 478 | CS177: 379 | CT177: 1415
A178: RSS | B178: 15 | C178: 15 Laurentides | D178: 2008 | E178: Estimation | F178: Total | G178: 538372 | H178: 5923 | I178: 5750 | J178: 5656 | K178: 5504 | L178: 5576 | M178: 5531 | N178: 5947 | O178: 5734 | P178: 5930 | Q178: 6162 | R178: 6277 | S178: 6753 | T178: 7165 | U178: 7349 | V178: 7621 | W178: 7907 | X178: 8046 | Y178: 8055 | Z178: 7573 | AA178: 6760 | AB178: 6113 | AC178: 5809 | AD178: 5755 | AE178: 5787 | AF178: 5664 | AG178: 5630 | AH178: 6014 | AI178: 6377 | AJ178: 6535 | AK178: 6534 | AL178: 6643 | AM178: 6851 | AN178: 6838 | AO178: 7052 | AP178: 6799 | AQ178: 6833 | AR178: 6900 | AS178: 7527 | AT178: 7583 | AU178: 7628 | AV178: 7699 | AW178: 7951 | AX178: 8964 | AY178: 9707 | AZ178: 9915 | BA178: 10028 | BB178: 9701 | BC178: 9873 | BD178: 9742 | BE178: 9546 | BF178: 9410 | BG178: 9188 | BH178: 8564 | BI178: 8752 | BJ178: 8188 | BK178: 7699 | BL178: 7376 | BM178: 7445 | BN178: 7131 | BO178: 7174 | BP178: 6961 | BQ178: 7059 | BR178: 6704 | BS178: 6291 | BT178: 5975 | BU178: 5760 | BV178: 5339 | BW178: 4958 | BX178: 4315 | BY178: 4140 | BZ178: 3784 | CA178: 3398 | CB178: 3416 | CC178: 3200 | CD178: 3077 | CE178: 3009 | CF178: 2891 | CG178: 2664 | CH178: 2444 | CI178: 2209 | CJ178: 2113 | CK178: 1867 | CL178: 1688 | CM178: 1508 | CN178: 1321 | CO178: 1127 | CP178: 1033 | CQ178: 898 | CR178: 673 | CS178: 543 | CT178: 1863
A179: RSS | B179: 15 | C179: 15 Laurentides | D179: 2009 | E179: Estimation | F179: Masculin | G179: 273969 | H179: 3090 | I179: 3100 | J179: 2916 | K179: 2917 | L179: 2891 | M179: 2926 | N179: 2963 | O179: 3048 | P179: 2925 | Q179: 3089 | R179: 3196 | S179: 3239 | T179: 3506 | U179: 3630 | V179: 3813 | W179: 3853 | X179: 4046 | Y179: 4087 | Z179: 4127 | AA179: 3825 | AB179: 3492 | AC179: 3141 | AD179: 3026 | AE179: 2995 | AF179: 3030 | AG179: 3001 | AH179: 2956 | AI179: 3111 | AJ179: 3303 | AK179: 3461 | AL179: 3445 | AM179: 3487 | AN179: 3515 | AO179: 3530 | AP179: 3637 | AQ179: 3508 | AR179: 3502 | AS179: 3538 | AT179: 3858 | AU179: 3835 | AV179: 3894 | AW179: 3906 | AX179: 4042 | AY179: 4606 | AZ179: 4913 | BA179: 5013 | BB179: 5100 | BC179: 4889 | BD179: 4947 | BE179: 4974 | BF179: 4911 | BG179: 4802 | BH179: 4673 | BI179: 4284 | BJ179: 4435 | BK179: 4203 | BL179: 3952 | BM179: 3747 | BN179: 3759 | BO179: 3548 | BP179: 3610 | BQ179: 3505 | BR179: 3569 | BS179: 3298 | BT179: 3169 | BU179: 2967 | BV179: 2835 | BW179: 2661 | BX179: 2453 | BY179: 2123 | BZ179: 2020 | CA179: 1822 | CB179: 1627 | CC179: 1615 | CD179: 1537 | CE179: 1443 | CF179: 1362 | CG179: 1282 | CH179: 1164 | CI179: 1079 | CJ179: 928 | CK179: 849 | CL179: 725 | CM179: 644 | CN179: 546 | CO179: 434 | CP179: 330 | CQ179: 304 | CR179: 263 | CS179: 166 | CT179: 483
A180: RSS | B180: 15 | C180: 15 Laurentides | D180: 2009 | E180: Estimation | F180: Féminin | G180: 273762 | H180: 2944 | I180: 2963 | J180: 2922 | K180: 2852 | L180: 2718 | M180: 2761 | N180: 2673 | O180: 3008 | P180: 2909 | Q180: 2939 | R180: 3074 | S180: 3136 | T180: 3347 | U180: 3639 | V180: 3653 | W180: 3850 | X180: 3924 | Y180: 4005 | Z180: 3879 | AA180: 3702 | AB180: 3144 | AC180: 2877 | AD180: 2758 | AE180: 2726 | AF180: 2726 | AG180: 2752 | AH180: 2829 | AI180: 3121 | AJ180: 3315 | AK180: 3359 | AL180: 3350 | AM180: 3415 | AN180: 3550 | AO180: 3490 | AP180: 3602 | AQ180: 3456 | AR180: 3470 | AS180: 3502 | AT180: 3837 | AU180: 3894 | AV180: 3872 | AW180: 3922 | AX180: 4013 | AY180: 4429 | AZ180: 4862 | BA180: 4965 | BB180: 5021 | BC180: 4887 | BD180: 5020 | BE180: 4874 | BF180: 4708 | BG180: 4697 | BH180: 4581 | BI180: 4306 | BJ180: 4351 | BK180: 4022 | BL180: 3801 | BM180: 3674 | BN180: 3745 | BO180: 3645 | BP180: 3616 | BQ180: 3511 | BR180: 3527 | BS180: 3406 | BT180: 3114 | BU180: 2992 | BV180: 2919 | BW180: 2641 | BX180: 2475 | BY180: 2137 | BZ180: 2050 | CA180: 1903 | CB180: 1708 | CC180: 1730 | CD180: 1587 | CE180: 1544 | CF180: 1549 | CG180: 1514 | CH180: 1382 | CI180: 1265 | CJ180: 1191 | CK180: 1134 | CL180: 1028 | CM180: 931 | CN180: 846 | CO180: 758 | CP180: 691 | CQ180: 632 | CR180: 553 | CS180: 446 | CT180: 1516
A181: RSS | B181: 15 | C181: 15 Laurentides | D181: 2009 | E181: Estimation | F181: Total | G181: 547731 | H181: 6034 | I181: 6063 | J181: 5838 | K181: 5769 | L181: 5609 | M181: 5687 | N181: 5636 | O181: 6056 | P181: 5834 | Q181: 6028 | R181: 6270 | S181: 6375 | T181: 6853 | U181: 7269 | V181: 7466 | W181: 7703 | X181: 7970 | Y181: 8092 | Z181: 8006 | AA181: 7527 | AB181: 6636 | AC181: 6018 | AD181: 5784 | AE181: 5721 | AF181: 5756 | AG181: 5753 | AH181: 5785 | AI181: 6232 | AJ181: 6618 | AK181: 6820 | AL181: 6795 | AM181: 6902 | AN181: 7065 | AO181: 7020 | AP181: 7239 | AQ181: 6964 | AR181: 6972 | AS181: 7040 | AT181: 7695 | AU181: 7729 | AV181: 7766 | AW181: 7828 | AX181: 8055 | AY181: 9035 | AZ181: 9775 | BA181: 9978 | BB181: 10121 | BC181: 9776 | BD181: 9967 | BE181: 9848 | BF181: 9619 | BG181: 9499 | BH181: 9254 | BI181: 8590 | BJ181: 8786 | BK181: 8225 | BL181: 7753 | BM181: 7421 | BN181: 7504 | BO181: 7193 | BP181: 7226 | BQ181: 7016 | BR181: 7096 | BS181: 6704 | BT181: 6283 | BU181: 5959 | BV181: 5754 | BW181: 5302 | BX181: 4928 | BY181: 4260 | BZ181: 4070 | CA181: 3725 | CB181: 3335 | CC181: 3345 | CD181: 3124 | CE181: 2987 | CF181: 2911 | CG181: 2796 | CH181: 2546 | CI181: 2344 | CJ181: 2119 | CK181: 1983 | CL181: 1753 | CM181: 1575 | CN181: 1392 | CO181: 1192 | CP181: 1021 | CQ181: 936 | CR181: 816 | CS181: 612 | CT181: 1999
A182: RSS | B182: 15 | C182: 15 Laurentides | D182: 2010 | E182: Estimation | F182: Masculin | G182: 279068 | H182: 3051 | I182: 3157 | J182: 3173 | K182: 2975 | L182: 2978 | M182: 2954 | N182: 2978 | O182: 3017 | P182: 3094 | Q182: 2984 | R182: 3146 | S182: 3253 | T182: 3285 | U182: 3551 | V182: 3679 | W182: 3855 | X182: 3875 | Y182: 4067 | Z182: 4063 | AA182: 4094 | AB182: 3757 | AC182: 3444 | AD182: 3115 | AE182: 3036 | AF182: 3001 | AG182: 3053 | AH182: 3055 | AI182: 3047 | AJ182: 3221 | AK182: 3429 | AL182: 3590 | AM182: 3577 | AN182: 3607 | AO182: 3637 | AP182: 3633 | AQ182: 3734 | AR182: 3604 | AS182: 3587 | AT182: 3611 | AU182: 3948 | AV182: 3888 | AW182: 3965 | AX182: 3961 | AY182: 4074 | AZ182: 4633 | BA182: 4934 | BB182: 5049 | BC182: 5119 | BD182: 4916 | BE182: 4982 | BF182: 5010 | BG182: 4956 | BH182: 4861 | BI182: 4716 | BJ182: 4329 | BK182: 4484 | BL182: 4236 | BM182: 3992 | BN182: 3788 | BO182: 3792 | BP182: 3602 | BQ182: 3653 | BR182: 3566 | BS182: 3606 | BT182: 3306 | BU182: 3171 | BV182: 2971 | BW182: 2826 | BX182: 2615 | BY182: 2430 | BZ182: 2105 | CA182: 2002 | CB182: 1799 | CC182: 1600 | CD182: 1582 | CE182: 1487 | CF182: 1386 | CG182: 1305 | CH182: 1229 | CI182: 1093 | CJ182: 1024 | CK182: 874 | CL182: 797 | CM182: 678 | CN182: 580 | CO182: 497 | CP182: 394 | CQ182: 289 | CR182: 262 | CS182: 224 | CT182: 515
A183: RSS | B183: 15 | C183: 15 Laurentides | D183: 2010 | E183: Estimation | F183: Féminin | G183: 279003 | H183: 2973 | I183: 3018 | J183: 3059 | K183: 2985 | L183: 2916 | M183: 2766 | N183: 2828 | O183: 2739 | P183: 3073 | Q183: 2949 | R183: 2969 | S183: 3131 | T183: 3176 | U183: 3403 | V183: 3699 | W183: 3700 | X183: 3908 | Y183: 3963 | Z183: 4032 | AA183: 3864 | AB183: 3640 | AC183: 3075 | AD183: 2826 | AE183: 2757 | AF183: 2736 | AG183: 2804 | AH183: 2858 | AI183: 2976 | AJ183: 3266 | AK183: 3478 | AL183: 3511 | AM183: 3480 | AN183: 3530 | AO183: 3665 | AP183: 3587 | AQ183: 3697 | AR183: 3535 | AS183: 3550 | AT183: 3579 | AU183: 3912 | AV183: 3970 | AW183: 3944 | AX183: 4003 | AY183: 4085 | AZ183: 4475 | BA183: 4908 | BB183: 4994 | BC183: 5043 | BD183: 4904 | BE183: 5042 | BF183: 4920 | BG183: 4734 | BH183: 4736 | BI183: 4611 | BJ183: 4320 | BK183: 4367 | BL183: 4048 | BM183: 3827 | BN183: 3710 | BO183: 3776 | BP183: 3671 | BQ183: 3635 | BR183: 3541 | BS183: 3540 | BT183: 3395 | BU183: 3116 | BV183: 2991 | BW183: 2921 | BX183: 2626 | BY183: 2466 | BZ183: 2123 | CA183: 2041 | CB183: 1872 | CC183: 1688 | CD183: 1715 | CE183: 1572 | CF183: 1521 | CG183: 1515 | CH183: 1485 | CI183: 1338 | CJ183: 1225 | CK183: 1159 | CL183: 1094 | CM183: 974 | CN183: 882 | CO183: 784 | CP183: 698 | CQ183: 636 | CR183: 586 | CS183: 492 | CT183: 1671
A184: RSS | B184: 15 | C184: 15 Laurentides | D184: 2010 | E184: Estimation | F184: Total | G184: 558071 | H184: 6024 | I184: 6175 | J184: 6232 | K184: 5960 | L184: 5894 | M184: 5720 | N184: 5806 | O184: 5756 | P184: 6167 | Q184: 5933 | R184: 6115 | S184: 6384 | T184: 6461 | U184: 6954 | V184: 7378 | W184: 7555 | X184: 7783 | Y184: 8030 | Z184: 8095 | AA184: 7958 | AB184: 7397 | AC184: 6519 | AD184: 5941 | AE184: 5793 | AF184: 5737 | AG184: 5857 | AH184: 5913 | AI184: 6023 | AJ184: 6487 | AK184: 6907 | AL184: 7101 | AM184: 7057 | AN184: 7137 | AO184: 7302 | AP184: 7220 | AQ184: 7431 | AR184: 7139 | AS184: 7137 | AT184: 7190 | AU184: 7860 | AV184: 7858 | AW184: 7909 | AX184: 7964 | AY184: 8159 | AZ184: 9108 | BA184: 9842 | BB184: 10043 | BC184: 10162 | BD184: 9820 | BE184: 10024 | BF184: 9930 | BG184: 9690 | BH184: 9597 | BI184: 9327 | BJ184: 8649 | BK184: 8851 | BL184: 8284 | BM184: 7819 | BN184: 7498 | BO184: 7568 | BP184: 7273 | BQ184: 7288 | BR184: 7107 | BS184: 7146 | BT184: 6701 | BU184: 6287 | BV184: 5962 | BW184: 5747 | BX184: 5241 | BY184: 4896 | BZ184: 4228 | CA184: 4043 | CB184: 3671 | CC184: 3288 | CD184: 3297 | CE184: 3059 | CF184: 2907 | CG184: 2820 | CH184: 2714 | CI184: 2431 | CJ184: 2249 | CK184: 2033 | CL184: 1891 | CM184: 1652 | CN184: 1462 | CO184: 1281 | CP184: 1092 | CQ184: 925 | CR184: 848 | CS184: 716 | CT184: 2186
A185: RSS | B185: 15 | C185: 15 Laurentides | D185: 2011 | E185: Estimation | F185: Masculin | G185: 283682 | H185: 3046 | I185: 3109 | J185: 3211 | K185: 3228 | L185: 3042 | M185: 3026 | N185: 3013 | O185: 3011 | P185: 3055 | Q185: 3106 | R185: 3061 | S185: 3155 | T185: 3287 | U185: 3341 | V185: 3562 | W185: 3728 | X185: 3873 | Y185: 3907 | Z185: 4054 | AA185: 4045 | AB185: 3990 | AC185: 3698 | AD185: 3381 | AE185: 3087 | AF185: 3061 | AG185: 3026 | AH185: 3056 | AI185: 3138 | AJ185: 3161 | AK185: 3350 | AL185: 3532 | AM185: 3702 | AN185: 3683 | AO185: 3707 | AP185: 3717 | AQ185: 3736 | AR185: 3786 | AS185: 3700 | AT185: 3671 | AU185: 3728 | AV185: 4015 | AW185: 3980 | AX185: 4055 | AY185: 4045 | AZ185: 4163 | BA185: 4644 | BB185: 4944 | BC185: 5087 | BD185: 5109 | BE185: 4975 | BF185: 5023 | BG185: 5049 | BH185: 4990 | BI185: 4922 | BJ185: 4746 | BK185: 4434 | BL185: 4500 | BM185: 4260 | BN185: 4036 | BO185: 3848 | BP185: 3814 | BQ185: 3671 | BR185: 3652 | BS185: 3603 | BT185: 3592 | BU185: 3322 | BV185: 3161 | BW185: 2959 | BX185: 2799 | BY185: 2573 | BZ185: 2379 | CA185: 2102 | CB185: 1949 | CC185: 1756 | CD185: 1585 | CE185: 1524 | CF185: 1422 | CG185: 1321 | CH185: 1228 | CI185: 1161 | CJ185: 1019 | CK185: 947 | CL185: 826 | CM185: 735 | CN185: 619 | CO185: 529 | CP185: 436 | CQ185: 347 | CR185: 264 | CS185: 213 | CT185: 579
A186: RSS | B186: 15 | C186: 15 Laurentides | D186: 2011 | E186: Estimation | F186: Féminin | G186: 282979 | H186: 2907 | I186: 3027 | J186: 3076 | K186: 3141 | L186: 3026 | M186: 2967 | N186: 2813 | O186: 2874 | P186: 2837 | Q186: 3073 | R186: 3003 | S186: 3009 | T186: 3183 | U186: 3232 | V186: 3447 | W186: 3701 | X186: 3751 | Y186: 3915 | Z186: 3938 | AA186: 4021 | AB186: 3785 | AC186: 3557 | AD186: 3039 | AE186: 2856 | AF186: 2780 | AG186: 2804 | AH186: 2872 | AI186: 2961 | AJ186: 3106 | AK186: 3363 | AL186: 3574 | AM186: 3623 | AN186: 3580 | AO186: 3631 | AP186: 3729 | AQ186: 3678 | AR186: 3762 | AS186: 3637 | AT186: 3612 | AU186: 3654 | AV186: 3927 | AW186: 3993 | AX186: 3963 | AY186: 4039 | AZ186: 4156 | BA186: 4495 | BB186: 4895 | BC186: 4982 | BD186: 5041 | BE186: 4955 | BF186: 5020 | BG186: 4973 | BH186: 4798 | BI186: 4762 | BJ186: 4634 | BK186: 4357 | BL186: 4341 | BM186: 4084 | BN186: 3858 | BO186: 3746 | BP186: 3764 | BQ186: 3693 | BR186: 3635 | BS186: 3565 | BT186: 3538 | BU186: 3345 | BV186: 3134 | BW186: 2986 | BX186: 2885 | BY186: 2619 | BZ186: 2449 | CA186: 2113 | CB186: 2007 | CC186: 1843 | CD186: 1686 | CE186: 1650 | CF186: 1541 | CG186: 1482 | CH186: 1460 | CI186: 1429 | CJ186: 1299 | CK186: 1188 | CL186: 1110 | CM186: 1043 | CN186: 916 | CO186: 827 | CP186: 733 | CQ186: 643 | CR186: 573 | CS186: 514 | CT186: 1746
A187: RSS | B187: 15 | C187: 15 Laurentides | D187: 2011 | E187: Estimation | F187: Total | G187: 566661 | H187: 5953 | I187: 6136 | J187: 6287 | K187: 6369 | L187: 6068 | M187: 5993 | N187: 5826 | O187: 5885 | P187: 5892 | Q187: 6179 | R187: 6064 | S187: 6164 | T187: 6470 | U187: 6573 | V187: 7009 | W187: 7429 | X187: 7624 | Y187: 7822 | Z187: 7992 | AA187: 8066 | AB187: 7775 | AC187: 7255 | AD187: 6420 | AE187: 5943 | AF187: 5841 | AG187: 5830 | AH187: 5928 | AI187: 6099 | AJ187: 6267 | AK187: 6713 | AL187: 7106 | AM187: 7325 | AN187: 7263 | AO187: 7338 | AP187: 7446 | AQ187: 7414 | AR187: 7548 | AS187: 7337 | AT187: 7283 | AU187: 7382 | AV187: 7942 | AW187: 7973 | AX187: 8018 | AY187: 8084 | AZ187: 8319 | BA187: 9139 | BB187: 9839 | BC187: 10069 | BD187: 10150 | BE187: 9930 | BF187: 10043 | BG187: 10022 | BH187: 9788 | BI187: 9684 | BJ187: 9380 | BK187: 8791 | BL187: 8841 | BM187: 8344 | BN187: 7894 | BO187: 7594 | BP187: 7578 | BQ187: 7364 | BR187: 7287 | BS187: 7168 | BT187: 7130 | BU187: 6667 | BV187: 6295 | BW187: 5945 | BX187: 5684 | BY187: 5192 | BZ187: 4828 | CA187: 4215 | CB187: 3956 | CC187: 3599 | CD187: 3271 | CE187: 3174 | CF187: 2963 | CG187: 2803 | CH187: 2688 | CI187: 2590 | CJ187: 2318 | CK187: 2135 | CL187: 1936 | CM187: 1778 | CN187: 1535 | CO187: 1356 | CP187: 1169 | CQ187: 990 | CR187: 837 | CS187: 727 | CT187: 2325
A188: RSS | B188: 15 | C188: 15 Laurentides | D188: 2012 | E188: Estimation | F188: Masculin | G188: 286755 | H188: 3032 | I188: 3111 | J188: 3183 | K188: 3288 | L188: 3298 | M188: 3094 | N188: 3060 | O188: 3041 | P188: 3055 | Q188: 3098 | R188: 3154 | S188: 3097 | T188: 3191 | U188: 3336 | V188: 3360 | W188: 3564 | X188: 3712 | Y188: 3852 | Z188: 3847 | AA188: 4008 | AB188: 3963 | AC188: 3913 | AD188: 3626 | AE188: 3322 | AF188: 3057 | AG188: 3066 | AH188: 3045 | AI188: 3114 | AJ188: 3224 | AK188: 3240 | AL188: 3440 | AM188: 3616 | AN188: 3787 | AO188: 3742 | AP188: 3754 | AQ188: 3740 | AR188: 3774 | AS188: 3817 | AT188: 3710 | AU188: 3682 | AV188: 3737 | AW188: 4045 | AX188: 3990 | AY188: 4075 | AZ188: 4074 | BA188: 4181 | BB188: 4663 | BC188: 4952 | BD188: 5083 | BE188: 5124 | BF188: 4976 | BG188: 5050 | BH188: 5052 | BI188: 5008 | BJ188: 4933 | BK188: 4764 | BL188: 4444 | BM188: 4537 | BN188: 4292 | BO188: 4067 | BP188: 3870 | BQ188: 3841 | BR188: 3670 | BS188: 3664 | BT188: 3593 | BU188: 3580 | BV188: 3309 | BW188: 3104 | BX188: 2930 | BY188: 2772 | BZ188: 2542 | CA188: 2342 | CB188: 2074 | CC188: 1925 | CD188: 1731 | CE188: 1510 | CF188: 1496 | CG188: 1361 | CH188: 1259 | CI188: 1165 | CJ188: 1119 | CK188: 954 | CL188: 889 | CM188: 766 | CN188: 674 | CO188: 565 | CP188: 472 | CQ188: 375 | CR188: 291 | CS188: 221 | CT188: 631
A189: RSS | B189: 15 | C189: 15 Laurentides | D189: 2012 | E189: Estimation | F189: Féminin | G189: 286171 | H189: 2873 | I189: 2983 | J189: 3125 | K189: 3147 | L189: 3197 | M189: 3065 | N189: 3008 | O189: 2843 | P189: 2906 | Q189: 2860 | R189: 3133 | S189: 3048 | T189: 3052 | U189: 3221 | V189: 3232 | W189: 3428 | X189: 3650 | Y189: 3670 | Z189: 3807 | AA189: 3825 | AB189: 3881 | AC189: 3656 | AD189: 3450 | AE189: 2986 | AF189: 2850 | AG189: 2824 | AH189: 2868 | AI189: 2963 | AJ189: 3055 | AK189: 3186 | AL189: 3459 | AM189: 3634 | AN189: 3684 | AO189: 3647 | AP189: 3679 | AQ189: 3793 | AR189: 3732 | AS189: 3819 | AT189: 3687 | AU189: 3649 | AV189: 3690 | AW189: 3976 | AX189: 4041 | AY189: 3996 | AZ189: 4078 | BA189: 4177 | BB189: 4526 | BC189: 4940 | BD189: 5030 | BE189: 5083 | BF189: 4996 | BG189: 5065 | BH189: 5009 | BI189: 4834 | BJ189: 4795 | BK189: 4678 | BL189: 4394 | BM189: 4393 | BN189: 4154 | BO189: 3913 | BP189: 3798 | BQ189: 3806 | BR189: 3729 | BS189: 3662 | BT189: 3589 | BU189: 3546 | BV189: 3315 | BW189: 3111 | BX189: 2951 | BY189: 2868 | BZ189: 2558 | CA189: 2407 | CB189: 2054 | CC189: 1958 | CD189: 1805 | CE189: 1637 | CF189: 1601 | CG189: 1505 | CH189: 1434 | CI189: 1401 | CJ189: 1376 | CK189: 1251 | CL189: 1143 | CM189: 1056 | CN189: 991 | CO189: 842 | CP189: 773 | CQ189: 688 | CR189: 594 | CS189: 519 | CT189: 1860
A190: RSS | B190: 15 | C190: 15 Laurentides | D190: 2012 | E190: Estimation | F190: Total | G190: 572926 | H190: 5905 | I190: 6094 | J190: 6308 | K190: 6435 | L190: 6495 | M190: 6159 | N190: 6068 | O190: 5884 | P190: 5961 | Q190: 5958 | R190: 6287 | S190: 6145 | T190: 6243 | U190: 6557 | V190: 6592 | W190: 6992 | X190: 7362 | Y190: 7522 | Z190: 7654 | AA190: 7833 | AB190: 7844 | AC190: 7569 | AD190: 7076 | AE190: 6308 | AF190: 5907 | AG190: 5890 | AH190: 5913 | AI190: 6077 | AJ190: 6279 | AK190: 6426 | AL190: 6899 | AM190: 7250 | AN190: 7471 | AO190: 7389 | AP190: 7433 | AQ190: 7533 | AR190: 7506 | AS190: 7636 | AT190: 7397 | AU190: 7331 | AV190: 7427 | AW190: 8021 | AX190: 8031 | AY190: 8071 | AZ190: 8152 | BA190: 8358 | BB190: 9189 | BC190: 9892 | BD190: 10113 | BE190: 10207 | BF190: 9972 | BG190: 10115 | BH190: 10061 | BI190: 9842 | BJ190: 9728 | BK190: 9442 | BL190: 8838 | BM190: 8930 | BN190: 8446 | BO190: 7980 | BP190: 7668 | BQ190: 7647 | BR190: 7399 | BS190: 7326 | BT190: 7182 | BU190: 7126 | BV190: 6624 | BW190: 6215 | BX190: 5881 | BY190: 5640 | BZ190: 5100 | CA190: 4749 | CB190: 4128 | CC190: 3883 | CD190: 3536 | CE190: 3147 | CF190: 3097 | CG190: 2866 | CH190: 2693 | CI190: 2566 | CJ190: 2495 | CK190: 2205 | CL190: 2032 | CM190: 1822 | CN190: 1665 | CO190: 1407 | CP190: 1245 | CQ190: 1063 | CR190: 885 | CS190: 740 | CT190: 2491
A191: RSS | B191: 15 | C191: 15 Laurentides | D191: 2013 | E191: Estimation | F191: Masculin | G191: 289571 | H191: 3126 | I191: 3107 | J191: 3174 | K191: 3257 | L191: 3352 | M191: 3345 | N191: 3137 | O191: 3098 | P191: 3076 | Q191: 3101 | R191: 3143 | S191: 3193 | T191: 3120 | U191: 3214 | V191: 3358 | W191: 3368 | X191: 3561 | Y191: 3667 | Z191: 3800 | AA191: 3777 | AB191: 3940 | AC191: 3895 | AD191: 3848 | AE191: 3576 | AF191: 3277 | AG191: 3048 | AH191: 3071 | AI191: 3102 | AJ191: 3188 | AK191: 3292 | AL191: 3322 | AM191: 3489 | AN191: 3655 | AO191: 3820 | AP191: 3765 | AQ191: 3780 | AR191: 3759 | AS191: 3805 | AT191: 3862 | AU191: 3730 | AV191: 3700 | AW191: 3737 | AX191: 4062 | AY191: 3989 | AZ191: 4069 | BA191: 4073 | BB191: 4196 | BC191: 4688 | BD191: 4986 | BE191: 5112 | BF191: 5170 | BG191: 5003 | BH191: 5078 | BI191: 5080 | BJ191: 5042 | BK191: 4956 | BL191: 4787 | BM191: 4461 | BN191: 4573 | BO191: 4304 | BP191: 4074 | BQ191: 3876 | BR191: 3845 | BS191: 3644 | BT191: 3661 | BU191: 3570 | BV191: 3558 | BW191: 3286 | BX191: 3064 | BY191: 2896 | BZ191: 2733 | CA191: 2495 | CB191: 2285 | CC191: 2018 | CD191: 1879 | CE191: 1682 | CF191: 1450 | CG191: 1455 | CH191: 1288 | CI191: 1182 | CJ191: 1101 | CK191: 1049 | CL191: 886 | CM191: 814 | CN191: 698 | CO191: 617 | CP191: 513 | CQ191: 412 | CR191: 335 | CS191: 249 | CT191: 692
A192: RSS | B192: 15 | C192: 15 Laurentides | D192: 2013 | E192: Estimation | F192: Féminin | G192: 288461 | H192: 2852 | I192: 2921 | J192: 3021 | K192: 3181 | L192: 3191 | M192: 3242 | N192: 3110 | O192: 3053 | P192: 2880 | Q192: 2940 | R192: 2877 | S192: 3176 | T192: 3070 | U192: 3080 | V192: 3247 | W192: 3229 | X192: 3410 | Y192: 3592 | Z192: 3571 | AA192: 3689 | AB192: 3691 | AC192: 3733 | AD192: 3548 | AE192: 3364 | AF192: 2938 | AG192: 2843 | AH192: 2843 | AI192: 2903 | AJ192: 3001 | AK192: 3107 | AL192: 3255 | AM192: 3542 | AN192: 3696 | AO192: 3734 | AP192: 3691 | AQ192: 3703 | AR192: 3825 | AS192: 3764 | AT192: 3860 | AU192: 3711 | AV192: 3685 | AW192: 3717 | AX192: 4023 | AY192: 4081 | AZ192: 4028 | BA192: 4099 | BB192: 4187 | BC192: 4537 | BD192: 4978 | BE192: 5065 | BF192: 5129 | BG192: 5028 | BH192: 5112 | BI192: 5047 | BJ192: 4875 | BK192: 4848 | BL192: 4731 | BM192: 4449 | BN192: 4457 | BO192: 4224 | BP192: 3934 | BQ192: 3803 | BR192: 3807 | BS192: 3727 | BT192: 3666 | BU192: 3600 | BV192: 3527 | BW192: 3281 | BX192: 3081 | BY192: 2920 | BZ192: 2825 | CA192: 2502 | CB192: 2348 | CC192: 2006 | CD192: 1910 | CE192: 1755 | CF192: 1577 | CG192: 1545 | CH192: 1451 | CI192: 1374 | CJ192: 1332 | CK192: 1312 | CL192: 1195 | CM192: 1052 | CN192: 981 | CO192: 928 | CP192: 779 | CQ192: 702 | CR192: 642 | CS192: 539 | CT192: 1976
A193: RSS | B193: 15 | C193: 15 Laurentides | D193: 2013 | E193: Estimation | F193: Total | G193: 578032 | H193: 5978 | I193: 6028 | J193: 6195 | K193: 6438 | L193: 6543 | M193: 6587 | N193: 6247 | O193: 6151 | P193: 5956 | Q193: 6041 | R193: 6020 | S193: 6369 | T193: 6190 | U193: 6294 | V193: 6605 | W193: 6597 | X193: 6971 | Y193: 7259 | Z193: 7371 | AA193: 7466 | AB193: 7631 | AC193: 7628 | AD193: 7396 | AE193: 6940 | AF193: 6215 | AG193: 5891 | AH193: 5914 | AI193: 6005 | AJ193: 6189 | AK193: 6399 | AL193: 6577 | AM193: 7031 | AN193: 7351 | AO193: 7554 | AP193: 7456 | AQ193: 7483 | AR193: 7584 | AS193: 7569 | AT193: 7722 | AU193: 7441 | AV193: 7385 | AW193: 7454 | AX193: 8085 | AY193: 8070 | AZ193: 8097 | BA193: 8172 | BB193: 8383 | BC193: 9225 | BD193: 9964 | BE193: 10177 | BF193: 10299 | BG193: 10031 | BH193: 10190 | BI193: 10127 | BJ193: 9917 | BK193: 9804 | BL193: 9518 | BM193: 8910 | BN193: 9030 | BO193: 8528 | BP193: 8008 | BQ193: 7679 | BR193: 7652 | BS193: 7371 | BT193: 7327 | BU193: 7170 | BV193: 7085 | BW193: 6567 | BX193: 6145 | BY193: 5816 | BZ193: 5558 | CA193: 4997 | CB193: 4633 | CC193: 4024 | CD193: 3789 | CE193: 3437 | CF193: 3027 | CG193: 3000 | CH193: 2739 | CI193: 2556 | CJ193: 2433 | CK193: 2361 | CL193: 2081 | CM193: 1866 | CN193: 1679 | CO193: 1545 | CP193: 1292 | CQ193: 1114 | CR193: 977 | CS193: 788 | CT193: 2668
A194: RSS | B194: 15 | C194: 15 Laurentides | D194: 2014 | E194: Estimation | F194: Masculin | G194: 292087 | H194: 3051 | I194: 3198 | J194: 3166 | K194: 3219 | L194: 3319 | M194: 3392 | N194: 3376 | O194: 3166 | P194: 3124 | Q194: 3110 | R194: 3151 | S194: 3185 | T194: 3244 | U194: 3140 | V194: 3239 | W194: 3384 | X194: 3378 | Y194: 3563 | Z194: 3627 | AA194: 3775 | AB194: 3712 | AC194: 3864 | AD194: 3813 | AE194: 3776 | AF194: 3505 | AG194: 3252 | AH194: 3067 | AI194: 3093 | AJ194: 3155 | AK194: 3250 | AL194: 3355 | AM194: 3380 | AN194: 3563 | AO194: 3704 | AP194: 3891 | AQ194: 3811 | AR194: 3830 | AS194: 3797 | AT194: 3851 | AU194: 3907 | AV194: 3760 | AW194: 3740 | AX194: 3754 | AY194: 4091 | AZ194: 3999 | BA194: 4053 | BB194: 4068 | BC194: 4197 | BD194: 4694 | BE194: 4988 | BF194: 5111 | BG194: 5186 | BH194: 4992 | BI194: 5076 | BJ194: 5067 | BK194: 5068 | BL194: 4960 | BM194: 4816 | BN194: 4479 | BO194: 4599 | BP194: 4316 | BQ194: 4064 | BR194: 3875 | BS194: 3841 | BT194: 3625 | BU194: 3646 | BV194: 3542 | BW194: 3534 | BX194: 3256 | BY194: 3007 | BZ194: 2824 | CA194: 2684 | CB194: 2441 | CC194: 2215 | CD194: 1967 | CE194: 1815 | CF194: 1638 | CG194: 1384 | CH194: 1400 | CI194: 1219 | CJ194: 1103 | CK194: 1031 | CL194: 984 | CM194: 821 | CN194: 749 | CO194: 629 | CP194: 561 | CQ194: 437 | CR194: 363 | CS194: 278 | CT194: 757
A195: RSS | B195: 15 | C195: 15 Laurentides | D195: 2014 | E195: Estimation | F195: Féminin | G195: 290994 | H195: 3005 | I195: 2927 | J195: 2965 | K195: 3059 | L195: 3224 | M195: 3221 | N195: 3267 | O195: 3140 | P195: 3079 | Q195: 2903 | R195: 2963 | S195: 2894 | T195: 3219 | U195: 3100 | V195: 3110 | W195: 3273 | X195: 3215 | Y195: 3373 | Z195: 3513 | AA195: 3481 | AB195: 3557 | AC195: 3555 | AD195: 3594 | AE195: 3445 | AF195: 3286 | AG195: 2939 | AH195: 2889 | AI195: 2916 | AJ195: 2992 | AK195: 3087 | AL195: 3178 | AM195: 3334 | AN195: 3632 | AO195: 3779 | AP195: 3795 | AQ195: 3753 | AR195: 3764 | AS195: 3882 | AT195: 3810 | AU195: 3893 | AV195: 3736 | AW195: 3717 | AX195: 3733 | AY195: 4062 | AZ195: 4119 | BA195: 4043 | BB195: 4118 | BC195: 4201 | BD195: 4555 | BE195: 5008 | BF195: 5096 | BG195: 5151 | BH195: 5043 | BI195: 5122 | BJ195: 5049 | BK195: 4903 | BL195: 4874 | BM195: 4768 | BN195: 4484 | BO195: 4501 | BP195: 4250 | BQ195: 3948 | BR195: 3821 | BS195: 3814 | BT195: 3731 | BU195: 3665 | BV195: 3590 | BW195: 3507 | BX195: 3239 | BY195: 3019 | BZ195: 2876 | CA195: 2771 | CB195: 2457 | CC195: 2281 | CD195: 1934 | CE195: 1858 | CF195: 1702 | CG195: 1526 | CH195: 1491 | CI195: 1403 | CJ195: 1321 | CK195: 1262 | CL195: 1259 | CM195: 1131 | CN195: 993 | CO195: 930 | CP195: 876 | CQ195: 704 | CR195: 641 | CS195: 598 | CT195: 2102
A196: RSS | B196: 15 | C196: 15 Laurentides | D196: 2014 | E196: Estimation | F196: Total | G196: 583081 | H196: 6056 | I196: 6125 | J196: 6131 | K196: 6278 | L196: 6543 | M196: 6613 | N196: 6643 | O196: 6306 | P196: 6203 | Q196: 6013 | R196: 6114 | S196: 6079 | T196: 6463 | U196: 6240 | V196: 6349 | W196: 6657 | X196: 6593 | Y196: 6936 | Z196: 7140 | AA196: 7256 | AB196: 7269 | AC196: 7419 | AD196: 7407 | AE196: 7221 | AF196: 6791 | AG196: 6191 | AH196: 5956 | AI196: 6009 | AJ196: 6147 | AK196: 6337 | AL196: 6533 | AM196: 6714 | AN196: 7195 | AO196: 7483 | AP196: 7686 | AQ196: 7564 | AR196: 7594 | AS196: 7679 | AT196: 7661 | AU196: 7800 | AV196: 7496 | AW196: 7457 | AX196: 7487 | AY196: 8153 | AZ196: 8118 | BA196: 8096 | BB196: 8186 | BC196: 8398 | BD196: 9249 | BE196: 9996 | BF196: 10207 | BG196: 10337 | BH196: 10035 | BI196: 10198 | BJ196: 10116 | BK196: 9971 | BL196: 9834 | BM196: 9584 | BN196: 8963 | BO196: 9100 | BP196: 8566 | BQ196: 8012 | BR196: 7696 | BS196: 7655 | BT196: 7356 | BU196: 7311 | BV196: 7132 | BW196: 7041 | BX196: 6495 | BY196: 6026 | BZ196: 5700 | CA196: 5455 | CB196: 4898 | CC196: 4496 | CD196: 3901 | CE196: 3673 | CF196: 3340 | CG196: 2910 | CH196: 2891 | CI196: 2622 | CJ196: 2424 | CK196: 2293 | CL196: 2243 | CM196: 1952 | CN196: 1742 | CO196: 1559 | CP196: 1437 | CQ196: 1141 | CR196: 1004 | CS196: 876 | CT196: 2859
A197: RSS | B197: 15 | C197: 15 Laurentides | D197: 2015 | E197: Estimation | F197: Masculin | G197: 294669 | H197: 2950 | I197: 3124 | J197: 3262 | K197: 3217 | L197: 3254 | M197: 3374 | N197: 3443 | O197: 3416 | P197: 3202 | Q197: 3156 | R197: 3138 | S197: 3198 | T197: 3225 | U197: 3286 | V197: 3163 | W197: 3270 | X197: 3409 | Y197: 3394 | Z197: 3552 | AA197: 3587 | AB197: 3695 | AC197: 3608 | AD197: 3817 | AE197: 3775 | AF197: 3747 | AG197: 3487 | AH197: 3246 | AI197: 3085 | AJ197: 3127 | AK197: 3202 | AL197: 3334 | AM197: 3429 | AN197: 3452 | AO197: 3633 | AP197: 3767 | AQ197: 3942 | AR197: 3849 | AS197: 3871 | AT197: 3813 | AU197: 3889 | AV197: 3947 | AW197: 3786 | AX197: 3784 | AY197: 3778 | AZ197: 4119 | BA197: 4002 | BB197: 4051 | BC197: 4058 | BD197: 4185 | BE197: 4694 | BF197: 5004 | BG197: 5116 | BH197: 5215 | BI197: 5013 | BJ197: 5099 | BK197: 5074 | BL197: 5078 | BM197: 4975 | BN197: 4827 | BO197: 4483 | BP197: 4623 | BQ197: 4332 | BR197: 4056 | BS197: 3890 | BT197: 3839 | BU197: 3627 | BV197: 3631 | BW197: 3507 | BX197: 3505 | BY197: 3198 | BZ197: 2939 | CA197: 2773 | CB197: 2619 | CC197: 2363 | CD197: 2163 | CE197: 1908 | CF197: 1754 | CG197: 1593 | CH197: 1308 | CI197: 1338 | CJ197: 1153 | CK197: 1026 | CL197: 961 | CM197: 924 | CN197: 755 | CO197: 685 | CP197: 557 | CQ197: 500 | CR197: 369 | CS197: 300 | CT197: 797
A198: RSS | B198: 15 | C198: 15 Laurentides | D198: 2015 | E198: Estimation | F198: Féminin | G198: 293523 | H198: 2843 | I198: 3078 | J198: 3004 | K198: 3037 | L198: 3105 | M198: 3290 | N198: 3272 | O198: 3313 | P198: 3185 | Q198: 3119 | R198: 2940 | S198: 2984 | T198: 2910 | U198: 3260 | V198: 3123 | W198: 3132 | X198: 3281 | Y198: 3179 | Z198: 3326 | AA198: 3433 | AB198: 3357 | AC198: 3439 | AD198: 3446 | AE198: 3478 | AF198: 3376 | AG198: 3266 | AH198: 2942 | AI198: 2943 | AJ198: 2998 | AK198: 3069 | AL198: 3154 | AM198: 3242 | AN198: 3396 | AO198: 3698 | AP198: 3826 | AQ198: 3840 | AR198: 3799 | AS198: 3810 | AT198: 3929 | AU198: 3851 | AV198: 3922 | AW198: 3763 | AX198: 3728 | AY198: 3739 | AZ198: 4090 | BA198: 4151 | BB198: 4060 | BC198: 4153 | BD198: 4226 | BE198: 4585 | BF198: 5037 | BG198: 5134 | BH198: 5165 | BI198: 5059 | BJ198: 5155 | BK198: 5077 | BL198: 4951 | BM198: 4926 | BN198: 4813 | BO198: 4519 | BP198: 4546 | BQ198: 4298 | BR198: 3975 | BS198: 3855 | BT198: 3827 | BU198: 3726 | BV198: 3659 | BW198: 3577 | BX198: 3476 | BY198: 3198 | BZ198: 2974 | CA198: 2838 | CB198: 2748 | CC198: 2399 | CD198: 2213 | CE198: 1880 | CF198: 1814 | CG198: 1654 | CH198: 1473 | CI198: 1424 | CJ198: 1343 | CK198: 1245 | CL198: 1192 | CM198: 1195 | CN198: 1054 | CO198: 922 | CP198: 838 | CQ198: 811 | CR198: 634 | CS198: 583 | CT198: 2226
A199: RSS | B199: 15 | C199: 15 Laurentides | D199: 2015 | E199: Estimation | F199: Total | G199: 588192 | H199: 5793 | I199: 6202 | J199: 6266 | K199: 6254 | L199: 6359 | M199: 6664 | N199: 6715 | O199: 6729 | P199: 6387 | Q199: 6275 | R199: 6078 | S199: 6182 | T199: 6135 | U199: 6546 | V199: 6286 | W199: 6402 | X199: 6690 | Y199: 6573 | Z199: 6878 | AA199: 7020 | AB199: 7052 | AC199: 7047 | AD199: 7263 | AE199: 7253 | AF199: 7123 | AG199: 6753 | AH199: 6188 | AI199: 6028 | AJ199: 6125 | AK199: 6271 | AL199: 6488 | AM199: 6671 | AN199: 6848 | AO199: 7331 | AP199: 7593 | AQ199: 7782 | AR199: 7648 | AS199: 7681 | AT199: 7742 | AU199: 7740 | AV199: 7869 | AW199: 7549 | AX199: 7512 | AY199: 7517 | AZ199: 8209 | BA199: 8153 | BB199: 8111 | BC199: 8211 | BD199: 8411 | BE199: 9279 | BF199: 10041 | BG199: 10250 | BH199: 10380 | BI199: 10072 | BJ199: 10254 | BK199: 10151 | BL199: 10029 | BM199: 9901 | BN199: 9640 | BO199: 9002 | BP199: 9169 | BQ199: 8630 | BR199: 8031 | BS199: 7745 | BT199: 7666 | BU199: 7353 | BV199: 7290 | BW199: 7084 | BX199: 6981 | BY199: 6396 | BZ199: 5913 | CA199: 5611 | CB199: 5367 | CC199: 4762 | CD199: 4376 | CE199: 3788 | CF199: 3568 | CG199: 3247 | CH199: 2781 | CI199: 2762 | CJ199: 2496 | CK199: 2271 | CL199: 2153 | CM199: 2119 | CN199: 1809 | CO199: 1607 | CP199: 1395 | CQ199: 1311 | CR199: 1003 | CS199: 883 | CT199: 3023
A200: RSS | B200: 15 | C200: 15 Laurentides | D200: 2016 | E200: Estimation | F200: Masculin | G200: 298070 | H200: 3075 | I200: 3040 | J200: 3217 | K200: 3330 | L200: 3297 | M200: 3303 | N200: 3452 | O200: 3501 | P200: 3438 | Q200: 3263 | R200: 3191 | S200: 3158 | T200: 3239 | U200: 3252 | V200: 3308 | W200: 3194 | X200: 3294 | Y200: 3405 | Z200: 3406 | AA200: 3532 | AB200: 3515 | AC200: 3623 | AD200: 3545 | AE200: 3738 | AF200: 3747 | AG200: 3728 | AH200: 3530 | AI200: 3321 | AJ200: 3185 | AK200: 3189 | AL200: 3263 | AM200: 3420 | AN200: 3496 | AO200: 3560 | AP200: 3707 | AQ200: 3842 | AR200: 3997 | AS200: 3928 | AT200: 3907 | AU200: 3845 | AV200: 3919 | AW200: 3969 | AX200: 3799 | AY200: 3790 | AZ200: 3818 | BA200: 4104 | BB200: 4041 | BC200: 4053 | BD200: 4103 | BE200: 4261 | BF200: 4706 | BG200: 4996 | BH200: 5109 | BI200: 5205 | BJ200: 5039 | BK200: 5104 | BL200: 5081 | BM200: 5099 | BN200: 4991 | BO200: 4842 | BP200: 4541 | BQ200: 4588 | BR200: 4344 | BS200: 4061 | BT200: 3903 | BU200: 3836 | BV200: 3635 | BW200: 3618 | BX200: 3486 | BY200: 3430 | BZ200: 3172 | CA200: 2878 | CB200: 2735 | CC200: 2542 | CD200: 2317 | CE200: 2097 | CF200: 1867 | CG200: 1694 | CH200: 1527 | CI200: 1265 | CJ200: 1284 | CK200: 1090 | CL200: 967 | CM200: 891 | CN200: 847 | CO200: 704 | CP200: 601 | CQ200: 498 | CR200: 429 | CS200: 320 | CT200: 893
... 362 more rows

Sheet Résultats bruts
F1: Période 1 | G1: Sexe | I1: Âge 1 | J1: Âge 2
A2: 1ère période | F2: =Formulaire!$D$1 -> 2021 | G2: =Formulaire!$C$1 -> Total | H2: =F2&G2 -> 2021Total | I2: =Formulaire!A1 -> 65 | J2: =Formulaire!B1 -> 90 ans et +
F3: =VLOOKUP(F2,Correspondance!P1:Q41,2) -> Projections
A5: Québec | B5: =IF($F$3="Projections ",ROUND(K5,-1),K5) -> 1750510 | D5: 99 | E5: =D5&$H$2 -> 992021Total | F5: =VLOOKUP(E5,Correspondance!$H$1:$I$1243,2,0) -> 79 | G5: =VLOOKUP($I$2,Correspondance!$A$1:$B$91,2) -> BU | H5: =VLOOKUP($J$2,Correspondance!$A$1:$B$91,2) -> CT | I5: =G5&F5 -> BU79 | J5: =H5&F5 -> CT79 | K5: =SUM(INDIRECT("Données!"&I5):INDIRECT("Données!"&J5)) -> 1750508
A6: 15 Laurentides | B6: =IF($F$3="Projections ",ROUND(K6,-1),K6) -> 128770 | D6: 15 | E6: =D6&$H$2 -> 152021Total | F6: =VLOOKUP(E6,Correspondance!$H$1:$I$1243,2,0) -> 217 | G6: =VLOOKUP($I$2,Correspondance!$A$1:$B$91,2) -> BU | H6: =VLOOKUP($J$2,Correspondance!$A$1:$B$91,2) -> CT | I6: =G6&F6 -> BU217 | J6: =H6&F6 -> CT217 | K6: =SUM(INDIRECT("Données!"&I6):INDIRECT("Données!"&J6)) -> 128772
A7: 1511 RLS d'Antoine-Labelle | B7: =IF($F$3="Projections ",ROUND(K7,-1),K7) -> 10750 | D7: 1511 | E7: 15112021Total | F7: =VLOOKUP(E7,Correspondance!$H$1:$I$1243,2,0) -> 355 | G7: =VLOOKUP($I$2,Correspondance!$A$1:$B$91,2) -> BU | H7: =VLOOKUP($J$2,Correspondance!$A$1:$B$91,2) -> CT | I7: BU355 | J7: CT355 | K7: =SUM(INDIRECT("Données!"&I7):INDIRECT("Données!"&J7)) -> 10752
A8: 1512 RLS des Laurentides | B8: =IF($F$3="Projections ",ROUND(K8,-1),K8) -> 13470 | D8: 1512 | E8: 15122021Total | F8: =VLOOKUP(E8,Correspondance!$H$1:$I$1243,2,0) -> 493 | G8: =VLOOKUP($I$2,Correspondance!$A$1:$B$91,2) -> BU | H8: =VLOOKUP($J$2,Correspondance!$A$1:$B$91,2) -> CT | I8: BU493 | J8: CT493 | K8: =SUM(INDIRECT("Données!"&I8):INDIRECT("Données!"&J8)) -> 13474
A9: 1513 RLS des Pays-d'en-Haut | B9: 13830 | D9: 1513 | E9: 15132021Total | F9: =VLOOKUP(E9,Correspondance!$H$1:$I$1243,2,0) -> 631 | G9: =VLOOKUP($I$2,Correspondance!$A$1:$B$91,2) -> BU | H9: =VLOOKUP($J$2,Correspondance!$A$1:$B$91,2) -> CT | I9: BU631 | J9: CT631 | K9: =SUM(INDIRECT("Données!"&I9):INDIRECT("Données!"&J9)) -> 13826
A10: 1514 RLS d'Argenteuil | B10: 8700 | D10: 1514 | E10: 15142021Total | F10: =VLOOKUP(E10,Correspondance!$H$1:$I$1243,2,0) -> 769 | G10: =VLOOKUP($I$2,Correspondance!$A$1:$B$91,2) -> BU | H10: =VLOOKUP($J$2,Correspondance!$A$1:$B$91,2) -> CT | I10: BU769 | J10: CT769 | K10: =SUM(INDIRECT("Données!"&I10):INDIRECT("Données!"&J10)) -> 8699
A11: 1515 RLS de Deux-Montagnes - Mirabel-Sud | B11: 21800 | D11: 1515 | E11: 15152021Total | F11: =VLOOKUP(E11,Correspondance!$H$1:$I$1243,2,0) -> 907 | G11: =VLOOKUP($I$2,Correspondance!$A$1:$B$91,2) -> BU | H11: =VLOOKUP($J$2,Correspondance!$A$1:$B$91,2) -> CT | I11: BU907 | J11: CT907 | K11: =SUM(INDIRECT("Données!"&I11):INDIRECT("Données!"&J11)) -> 21800
A12: 1516 RLS de la Rivière-du-Nord - Mirabel-Nord | B12: 31960 | D12: 1516 | E12: 15162021Total | F12: =VLOOKUP(E12,Correspondance!$H$1:$I$1243,2,0) -> 1045 | G12: =VLOOKUP($I$2,Correspondance!$A$1:$B$91,2) -> BU | H12: =VLOOKUP($J$2,Correspondance!$A$1:$B$91,2) -> CT | I12: BU1045 | J12: CT1045 | K12: =SUM(INDIRECT("Données!"&I12):INDIRECT("Données!"&J12)) -> 31956
A13: 1517 RLS de Thérèse-De Blainville | B13: 28270 | D13: 1517 | E13: 15172021Total | F13: =VLOOKUP(E13,Correspondance!$H$1:$I$1243,2,0) -> 1183 | G13: =VLOOKUP($I$2,Correspondance!$A$1:$B$91,2) -> BU | H13: =VLOOKUP($J$2,Correspondance!$A$1:$B$91,2) -> CT | I13: BU1183 | J13: CT1183 | K13: =SUM(INDIRECT("Données!"&I13):INDIRECT("Données!"&J13)) -> 28265
A16: 2e période | F16: Période 2 | G16: Sexe
F17: =Formulaire!$E$1 -> 2041 | G17: =Formulaire!$C$1 -> Total | H17: =F17&G17 -> 2041Total
F18: =VLOOKUP(F17,Correspondance!P1:Q41,2) -> Projections
A19: Québec | B19: =IF($F$18="Projections ",ROUND(K19,-1),K19) -> 2466670 | D19: 99 | E19: =D19&$H$17 -> 992041Total | F19: =VLOOKUP(E19,Correspondance!$H$1:$I$1243,2,0) -> 139 | G19: =VLOOKUP($I$2,Correspondance!$A$1:$B$91,2) -> BU | H19: =VLOOKUP($J$2,Correspondance!$A$1:$B$91,2) -> CT | I19: =G19&F19 -> BU139 | J19: =H19&F19 -> CT139 | K19: =SUM(INDIRECT("Données!"&I19):INDIRECT("Données!"&J19)) -> 2466667
A20: 15 Laurentides | B20: =IF($F$18="Projections ",ROUND(K20,-1),K20) -> 208450 | D20: 15 | E20: =D20&$H$17 -> 152041Total | F20: =VLOOKUP(E20,Correspondance!$H$1:$I$1243,2,0) -> 277 | G20: =VLOOKUP($I$2,Correspondance!$A$1:$B$91,2) -> BU | H20: =VLOOKUP($J$2,Correspondance!$A$1:$B$91,2) -> CT | I20: =G20&F20 -> BU277 | J20: =H20&F20 -> CT277 | K20: =SUM(INDIRECT("Données!"&I20):INDIRECT("Données!"&J20)) -> 208450
A21: 1511 RLS d'Antoine-Labelle | B21: 13620 | D21: 1511 | E21: 15112041Total | F21: =VLOOKUP(E21,Correspondance!$H$1:$I$1243,2,0) -> 415 | G21: =VLOOKUP($I$2,Correspondance!$A$1:$B$91,2) -> BU | H21: =VLOOKUP($J$2,Correspondance!$A$1:$B$91,2) -> CT | I21: BU415 | J21: CT415 | K21: =SUM(INDIRECT("Données!"&I21):INDIRECT("Données!"&J21)) -> 13623
A22: 1512 RLS des Laurentides | B22: 19210 | D22: 1512 | E22: 15122041Total | F22: =VLOOKUP(E22,Correspondance!$H$1:$I$1243,2,0) -> 553 | G22: =VLOOKUP($I$2,Correspondance!$A$1:$B$91,2) -> BU | H22: =VLOOKUP($J$2,Correspondance!$A$1:$B$91,2) -> CT | I22: BU553 | J22: CT553 | K22: =SUM(INDIRECT("Données!"&I22):INDIRECT("Données!"&J22)) -> 19206
A23: 1513 RLS des Pays-d'en-Haut | B23: 20240 | D23: 1513 | E23: 15132041Total | F23: =VLOOKUP(E23,Correspondance!$H$1:$I$1243,2,0) -> 691 | G23: =VLOOKUP($I$2,Correspondance!$A$1:$B$91,2) -> BU | H23: =VLOOKUP($J$2,Correspondance!$A$1:$B$91,2) -> CT | I23: BU691 | J23: CT691 | K23: =SUM(INDIRECT("Données!"&I23):INDIRECT("Données!"&J23)) -> 20239
A24: 1514 RLS d'Argenteuil | B24: 12640 | D24: 1514 | E24: 15142041Total | F24: =VLOOKUP(E24,Correspondance!$H$1:$I$1243,2,0) -> 829 | G24: =VLOOKUP($I$2,Correspondance!$A$1:$B$91,2) -> BU | H24: =VLOOKUP($J$2,Correspondance!$A$1:$B$91,2) -> CT | I24: BU829 | J24: CT829 | K24: =SUM(INDIRECT("Données!"&I24):INDIRECT("Données!"&J24)) -> 12642
A25: 1515 RLS de Deux-Montagnes - Mirabel-Sud | B25: 35890 | D25: 1515 | E25: 15152041Total | F25: =VLOOKUP(E25,Correspondance!$H$1:$I$1243,2,0) -> 967 | G25: =VLOOKUP($I$2,Correspondance!$A$1:$B$91,2) -> BU | H25: =VLOOKUP($J$2,Correspondance!$A$1:$B$91,2) -> CT | I25: BU967 | J25: CT967 | K25: =SUM(INDIRECT("Données!"&I25):INDIRECT("Données!"&J25)) -> 35892
A26: 1516 RLS de la Rivière-du-Nord - Mirabel-Nord | B26: 57760 | D26: 1516 | E26: 15162041Total | F26: =VLOOKUP(E26,Correspondance!$H$1:$I$1243,2,0) -> 1105 | G26: =VLOOKUP($I$2,Correspondance!$A$1:$B$91,2) -> BU | H26: =VLOOKUP($J$2,Correspondance!$A$1:$B$91,2) -> CT | I26: BU1105 | J26: CT1105 | K26: =SUM(INDIRECT("Données!"&I26):INDIRECT("Données!"&J26)) -> 57764
A27: 1517 RLS de Thérèse-De Blainville | B27: 49080 | D27: 1517 | E27: 15172041Total | F27: =VLOOKUP(E27,Correspondance!$H$1:$I$1243,2,0) -> 1243 | G27: =VLOOKUP($I$2,Correspondance!$A$1:$B$91,2) -> BU | H27: =VLOOKUP($J$2,Correspondance!$A$1:$B$91,2) -> CT | I27: BU1243 | J27: CT1243 | K27: =SUM(INDIRECT("Données!"&I27):INDIRECT("Données!"&J27)) -> 49084
A30: Variation
A33: Québec | B33: =B19-B5 -> 716160 | C33: =B33/B5*100 -> 40.91150579
A34: 15 Laurentides | B34: =B20-B6 -> 79680 | C34: =B34/B6*100 -> 61.87776656
A35: 1511 RLS d'Antoine-Labelle | B35: 2870 | C35: =B35/B7*100 -> 26.69767442
A36: 1512 RLS des Laurentides | B36: 5740 | C36: =B36/B8*100 -> 42.61321455
A37: 1513 RLS des Pays-d'en-Haut | B37: 6410 | C37: 46.34851772
A38: 1514 RLS d'Argenteuil | B38: 3940 | C38: 45.28735632
A39: 1515 RLS de Deux-Montagnes - Mirabel-Sud | B39: 14090 | C39: 64.63302752
A40: 1516 RLS de la Rivière-du-Nord - Mirabel-Nord | B40: 25800 | C40: 80.72590738
A41: 1517 RLS de Thérèse-De Blainville | B41: 20810 | C41: 73.61160241
A44: Population totale | I44: Âge 1 | J44: Âge 2
I45: =Correspondance!A1 -> 0 | J45: =Correspondance!A91 -> 90 ans et + | M45: Proportion période 1 sur population totale
A47: Québec | B47: =ROUND(K47,-1) -> 8591870 | D47: 99 | E47: =D47&$H$2 -> 992021Total | F47: =VLOOKUP(E47,Correspondance!$H$1:$I$1243,2,0) -> 79 | G47: =VLOOKUP($I$45,Correspondance!$A$1:$B$91,2) -> H | H47: =VLOOKUP($J$45,Correspondance!$A$1:$B$91,2) -> CT | I47: =G47&F47 -> H79 | J47: =H47&F47 -> CT79 | K47: =SUM(INDIRECT("Données!"&I47):INDIRECT("Données!"&J47)) -> 8591866 | M47: =B5/K47*100 -> 20.37403749
A48: 15 Laurentides | B48: =ROUND(K48,-1) -> 633510 | D48: 15 | E48: =D48&$H$2 -> 152021Total | F48: =VLOOKUP(E48,Correspondance!$H$1:$I$1243,2,0) -> 217 | G48: =VLOOKUP($I$45,Correspondance!$A$1:$B$91,2) -> H | H48: =VLOOKUP($J$45,Correspondance!$A$1:$B$91,2) -> CT | I48: =G48&F48 -> H217 | J48: =H48&F48 -> CT217 | K48: =SUM(INDIRECT("Données!"&I48):INDIRECT("Données!"&J48)) -> 633508 | M48: =B6/K48*100 -> 20.32649943
A49: 1511 RLS d'Antoine-Labelle | B49: 35580 | D49: 1511 | E49: 15112021Total | F49: =VLOOKUP(E49,Correspondance!$H$1:$I$1243,2,0) -> 355 | G49: =VLOOKUP($I$45,Correspondance!$A$1:$B$91,2) -> H | H49: =VLOOKUP($J$45,Correspondance!$A$1:$B$91,2) -> CT | I49: H355 | J49: CT355 | K49: =SUM(INDIRECT("Données!"&I49):INDIRECT("Données!"&J49)) -> 35582 | M49: =B7/K49*100 -> 30.2119049
A50: 1512 RLS des Laurentides | B50: 48350 | D50: 1512 | E50: 15122021Total | F50: =VLOOKUP(E50,Correspondance!$H$1:$I$1243,2,0) -> 493 | G50: =VLOOKUP($I$45,Correspondance!$A$1:$B$91,2) -> H | H50: =VLOOKUP($J$45,Correspondance!$A$1:$B$91,2) -> CT | I50: H493 | J50: CT493 | K50: =SUM(INDIRECT("Données!"&I50):INDIRECT("Données!"&J50)) -> 48354 | M50: 27.85705423
A51: 1513 RLS des Pays-d'en-Haut | B51: 44830 | D51: 1513 | E51: 15132021Total | F51: =VLOOKUP(E51,Correspondance!$H$1:$I$1243,2,0) -> 631 | G51: =VLOOKUP($I$45,Correspondance!$A$1:$B$91,2) -> H | H51: =VLOOKUP($J$45,Correspondance!$A$1:$B$91,2) -> CT | I51: H631 | J51: CT631 | K51: =SUM(INDIRECT("Données!"&I51):INDIRECT("Données!"&J51)) -> 44826 | M51: 30.85263017
A52: 1514 RLS d'Argenteuil | B52: 33650 | D52: 1514 | E52: 15142021Total | F52: =VLOOKUP(E52,Correspondance!$H$1:$I$1243,2,0) -> 769 | G52: =VLOOKUP($I$45,Correspondance!$A$1:$B$91,2) -> H | H52: =VLOOKUP($J$45,Correspondance!$A$1:$B$91,2) -> CT | I52: H769 | J52: CT769 | K52: =SUM(INDIRECT("Données!"&I52):INDIRECT("Données!"&J52)) -> 33646 | M52: 25.85745705
A53: 1515 RLS de Deux-Montagnes - Mirabel-Sud | B53: 125930 | D53: 1515 | E53: 15152021Total | F53: =VLOOKUP(E53,Correspondance!$H$1:$I$1243,2,0) -> 907 | G53: =VLOOKUP($I$45,Correspondance!$A$1:$B$91,2) -> H | H53: =VLOOKUP($J$45,Correspondance!$A$1:$B$91,2) -> CT | I53: H907 | J53: CT907 | K53: =SUM(INDIRECT("Données!"&I53):INDIRECT("Données!"&J53)) -> 125931 | M53: 17.31106717
A54: 1516 RLS de la Rivière-du-Nord - Mirabel-Nord | B54: 180730 | D54: 1516 | E54: 15162021Total | F54: =VLOOKUP(E54,Correspondance!$H$1:$I$1243,2,0) -> 1045 | G54: =VLOOKUP($I$45,Correspondance!$A$1:$B$91,2) -> H | H54: =VLOOKUP($J$45,Correspondance!$A$1:$B$91,2) -> CT | I54: H1045 | J54: CT1045 | K54: =SUM(INDIRECT("Données!"&I54):INDIRECT("Données!"&J54)) -> 180729 | M54: 17.68393562
A55: 1517 RLS de Thérèse-De Blainville | B55: 164440 | D55: 1517 | E55: 15172021Total | F55: =VLOOKUP(E55,Correspondance!$H$1:$I$1243,2,0) -> 1183 | G55: =VLOOKUP($I$45,Correspondance!$A$1:$B$91,2) -> H | H55: =VLOOKUP($J$45,Correspondance!$A$1:$B$91,2) -> CT | I55: H1183 | J55: CT1183 | K55: =SUM(INDIRECT("Données!"&I55):INDIRECT("Données!"&J55)) -> 164440 | M55: 17.19168086

Sheet Correspondance
A1: 0 | B1: H | C1: =" à "&A1&" an" -> à 0 an | E1: 99 | F1: 1996 | G1: Masculin | H1: =E1&F1&G1 -> 991996Masculin | I1: 2 | K1: Masculin | L1: masculine | N1: 1996 | P1: 1996 | Q1: Estimations
A2: 1 | B2: I | C2: =" à "&A2&" an" -> à 1 an | E2: 99 | F2: 1996 | G2: Féminin | H2: 991996Féminin | I2: 3 | K2: Féminin | L2: féminine | N2: 1997 | P2: 1997 | Q2: Estimations
A3: 2 | B3: J | C3: =" à "&A3&" ans" -> à 2 ans | E3: 99 | F3: 1996 | G3: Total | H3: 991996Total | I3: 4 | K3: Total | N3: 1998 | P3: 1998 | Q3: Estimations
A4: 3 | B4: K | C4: à 3 ans | E4: 99 | F4: 1997 | G4: Masculin | H4: 991997Masculin | I4: 5 | L4: sexe réunis | N4: 1999 | P4: 1999 | Q4: Estimations
A5: 4 | B5: L | C5: =" à "&A5&" ans" -> à 4 ans | E5: 99 | F5: 1997 | G5: Féminin | H5: 991997Féminin | I5: 6 | N5: 2000 | P5: 2000 | Q5: Estimations
A6: 5 | B6: M | C6: à 5 ans | E6: 99 | F6: 1997 | G6: Total | H6: 991997Total | I6: 7 | N6: 2001 | P6: 2001 | Q6: Estimations
A7: 6 | B7: N | C7: à 6 ans | E7: 99 | F7: 1998 | G7: Masculin | H7: 991998Masculin | I7: 8 | N7: 2002 | P7: 2002 | Q7: Estimations
A8: 7 | B8: O | C8: à 7 ans | E8: 99 | F8: 1998 | G8: Féminin | H8: 991998Féminin | I8: 9 | N8: 2003 | P8: 2003 | Q8: Estimations
A9: 8 | B9: P | C9: à 8 ans | E9: 99 | F9: 1998 | G9: Total | H9: 991998Total | I9: 10 | N9: 2004 | P9: 2004 | Q9: Estimations
A10: 9 | B10: Q | C10: à 9 ans | E10: 99 | F10: 1999 | G10: Masculin | H10: 991999Masculin | I10: 11 | N10: 2005 | P10: 2005 | Q10: Estimations
A11: 10 | B11: R | C11: à 10 ans | E11: 99 | F11: 1999 | G11: Féminin | H11: 991999Féminin | I11: 12 | N11: 2006 | P11: 2006 | Q11: Estimations
A12: 11 | B12: S | C12: à 11 ans | E12: 99 | F12: 1999 | G12: Total | H12: 991999Total | I12: 13 | N12: 2007 | P12: 2007 | Q12: Estimations
A13: 12 | B13: T | C13: à 12 ans | E13: 99 | F13: 2000 | G13: Masculin | H13: 992000Masculin | I13: 14 | N13: 2008 | P13: 2008 | Q13: Estimations
A14: 13 | B14: U | C14: à 13 ans | E14: 99 | F14: 2000 | G14: Féminin | H14: 992000Féminin | I14: 15 | N14: 2009 | P14: 2009 | Q14: Estimations
A15: 14 | B15: V | C15: à 14 ans | E15: 99 | F15: 2000 | G15: Total | H15: 992000Total | I15: 16 | N15: 2010 | P15: 2010 | Q15: Estimations
A16: 15 | B16: W | C16: à 15 ans | E16: 99 | F16: 2001 | G16: Masculin | H16: 992001Masculin | I16: 17 | N16: 2011 | P16: 2011 | Q16: Estimations
A17: 16 | B17: X | C17: à 16 ans | E17: 99 | F17: 2001 | G17: Féminin | H17: 992001Féminin | I17: 18 | N17: 2012 | P17: 2012 | Q17: Estimations
A18: 17 | B18: Y | C18: à 17 ans | E18: 99 | F18: 2001 | G18: Total | H18: 992001Total | I18: 19 | N18: 2013 | P18: 2013 | Q18: Estimations
A19: 18 | B19: Z | C19: à 18 ans | E19: 99 | F19: 2002 | G19: Masculin | H19: 992002Masculin | I19: 20 | N19: 2014 | P19: 2014 | Q19: Estimations
A20: 19 | B20: AA | C20: à 19 ans | E20: 99 | F20: 2002 | G20: Féminin | H20: 992002Féminin | I20: 21 | N20: 2015 | P20: 2015 | Q20: Estimations
A21: 20 | B21: AB | C21: à 20 ans | E21: 99 | F21: 2002 | G21: Total | H21: 992002Total | I21: 22 | N21: 2016 | P21: 2016 | Q21: Estimations
A22: 21 | B22: AC | C22: à 21 ans | E22: 99 | F22: 2003 | G22: Masculin | H22: 992003Masculin | I22: 23 | N22: 2017 | P22: 2017 | Q22: Estimations
A23: 22 | B23: AD | C23: à 22 ans | E23: 99 | F23: 2003 | G23: Féminin | H23: 992003Féminin | I23: 24 | N23: 2018 | P23: 2018 | Q23: Estimations
A24: 23 | B24: AE | C24: à 23 ans | E24: 99 | F24: 2003 | G24: Total | H24: 992003Total | I24: 25 | N24: 2019 | P24: 2019 | Q24: Estimations
A25: 24 | B25: AF | C25: à 24 ans | E25: 99 | F25: 2004 | G25: Masculin | H25: 992004Masculin | I25: 26 | N25: 2020 | P25: 2020 | Q25: Projections
A26: 25 | B26: AG | C26: à 25 ans | E26: 99 | F26: 2004 | G26: Féminin | H26: 992004Féminin | I26: 27 | N26: 2021 | P26: 2021 | Q26: Projections
A27: 26 | B27: AH | C27: à 26 ans | E27: 99 | F27: 2004 | G27: Total | H27: 992004Total | I27: 28 | N27: 2022 | P27: 2022 | Q27: Projections
A28: 27 | B28: AI | C28: à 27 ans | E28: 99 | F28: 2005 | G28: Masculin | H28: 992005Masculin | I28: 29 | N28: 2023 | P28: 2023 | Q28: Projections
A29: 28 | B29: AJ | C29: à 28 ans | E29: 99 | F29: 2005 | G29: Féminin | H29: 992005Féminin | I29: 30 | N29: 2024 | P29: 2024 | Q29: Projections
